Workbook

Sheet सामान्य जानकारी
C3: सत्र 2023-24 हेतु कक्षा 01 से 02 तक निजी विद्यालयों के लिए रिजल्ट शीट | L3: सम्पूर्ण जानकारी के लिए विडियो लिंक
C4: निदेशालय बीकानेर द्वारा जारी आदेश का सारांश
C5: 1. स्थानीय परीक्षा में प्रत्येक विषय की सैद्धांतिक परीक्षा हेतु अर्द्ध वार्षिक परीक्षा व वार्षिक परीक्षा हेतु निम्नोक्त अंक निर्धारित रहेंगे - | L5: https://youtu.be/ThY9TGuohzE
C6: इसके अंतर्गत नियमित विद्यार्थियों के लिए विद्यालय द्वारा लिए गए अर्द्धवार्षिक परीक्षा (100 अंक) , और वार्षिक परीक्षा (100 अंक) आदि के कुल 200 अंक होंगे। | K6: Updated On
C7: समाजोपयोगी उत्पादन कार्य एवं समाज सेवा , शारीरिक एवं स्वास्थ्य शिक्षा तथा कला शिक्षा विषयों मे विद्यालय द्वारा करवाए गए शिक्षण कार्य / प्रोजेक्ट वर्क / गृहकार्य पुस्तिका के आधार पर मूल्यांकन ग्रेडिंग में देनी है I | K7: 2024-04-30
C8: विषय कोड | D8: विषय | E8: सामायिक परख के पूर्णांक | F8: अर्द्धवार्षिक कुल पूर्णांक | G8: वार्षिक कुल पूर्णांक | K8: यह एक्सेल फाइल कॉपीराइट एक्ट के अंतर्गत है , आप इसके साथ किसी भी प्रकार की छेड़छाड़ नहीं कर सकते है I अगर कोई इस एक्सेल फाइल के साथ छेड़छाड़ या नक़ल या कॉपी करता है , तो उसके खिलाफ़ क़ानूनी कार्यवाही की जायेगी I
C9: 1 | D9: हिन्दी | F9: 30 + 70 = 100 | G9: 30 + 70 = 100
C10: 2 | D10: अंग्रेजी | F10: 15 + 35 = 50 | G10: 15 + 35 = 50
C11: 3 | D11: गणित | F11: 30 + 70 = 100 | G11: 30 + 70 = 100
C12: 4 | D12: पर्यावरण अध्ययन | F12: 50 | G12: 50
C13: हिंदी , अंग्रेजी , गणित और पर्यावरण विषयों मे ग्रेडिंग देने का आधार निम्न प्रकार से रहेगा -
D15: अंको का प्रतिशत | F15: ग्रेड | H15: नोट :- यह एक्सेल फाइल कम सॉफ्टवेयर निःशुल्क है I शिक्षक साथियों के सम्मान में यह फ्री में उपलब्ध करवाया जा रहा है I
D16: 86 से 100 प्रतिशत तक | F16: A ग्रेड | K16: यह रिजल्ट शीट एक्सेल सॉफ्टवेयर आपको https://excelguruedu.blogspot.com/ www.rajguruji.com , www.rajsevak.com , www.rajgyan.co.in , www.rajteachers.com , www.shalasugum.com , www.ashwinikumar.com पर मिल जाएगी I इसके अलावा आप गूगल पर heeralal jat लिखकर सर्च करेंगे , तो भी यह एक्सेल शीट मिल जाएगी I
D17: 71 से 85 प्रतिशत तक | F17: B ग्रेड
D18: 51 से 70 प्रतिशत तक | F18: C ग्रेड
D19: 31 से50 प्रतिशत तक | F19: D ग्रेड
D20: 0 से 30 प्रतिशत तक | F20: E ग्रेड
D22: निम्नोक्त तीनों विषयों के कुल पूर्णांक
C23: 81 | D23: समाजोपयोगी उत्पादन कार्य एवं समाज सेवा | F23: 50 | G23: ए/बी/सी/डी/ई ग्रेडिंग देनी है (A/B/C/D/E Grade)
C24: 82 | D24: शारीरिक एवं स्वास्थ्य शिक्षा | F24: 100
C25: 83 | D25: कला शिक्षा | F25: 50
D26: समाजोपयोगी उत्पादन कार्य एवं समाज सेवा , शारीरिक एवं स्वास्थ्य शिक्षा , तथा कला शिक्षा विषयों मे ग्रेडिंग देने का आधार
D27: अंको का प्रतिशत | F27: ग्रेड
D28: 91 से 100 प्रतिशत तक | F28: A+ ग्रेड
D29: 76 से 90 प्रतिशत तक | F29: A ग्रेड
D30: 61 से 75 प्रतिशत तक | F30: B ग्रेड
D31: 41 से 60 प्रतिशत तक | F31: C ग्रेड
D32: 0 से 40 प्रतिशत तक | F32: D ग्रेड
C34: वैसे यह शीट उपरोक्त अनुसार ही बड़ी सावधानी से बनाई गई हैI फिर भी त्रुटि के लिए निर्माणकर्ता ज़िमेदार नहीं होगा I अतः अंतिम रूप से तैयार होने पर अपने स्तर पर जरुर चेक कर लेवे I
C37: Password of This Result Sheet :- Resultsheet2024
F38: (सामान्य जानकारी , master sheet & Marksheet पर try नहीं करें )
C39: प्रोग्राम निर्माणकर्ता
C40: हीरालाल जाट
C41: वरिष्ठ अध्यापक , महात्मा गाँधी राजकीय विद्यालय बर , पाली
C42: स्थाई पता :- चंडावल नगर , तह. - सोजत , जिला - पाली
C43: https://youtube.com/c/Heeralaljat
C46: सम्पूर्ण जानकारी के लिए विडियो लिंक
C47: https://youtu.be/ThY9TGuohzE
E49: https://youtu.be/KH69Y_uPILw

Sheet Master sheet
P4: =IF(#REF!="","",#REF!) -> 
P5: =IF(#REF!="","",#REF!) -> 
C6: School Recognition (विद्यालय मान्यता क्रमांक) :- | D6: शिक्षा/पाली/1995/2001 | F6: 1 | G6: =IF(D11="Hindi","हिंदी","Hindi") -> Hindi | H6: Manoj kumar Pachori | P6: =IF(#REF!="","",#REF!) -> 
C7: Name of School (In English) :- | D7: Mahatma Gandhi Government School (English Medium) Bar, Pali | F7: 2 | G7: =IF(D11="Hindi","अंग्रेजी","English") -> English | H7: Sampat Raj | P7: =IF(#REF!="","",#REF!) -> 
C8: Name of School (In Hindi) :- | D8: महात्मा गाँधी राजकीय विद्यालय (अंग्रेजी माध्यम) बर, पाली | F8: 3 | G8: =IF(D11="Hindi","गणित","Maths") -> Maths | H8: Pradip singh | P8: =IF(#REF!="","",#REF!) -> 
C9: Exam Nodel & Collection Centre Name :- | D9: G.S.S.S. BAR | F9: 4 | G9: =IF(D11="Hindi","पर्यावरण अध्ययन","EVS") -> EVS | H9: Pushpendra Jawra | P9: =IF(#REF!="","",#REF!) -> 
C10: Date of result declaration :- | D10: 2024-05-07 | F10: 5 | G10: =IF(D11="Hindi","कक्षा 1 के कक्षाध्यापक","1st Class Teacher") -> 1st Class Teacher | H10: Pradip singh Rajawat | P10: =IF(#REF!="","",#REF!) -> 
C11: Medium :- | D11: English | P11: =IF(#REF!="","",#REF!) -> 
C12: Principal Name :- | D12: USHA PALIYA | P12: =IF(#REF!="","",#REF!) -> 
C13: Principal Mobile No. :- | D13: 9828765219 | P13: =IF(#REF!="","",#REF!) -> 
C14: Exam Incharge :- | D14: Suresh Chand | F14: 1 | G14: =IF(D11="Hindi","हिंदी","Hindi") -> Hindi | H14: Abhimanyu singh | P14: =IF(#REF!="","",#REF!) -> 
C15: Result Checker :- | D15: Radheshyam | F15: 2 | G15: =IF(D11="Hindi","अंग्रेजी","English") -> English | H15: Sampat Raj | P15: =IF(#REF!="","",#REF!) -> 
C16: Result Maker :- | D16: Sharad | F16: 3 | G16: =IF(D11="Hindi","गणित","Maths") -> Maths | H16: Pradip singh | P16: =IF(#REF!="","",#REF!) -> 
F17: 4 | G17: =IF(D11="Hindi","पर्यावरण अध्ययन","EVS") -> EVS | H17: Pushpendra Jawra | P17: =IF(#REF!="","",#REF!) -> 
F18: 5 | G18: =IF(D11="Hindi","कक्षा 2 के कक्षाध्यापक","2nd Class Teacher") -> 2nd Class Teacher | H18: Pushpendra Jawra | P18: =IF(#REF!="","",#REF!) -> 
P19: =IF(#REF!="","",#REF!) -> 
E20: 1 | P20: =IF(#REF!="","",#REF!) -> 
D21: Presented By :- | P21: =IF(#REF!="","",#REF!) -> 
C22: नोट :- यह एक्सेल फाइल कम सॉफ्टवेयर निःशुल्क है I शिक्षक साथियों के सम्मान में यह फ्री में उपलब्ध करवाया जा रहा है I | P22: =IF(#REF!="","",#REF!) -> 
D23: HEERA LAL JAT | G23: 1 | P23: =IF(#REF!="","",#REF!) -> 
D24: Sr. Teacher at MGGS BAR (PALI) | P24: =IF(#REF!="","",#REF!) -> 
P25: =IF(#REF!="","",#REF!) -> 
C26: Youtube Video Link for Class 1st / 2nd | D26: V./P. - CHANDAWAL NAGAR , SOJAT (PALI) | P26: =IF(#REF!="","",#REF!) -> 
P27: =IF(#REF!="","",#REF!) -> 
C28: https://youtu.be/ThY9TGuohzE | D28: Whats App No. 09001884272 | P28: =IF(#REF!="","",#REF!) -> 
P29: =IF(#REF!="","",#REF!) -> 
D30: heeralaljatchandawal@gmail.com | P30: =IF(#REF!="","",#REF!) -> 
P31: =IF(#REF!="","",#REF!) -> 
P32: =IF(#REF!="","",#REF!) -> 
P33: =IF(#REF!="","",#REF!) -> 
P34: =IF(#REF!="","",#REF!) -> 
P35: =IF(#REF!="","",#REF!) -> 
P36: =IF(#REF!="","",#REF!) -> 
P37: =IF(#REF!="","",#REF!) -> 
P38: =IF(#REF!="","",#REF!) -> 
P39: =IF(#REF!="","",#REF!) -> 
P40: =IF(#REF!="","",#REF!) -> 
P41: =IF(#REF!="","",#REF!) -> 
P42: =IF(#REF!="","",#REF!) -> 
P43: =IF(#REF!="","",#REF!) -> 
P44: =IF(#REF!="","",#REF!) -> 
P45: =IF(#REF!="","",#REF!) -> 
P46: =IF(#REF!="","",#REF!) -> 
P47: =IF(#REF!="","",#REF!) -> 
P48: =IF(#REF!="","",#REF!) -> 
P49: =IF(#REF!="","",#REF!) -> 
P50: =IF(#REF!="","",#REF!) -> 
P51: =IF(#REF!="","",#REF!) -> 
P52: =IF(#REF!="","",#REF!) -> 
P53: =IF(#REF!="","",#REF!) -> 
P54: =IF(#REF!="","",#REF!) -> 
P55: =IF(#REF!="","",#REF!) -> 
P56: =IF(#REF!="","",#REF!) -> 
P57: =IF(#REF!="","",#REF!) -> 
P58: =IF(#REF!="","",#REF!) -> 
P59: =IF(#REF!="","",#REF!) -> 
P60: =IF(#REF!="","",#REF!) -> 
P61: =IF(#REF!="","",#REF!) -> 

Sheet Marks Entry 1st
A1: =IF('Master sheet'!D11="Hindi",'Master sheet'!D8,'Master sheet'!D7) -> Mahatma Gandhi Government School (English Medium) Bar, Pali | P1: This Sheet Password :- Resultsheet2024 (सामान्य जानकारी , Master Sheet & Marksheet पर try नहीं करें ) | AN1: ए/बी/सी/डी/ई ग्रेडिंग देनी है (A/B/C/D/E Grade) | AT1: =IF('Master sheet'!$D$11="Hindi","अतिरिक्त विषय ","Extra Subject") -> Extra Subject | CG1: =L3 -> 0 | CJ1: =AN3 -> WORK EXP.
A2: =IF('Master sheet'!D11="Hindi","रिजल्ट वर्कशीट","RESULT WORKSHEET") -> RESULT WORKSHEET | I2: 2023-2024 | CG2: =S3 -> 0 | CJ2: =AP3 -> ART EDU.
A3: =IF('Master sheet'!D11="Hindi","विद्यार्थी की सामान्य जानकारी","General Information of Students") -> General Information of Students | I3: =IF('Master sheet'!D11="Hindi","कक्षा :-","CLASS :- ") -> CLASS :- | J3: 1st | O3: =IF('Master sheet'!$D$11="Hindi","हिंदी","Hindi") -> Hindi | P3: =UPPER('Master sheet'!H6) -> MANOJ KUMAR PACHORI | V3: =IF('Master sheet'!$D$11="Hindi","अंग्रेजी","English") -> English | W3: =UPPER('Master sheet'!H7) -> SAMPAT RAJ | AC3: =IF('Master sheet'!$D$11="Hindi","गणित","Maths") -> Maths | AD3: =UPPER('Master sheet'!H8) -> PRADIP SINGH | AJ3: =IF('Master sheet'!$D$11="Hindi","पर्यावरण अध्ययन","EVS") -> EVS | AK3: =UPPER('Master sheet'!H9) -> PUSHPENDRA JAWRA | AN3: =IF('Master sheet'!$D$11="Hindi","कार्यानुभव","WORK EXP.") -> WORK EXP. | AP3: =IF('Master sheet'!$D$11="Hindi","कला शिक्षा","ART EDU.") -> ART EDU. | AR3: =IF('Master sheet'!$D$11="Hindi","स्वा. एवं शा. शिक्षा","HE.&PH. EDU.") -> HE.&PH. EDU. | AX3: =IF('Master sheet'!$D$11="Hindi","उपस्थिति","Attendance") -> Attendance | CG3: =#REF! ->  | CJ3: =AR3 -> HE.&PH. EDU.
A4: =IF('Master sheet'!D11="Hindi","क्र. स.","Sr. No. ") -> Sr. No. | B4: =IF('Master sheet'!D11="Hindi","कक्षा","CLASS ") -> CLASS | C4: =IF('Master sheet'!D11="Hindi","सेक्शन","Section ") -> Section | D4: =IF('Master sheet'!D11="Hindi","प्रवेशांक","SR. NO.") -> SR. NO. | E4: =IF('Master sheet'!D11="Hindi","जन्म दिनांक","Date of Birth") -> Date of Birth | F4: =IF('Master sheet'!D11="Hindi","विद्यार्थी का नाम","Student's Name") -> Student's Name | G4: =IF('Master sheet'!D11="Hindi","पिता का नाम","Father's Name") -> Father's Name | H4: =IF('Master sheet'!D11="Hindi","माता का नाम ","Mother's Name") -> Mother's Name | I4: =IF('Master sheet'!D11="Hindi","कक्षा रोल न. ","Class Roll No.") -> Class Roll No. | J4: =IF('Master sheet'!D11="Hindi","लिंग ","Gender") -> Gender | K4: =IF('Master sheet'!D11="Hindi","वर्ग ","Category") -> Category | O4: =IF('Master sheet'!$D$11="Hindi","अर्द्धवार्षिक","Half Yearly") -> Half Yearly | Q4: =IF('Master sheet'!$D$11="Hindi","वार्षिक","Yearly") -> Yearly | V4: =IF('Master sheet'!$D$11="Hindi","अर्द्धवार्षिक","Half Yearly") -> Half Yearly | X4: =IF('Master sheet'!$D$11="Hindi","वार्षिक","Yearly") -> Yearly | AC4: =IF('Master sheet'!$D$11="Hindi","अर्द्धवार्षिक","Half Yearly") -> Half Yearly | AE4: =IF('Master sheet'!$D$11="Hindi","वार्षिक","Yearly") -> Yearly | AJ4: =IF('Master sheet'!$D$11="Hindi","अर्द्धवार्षिक","Half Yearly") -> Half Yearly | AL4: =IF('Master sheet'!$D$11="Hindi","वार्षिक","Yearly") -> Yearly | AN4: Manoj kumar | AP4: Pradip Singh | AR4: Sampat Raj | AX4: =IF('Master sheet'!$D$11="Hindi","कुल कार्य दिवस","Total Meeting") -> Total Meeting | AY4: =IF('Master sheet'!$D$11="Hindi","कुल उपस्थिति","Total Attendance") -> Total Attendance | CG4: =Z3 -> 0
O5: =IF('Master sheet'!$D$11="Hindi","लिखित","Written") -> Written | P5: =IF('Master sheet'!$D$11="Hindi","मौखिक","Oral") -> Oral | Q5: =IF('Master sheet'!$D$11="Hindi","लिखित","Written") -> Written | R5: =IF('Master sheet'!$D$11="Hindi","मौखिक","Oral") -> Oral | V5: =IF('Master sheet'!$D$11="Hindi","लिखित","Written") -> Written | W5: =IF('Master sheet'!$D$11="Hindi","मौखिक","Oral") -> Oral | X5: =IF('Master sheet'!$D$11="Hindi","लिखित","Written") -> Written | Y5: =IF('Master sheet'!$D$11="Hindi","मौखिक","Oral") -> Oral | AC5: =IF('Master sheet'!$D$11="Hindi","लिखित","Written") -> Written | AD5: =IF('Master sheet'!$D$11="Hindi","मौखिक","Oral") -> Oral | AE5: =IF('Master sheet'!$D$11="Hindi","लिखित","Written") -> Written | AF5: =IF('Master sheet'!$D$11="Hindi","मौखिक","Oral") -> Oral | AJ5: =IF('Master sheet'!$D$11="Hindi","लिखित","Written") -> Written | AK5: =IF('Master sheet'!$D$11="Hindi","मौखिक","Oral") -> Oral | AL5: =IF('Master sheet'!$D$11="Hindi","लिखित","Written") -> Written | AM5: =IF('Master sheet'!$D$11="Hindi","मौखिक","Oral") -> Oral | AN5: =IF('Master sheet'!$D$11="Hindi","अर्द्धवार्षिक","Half Yearly") -> Half Yearly | AO5: =IF('Master sheet'!$D$11="Hindi","वार्षिक","Yearly") -> Yearly | AP5: =IF('Master sheet'!$D$11="Hindi","अर्द्धवार्षिक","Half Yearly") -> Half Yearly | AQ5: =IF('Master sheet'!$D$11="Hindi","वार्षिक","Yearly") -> Yearly | AR5: =IF('Master sheet'!$D$11="Hindi","अर्द्धवार्षिक","Half Yearly") -> Half Yearly | AS5: =IF('Master sheet'!$D$11="Hindi","वार्षिक","Yearly") -> Yearly | AT5: =IF('Master sheet'!$D$11="Hindi","अर्द्धवार्षिक","Half Yearly") -> Half Yearly | AU5: =IF('Master sheet'!$D$11="Hindi","वार्षिक","Yearly") -> Yearly | AV5: =IF('Master sheet'!$D$11="Hindi","अर्द्धवार्षिक","Half Yearly") -> Half Yearly | AW5: =IF('Master sheet'!$D$11="Hindi","वार्षिक","Yearly") -> Yearly | BR5: =IF(AND(L6="",M6="",N6="",P6=""),"",SUM(L6,M6,N6,O6,P6)) -> 100 | BS5: 20 | BT5: =IF(AND(S6="",T6="",U6="",W6=""),"",SUM(S6,T6,U6,V6,W6)) -> 50 | BU5: 20 | BV5: =IF(AND(#REF!="",#REF!="",#REF!="",#REF!=""),"",SUM(#REF!,#REF!,#REF!,#REF!,#REF!)) ->  | BW5: 20 | BX5: =IF(AND(Z6="",AA6="",AB6="",AD6=""),"",SUM(Z6,AA6,AB6,AC6,AD6)) -> 100 | BY5: 20 | BZ5: =IF(AND(AG6="",AH6="",AI6="",AK6=""),"",SUM(AG6,AH6,AI6,AJ6,AK6)) ->  | CA5: 20 | CB5: =IF(AND(#REF!="",#REF!="",#REF!="",#REF!=""),"",SUM(#REF!,#REF!,#REF!,#REF!,#REF!)) ->  | CC5: 20 | CG5: =AG3 -> 0
O6: 30 | P6: 70 | Q6: 30 | R6: 70 | V6: 15 | W6: 35 | X6: 15 | Y6: 35 | AC6: 30 | AD6: 70 | AE6: 30 | AF6: 70 | AJ6: 50 | AL6: 50 | AN6: 25 | AO6: 25 | AP6: 25 | AQ6: 25 | AR6: 50 | AS6: 50 | AT6: 50 | AU6: 50 | AV6: 50 | AW6: 50 | AX6: 350 | BA6: परम पूज्य गुरूदेव वासुदेव जी महाराज | BR6: 1 | BS6: 1 | BT6: 2 | BU6: 2 | BV6: 3 | BW6: 3 | BX6: 4 | BY6: 4 | BZ6: 5 | CA6: 5 | CB6: 6 | CC6: 6 | CG6: =#REF! -> 
A7: 1 | B7: 1 | C7: A | D7: 936 | E7: 28-10-2014 | F7: AAKIFA BANO | G7: SHABBIR MOHAMMAD | H7: HEENA KOUSER | I7: 101 | J7: F | K7: OBC | O7: 25 | P7: 62 | Q7: 29 | R7: 25 | V7: 15 | W7: 30 | X7: 10 | Y7: 30 | AC7: 22 | AD7: 64 | AE7: 21 | AF7: 56 | AJ7: 45 | AL7: 45 | AN7: 25 | AO7: 20 | AP7: 11 | AQ7: 20 | AR7: 41 | AS7: 35 | AT7: 45 | AU7: 46 | AV7: 47 | AW7: 48 | AX7: 220 | AY7: 170 | BQ7: =IF(I7="","",I7) -> 101 | BR7: =IF(AND(L7="",M7="",N7="",P7=""),"",SUM(L7,M7,N7,O7,P7)) -> 87 | BS7: =IFERROR(IF(BR7="","",ROUNDUP(BR7*20%,0)),"") -> 18 | BT7: =IF(AND(S7="",T7="",U7="",W7=""),"",SUM(S7,T7,U7,V7,W7)) -> 45 | BU7: =IFERROR(IF(BT7="","",ROUNDUP(BT7*20%,0)),"") -> 9 | BV7: =IF(AND(#REF!="",#REF!="",#REF!="",#REF!=""),"",SUM(#REF!,#REF!,#REF!,#REF!,#REF!)) ->  | BW7: =IFERROR(IF(BV7="","",ROUNDUP(BV7*20%,0)),"") ->  | BX7: =IF(AND(Z7="",AA7="",AB7="",AD7=""),"",SUM(Z7,AA7,AB7,AC7,AD7)) -> 86 | BY7: =IFERROR(IF(BX7="","",ROUNDUP(BX7*20%,0)),"") -> 18 | BZ7: =IF(AND(AG7="",AH7="",AI7="",AK7=""),"",SUM(AG7,AH7,AI7,AJ7,AK7)) ->  | CA7: =IFERROR(IF(BZ7="","",ROUNDUP(BZ7*20%,0)),"") ->  | CB7: =IF(AND(#REF!="",#REF!="",#REF!="",#REF!=""),"",SUM(#REF!,#REF!,#REF!,#REF!,#REF!)) ->  | CC7: =IFERROR(IF(CB7="","",ROUNDUP(CB7*20%,0)),"") -> 
A8: 2 | B8: 1 | C8: A | D8: 944 | E8: 2015-01-01 | F8: ANUJ GIRI | G8: BHAGWAT GIRI | H8: KANTA DEVI | I8: 102 | J8: M | K8: OBC | O8: 20 | P8: 63 | Q8: 21 | R8: 20 | V8: 12 | W8: 31 | X8: 10 | Y8: 31 | AC8: 23 | AD8: 65 | AE8: 22 | AF8: 60 | AJ8: 45 | AL8: 14 | AN8: 24 | AO8: 20 | AP8: 11 | AQ8: 21 | AR8: 31 | AS8: 36 | AT8: 46 | AU8: 32 | AV8: 42 | AW8: 41 | AX8: 220 | AY8: 168 | BA8: https://youtu.be/ThY9TGuohzE | BQ8: =IF(I8="","",I8) -> 102 | BR8: =IF(AND(L8="",M8="",N8="",P8=""),"",SUM(L8,M8,N8,O8,P8)) -> 83 | BS8: =IFERROR(IF(BR8="","",ROUNDUP(BR8*20%,0)),"") -> 17 | BT8: =IF(AND(S8="",T8="",U8="",W8=""),"",SUM(S8,T8,U8,V8,W8)) -> 43 | BU8: =IFERROR(IF(BT8="","",ROUNDUP(BT8*20%,0)),"") -> 9 | BV8: =IF(AND(#REF!="",#REF!="",#REF!="",#REF!=""),"",SUM(#REF!,#REF!,#REF!,#REF!,#REF!)) ->  | BW8: =IFERROR(IF(BV8="","",ROUNDUP(BV8*20%,0)),"") ->  | BX8: =IF(AND(Z8="",AA8="",AB8="",AD8=""),"",SUM(Z8,AA8,AB8,AC8,AD8)) -> 88 | BY8: =IFERROR(IF(BX8="","",ROUNDUP(BX8*20%,0)),"") -> 18 | BZ8: =IF(AND(AG8="",AH8="",AI8="",AK8=""),"",SUM(AG8,AH8,AI8,AJ8,AK8)) ->  | CA8: =IFERROR(IF(BZ8="","",ROUNDUP(BZ8*20%,0)),"") ->  | CB8: =IF(AND(#REF!="",#REF!="",#REF!="",#REF!=""),"",SUM(#REF!,#REF!,#REF!,#REF!,#REF!)) ->  | CC8: =IFERROR(IF(CB8="","",ROUNDUP(CB8*20%,0)),"") -> 
A9: 3 | B9: 1 | C9: A | D9: 934 | E9: 2015-12-10 | F9: ARMAN HUSSAIN | G9: AARIF HUSSAIN | H9: SALMA BANO | I9: 103 | J9: M | K9: OBC | O9: 21 | P9: 69 | Q9: 27 | R9: 21 | V9: 13 | W9: 30 | X9: 11 | Y9: 32 | AC9: 24 | AD9: 62 | AE9: 23 | AF9: 62 | AJ9: 45 | AL9: 45 | AN9: AB | AO9: 18 | AP9: 11 | AQ9: 21 | AR9: 45 | AS9: 36 | AT9: 46 | AU9: 32 | AV9: 42 | AW9: 41 | AX9: 220 | AY9: 160 | BQ9: 103 | BR9: 90 | BS9: 18 | BT9: 43 | BU9: 9 | BV9: =IF(AND(#REF!="",#REF!="",#REF!="",#REF!=""),"",SUM(#REF!,#REF!,#REF!,#REF!,#REF!)) ->  | BX9: 86 | BY9: 18 | CB9: =IF(AND(#REF!="",#REF!="",#REF!="",#REF!=""),"",SUM(#REF!,#REF!,#REF!,#REF!,#REF!)) -> 
A10: 4 | B10: 1 | C10: A | D10: 926 | E10: 2016-05-01 | F10: ARMAN SHAH | G10: JAKIR SHAH | H10: HEENA BANU | I10: 104 | J10: M | K10: OBC | O10: 23 | P10: 68 | Q10: 25 | R10: 24 | V10: 14 | W10: 32 | X10: 12 | Y10: 30 | AC10: 25 | AD10: 61 | AE10: 25 | AF10: 63 | AJ10: 35 | AL10: 48 | AN10: 20 | AO10: AB | AP10: 11 | AQ10: 25 | AR10: 46 | AS10: 36 | AT10: 46 | AU10: 32 | AV10: 42 | AW10: 41 | AX10: 220 | AY10: 188 | BA10: Presented By :- | BQ10: 104 | BR10: 91 | BS10: 19 | BT10: 46 | BU10: 10 | BV10: =IF(AND(#REF!="",#REF!="",#REF!="",#REF!=""),"",SUM(#REF!,#REF!,#REF!,#REF!,#REF!)) ->  | BX10: 86 | BY10: 18 | CB10: =IF(AND(#REF!="",#REF!="",#REF!="",#REF!=""),"",SUM(#REF!,#REF!,#REF!,#REF!,#REF!)) -> 
A11: 5 | B11: 1 | C11: A | D11: 951 | E11: 25-08-2015 | F11: BHAVYANSH SINGH CHOUHAN | G11: AJIT SINGH | H11: MEENA | I11: 105 | J11: M | K11: OBC | O11: 25 | P11: 67 | Q11: 26 | R11: 21 | V11: 15 | W11: 31 | X11: 12 | Y11: 32 | AC11: 26 | AD11: 64 | AE11: 24 | AF11: 65 | AJ11: 42 | AL11: 48 | AN11: 22 | AO11: 24 | AP11: 11 | AQ11: 24 | AR11: 47 | AS11: 36 | AT11: 46 | AU11: 32 | AV11: 42 | AW11: 41 | AX11: 220 | AY11: 188 | BQ11: 105 | BR11: 92 | BS11: 19 | BT11: 46 | BU11: 10 | BV11: =IF(AND(#REF!="",#REF!="",#REF!="",#REF!=""),"",SUM(#REF!,#REF!,#REF!,#REF!,#REF!)) ->  | BX11: 90 | BY11: 18 | CB11: =IF(AND(#REF!="",#REF!="",#REF!="",#REF!=""),"",SUM(#REF!,#REF!,#REF!,#REF!,#REF!)) -> 
A12: 6 | B12: 1 | C12: A | D12: 939 | E12: 16-06-2014 | F12: BHUMIKA BAGRI | G12: MUKESH BAGRI | H12: SEEMA BAGRI | I12: 106 | J12: F | K12: OBC | O12: 26 | P12: 64 | Q12: 28 | R12: 20 | V12: 12 | W12: 30 | X12: 10 | Y12: 31 | AC12: 25 | AD12: 64 | AE12: 21 | AF12: 64 | AJ12: 36 | AL12: 47 | AN12: 21 | AO12: 22 | AP12: 12 | AQ12: 21 | AR12: 48 | AS12: 36 | AT12: 46 | AU12: 32 | AV12: 42 | AW12: 41 | AX12: 220 | AY12: 180 | BA12: HEERA LAL JAT | BQ12: 106 | BR12: 90 | BS12: 18 | BT12: 42 | BU12: 9 | BV12: =IF(AND(#REF!="",#REF!="",#REF!="",#REF!=""),"",SUM(#REF!,#REF!,#REF!,#REF!,#REF!)) ->  | BX12: 89 | BY12: 18 | CB12: =IF(AND(#REF!="",#REF!="",#REF!="",#REF!=""),"",SUM(#REF!,#REF!,#REF!,#REF!,#REF!)) -> 
A13: 7 | B13: 1 | C13: A | D13: 942 | E13: 28-09-2015 | F13: DAKSH PRAJAPAT | G13: PRAKASH PRAJAPAT | H13: REKHA PRAJAPATI | I13: 108 | J13: M | K13: OBC | O13: 24 | P13: 65 | Q13: 29 | R13: 25 | V13: 13 | W13: 32 | X13: 12 | Y13: 34 | AC13: 24 | AD13: 64 | AE13: 20 | AF13: 69 | AJ13: 32 | AL13: 48 | AN13: NA | AO13: 25 | AP13: 13 | AQ13: 20 | AR13: 23 | AS13: 36 | AT13: 46 | AU13: 32 | AV13: 42 | AW13: 41 | AX13: 220 | AY13: 180 | BQ13: 108 | BR13: 89 | BS13: 18 | BT13: 45 | BU13: 9 | BV13: =IF(AND(#REF!="",#REF!="",#REF!="",#REF!=""),"",SUM(#REF!,#REF!,#REF!,#REF!,#REF!)) ->  | BX13: 88 | BY13: 18 | CB13: =IF(AND(#REF!="",#REF!="",#REF!="",#REF!=""),"",SUM(#REF!,#REF!,#REF!,#REF!,#REF!)) -> 
A14: 8 | B14: 1 | C14: A | D14: 925 | E14: 2015-10-26 | F14: DIVYA BAGRI | G14: MUKESH | H14: SEEMA | I14: 109 | J14: F | K14: OBC | O14: 28 | P14: 61 | Q14: 24 | R14: 24 | V14: 10 | W14: 31 | X14: 14 | Y14: 32 | AC14: 21 | AD14: 64 | AE14: 23 | AF14: 68 | AJ14: 30 | AL14: 49 | AN14: 23 | AO14: 24 | AP14: 13 | AQ14: 23 | AR14: 45 | AS14: 36 | AT14: 46 | AU14: 32 | AV14: 42 | AW14: 41 | AX14: 220 | AY14: 160 | BA14: Sr. Teacher at MGGS BAR (PALI) | BQ14: 109 | BR14: 89 | BS14: 18 | BT14: 41 | BU14: 9 | BV14: =IF(AND(#REF!="",#REF!="",#REF!="",#REF!=""),"",SUM(#REF!,#REF!,#REF!,#REF!,#REF!)) ->  | BX14: 85 | BY14: 17 | CB14: =IF(AND(#REF!="",#REF!="",#REF!="",#REF!=""),"",SUM(#REF!,#REF!,#REF!,#REF!,#REF!)) -> 
A15: 9 | B15: 1 | C15: A | D15: 952 | E15: 2015-02-12 | F15: DUSHYANT DAYAMA | G15: BASANT KUMAR DAYAMA | H15: PUSHPA DAYAMA | I15: 110 | J15: M | K15: SC | O15: 29 | P15: 62 | Q15: 24 | R15: 21 | V15: 14 | W15: 30 | X15: 10 | Y15: 31 | AC15: 20 | AD15: 64 | AE15: 25 | AF15: 67 | AJ15: 41 | AL15: 47 | AN15: 21 | AO15: 21 | AP15: 14 | AQ15: 20 | AR15: 41 | AS15: 36 | AT15: 46 | AU15: 32 | AV15: 42 | AW15: 41 | AX15: 220 | AY15: 156 | BQ15: 110 | BR15: 91 | BS15: 19 | BT15: 44 | BU15: 9 | BV15: =IF(AND(#REF!="",#REF!="",#REF!="",#REF!=""),"",SUM(#REF!,#REF!,#REF!,#REF!,#REF!)) ->  | BX15: 84 | BY15: 17 | CB15: =IF(AND(#REF!="",#REF!="",#REF!="",#REF!=""),"",SUM(#REF!,#REF!,#REF!,#REF!,#REF!)) -> 
A16: 10 | B16: 1 | C16: A | D16: 931 | E16: 23-10-2015 | F16: GUNEET CHOUHAN | G16: KAILASH CHOUHAN | H16: PUSHPA DEVI | I16: 111 | J16: M | K16: OBC | O16: 29 | P16: 62 | Q16: 24 | R16: 20 | V16: 14 | W16: 32 | X16: 12 | Y16: 30 | AC16: 23 | AD16: 64 | AE16: 26 | AF16: 64 | AJ16: 41 | AL16: 48 | AN16: 25 | AO16: 20 | AP16: 15 | AQ16: 21 | AR16: 40 | AS16: 36 | AT16: 46 | AU16: 32 | AV16: 42 | AW16: 41 | AX16: 220 | AY16: 158 | BA16: V./P. - CHANDAWAL NAGAR , SOJAT (PALI) | BQ16: 111 | BR16: 91 | BS16: 19 | BT16: 46 | BU16: 10 | BV16: =IF(AND(#REF!="",#REF!="",#REF!="",#REF!=""),"",SUM(#REF!,#REF!,#REF!,#REF!,#REF!)) ->  | BX16: 87 | BY16: 18 | CB16: =IF(AND(#REF!="",#REF!="",#REF!="",#REF!=""),"",SUM(#REF!,#REF!,#REF!,#REF!,#REF!)) -> 
A17: 11 | B17: 1 | C17: A | D17: 923 | E17: 23-10-2015 | F17: GUNJAN TAK | G17: DINESH KUMAR TAK | H17: SHARDA TAK | I17: 112 | J17: F | K17: OBC | O17: 29 | P17: 65 | Q17: 24 | R17: 20 | V17: 14 | W17: 32 | X17: 13 | Y17: 32 | AC17: 25 | AD17: 64 | AE17: 24 | AF17: 65 | AJ17: 41 | AL17: 45 | AN17: 23 | AO17: 20 | AP17: 15 | AQ17: 23 | AR17: 42 | AS17: 36 | AX17: 220 | AY17: 158 | BQ17: 112 | BR17: 94 | BS17: 19 | BT17: 46 | BU17: 10 | BV17: =IF(AND(#REF!="",#REF!="",#REF!="",#REF!=""),"",SUM(#REF!,#REF!,#REF!,#REF!,#REF!)) ->  | BX17: 89 | BY17: 18 | CB17: =IF(AND(#REF!="",#REF!="",#REF!="",#REF!=""),"",SUM(#REF!,#REF!,#REF!,#REF!,#REF!)) -> 
A18: 12 | B18: 1 | C18: A | D18: 949 | E18: 30-10-2014 | F18: JAGRAT SOLANKI | G18: KRISHAN KAMAL SOLANKI | H18: GEETA DEVI | I18: 113 | J18: M | K18: OBC | O18: 29 | P18: 68 | Q18: 24 | R18: 23 | V18: 14 | W18: 32 | X18: 10 | Y18: 32 | AC18: 26 | AD18: 64 | AE18: 21 | AF18: 62 | AJ18: 42 | AL18: 49 | AN18: ML | AO18: 21 | AP18: 15 | AQ18: 20 | AR18: 43 | AS18: 23 | AX18: 220 | AY18: 156 | BQ18: 113 | BR18: 97 | BS18: 20 | BT18: 46 | BU18: 10 | BV18: =IF(AND(#REF!="",#REF!="",#REF!="",#REF!=""),"",SUM(#REF!,#REF!,#REF!,#REF!,#REF!)) ->  | BX18: 90 | BY18: 18 | CB18: =IF(AND(#REF!="",#REF!="",#REF!="",#REF!=""),"",SUM(#REF!,#REF!,#REF!,#REF!,#REF!)) -> 
A19: 13 | B19: 1 | C19: A | D19: 933 | E19: 26-05-2014 | F19: JOYA KHAN | G19: BARGAT KHAN | H19: MADINA BANO | I19: 114 | J19: F | K19: OBC | O19: 29 | P19: 69 | Q19: 24 | R19: 20 | V19: 14 | W19: 32 | X19: 10 | Y19: 30 | AC19: 28 | AD19: 64 | AE19: 23 | AF19: 63 | AJ19: 45 | AL19: 47 | AN19: 23 | AO19: ML | AP19: 15 | AQ19: 21 | AR19: 40 | AS19: 23 | AX19: 220 | AY19: 130 | BQ19: 114 | BR19: 98 | BS19: 20 | BT19: 46 | BU19: 10 | BV19: =IF(AND(#REF!="",#REF!="",#REF!="",#REF!=""),"",SUM(#REF!,#REF!,#REF!,#REF!,#REF!)) ->  | BX19: 92 | BY19: 19 | CB19: =IF(AND(#REF!="",#REF!="",#REF!="",#REF!=""),"",SUM(#REF!,#REF!,#REF!,#REF!,#REF!)) -> 
A20: 14 | B20: 1 | C20: A | D20: 946 | E20: 18-02-2015 | F20: JOYA KHAN | G20: SAHIMAN LOHAR | H20: SABINA BANO | I20: 115 | J20: F | K20: OBC | O20: 29 | P20: 68 | Q20: 24 | R20: 21 | V20: 14 | W20: 32 | X20: 10 | Y20: 32 | AC20: 22 | AD20: 64 | AE20: 25 | AF20: 65 | AJ20: 41 | AL20: 48 | AN20: AB | AO20: AB | AQ20: 23 | AR20: 45 | AX20: 220 | AY20: 160 | BQ20: 115 | BR20: 97 | BS20: 20 | BT20: 46 | BU20: 10 | BV20: =IF(AND(#REF!="",#REF!="",#REF!="",#REF!=""),"",SUM(#REF!,#REF!,#REF!,#REF!,#REF!)) ->  | BX20: 86 | BY20: 18 | CB20: =IF(AND(#REF!="",#REF!="",#REF!="",#REF!=""),"",SUM(#REF!,#REF!,#REF!,#REF!,#REF!)) -> 
A21: 15 | B21: 1 | C21: A | D21: 935 | E21: 24-09-2015 | F21: KHUSHVEER SINGH | G21: PUSA RAM | H21: POOJA | I21: 117 | J21: M | K21: SC | O21: 29 | P21: 62 | Q21: 24 | R21: 24 | V21: 14 | W21: 32 | X21: 10 | Y21: 30 | AC21: 22 | AD21: 64 | AE21: 26 | AF21: 64 | AJ21: 42 | AL21: 49 | AN21: ML | AO21: ML | AQ21: 20 | AR21: 47 | AX21: 220 | AY21: 180 | BQ21: 117 | BR21: 91 | BS21: 19 | BT21: 46 | BU21: 10 | BV21: =IF(AND(#REF!="",#REF!="",#REF!="",#REF!=""),"",SUM(#REF!,#REF!,#REF!,#REF!,#REF!)) ->  | BX21: 86 | BY21: 18 | CB21: =IF(AND(#REF!="",#REF!="",#REF!="",#REF!=""),"",SUM(#REF!,#REF!,#REF!,#REF!,#REF!)) -> 
A22: 16 | B22: 1 | C22: A | D22: 940 | E22: 21-01-2016 | F22: KINJAL SAINI | G22: DURGESH CHAND BAGRI | H22: PUSHPA DEVI | I22: 118 | J22: F | K22: OBC | O22: 29 | P22: 50 | Q22: 24 | R22: 21 | V22: 14 | W22: 32 | X22: 10 | Y22: 32 | AC22: 22 | AD22: 64 | AE22: 28 | AF22: 69 | AJ22: 41 | AL22: 48 | AN22: NA | AO22: NA | AQ22: 21 | AR22: 48 | AX22: 220 | AY22: 180 | BQ22: 118 | BR22: 79 | BS22: 16 | BT22: 46 | BU22: 10 | BV22: =IF(AND(#REF!="",#REF!="",#REF!="",#REF!=""),"",SUM(#REF!,#REF!,#REF!,#REF!,#REF!)) ->  | BX22: 86 | BY22: 18 | CB22: =IF(AND(#REF!="",#REF!="",#REF!="",#REF!=""),"",SUM(#REF!,#REF!,#REF!,#REF!,#REF!)) -> 
A23: 17 | B23: 1 | C23: A | D23: 924 | E23: 14-02-2016 | F23: LUCKY PRAJAPATI | G23: NAR SINGH | H23: BHAWNA | I23: 119 | J23: M | K23: OBC | O23: 29 | P23: 51 | Q23: 24 | R23: 20 | V23: 14 | W23: 32 | X23: 10 | Y23: 31 | AC23: 22 | AD23: 64 | AE23: 27 | AF23: 68 | AJ23: 42 | AL23: 47 | AN23: NA | AR23: 49 | AX23: 220 | AY23: 158 | BQ23: 119 | BR23: 80 | BS23: 16 | BT23: 46 | BU23: 10 | BV23: =IF(AND(#REF!="",#REF!="",#REF!="",#REF!=""),"",SUM(#REF!,#REF!,#REF!,#REF!,#REF!)) ->  | BX23: 86 | BY23: 18 | CB23: =IF(AND(#REF!="",#REF!="",#REF!="",#REF!=""),"",SUM(#REF!,#REF!,#REF!,#REF!,#REF!)) -> 
A24: 18 | B24: 1 | C24: A | D24: 921 | E24: 2015-01-04 | F24: MAHENDRA PARTAP SINGH CHUNDAWAT | G24: CHANDRA SINGH CHUNDAWAT | H24: RITU KANWAR | I24: 120 | J24: M | K24: GEN | O24: 29 | P24: 54 | Q24: 24 | R24: 21 | V24: 14 | W24: 32 | X24: 10 | Y24: 30 | AC24: 22 | AD24: 64 | AE24: 24 | AF24: 65 | AJ24: 40 | AL24: 49 | AO24: AB | AR24: 35 | AX24: 220 | AY24: 158 | BQ24: 120 | BR24: 83 | BS24: 17 | BT24: 46 | BU24: 10 | BV24: =IF(AND(#REF!="",#REF!="",#REF!="",#REF!=""),"",SUM(#REF!,#REF!,#REF!,#REF!,#REF!)) ->  | BX24: 86 | BY24: 18 | CB24: =IF(AND(#REF!="",#REF!="",#REF!="",#REF!=""),"",SUM(#REF!,#REF!,#REF!,#REF!,#REF!)) -> 
A25: 19 | B25: 1 | C25: A | D25: 948 | E25: 2015-09-10 | F25: MANVEER GURJAR | G25: VIKRAM SINGH | H25: BARKHA | I25: 121 | J25: M | K25: SBC | O25: 29 | P25: 56 | Q25: 24 | R25: 24 | V25: 14 | W25: 32 | X25: 10 | Y25: 30 | AC25: 22 | AD25: 64 | AE25: 21 | AF25: 61 | AJ25: 41 | AL25: 41 | AR25: 36 | AX25: 220 | AY25: 160 | BQ25: 121 | BR25: 85 | BS25: 17 | BT25: 46 | BU25: 10 | BV25: =IF(AND(#REF!="",#REF!="",#REF!="",#REF!=""),"",SUM(#REF!,#REF!,#REF!,#REF!,#REF!)) ->  | BX25: 86 | BY25: 18 | CB25: =IF(AND(#REF!="",#REF!="",#REF!="",#REF!=""),"",SUM(#REF!,#REF!,#REF!,#REF!,#REF!)) -> 
A26: 20 | B26: 1 | C26: A | D26: 943 | E26: 13-01-2015 | F26: PALAK DAMER | G26: GOVIND LAL | H26: LEELA | I26: 122 | J26: F | K26: SC | O26: 29 | P26: 58 | Q26: 24 | R26: 45 | V26: 14 | W26: 32 | X26: 10 | Y26: 30 | AC26: 22 | AD26: 64 | AE26: 25 | AF26: 62 | AJ26: 42 | AL26: 44 | AX26: 220 | AY26: 164 | BQ26: 122 | BR26: 87 | BS26: 18 | BT26: 46 | BU26: 10 | BV26: =IF(AND(#REF!="",#REF!="",#REF!="",#REF!=""),"",SUM(#REF!,#REF!,#REF!,#REF!,#REF!)) ->  | BX26: 86 | BY26: 18 | CB26: =IF(AND(#REF!="",#REF!="",#REF!="",#REF!=""),"",SUM(#REF!,#REF!,#REF!,#REF!,#REF!)) -> 
A27: 21 | B27: 1 | C27: A | D27: 929 | E27: 21-10-2014 | F27: PAWAN CHOUHAN | G27: NARENDRA SINGH | H27: SHOBHA | I27: 123 | J27: M | K27: OBC | O27: 29 | P27: 59 | Q27: 24 | R27: 45 | V27: 14 | W27: 32 | X27: 10 | Y27: 30 | AC27: 22 | AD27: 64 | AE27: 26 | AF27: 63 | AJ27: 43 | AL27: 42 | AX27: 220 | AY27: 166 | BQ27: 123 | BR27: 88 | BS27: 18 | BT27: 46 | BU27: 10 | BV27: =IF(AND(#REF!="",#REF!="",#REF!="",#REF!=""),"",SUM(#REF!,#REF!,#REF!,#REF!,#REF!)) ->  | BX27: 86 | BY27: 18 | CB27: =IF(AND(#REF!="",#REF!="",#REF!="",#REF!=""),"",SUM(#REF!,#REF!,#REF!,#REF!,#REF!)) -> 
A28: 22 | B28: 1 | C28: A | D28: 932 | E28: 15-11-2014 | F28: PRAGYA | G28: SUGANDAS | H28: ANITA | I28: 124 | J28: F | K28: OBC | O28: 29 | P28: 57 | Q28: 24 | R28: 45 | V28: 14 | W28: 32 | X28: 10 | Y28: 30 | AC28: 22 | AD28: 64 | AE28: 23 | AF28: 62 | AJ28: 42 | AL28: 45 | AX28: 220 | AY28: 162 | BQ28: 124 | BR28: 86 | BS28: 18 | BT28: 46 | BU28: 10 | BV28: =IF(AND(#REF!="",#REF!="",#REF!="",#REF!=""),"",SUM(#REF!,#REF!,#REF!,#REF!,#REF!)) ->  | BX28: 86 | BY28: 18 | CB28: =IF(AND(#REF!="",#REF!="",#REF!="",#REF!=""),"",SUM(#REF!,#REF!,#REF!,#REF!,#REF!)) -> 
A29: 23 | B29: 1 | C29: A | D29: 927 | E29: 31-01-2016 | F29: PRAMOD BHATI | G29: PANKAJ | H29: PINKI | I29: 125 | J29: M | K29: OBC | O29: 29 | P29: 54 | Q29: 24 | R29: 45 | V29: 14 | W29: 32 | X29: 10 | Y29: 30 | AC29: 22 | AD29: 64 | AE29: 21 | AF29: 62 | AJ29: 45 | AL29: 46 | AX29: 220 | AY29: 150 | BQ29: 125 | BR29: 83 | BS29: 17 | BT29: 46 | BU29: 10 | BV29: =IF(AND(#REF!="",#REF!="",#REF!="",#REF!=""),"",SUM(#REF!,#REF!,#REF!,#REF!,#REF!)) ->  | BX29: 86 | BY29: 18 | CB29: =IF(AND(#REF!="",#REF!="",#REF!="",#REF!=""),"",SUM(#REF!,#REF!,#REF!,#REF!,#REF!)) -> 
A30: 24 | B30: 1 | C30: A | D30: 938 | E30: 24-06-2015 | F30: PRAVEEN GURJAR | G30: SUKHDEV | H30: MANJU DEVI | I30: 126 | J30: M | K30: SBC | O30: 29 | P30: 51 | Q30: 24 | R30: 45 | V30: 14 | W30: 32 | X30: 10 | Y30: 30 | AC30: 22 | AD30: 64 | AE30: 20 | AF30: 62 | AJ30: 47 | AL30: 48 | AX30: 220 | AY30: 196 | BQ30: 126 | BR30: 80 | BS30: 16 | BT30: 46 | BU30: 10 | BV30: =IF(AND(#REF!="",#REF!="",#REF!="",#REF!=""),"",SUM(#REF!,#REF!,#REF!,#REF!,#REF!)) ->  | BX30: 86 | BY30: 18 | CB30: =IF(AND(#REF!="",#REF!="",#REF!="",#REF!=""),"",SUM(#REF!,#REF!,#REF!,#REF!,#REF!)) -> 
A31: 25 | B31: 1 | C31: A | D31: 950 | E31: 27-02-2016 | F31: PRIYANSHU | G31: KULDEEP | H31: KHUSBOO MALI | I31: 127 | J31: M | K31: OBC | O31: 29 | P31: 52 | Q31: 24 | R31: 45 | V31: 14 | W31: 32 | X31: 10 | Y31: 30 | AC31: 22 | AD31: 64 | AE31: 23 | AF31: 62 | AJ31: 48 | AL31: 48 | AX31: 220 | AY31: 188 | BQ31: 127 | BR31: 81 | BS31: 17 | BT31: 46 | BU31: 10 | BV31: =IF(AND(#REF!="",#REF!="",#REF!="",#REF!=""),"",SUM(#REF!,#REF!,#REF!,#REF!,#REF!)) ->  | BX31: 86 | BY31: 18 | CB31: =IF(AND(#REF!="",#REF!="",#REF!="",#REF!=""),"",SUM(#REF!,#REF!,#REF!,#REF!,#REF!)) -> 
A32: 26 | B32: 1 | C32: A | D32: 945 | E32: 22-07-2015 | F32: PRIYANSHU RAWAT | G32: MANOHAR SINGH | H32: SAPNA | I32: 128 | J32: M | K32: OBC | O32: 29 | P32: 53 | Q32: 24 | R32: 45 | V32: 14 | W32: 32 | X32: 10 | Y32: 30 | AC32: 22 | AD32: 64 | AE32: 20 | AF32: 62 | AJ32: 49 | AL32: 47 | AX32: 220 | AY32: 180 | BQ32: 128 | BR32: 82 | BS32: 17 | BT32: 46 | BU32: 10 | BV32: =IF(AND(#REF!="",#REF!="",#REF!="",#REF!=""),"",SUM(#REF!,#REF!,#REF!,#REF!,#REF!)) ->  | BX32: 86 | BY32: 18 | CB32: =IF(AND(#REF!="",#REF!="",#REF!="",#REF!=""),"",SUM(#REF!,#REF!,#REF!,#REF!,#REF!)) -> 
A33: 27 | B33: 1 | C33: A | D33: 928 | E33: 2016-11-02 | F33: RANVEER | G33: TOTA RAM | H33: JAYA | I33: 129 | J33: M | K33: OBC | O33: 29 | P33: 56 | Q33: 24 | R33: 45 | V33: 14 | W33: 32 | X33: 10 | Y33: 30 | AC33: 22 | AD33: 64 | AE33: 20 | AF33: 62 | AJ33: 43 | AL33: 49 | AX33: 220 | AY33: 200 | BQ33: 129 | BR33: 85 | BS33: 17 | BT33: 46 | BU33: 10 | BV33: =IF(AND(#REF!="",#REF!="",#REF!="",#REF!=""),"",SUM(#REF!,#REF!,#REF!,#REF!,#REF!)) ->  | BX33: 86 | BY33: 18 | CB33: =IF(AND(#REF!="",#REF!="",#REF!="",#REF!=""),"",SUM(#REF!,#REF!,#REF!,#REF!,#REF!)) -> 
A34: 28 | B34: 1 | C34: A | D34: 947 | E34: 18-07-2015 | F34: SURAJ BHATI | G34: RAJURAM BHATI | H34: REKHA DEVI | I34: 130 | J34: M | K34: OBC | O34: 29 | P34: 62 | Q34: 24 | R34: 45 | V34: 13 | W34: 32 | X34: 10 | Y34: 30 | AC34: 22 | AD34: 64 | AE34: 20 | AF34: 62 | AJ34: 45 | AL34: 46 | AX34: 220 | AY34: 220 | BQ34: 130 | BR34: 91 | BS34: 19 | BT34: 45 | BU34: 9 | BV34: =IF(AND(#REF!="",#REF!="",#REF!="",#REF!=""),"",SUM(#REF!,#REF!,#REF!,#REF!,#REF!)) ->  | BX34: 86 | BY34: 18 | CB34: =IF(AND(#REF!="",#REF!="",#REF!="",#REF!=""),"",SUM(#REF!,#REF!,#REF!,#REF!,#REF!)) -> 
A35: 29 | B35: 1 | C35: A | D35: 930 | E35: 13-03-2015 | F35: YUVRAJ SHARMA | G35: ARVIND SHARMA | H35: ANKITA SHARMA | I35: 131 | J35: M | K35: OBC | O35: 29 | P35: 65 | Q35: 24 | R35: 45 | V35: 14 | W35: 32 | X35: 10 | Y35: 30 | AC35: 22 | AD35: 64 | AE35: 20 | AF35: 62 | AJ35: 41 | AL35: 47 | AX35: 220 | AY35: 145 | BQ35: 131 | BR35: 94 | BS35: 19 | BT35: 46 | BU35: 10 | BV35: =IF(AND(#REF!="",#REF!="",#REF!="",#REF!=""),"",SUM(#REF!,#REF!,#REF!,#REF!,#REF!)) ->  | BX35: 86 | BY35: 18 | CB35: =IF(AND(#REF!="",#REF!="",#REF!="",#REF!=""),"",SUM(#REF!,#REF!,#REF!,#REF!,#REF!)) -> 
A36: 30 | B36: 1 | C36: A | D36: 941 | E36: 2015-08-03 | F36: ZEENAT SHEIKH | G36: SAMEER SHEIKH | H36: SHABNAM KHNAM | I36: 132 | J36: F | K36: GEN | O36: 29 | P36: 68 | Q36: 24 | R36: 45 | V36: 15 | W36: 32 | X36: 10 | Y36: 30 | AC36: 22 | AD36: 64 | AE36: 28 | AF36: 62 | AJ36: 45 | AL36: 42 | AX36: 220 | AY36: 180 | BQ36: 132 | BR36: 97 | BS36: 20 | BT36: 47 | BU36: 10 | BV36: =IF(AND(#REF!="",#REF!="",#REF!="",#REF!=""),"",SUM(#REF!,#REF!,#REF!,#REF!,#REF!)) ->  | BX36: 86 | BY36: 18 | CB36: =IF(AND(#REF!="",#REF!="",#REF!="",#REF!=""),"",SUM(#REF!,#REF!,#REF!,#REF!,#REF!)) -> 
A37: 31 | BV37: =IF(AND(#REF!="",#REF!="",#REF!="",#REF!=""),"",SUM(#REF!,#REF!,#REF!,#REF!,#REF!)) ->  | CB37: =IF(AND(#REF!="",#REF!="",#REF!="",#REF!=""),"",SUM(#REF!,#REF!,#REF!,#REF!,#REF!)) -> 
A38: 32 | BV38: =IF(AND(#REF!="",#REF!="",#REF!="",#REF!=""),"",SUM(#REF!,#REF!,#REF!,#REF!,#REF!)) ->  | CB38: =IF(AND(#REF!="",#REF!="",#REF!="",#REF!=""),"",SUM(#REF!,#REF!,#REF!,#REF!,#REF!)) -> 
A39: 33 | BV39: =IF(AND(#REF!="",#REF!="",#REF!="",#REF!=""),"",SUM(#REF!,#REF!,#REF!,#REF!,#REF!)) ->  | CB39: =IF(AND(#REF!="",#REF!="",#REF!="",#REF!=""),"",SUM(#REF!,#REF!,#REF!,#REF!,#REF!)) -> 
A40: 34 | BV40: =IF(AND(#REF!="",#REF!="",#REF!="",#REF!=""),"",SUM(#REF!,#REF!,#REF!,#REF!,#REF!)) ->  | CB40: =IF(AND(#REF!="",#REF!="",#REF!="",#REF!=""),"",SUM(#REF!,#REF!,#REF!,#REF!,#REF!)) -> 
A41: 35 | BV41: =IF(AND(#REF!="",#REF!="",#REF!="",#REF!=""),"",SUM(#REF!,#REF!,#REF!,#REF!,#REF!)) ->  | CB41: =IF(AND(#REF!="",#REF!="",#REF!="",#REF!=""),"",SUM(#REF!,#REF!,#REF!,#REF!,#REF!)) -> 
A42: 36 | BV42: =IF(AND(#REF!="",#REF!="",#REF!="",#REF!=""),"",SUM(#REF!,#REF!,#REF!,#REF!,#REF!)) ->  | CB42: =IF(AND(#REF!="",#REF!="",#REF!="",#REF!=""),"",SUM(#REF!,#REF!,#REF!,#REF!,#REF!)) -> 
A43: 37 | BV43: =IF(AND(#REF!="",#REF!="",#REF!="",#REF!=""),"",SUM(#REF!,#REF!,#REF!,#REF!,#REF!)) ->  | CB43: =IF(AND(#REF!="",#REF!="",#REF!="",#REF!=""),"",SUM(#REF!,#REF!,#REF!,#REF!,#REF!)) -> 
A44: 38 | BV44: =IF(AND(#REF!="",#REF!="",#REF!="",#REF!=""),"",SUM(#REF!,#REF!,#REF!,#REF!,#REF!)) ->  | CB44: =IF(AND(#REF!="",#REF!="",#REF!="",#REF!=""),"",SUM(#REF!,#REF!,#REF!,#REF!,#REF!)) -> 
A45: 39 | BV45: =IF(AND(#REF!="",#REF!="",#REF!="",#REF!=""),"",SUM(#REF!,#REF!,#REF!,#REF!,#REF!)) ->  | CB45: =IF(AND(#REF!="",#REF!="",#REF!="",#REF!=""),"",SUM(#REF!,#REF!,#REF!,#REF!,#REF!)) -> 
A46: 40 | BV46: =IF(AND(#REF!="",#REF!="",#REF!="",#REF!=""),"",SUM(#REF!,#REF!,#REF!,#REF!,#REF!)) ->  | CB46: =IF(AND(#REF!="",#REF!="",#REF!="",#REF!=""),"",SUM(#REF!,#REF!,#REF!,#REF!,#REF!)) -> 
A47: 41 | BV47: =IF(AND(#REF!="",#REF!="",#REF!="",#REF!=""),"",SUM(#REF!,#REF!,#REF!,#REF!,#REF!)) ->  | CB47: =IF(AND(#REF!="",#REF!="",#REF!="",#REF!=""),"",SUM(#REF!,#REF!,#REF!,#REF!,#REF!)) -> 
A48: 42 | BV48: =IF(AND(#REF!="",#REF!="",#REF!="",#REF!=""),"",SUM(#REF!,#REF!,#REF!,#REF!,#REF!)) ->  | CB48: =IF(AND(#REF!="",#REF!="",#REF!="",#REF!=""),"",SUM(#REF!,#REF!,#REF!,#REF!,#REF!)) -> 
A49: 43 | BV49: =IF(AND(#REF!="",#REF!="",#REF!="",#REF!=""),"",SUM(#REF!,#REF!,#REF!,#REF!,#REF!)) ->  | CB49: =IF(AND(#REF!="",#REF!="",#REF!="",#REF!=""),"",SUM(#REF!,#REF!,#REF!,#REF!,#REF!)) -> 
A50: 44 | BV50: =IF(AND(#REF!="",#REF!="",#REF!="",#REF!=""),"",SUM(#REF!,#REF!,#REF!,#REF!,#REF!)) ->  | CB50: =IF(AND(#REF!="",#REF!="",#REF!="",#REF!=""),"",SUM(#REF!,#REF!,#REF!,#REF!,#REF!)) -> 
A51: 45 | BV51: =IF(AND(#REF!="",#REF!="",#REF!="",#REF!=""),"",SUM(#REF!,#REF!,#REF!,#REF!,#REF!)) ->  | CB51: =IF(AND(#REF!="",#REF!="",#REF!="",#REF!=""),"",SUM(#REF!,#REF!,#REF!,#REF!,#REF!)) -> 
A52: 46 | BV52: =IF(AND(#REF!="",#REF!="",#REF!="",#REF!=""),"",SUM(#REF!,#REF!,#REF!,#REF!,#REF!)) ->  | CB52: =IF(AND(#REF!="",#REF!="",#REF!="",#REF!=""),"",SUM(#REF!,#REF!,#REF!,#REF!,#REF!)) -> 
A53: 47 | BV53: =IF(AND(#REF!="",#REF!="",#REF!="",#REF!=""),"",SUM(#REF!,#REF!,#REF!,#REF!,#REF!)) ->  | CB53: =IF(AND(#REF!="",#REF!="",#REF!="",#REF!=""),"",SUM(#REF!,#REF!,#REF!,#REF!,#REF!)) -> 
A54: 48 | BV54: =IF(AND(#REF!="",#REF!="",#REF!="",#REF!=""),"",SUM(#REF!,#REF!,#REF!,#REF!,#REF!)) ->  | CB54: =IF(AND(#REF!="",#REF!="",#REF!="",#REF!=""),"",SUM(#REF!,#REF!,#REF!,#REF!,#REF!)) -> 
A55: 49 | BV55: =IF(AND(#REF!="",#REF!="",#REF!="",#REF!=""),"",SUM(#REF!,#REF!,#REF!,#REF!,#REF!)) ->  | CB55: =IF(AND(#REF!="",#REF!="",#REF!="",#REF!=""),"",SUM(#REF!,#REF!,#REF!,#REF!,#REF!)) -> 
A56: 50 | BV56: =IF(AND(#REF!="",#REF!="",#REF!="",#REF!=""),"",SUM(#REF!,#REF!,#REF!,#REF!,#REF!)) ->  | CB56: =IF(AND(#REF!="",#REF!="",#REF!="",#REF!=""),"",SUM(#REF!,#REF!,#REF!,#REF!,#REF!)) -> 
A57: 51 | BV57: =IF(AND(#REF!="",#REF!="",#REF!="",#REF!=""),"",SUM(#REF!,#REF!,#REF!,#REF!,#REF!)) ->  | CB57: =IF(AND(#REF!="",#REF!="",#REF!="",#REF!=""),"",SUM(#REF!,#REF!,#REF!,#REF!,#REF!)) -> 
A58: 52 | BV58: =IF(AND(#REF!="",#REF!="",#REF!="",#REF!=""),"",SUM(#REF!,#REF!,#REF!,#REF!,#REF!)) ->  | CB58: =IF(AND(#REF!="",#REF!="",#REF!="",#REF!=""),"",SUM(#REF!,#REF!,#REF!,#REF!,#REF!)) -> 
A59: 53 | BV59: =IF(AND(#REF!="",#REF!="",#REF!="",#REF!=""),"",SUM(#REF!,#REF!,#REF!,#REF!,#REF!)) ->  | CB59: =IF(AND(#REF!="",#REF!="",#REF!="",#REF!=""),"",SUM(#REF!,#REF!,#REF!,#REF!,#REF!)) -> 
A60: 54 | BV60: =IF(AND(#REF!="",#REF!="",#REF!="",#REF!=""),"",SUM(#REF!,#REF!,#REF!,#REF!,#REF!)) ->  | CB60: =IF(AND(#REF!="",#REF!="",#REF!="",#REF!=""),"",SUM(#REF!,#REF!,#REF!,#REF!,#REF!)) -> 
A61: 55 | BV61: =IF(AND(#REF!="",#REF!="",#REF!="",#REF!=""),"",SUM(#REF!,#REF!,#REF!,#REF!,#REF!)) ->  | CB61: =IF(AND(#REF!="",#REF!="",#REF!="",#REF!=""),"",SUM(#REF!,#REF!,#REF!,#REF!,#REF!)) -> 
A62: 56 | BV62: =IF(AND(#REF!="",#REF!="",#REF!="",#REF!=""),"",SUM(#REF!,#REF!,#REF!,#REF!,#REF!)) ->  | CB62: =IF(AND(#REF!="",#REF!="",#REF!="",#REF!=""),"",SUM(#REF!,#REF!,#REF!,#REF!,#REF!)) -> 
A63: 57 | BV63: =IF(AND(#REF!="",#REF!="",#REF!="",#REF!=""),"",SUM(#REF!,#REF!,#REF!,#REF!,#REF!)) ->  | CB63: =IF(AND(#REF!="",#REF!="",#REF!="",#REF!=""),"",SUM(#REF!,#REF!,#REF!,#REF!,#REF!)) -> 
A64: 58 | BV64: =IF(AND(#REF!="",#REF!="",#REF!="",#REF!=""),"",SUM(#REF!,#REF!,#REF!,#REF!,#REF!)) ->  | CB64: =IF(AND(#REF!="",#REF!="",#REF!="",#REF!=""),"",SUM(#REF!,#REF!,#REF!,#REF!,#REF!)) -> 
A65: 59 | BV65: =IF(AND(#REF!="",#REF!="",#REF!="",#REF!=""),"",SUM(#REF!,#REF!,#REF!,#REF!,#REF!)) ->  | CB65: =IF(AND(#REF!="",#REF!="",#REF!="",#REF!=""),"",SUM(#REF!,#REF!,#REF!,#REF!,#REF!)) -> 
A66: 60 | BV66: =IF(AND(#REF!="",#REF!="",#REF!="",#REF!=""),"",SUM(#REF!,#REF!,#REF!,#REF!,#REF!)) ->  | CB66: =IF(AND(#REF!="",#REF!="",#REF!="",#REF!=""),"",SUM(#REF!,#REF!,#REF!,#REF!,#REF!)) -> 
A67: 61 | BV67: =IF(AND(#REF!="",#REF!="",#REF!="",#REF!=""),"",SUM(#REF!,#REF!,#REF!,#REF!,#REF!)) ->  | CB67: =IF(AND(#REF!="",#REF!="",#REF!="",#REF!=""),"",SUM(#REF!,#REF!,#REF!,#REF!,#REF!)) -> 
A68: 62 | BV68: =IF(AND(#REF!="",#REF!="",#REF!="",#REF!=""),"",SUM(#REF!,#REF!,#REF!,#REF!,#REF!)) ->  | CB68: =IF(AND(#REF!="",#REF!="",#REF!="",#REF!=""),"",SUM(#REF!,#REF!,#REF!,#REF!,#REF!)) -> 
A69: 63 | BV69: =IF(AND(#REF!="",#REF!="",#REF!="",#REF!=""),"",SUM(#REF!,#REF!,#REF!,#REF!,#REF!)) ->  | CB69: =IF(AND(#REF!="",#REF!="",#REF!="",#REF!=""),"",SUM(#REF!,#REF!,#REF!,#REF!,#REF!)) -> 
A70: 64 | BV70: =IF(AND(#REF!="",#REF!="",#REF!="",#REF!=""),"",SUM(#REF!,#REF!,#REF!,#REF!,#REF!)) ->  | CB70: =IF(AND(#REF!="",#REF!="",#REF!="",#REF!=""),"",SUM(#REF!,#REF!,#REF!,#REF!,#REF!)) -> 
A71: 65 | BV71: =IF(AND(#REF!="",#REF!="",#REF!="",#REF!=""),"",SUM(#REF!,#REF!,#REF!,#REF!,#REF!)) ->  | CB71: =IF(AND(#REF!="",#REF!="",#REF!="",#REF!=""),"",SUM(#REF!,#REF!,#REF!,#REF!,#REF!)) -> 
A72: 66 | BQ72: =IF(I72="","",I72) ->  | BR72: =IF(AND(L72="",M72="",N72="",P72=""),"",SUM(L72,M72,N72,O72,P72)) ->  | BS72: =IFERROR(IF(BR72="","",ROUNDUP(BR72*20%,0)),"") ->  | BT72: =IF(AND(S72="",T72="",U72="",W72=""),"",SUM(S72,T72,U72,V72,W72)) ->  | BU72: =IFERROR(IF(BT72="","",ROUNDUP(BT72*20%,0)),"") ->  | BV72: =IF(AND(#REF!="",#REF!="",#REF!="",#REF!=""),"",SUM(#REF!,#REF!,#REF!,#REF!,#REF!)) ->  | BW72: =IFERROR(IF(BV72="","",ROUNDUP(BV72*20%,0)),"") ->  | BX72: =IF(AND(Z72="",AA72="",AB72="",AD72=""),"",SUM(Z72,AA72,AB72,AC72,AD72)) ->  | BY72: =IFERROR(IF(BX72="","",ROUNDUP(BX72*20%,0)),"") ->  | BZ72: =IF(AND(AG72="",AH72="",AI72="",AK72=""),"",SUM(AG72,AH72,AI72,AJ72,AK72)) ->  | CA72: =IFERROR(IF(BZ72="","",ROUNDUP(BZ72*20%,0)),"") ->  | CB72: =IF(AND(#REF!="",#REF!="",#REF!="",#REF!=""),"",SUM(#REF!,#REF!,#REF!,#REF!,#REF!)) ->  | CC72: =IFERROR(IF(CB72="","",ROUNDUP(CB72*20%,0)),"") -> 
A73: 67 | BV73: =IF(AND(#REF!="",#REF!="",#REF!="",#REF!=""),"",SUM(#REF!,#REF!,#REF!,#REF!,#REF!)) ->  | CB73: =IF(AND(#REF!="",#REF!="",#REF!="",#REF!=""),"",SUM(#REF!,#REF!,#REF!,#REF!,#REF!)) -> 
A74: 68 | BV74: =IF(AND(#REF!="",#REF!="",#REF!="",#REF!=""),"",SUM(#REF!,#REF!,#REF!,#REF!,#REF!)) ->  | CB74: =IF(AND(#REF!="",#REF!="",#REF!="",#REF!=""),"",SUM(#REF!,#REF!,#REF!,#REF!,#REF!)) -> 
A75: 69 | BV75: =IF(AND(#REF!="",#REF!="",#REF!="",#REF!=""),"",SUM(#REF!,#REF!,#REF!,#REF!,#REF!)) ->  | CB75: =IF(AND(#REF!="",#REF!="",#REF!="",#REF!=""),"",SUM(#REF!,#REF!,#REF!,#REF!,#REF!)) -> 
A76: 70 | BV76: =IF(AND(#REF!="",#REF!="",#REF!="",#REF!=""),"",SUM(#REF!,#REF!,#REF!,#REF!,#REF!)) ->  | CB76: =IF(AND(#REF!="",#REF!="",#REF!="",#REF!=""),"",SUM(#REF!,#REF!,#REF!,#REF!,#REF!)) -> 
A77: 71 | BV77: =IF(AND(#REF!="",#REF!="",#REF!="",#REF!=""),"",SUM(#REF!,#REF!,#REF!,#REF!,#REF!)) ->  | CB77: =IF(AND(#REF!="",#REF!="",#REF!="",#REF!=""),"",SUM(#REF!,#REF!,#REF!,#REF!,#REF!)) -> 
A78: 72 | BV78: =IF(AND(#REF!="",#REF!="",#REF!="",#REF!=""),"",SUM(#REF!,#REF!,#REF!,#REF!,#REF!)) ->  | CB78: =IF(AND(#REF!="",#REF!="",#REF!="",#REF!=""),"",SUM(#REF!,#REF!,#REF!,#REF!,#REF!)) -> 
A79: 73 | BV79: =IF(AND(#REF!="",#REF!="",#REF!="",#REF!=""),"",SUM(#REF!,#REF!,#REF!,#REF!,#REF!)) ->  | CB79: =IF(AND(#REF!="",#REF!="",#REF!="",#REF!=""),"",SUM(#REF!,#REF!,#REF!,#REF!,#REF!)) -> 
A80: 74 | BV80: =IF(AND(#REF!="",#REF!="",#REF!="",#REF!=""),"",SUM(#REF!,#REF!,#REF!,#REF!,#REF!)) ->  | CB80: =IF(AND(#REF!="",#REF!="",#REF!="",#REF!=""),"",SUM(#REF!,#REF!,#REF!,#REF!,#REF!)) -> 
A81: 75 | BV81: =IF(AND(#REF!="",#REF!="",#REF!="",#REF!=""),"",SUM(#REF!,#REF!,#REF!,#REF!,#REF!)) ->  | CB81: =IF(AND(#REF!="",#REF!="",#REF!="",#REF!=""),"",SUM(#REF!,#REF!,#REF!,#REF!,#REF!)) -> 
A82: 76 | BV82: =IF(AND(#REF!="",#REF!="",#REF!="",#REF!=""),"",SUM(#REF!,#REF!,#REF!,#REF!,#REF!)) ->  | CB82: =IF(AND(#REF!="",#REF!="",#REF!="",#REF!=""),"",SUM(#REF!,#REF!,#REF!,#REF!,#REF!)) -> 
A83: 77 | BV83: =IF(AND(#REF!="",#REF!="",#REF!="",#REF!=""),"",SUM(#REF!,#REF!,#REF!,#REF!,#REF!)) ->  | CB83: =IF(AND(#REF!="",#REF!="",#REF!="",#REF!=""),"",SUM(#REF!,#REF!,#REF!,#REF!,#REF!)) -> 
A84: 78 | BV84: =IF(AND(#REF!="",#REF!="",#REF!="",#REF!=""),"",SUM(#REF!,#REF!,#REF!,#REF!,#REF!)) ->  | CB84: =IF(AND(#REF!="",#REF!="",#REF!="",#REF!=""),"",SUM(#REF!,#REF!,#REF!,#REF!,#REF!)) -> 
A85: 79 | BV85: =IF(AND(#REF!="",#REF!="",#REF!="",#REF!=""),"",SUM(#REF!,#REF!,#REF!,#REF!,#REF!)) ->  | CB85: =IF(AND(#REF!="",#REF!="",#REF!="",#REF!=""),"",SUM(#REF!,#REF!,#REF!,#REF!,#REF!)) -> 
A86: 80 | BV86: =IF(AND(#REF!="",#REF!="",#REF!="",#REF!=""),"",SUM(#REF!,#REF!,#REF!,#REF!,#REF!)) ->  | CB86: =IF(AND(#REF!="",#REF!="",#REF!="",#REF!=""),"",SUM(#REF!,#REF!,#REF!,#REF!,#REF!)) -> 
A87: 81 | BV87: =IF(AND(#REF!="",#REF!="",#REF!="",#REF!=""),"",SUM(#REF!,#REF!,#REF!,#REF!,#REF!)) ->  | CB87: =IF(AND(#REF!="",#REF!="",#REF!="",#REF!=""),"",SUM(#REF!,#REF!,#REF!,#REF!,#REF!)) -> 
A88: 82 | BV88: =IF(AND(#REF!="",#REF!="",#REF!="",#REF!=""),"",SUM(#REF!,#REF!,#REF!,#REF!,#REF!)) ->  | CB88: =IF(AND(#REF!="",#REF!="",#REF!="",#REF!=""),"",SUM(#REF!,#REF!,#REF!,#REF!,#REF!)) -> 
A89: 83 | BV89: =IF(AND(#REF!="",#REF!="",#REF!="",#REF!=""),"",SUM(#REF!,#REF!,#REF!,#REF!,#REF!)) ->  | CB89: =IF(AND(#REF!="",#REF!="",#REF!="",#REF!=""),"",SUM(#REF!,#REF!,#REF!,#REF!,#REF!)) -> 
A90: 84 | BV90: =IF(AND(#REF!="",#REF!="",#REF!="",#REF!=""),"",SUM(#REF!,#REF!,#REF!,#REF!,#REF!)) ->  | CB90: =IF(AND(#REF!="",#REF!="",#REF!="",#REF!=""),"",SUM(#REF!,#REF!,#REF!,#REF!,#REF!)) -> 
A91: 85 | BV91: =IF(AND(#REF!="",#REF!="",#REF!="",#REF!=""),"",SUM(#REF!,#REF!,#REF!,#REF!,#REF!)) ->  | CB91: =IF(AND(#REF!="",#REF!="",#REF!="",#REF!=""),"",SUM(#REF!,#REF!,#REF!,#REF!,#REF!)) -> 
A92: 86 | BV92: =IF(AND(#REF!="",#REF!="",#REF!="",#REF!=""),"",SUM(#REF!,#REF!,#REF!,#REF!,#REF!)) ->  | CB92: =IF(AND(#REF!="",#REF!="",#REF!="",#REF!=""),"",SUM(#REF!,#REF!,#REF!,#REF!,#REF!)) -> 
A93: 87 | BV93: =IF(AND(#REF!="",#REF!="",#REF!="",#REF!=""),"",SUM(#REF!,#REF!,#REF!,#REF!,#REF!)) ->  | CB93: =IF(AND(#REF!="",#REF!="",#REF!="",#REF!=""),"",SUM(#REF!,#REF!,#REF!,#REF!,#REF!)) -> 
A94: 88 | BV94: =IF(AND(#REF!="",#REF!="",#REF!="",#REF!=""),"",SUM(#REF!,#REF!,#REF!,#REF!,#REF!)) ->  | CB94: =IF(AND(#REF!="",#REF!="",#REF!="",#REF!=""),"",SUM(#REF!,#REF!,#REF!,#REF!,#REF!)) -> 
A95: 89 | BV95: =IF(AND(#REF!="",#REF!="",#REF!="",#REF!=""),"",SUM(#REF!,#REF!,#REF!,#REF!,#REF!)) ->  | CB95: =IF(AND(#REF!="",#REF!="",#REF!="",#REF!=""),"",SUM(#REF!,#REF!,#REF!,#REF!,#REF!)) -> 
A96: 90 | BV96: =IF(AND(#REF!="",#REF!="",#REF!="",#REF!=""),"",SUM(#REF!,#REF!,#REF!,#REF!,#REF!)) ->  | CB96: =IF(AND(#REF!="",#REF!="",#REF!="",#REF!=""),"",SUM(#REF!,#REF!,#REF!,#REF!,#REF!)) -> 
A97: 91 | BV97: =IF(AND(#REF!="",#REF!="",#REF!="",#REF!=""),"",SUM(#REF!,#REF!,#REF!,#REF!,#REF!)) ->  | CB97: =IF(AND(#REF!="",#REF!="",#REF!="",#REF!=""),"",SUM(#REF!,#REF!,#REF!,#REF!,#REF!)) -> 
A98: 92 | BV98: =IF(AND(#REF!="",#REF!="",#REF!="",#REF!=""),"",SUM(#REF!,#REF!,#REF!,#REF!,#REF!)) ->  | CB98: =IF(AND(#REF!="",#REF!="",#REF!="",#REF!=""),"",SUM(#REF!,#REF!,#REF!,#REF!,#REF!)) -> 
A99: 93 | BV99: =IF(AND(#REF!="",#REF!="",#REF!="",#REF!=""),"",SUM(#REF!,#REF!,#REF!,#REF!,#REF!)) ->  | CB99: =IF(AND(#REF!="",#REF!="",#REF!="",#REF!=""),"",SUM(#REF!,#REF!,#REF!,#REF!,#REF!)) -> 
A100: 94 | BV100: =IF(AND(#REF!="",#REF!="",#REF!="",#REF!=""),"",SUM(#REF!,#REF!,#REF!,#REF!,#REF!)) ->  | CB100: =IF(AND(#REF!="",#REF!="",#REF!="",#REF!=""),"",SUM(#REF!,#REF!,#REF!,#REF!,#REF!)) -> 
A101: 95 | BV101: =IF(AND(#REF!="",#REF!="",#REF!="",#REF!=""),"",SUM(#REF!,#REF!,#REF!,#REF!,#REF!)) ->  | CB101: =IF(AND(#REF!="",#REF!="",#REF!="",#REF!=""),"",SUM(#REF!,#REF!,#REF!,#REF!,#REF!)) -> 
A102: 96 | BV102: =IF(AND(#REF!="",#REF!="",#REF!="",#REF!=""),"",SUM(#REF!,#REF!,#REF!,#REF!,#REF!)) ->  | CB102: =IF(AND(#REF!="",#REF!="",#REF!="",#REF!=""),"",SUM(#REF!,#REF!,#REF!,#REF!,#REF!)) -> 
A103: 97 | BV103: =IF(AND(#REF!="",#REF!="",#REF!="",#REF!=""),"",SUM(#REF!,#REF!,#REF!,#REF!,#REF!)) ->  | CB103: =IF(AND(#REF!="",#REF!="",#REF!="",#REF!=""),"",SUM(#REF!,#REF!,#REF!,#REF!,#REF!)) -> 
A104: 98 | BV104: =IF(AND(#REF!="",#REF!="",#REF!="",#REF!=""),"",SUM(#REF!,#REF!,#REF!,#REF!,#REF!)) ->  | CB104: =IF(AND(#REF!="",#REF!="",#REF!="",#REF!=""),"",SUM(#REF!,#REF!,#REF!,#REF!,#REF!)) -> 
A105: 99 | BV105: =IF(AND(#REF!="",#REF!="",#REF!="",#REF!=""),"",SUM(#REF!,#REF!,#REF!,#REF!,#REF!)) ->  | CB105: =IF(AND(#REF!="",#REF!="",#REF!="",#REF!=""),"",SUM(#REF!,#REF!,#REF!,#REF!,#REF!)) -> 
A106: 100 | BV106: =IF(AND(#REF!="",#REF!="",#REF!="",#REF!=""),"",SUM(#REF!,#REF!,#REF!,#REF!,#REF!)) ->  | CB106: =IF(AND(#REF!="",#REF!="",#REF!="",#REF!=""),"",SUM(#REF!,#REF!,#REF!,#REF!,#REF!)) -> 
A107: 101 | BV107: =IF(AND(#REF!="",#REF!="",#REF!="",#REF!=""),"",SUM(#REF!,#REF!,#REF!,#REF!,#REF!)) ->  | CB107: =IF(AND(#REF!="",#REF!="",#REF!="",#REF!=""),"",SUM(#REF!,#REF!,#REF!,#REF!,#REF!)) -> 
A108: 102 | BV108: =IF(AND(#REF!="",#REF!="",#REF!="",#REF!=""),"",SUM(#REF!,#REF!,#REF!,#REF!,#REF!)) ->  | CB108: =IF(AND(#REF!="",#REF!="",#REF!="",#REF!=""),"",SUM(#REF!,#REF!,#REF!,#REF!,#REF!)) -> 
A109: 103 | BV109: =IF(AND(#REF!="",#REF!="",#REF!="",#REF!=""),"",SUM(#REF!,#REF!,#REF!,#REF!,#REF!)) ->  | CB109: =IF(AND(#REF!="",#REF!="",#REF!="",#REF!=""),"",SUM(#REF!,#REF!,#REF!,#REF!,#REF!)) -> 
A110: 104 | BV110: =IF(AND(#REF!="",#REF!="",#REF!="",#REF!=""),"",SUM(#REF!,#REF!,#REF!,#REF!,#REF!)) ->  | CB110: =IF(AND(#REF!="",#REF!="",#REF!="",#REF!=""),"",SUM(#REF!,#REF!,#REF!,#REF!,#REF!)) -> 
A111: 105 | BV111: =IF(AND(#REF!="",#REF!="",#REF!="",#REF!=""),"",SUM(#REF!,#REF!,#REF!,#REF!,#REF!)) ->  | CB111: =IF(AND(#REF!="",#REF!="",#REF!="",#REF!=""),"",SUM(#REF!,#REF!,#REF!,#REF!,#REF!)) -> 
A112: 106 | BV112: =IF(AND(#REF!="",#REF!="",#REF!="",#REF!=""),"",SUM(#REF!,#REF!,#REF!,#REF!,#REF!)) ->  | CB112: =IF(AND(#REF!="",#REF!="",#REF!="",#REF!=""),"",SUM(#REF!,#REF!,#REF!,#REF!,#REF!)) -> 
A113: 107 | BV113: =IF(AND(#REF!="",#REF!="",#REF!="",#REF!=""),"",SUM(#REF!,#REF!,#REF!,#REF!,#REF!)) ->  | CB113: =IF(AND(#REF!="",#REF!="",#REF!="",#REF!=""),"",SUM(#REF!,#REF!,#REF!,#REF!,#REF!)) -> 
A114: 108 | BV114: =IF(AND(#REF!="",#REF!="",#REF!="",#REF!=""),"",SUM(#REF!,#REF!,#REF!,#REF!,#REF!)) ->  | CB114: =IF(AND(#REF!="",#REF!="",#REF!="",#REF!=""),"",SUM(#REF!,#REF!,#REF!,#REF!,#REF!)) -> 
A115: 109 | BV115: =IF(AND(#REF!="",#REF!="",#REF!="",#REF!=""),"",SUM(#REF!,#REF!,#REF!,#REF!,#REF!)) ->  | CB115: =IF(AND(#REF!="",#REF!="",#REF!="",#REF!=""),"",SUM(#REF!,#REF!,#REF!,#REF!,#REF!)) -> 
A116: 110 | BV116: =IF(AND(#REF!="",#REF!="",#REF!="",#REF!=""),"",SUM(#REF!,#REF!,#REF!,#REF!,#REF!)) ->  | CB116: =IF(AND(#REF!="",#REF!="",#REF!="",#REF!=""),"",SUM(#REF!,#REF!,#REF!,#REF!,#REF!)) -> 
A117: 111 | BV117: =IF(AND(#REF!="",#REF!="",#REF!="",#REF!=""),"",SUM(#REF!,#REF!,#REF!,#REF!,#REF!)) ->  | CB117: =IF(AND(#REF!="",#REF!="",#REF!="",#REF!=""),"",SUM(#REF!,#REF!,#REF!,#REF!,#REF!)) -> 
A118: 112 | BV118: =IF(AND(#REF!="",#REF!="",#REF!="",#REF!=""),"",SUM(#REF!,#REF!,#REF!,#REF!,#REF!)) ->  | CB118: =IF(AND(#REF!="",#REF!="",#REF!="",#REF!=""),"",SUM(#REF!,#REF!,#REF!,#REF!,#REF!)) -> 
A119: 113 | BV119: =IF(AND(#REF!="",#REF!="",#REF!="",#REF!=""),"",SUM(#REF!,#REF!,#REF!,#REF!,#REF!)) ->  | CB119: =IF(AND(#REF!="",#REF!="",#REF!="",#REF!=""),"",SUM(#REF!,#REF!,#REF!,#REF!,#REF!)) -> 
A120: 114 | BV120: =IF(AND(#REF!="",#REF!="",#REF!="",#REF!=""),"",SUM(#REF!,#REF!,#REF!,#REF!,#REF!)) ->  | CB120: =IF(AND(#REF!="",#REF!="",#REF!="",#REF!=""),"",SUM(#REF!,#REF!,#REF!,#REF!,#REF!)) -> 
A121: 115 | BV121: =IF(AND(#REF!="",#REF!="",#REF!="",#REF!=""),"",SUM(#REF!,#REF!,#REF!,#REF!,#REF!)) ->  | CB121: =IF(AND(#REF!="",#REF!="",#REF!="",#REF!=""),"",SUM(#REF!,#REF!,#REF!,#REF!,#REF!)) -> 
A122: 116 | BV122: =IF(AND(#REF!="",#REF!="",#REF!="",#REF!=""),"",SUM(#REF!,#REF!,#REF!,#REF!,#REF!)) ->  | CB122: =IF(AND(#REF!="",#REF!="",#REF!="",#REF!=""),"",SUM(#REF!,#REF!,#REF!,#REF!,#REF!)) -> 
A123: 117 | BV123: =IF(AND(#REF!="",#REF!="",#REF!="",#REF!=""),"",SUM(#REF!,#REF!,#REF!,#REF!,#REF!)) ->  | CB123: =IF(AND(#REF!="",#REF!="",#REF!="",#REF!=""),"",SUM(#REF!,#REF!,#REF!,#REF!,#REF!)) -> 
A124: 118 | BV124: =IF(AND(#REF!="",#REF!="",#REF!="",#REF!=""),"",SUM(#REF!,#REF!,#REF!,#REF!,#REF!)) ->  | CB124: =IF(AND(#REF!="",#REF!="",#REF!="",#REF!=""),"",SUM(#REF!,#REF!,#REF!,#REF!,#REF!)) -> 
A125: 119 | BV125: =IF(AND(#REF!="",#REF!="",#REF!="",#REF!=""),"",SUM(#REF!,#REF!,#REF!,#REF!,#REF!)) ->  | CB125: =IF(AND(#REF!="",#REF!="",#REF!="",#REF!=""),"",SUM(#REF!,#REF!,#REF!,#REF!,#REF!)) -> 
A126: 120 | BV126: =IF(AND(#REF!="",#REF!="",#REF!="",#REF!=""),"",SUM(#REF!,#REF!,#REF!,#REF!,#REF!)) ->  | CB126: =IF(AND(#REF!="",#REF!="",#REF!="",#REF!=""),"",SUM(#REF!,#REF!,#REF!,#REF!,#REF!)) -> 
A127: 121 | BV127: =IF(AND(#REF!="",#REF!="",#REF!="",#REF!=""),"",SUM(#REF!,#REF!,#REF!,#REF!,#REF!)) ->  | CB127: =IF(AND(#REF!="",#REF!="",#REF!="",#REF!=""),"",SUM(#REF!,#REF!,#REF!,#REF!,#REF!)) ->  | CD127: =IF(AND(#REF!="",#REF!="",#REF!="",#REF!=""),"",SUM(#REF!,#REF!,#REF!,#REF!)) ->  | CE127: =IFERROR(IF(CD127="","",IF($CD$5=100,ROUNDUP(CD127*20%,0),IF($CD$5=86,ROUNDUP((CD127/$CD$5)*$CE$5,0),IF($CD$5=66,ROUNDUP((CD127/$CD$5)*$CE$5,0),"")))),"") -> 
A128: 122 | BV128: =IF(AND(#REF!="",#REF!="",#REF!="",#REF!=""),"",SUM(#REF!,#REF!,#REF!,#REF!,#REF!)) ->  | CB128: =IF(AND(#REF!="",#REF!="",#REF!="",#REF!=""),"",SUM(#REF!,#REF!,#REF!,#REF!,#REF!)) ->  | CD128: =IF(AND(#REF!="",#REF!="",#REF!="",#REF!=""),"",SUM(#REF!,#REF!,#REF!,#REF!)) -> 
A129: 123 | BV129: =IF(AND(#REF!="",#REF!="",#REF!="",#REF!=""),"",SUM(#REF!,#REF!,#REF!,#REF!,#REF!)) ->  | CB129: =IF(AND(#REF!="",#REF!="",#REF!="",#REF!=""),"",SUM(#REF!,#REF!,#REF!,#REF!,#REF!)) ->  | CD129: =IF(AND(#REF!="",#REF!="",#REF!="",#REF!=""),"",SUM(#REF!,#REF!,#REF!,#REF!)) -> 
A130: 124 | BV130: =IF(AND(#REF!="",#REF!="",#REF!="",#REF!=""),"",SUM(#REF!,#REF!,#REF!,#REF!,#REF!)) ->  | CB130: =IF(AND(#REF!="",#REF!="",#REF!="",#REF!=""),"",SUM(#REF!,#REF!,#REF!,#REF!,#REF!)) ->  | CD130: =IF(AND(#REF!="",#REF!="",#REF!="",#REF!=""),"",SUM(#REF!,#REF!,#REF!,#REF!)) -> 
A131: 125 | BV131: =IF(AND(#REF!="",#REF!="",#REF!="",#REF!=""),"",SUM(#REF!,#REF!,#REF!,#REF!,#REF!)) ->  | CB131: =IF(AND(#REF!="",#REF!="",#REF!="",#REF!=""),"",SUM(#REF!,#REF!,#REF!,#REF!,#REF!)) ->  | CD131: =IF(AND(#REF!="",#REF!="",#REF!="",#REF!=""),"",SUM(#REF!,#REF!,#REF!,#REF!)) -> 
A132: 126 | BV132: =IF(AND(#REF!="",#REF!="",#REF!="",#REF!=""),"",SUM(#REF!,#REF!,#REF!,#REF!,#REF!)) ->  | CB132: =IF(AND(#REF!="",#REF!="",#REF!="",#REF!=""),"",SUM(#REF!,#REF!,#REF!,#REF!,#REF!)) ->  | CD132: =IF(AND(#REF!="",#REF!="",#REF!="",#REF!=""),"",SUM(#REF!,#REF!,#REF!,#REF!)) -> 
A133: 127 | BV133: =IF(AND(#REF!="",#REF!="",#REF!="",#REF!=""),"",SUM(#REF!,#REF!,#REF!,#REF!,#REF!)) ->  | CB133: =IF(AND(#REF!="",#REF!="",#REF!="",#REF!=""),"",SUM(#REF!,#REF!,#REF!,#REF!,#REF!)) ->  | CD133: =IF(AND(#REF!="",#REF!="",#REF!="",#REF!=""),"",SUM(#REF!,#REF!,#REF!,#REF!)) -> 
A134: 128 | BV134: =IF(AND(#REF!="",#REF!="",#REF!="",#REF!=""),"",SUM(#REF!,#REF!,#REF!,#REF!,#REF!)) ->  | CB134: =IF(AND(#REF!="",#REF!="",#REF!="",#REF!=""),"",SUM(#REF!,#REF!,#REF!,#REF!,#REF!)) ->  | CD134: =IF(AND(#REF!="",#REF!="",#REF!="",#REF!=""),"",SUM(#REF!,#REF!,#REF!,#REF!)) -> 
A135: 129 | BV135: =IF(AND(#REF!="",#REF!="",#REF!="",#REF!=""),"",SUM(#REF!,#REF!,#REF!,#REF!,#REF!)) ->  | CB135: =IF(AND(#REF!="",#REF!="",#REF!="",#REF!=""),"",SUM(#REF!,#REF!,#REF!,#REF!,#REF!)) ->  | CD135: =IF(AND(#REF!="",#REF!="",#REF!="",#REF!=""),"",SUM(#REF!,#REF!,#REF!,#REF!)) -> 
A136: 130 | BQ136: =IF(I136="","",I136) ->  | BR136: =IF(AND(L136="",M136="",N136="",P136=""),"",SUM(L136,M136,N136,O136,P136)) ->  | BS136: =IFERROR(IF(BR136="","",ROUNDUP(BR136*20%,0)),"") ->  | BT136: =IF(AND(S136="",T136="",U136="",W136=""),"",SUM(S136,T136,U136,V136,W136)) ->  | BU136: =IFERROR(IF(BT136="","",ROUNDUP(BT136*20%,0)),"") ->  | BV136: =IF(AND(#REF!="",#REF!="",#REF!="",#REF!=""),"",SUM(#REF!,#REF!,#REF!,#REF!,#REF!)) ->  | BW136: =IFERROR(IF(BV136="","",ROUNDUP(BV136*20%,0)),"") ->  | BX136: =IF(AND(Z136="",AA136="",AB136="",AD136=""),"",SUM(Z136,AA136,AB136,AC136,AD136)) ->  | BY136: =IFERROR(IF(BX136="","",ROUNDUP(BX136*20%,0)),"") ->  | BZ136: =IF(AND(AG136="",AH136="",AI136="",AK136=""),"",SUM(AG136,AH136,AI136,AJ136,AK136)) ->  | CA136: =IFERROR(IF(BZ136="","",ROUNDUP(BZ136*20%,0)),"") ->  | CB136: =IF(AND(#REF!="",#REF!="",#REF!="",#REF!=""),"",SUM(#REF!,#REF!,#REF!,#REF!,#REF!)) ->  | CC136: =IFERROR(IF(CB136="","",ROUNDUP(CB136*20%,0)),"") ->  | CD136: =IF(AND(#REF!="",#REF!="",#REF!="",#REF!=""),"",SUM(#REF!,#REF!,#REF!,#REF!)) ->  | CE136: =IFERROR(IF(CD136="","",IF($CD$5=100,ROUNDUP(CD136*20%,0),IF($CD$5=86,ROUNDUP((CD136/$CD$5)*$CE$5,0),IF($CD$5=66,ROUNDUP((CD136/$CD$5)*$CE$5,0),"")))),"") -> 
A137: 131 | BV137: =IF(AND(#REF!="",#REF!="",#REF!="",#REF!=""),"",SUM(#REF!,#REF!,#REF!,#REF!,#REF!)) ->  | CB137: =IF(AND(#REF!="",#REF!="",#REF!="",#REF!=""),"",SUM(#REF!,#REF!,#REF!,#REF!,#REF!)) ->  | CD137: =IF(AND(#REF!="",#REF!="",#REF!="",#REF!=""),"",SUM(#REF!,#REF!,#REF!,#REF!)) -> 
A138: 132 | BV138: =IF(AND(#REF!="",#REF!="",#REF!="",#REF!=""),"",SUM(#REF!,#REF!,#REF!,#REF!,#REF!)) ->  | CB138: =IF(AND(#REF!="",#REF!="",#REF!="",#REF!=""),"",SUM(#REF!,#REF!,#REF!,#REF!,#REF!)) ->  | CD138: =IF(AND(#REF!="",#REF!="",#REF!="",#REF!=""),"",SUM(#REF!,#REF!,#REF!,#REF!)) -> 
A139: 133 | BV139: =IF(AND(#REF!="",#REF!="",#REF!="",#REF!=""),"",SUM(#REF!,#REF!,#REF!,#REF!,#REF!)) ->  | CB139: =IF(AND(#REF!="",#REF!="",#REF!="",#REF!=""),"",SUM(#REF!,#REF!,#REF!,#REF!,#REF!)) ->  | CD139: =IF(AND(#REF!="",#REF!="",#REF!="",#REF!=""),"",SUM(#REF!,#REF!,#REF!,#REF!)) -> 
A140: 134 | BV140: =IF(AND(#REF!="",#REF!="",#REF!="",#REF!=""),"",SUM(#REF!,#REF!,#REF!,#REF!,#REF!)) ->  | CB140: =IF(AND(#REF!="",#REF!="",#REF!="",#REF!=""),"",SUM(#REF!,#REF!,#REF!,#REF!,#REF!)) ->  | CD140: =IF(AND(#REF!="",#REF!="",#REF!="",#REF!=""),"",SUM(#REF!,#REF!,#REF!,#REF!)) -> 
A141: 135 | BV141: =IF(AND(#REF!="",#REF!="",#REF!="",#REF!=""),"",SUM(#REF!,#REF!,#REF!,#REF!,#REF!)) ->  | CB141: =IF(AND(#REF!="",#REF!="",#REF!="",#REF!=""),"",SUM(#REF!,#REF!,#REF!,#REF!,#REF!)) ->  | CD141: =IF(AND(#REF!="",#REF!="",#REF!="",#REF!=""),"",SUM(#REF!,#REF!,#REF!,#REF!)) -> 
A142: 136 | BV142: =IF(AND(#REF!="",#REF!="",#REF!="",#REF!=""),"",SUM(#REF!,#REF!,#REF!,#REF!,#REF!)) ->  | CB142: =IF(AND(#REF!="",#REF!="",#REF!="",#REF!=""),"",SUM(#REF!,#REF!,#REF!,#REF!,#REF!)) ->  | CD142: =IF(AND(#REF!="",#REF!="",#REF!="",#REF!=""),"",SUM(#REF!,#REF!,#REF!,#REF!)) -> 
A143: 137 | BV143: =IF(AND(#REF!="",#REF!="",#REF!="",#REF!=""),"",SUM(#REF!,#REF!,#REF!,#REF!,#REF!)) ->  | CB143: =IF(AND(#REF!="",#REF!="",#REF!="",#REF!=""),"",SUM(#REF!,#REF!,#REF!,#REF!,#REF!)) ->  | CD143: =IF(AND(#REF!="",#REF!="",#REF!="",#REF!=""),"",SUM(#REF!,#REF!,#REF!,#REF!)) -> 
A144: 138 | BV144: =IF(AND(#REF!="",#REF!="",#REF!="",#REF!=""),"",SUM(#REF!,#REF!,#REF!,#REF!,#REF!)) ->  | CB144: =IF(AND(#REF!="",#REF!="",#REF!="",#REF!=""),"",SUM(#REF!,#REF!,#REF!,#REF!,#REF!)) ->  | CD144: =IF(AND(#REF!="",#REF!="",#REF!="",#REF!=""),"",SUM(#REF!,#REF!,#REF!,#REF!)) -> 
A145: 139 | BV145: =IF(AND(#REF!="",#REF!="",#REF!="",#REF!=""),"",SUM(#REF!,#REF!,#REF!,#REF!,#REF!)) ->  | CB145: =IF(AND(#REF!="",#REF!="",#REF!="",#REF!=""),"",SUM(#REF!,#REF!,#REF!,#REF!,#REF!)) ->  | CD145: =IF(AND(#REF!="",#REF!="",#REF!="",#REF!=""),"",SUM(#REF!,#REF!,#REF!,#REF!)) -> 
A146: 140 | BV146: =IF(AND(#REF!="",#REF!="",#REF!="",#REF!=""),"",SUM(#REF!,#REF!,#REF!,#REF!,#REF!)) ->  | CB146: =IF(AND(#REF!="",#REF!="",#REF!="",#REF!=""),"",SUM(#REF!,#REF!,#REF!,#REF!,#REF!)) ->  | CD146: =IF(AND(#REF!="",#REF!="",#REF!="",#REF!=""),"",SUM(#REF!,#REF!,#REF!,#REF!)) -> 
A147: 141 | BV147: =IF(AND(#REF!="",#REF!="",#REF!="",#REF!=""),"",SUM(#REF!,#REF!,#REF!,#REF!,#REF!)) ->  | CB147: =IF(AND(#REF!="",#REF!="",#REF!="",#REF!=""),"",SUM(#REF!,#REF!,#REF!,#REF!,#REF!)) ->  | CD147: =IF(AND(#REF!="",#REF!="",#REF!="",#REF!=""),"",SUM(#REF!,#REF!,#REF!,#REF!)) -> 
A148: 142 | BV148: =IF(AND(#REF!="",#REF!="",#REF!="",#REF!=""),"",SUM(#REF!,#REF!,#REF!,#REF!,#REF!)) ->  | CB148: =IF(AND(#REF!="",#REF!="",#REF!="",#REF!=""),"",SUM(#REF!,#REF!,#REF!,#REF!,#REF!)) ->  | CD148: =IF(AND(#REF!="",#REF!="",#REF!="",#REF!=""),"",SUM(#REF!,#REF!,#REF!,#REF!)) -> 
A149: 143 | BV149: =IF(AND(#REF!="",#REF!="",#REF!="",#REF!=""),"",SUM(#REF!,#REF!,#REF!,#REF!,#REF!)) ->  | CB149: =IF(AND(#REF!="",#REF!="",#REF!="",#REF!=""),"",SUM(#REF!,#REF!,#REF!,#REF!,#REF!)) ->  | CD149: =IF(AND(#REF!="",#REF!="",#REF!="",#REF!=""),"",SUM(#REF!,#REF!,#REF!,#REF!)) -> 
A150: 144 | BV150: =IF(AND(#REF!="",#REF!="",#REF!="",#REF!=""),"",SUM(#REF!,#REF!,#REF!,#REF!,#REF!)) ->  | CB150: =IF(AND(#REF!="",#REF!="",#REF!="",#REF!=""),"",SUM(#REF!,#REF!,#REF!,#REF!,#REF!)) ->  | CD150: =IF(AND(#REF!="",#REF!="",#REF!="",#REF!=""),"",SUM(#REF!,#REF!,#REF!,#REF!)) -> 
A151: 145 | BV151: =IF(AND(#REF!="",#REF!="",#REF!="",#REF!=""),"",SUM(#REF!,#REF!,#REF!,#REF!,#REF!)) ->  | CB151: =IF(AND(#REF!="",#REF!="",#REF!="",#REF!=""),"",SUM(#REF!,#REF!,#REF!,#REF!,#REF!)) ->  | CD151: =IF(AND(#REF!="",#REF!="",#REF!="",#REF!=""),"",SUM(#REF!,#REF!,#REF!,#REF!)) -> 
A152: 146 | BV152: =IF(AND(#REF!="",#REF!="",#REF!="",#REF!=""),"",SUM(#REF!,#REF!,#REF!,#REF!,#REF!)) ->  | CB152: =IF(AND(#REF!="",#REF!="",#REF!="",#REF!=""),"",SUM(#REF!,#REF!,#REF!,#REF!,#REF!)) ->  | CD152: =IF(AND(#REF!="",#REF!="",#REF!="",#REF!=""),"",SUM(#REF!,#REF!,#REF!,#REF!)) -> 
A153: 147 | BV153: =IF(AND(#REF!="",#REF!="",#REF!="",#REF!=""),"",SUM(#REF!,#REF!,#REF!,#REF!,#REF!)) ->  | CB153: =IF(AND(#REF!="",#REF!="",#REF!="",#REF!=""),"",SUM(#REF!,#REF!,#REF!,#REF!,#REF!)) ->  | CD153: =IF(AND(#REF!="",#REF!="",#REF!="",#REF!=""),"",SUM(#REF!,#REF!,#REF!,#REF!)) -> 
A154: 148 | BV154: =IF(AND(#REF!="",#REF!="",#REF!="",#REF!=""),"",SUM(#REF!,#REF!,#REF!,#REF!,#REF!)) ->  | CB154: =IF(AND(#REF!="",#REF!="",#REF!="",#REF!=""),"",SUM(#REF!,#REF!,#REF!,#REF!,#REF!)) ->  | CD154: =IF(AND(#REF!="",#REF!="",#REF!="",#REF!=""),"",SUM(#REF!,#REF!,#REF!,#REF!)) -> 
A155: 149 | BV155: =IF(AND(#REF!="",#REF!="",#REF!="",#REF!=""),"",SUM(#REF!,#REF!,#REF!,#REF!,#REF!)) ->  | CB155: =IF(AND(#REF!="",#REF!="",#REF!="",#REF!=""),"",SUM(#REF!,#REF!,#REF!,#REF!,#REF!)) ->  | CD155: =IF(AND(#REF!="",#REF!="",#REF!="",#REF!=""),"",SUM(#REF!,#REF!,#REF!,#REF!)) -> 
A156: 150 | BV156: =IF(AND(#REF!="",#REF!="",#REF!="",#REF!=""),"",SUM(#REF!,#REF!,#REF!,#REF!,#REF!)) ->  | CB156: =IF(AND(#REF!="",#REF!="",#REF!="",#REF!=""),"",SUM(#REF!,#REF!,#REF!,#REF!,#REF!)) ->  | CD156: =IF(AND(#REF!="",#REF!="",#REF!="",#REF!=""),"",SUM(#REF!,#REF!,#REF!,#REF!)) -> 
A157: 151 | BV157: =IF(AND(#REF!="",#REF!="",#REF!="",#REF!=""),"",SUM(#REF!,#REF!,#REF!,#REF!,#REF!)) ->  | CB157: =IF(AND(#REF!="",#REF!="",#REF!="",#REF!=""),"",SUM(#REF!,#REF!,#REF!,#REF!,#REF!)) ->  | CD157: =IF(AND(#REF!="",#REF!="",#REF!="",#REF!=""),"",SUM(#REF!,#REF!,#REF!,#REF!)) -> 
A158: 152 | BV158: =IF(AND(#REF!="",#REF!="",#REF!="",#REF!=""),"",SUM(#REF!,#REF!,#REF!,#REF!,#REF!)) ->  | CB158: =IF(AND(#REF!="",#REF!="",#REF!="",#REF!=""),"",SUM(#REF!,#REF!,#REF!,#REF!,#REF!)) ->  | CD158: =IF(AND(#REF!="",#REF!="",#REF!="",#REF!=""),"",SUM(#REF!,#REF!,#REF!,#REF!)) -> 
A159: 153 | BV159: =IF(AND(#REF!="",#REF!="",#REF!="",#REF!=""),"",SUM(#REF!,#REF!,#REF!,#REF!,#REF!)) ->  | CB159: =IF(AND(#REF!="",#REF!="",#REF!="",#REF!=""),"",SUM(#REF!,#REF!,#REF!,#REF!,#REF!)) ->  | CD159: =IF(AND(#REF!="",#REF!="",#REF!="",#REF!=""),"",SUM(#REF!,#REF!,#REF!,#REF!)) -> 
A160: 154 | BV160: =IF(AND(#REF!="",#REF!="",#REF!="",#REF!=""),"",SUM(#REF!,#REF!,#REF!,#REF!,#REF!)) ->  | CB160: =IF(AND(#REF!="",#REF!="",#REF!="",#REF!=""),"",SUM(#REF!,#REF!,#REF!,#REF!,#REF!)) ->  | CD160: =IF(AND(#REF!="",#REF!="",#REF!="",#REF!=""),"",SUM(#REF!,#REF!,#REF!,#REF!)) -> 
A161: 155 | BV161: =IF(AND(#REF!="",#REF!="",#REF!="",#REF!=""),"",SUM(#REF!,#REF!,#REF!,#REF!,#REF!)) ->  | CB161: =IF(AND(#REF!="",#REF!="",#REF!="",#REF!=""),"",SUM(#REF!,#REF!,#REF!,#REF!,#REF!)) ->  | CD161: =IF(AND(#REF!="",#REF!="",#REF!="",#REF!=""),"",SUM(#REF!,#REF!,#REF!,#REF!)) -> 
A162: 156 | BV162: =IF(AND(#REF!="",#REF!="",#REF!="",#REF!=""),"",SUM(#REF!,#REF!,#REF!,#REF!,#REF!)) ->  | CB162: =IF(AND(#REF!="",#REF!="",#REF!="",#REF!=""),"",SUM(#REF!,#REF!,#REF!,#REF!,#REF!)) ->  | CD162: =IF(AND(#REF!="",#REF!="",#REF!="",#REF!=""),"",SUM(#REF!,#REF!,#REF!,#REF!)) -> 
A163: 157 | BV163: =IF(AND(#REF!="",#REF!="",#REF!="",#REF!=""),"",SUM(#REF!,#REF!,#REF!,#REF!,#REF!)) ->  | CB163: =IF(AND(#REF!="",#REF!="",#REF!="",#REF!=""),"",SUM(#REF!,#REF!,#REF!,#REF!,#REF!)) ->  | CD163: =IF(AND(#REF!="",#REF!="",#REF!="",#REF!=""),"",SUM(#REF!,#REF!,#REF!,#REF!)) -> 
A164: 158 | BV164: =IF(AND(#REF!="",#REF!="",#REF!="",#REF!=""),"",SUM(#REF!,#REF!,#REF!,#REF!,#REF!)) ->  | CB164: =IF(AND(#REF!="",#REF!="",#REF!="",#REF!=""),"",SUM(#REF!,#REF!,#REF!,#REF!,#REF!)) ->  | CD164: =IF(AND(#REF!="",#REF!="",#REF!="",#REF!=""),"",SUM(#REF!,#REF!,#REF!,#REF!)) -> 
A165: 159 | BV165: =IF(AND(#REF!="",#REF!="",#REF!="",#REF!=""),"",SUM(#REF!,#REF!,#REF!,#REF!,#REF!)) ->  | CB165: =IF(AND(#REF!="",#REF!="",#REF!="",#REF!=""),"",SUM(#REF!,#REF!,#REF!,#REF!,#REF!)) ->  | CD165: =IF(AND(#REF!="",#REF!="",#REF!="",#REF!=""),"",SUM(#REF!,#REF!,#REF!,#REF!)) -> 
A166: 160 | BV166: =IF(AND(#REF!="",#REF!="",#REF!="",#REF!=""),"",SUM(#REF!,#REF!,#REF!,#REF!,#REF!)) ->  | CB166: =IF(AND(#REF!="",#REF!="",#REF!="",#REF!=""),"",SUM(#REF!,#REF!,#REF!,#REF!,#REF!)) ->  | CD166: =IF(AND(#REF!="",#REF!="",#REF!="",#REF!=""),"",SUM(#REF!,#REF!,#REF!,#REF!)) -> 
A167: 161 | BV167: =IF(AND(#REF!="",#REF!="",#REF!="",#REF!=""),"",SUM(#REF!,#REF!,#REF!,#REF!,#REF!)) ->  | CB167: =IF(AND(#REF!="",#REF!="",#REF!="",#REF!=""),"",SUM(#REF!,#REF!,#REF!,#REF!,#REF!)) ->  | CD167: =IF(AND(#REF!="",#REF!="",#REF!="",#REF!=""),"",SUM(#REF!,#REF!,#REF!,#REF!)) -> 
A168: 162 | BV168: =IF(AND(#REF!="",#REF!="",#REF!="",#REF!=""),"",SUM(#REF!,#REF!,#REF!,#REF!,#REF!)) ->  | CB168: =IF(AND(#REF!="",#REF!="",#REF!="",#REF!=""),"",SUM(#REF!,#REF!,#REF!,#REF!,#REF!)) ->  | CD168: =IF(AND(#REF!="",#REF!="",#REF!="",#REF!=""),"",SUM(#REF!,#REF!,#REF!,#REF!)) -> 
A169: 163 | BV169: =IF(AND(#REF!="",#REF!="",#REF!="",#REF!=""),"",SUM(#REF!,#REF!,#REF!,#REF!,#REF!)) ->  | CB169: =IF(AND(#REF!="",#REF!="",#REF!="",#REF!=""),"",SUM(#REF!,#REF!,#REF!,#REF!,#REF!)) ->  | CD169: =IF(AND(#REF!="",#REF!="",#REF!="",#REF!=""),"",SUM(#REF!,#REF!,#REF!,#REF!)) -> 
A170: 164 | BV170: =IF(AND(#REF!="",#REF!="",#REF!="",#REF!=""),"",SUM(#REF!,#REF!,#REF!,#REF!,#REF!)) ->  | CB170: =IF(AND(#REF!="",#REF!="",#REF!="",#REF!=""),"",SUM(#REF!,#REF!,#REF!,#REF!,#REF!)) ->  | CD170: =IF(AND(#REF!="",#REF!="",#REF!="",#REF!=""),"",SUM(#REF!,#REF!,#REF!,#REF!)) -> 
A171: 165 | BV171: =IF(AND(#REF!="",#REF!="",#REF!="",#REF!=""),"",SUM(#REF!,#REF!,#REF!,#REF!,#REF!)) ->  | CB171: =IF(AND(#REF!="",#REF!="",#REF!="",#REF!=""),"",SUM(#REF!,#REF!,#REF!,#REF!,#REF!)) ->  | CD171: =IF(AND(#REF!="",#REF!="",#REF!="",#REF!=""),"",SUM(#REF!,#REF!,#REF!,#REF!)) -> 
A172: 166 | BV172: =IF(AND(#REF!="",#REF!="",#REF!="",#REF!=""),"",SUM(#REF!,#REF!,#REF!,#REF!,#REF!)) ->  | CB172: =IF(AND(#REF!="",#REF!="",#REF!="",#REF!=""),"",SUM(#REF!,#REF!,#REF!,#REF!,#REF!)) ->  | CD172: =IF(AND(#REF!="",#REF!="",#REF!="",#REF!=""),"",SUM(#REF!,#REF!,#REF!,#REF!)) -> 
A173: 167 | BV173: =IF(AND(#REF!="",#REF!="",#REF!="",#REF!=""),"",SUM(#REF!,#REF!,#REF!,#REF!,#REF!)) ->  | CB173: =IF(AND(#REF!="",#REF!="",#REF!="",#REF!=""),"",SUM(#REF!,#REF!,#REF!,#REF!,#REF!)) ->  | CD173: =IF(AND(#REF!="",#REF!="",#REF!="",#REF!=""),"",SUM(#REF!,#REF!,#REF!,#REF!)) -> 
A174: 168 | BV174: =IF(AND(#REF!="",#REF!="",#REF!="",#REF!=""),"",SUM(#REF!,#REF!,#REF!,#REF!,#REF!)) ->  | CB174: =IF(AND(#REF!="",#REF!="",#REF!="",#REF!=""),"",SUM(#REF!,#REF!,#REF!,#REF!,#REF!)) ->  | CD174: =IF(AND(#REF!="",#REF!="",#REF!="",#REF!=""),"",SUM(#REF!,#REF!,#REF!,#REF!)) -> 
A175: 169 | BV175: =IF(AND(#REF!="",#REF!="",#REF!="",#REF!=""),"",SUM(#REF!,#REF!,#REF!,#REF!,#REF!)) ->  | CB175: =IF(AND(#REF!="",#REF!="",#REF!="",#REF!=""),"",SUM(#REF!,#REF!,#REF!,#REF!,#REF!)) ->  | CD175: =IF(AND(#REF!="",#REF!="",#REF!="",#REF!=""),"",SUM(#REF!,#REF!,#REF!,#REF!)) -> 
A176: 170 | BV176: =IF(AND(#REF!="",#REF!="",#REF!="",#REF!=""),"",SUM(#REF!,#REF!,#REF!,#REF!,#REF!)) ->  | CB176: =IF(AND(#REF!="",#REF!="",#REF!="",#REF!=""),"",SUM(#REF!,#REF!,#REF!,#REF!,#REF!)) ->  | CD176: =IF(AND(#REF!="",#REF!="",#REF!="",#REF!=""),"",SUM(#REF!,#REF!,#REF!,#REF!)) -> 
A177: 171 | BV177: =IF(AND(#REF!="",#REF!="",#REF!="",#REF!=""),"",SUM(#REF!,#REF!,#REF!,#REF!,#REF!)) ->  | CB177: =IF(AND(#REF!="",#REF!="",#REF!="",#REF!=""),"",SUM(#REF!,#REF!,#REF!,#REF!,#REF!)) ->  | CD177: =IF(AND(#REF!="",#REF!="",#REF!="",#REF!=""),"",SUM(#REF!,#REF!,#REF!,#REF!)) -> 
A178: 172 | BV178: =IF(AND(#REF!="",#REF!="",#REF!="",#REF!=""),"",SUM(#REF!,#REF!,#REF!,#REF!,#REF!)) ->  | CB178: =IF(AND(#REF!="",#REF!="",#REF!="",#REF!=""),"",SUM(#REF!,#REF!,#REF!,#REF!,#REF!)) ->  | CD178: =IF(AND(#REF!="",#REF!="",#REF!="",#REF!=""),"",SUM(#REF!,#REF!,#REF!,#REF!)) -> 
A179: 173 | BV179: =IF(AND(#REF!="",#REF!="",#REF!="",#REF!=""),"",SUM(#REF!,#REF!,#REF!,#REF!,#REF!)) ->  | CB179: =IF(AND(#REF!="",#REF!="",#REF!="",#REF!=""),"",SUM(#REF!,#REF!,#REF!,#REF!,#REF!)) ->  | CD179: =IF(AND(#REF!="",#REF!="",#REF!="",#REF!=""),"",SUM(#REF!,#REF!,#REF!,#REF!)) -> 
A180: 174 | BV180: =IF(AND(#REF!="",#REF!="",#REF!="",#REF!=""),"",SUM(#REF!,#REF!,#REF!,#REF!,#REF!)) ->  | CB180: =IF(AND(#REF!="",#REF!="",#REF!="",#REF!=""),"",SUM(#REF!,#REF!,#REF!,#REF!,#REF!)) ->  | CD180: =IF(AND(#REF!="",#REF!="",#REF!="",#REF!=""),"",SUM(#REF!,#REF!,#REF!,#REF!)) -> 
A181: 175 | BV181: =IF(AND(#REF!="",#REF!="",#REF!="",#REF!=""),"",SUM(#REF!,#REF!,#REF!,#REF!,#REF!)) ->  | CB181: =IF(AND(#REF!="",#REF!="",#REF!="",#REF!=""),"",SUM(#REF!,#REF!,#REF!,#REF!,#REF!)) ->  | CD181: =IF(AND(#REF!="",#REF!="",#REF!="",#REF!=""),"",SUM(#REF!,#REF!,#REF!,#REF!)) -> 
A182: 176 | BV182: =IF(AND(#REF!="",#REF!="",#REF!="",#REF!=""),"",SUM(#REF!,#REF!,#REF!,#REF!,#REF!)) ->  | CB182: =IF(AND(#REF!="",#REF!="",#REF!="",#REF!=""),"",SUM(#REF!,#REF!,#REF!,#REF!,#REF!)) ->  | CD182: =IF(AND(#REF!="",#REF!="",#REF!="",#REF!=""),"",SUM(#REF!,#REF!,#REF!,#REF!)) -> 
A183: 177 | BV183: =IF(AND(#REF!="",#REF!="",#REF!="",#REF!=""),"",SUM(#REF!,#REF!,#REF!,#REF!,#REF!)) ->  | CB183: =IF(AND(#REF!="",#REF!="",#REF!="",#REF!=""),"",SUM(#REF!,#REF!,#REF!,#REF!,#REF!)) ->  | CD183: =IF(AND(#REF!="",#REF!="",#REF!="",#REF!=""),"",SUM(#REF!,#REF!,#REF!,#REF!)) -> 
A184: 178 | BV184: =IF(AND(#REF!="",#REF!="",#REF!="",#REF!=""),"",SUM(#REF!,#REF!,#REF!,#REF!,#REF!)) ->  | CB184: =IF(AND(#REF!="",#REF!="",#REF!="",#REF!=""),"",SUM(#REF!,#REF!,#REF!,#REF!,#REF!)) ->  | CD184: =IF(AND(#REF!="",#REF!="",#REF!="",#REF!=""),"",SUM(#REF!,#REF!,#REF!,#REF!)) -> 
A185: 179 | BV185: =IF(AND(#REF!="",#REF!="",#REF!="",#REF!=""),"",SUM(#REF!,#REF!,#REF!,#REF!,#REF!)) ->  | CB185: =IF(AND(#REF!="",#REF!="",#REF!="",#REF!=""),"",SUM(#REF!,#REF!,#REF!,#REF!,#REF!)) ->  | CD185: =IF(AND(#REF!="",#REF!="",#REF!="",#REF!=""),"",SUM(#REF!,#REF!,#REF!,#REF!)) -> 
A186: 180 | BV186: =IF(AND(#REF!="",#REF!="",#REF!="",#REF!=""),"",SUM(#REF!,#REF!,#REF!,#REF!,#REF!)) ->  | CB186: =IF(AND(#REF!="",#REF!="",#REF!="",#REF!=""),"",SUM(#REF!,#REF!,#REF!,#REF!,#REF!)) ->  | CD186: =IF(AND(#REF!="",#REF!="",#REF!="",#REF!=""),"",SUM(#REF!,#REF!,#REF!,#REF!)) -> 
A187: 181 | BV187: =IF(AND(#REF!="",#REF!="",#REF!="",#REF!=""),"",SUM(#REF!,#REF!,#REF!,#REF!,#REF!)) ->  | CB187: =IF(AND(#REF!="",#REF!="",#REF!="",#REF!=""),"",SUM(#REF!,#REF!,#REF!,#REF!,#REF!)) ->  | CD187: =IF(AND(#REF!="",#REF!="",#REF!="",#REF!=""),"",SUM(#REF!,#REF!,#REF!,#REF!)) -> 
A188: 182 | BV188: =IF(AND(#REF!="",#REF!="",#REF!="",#REF!=""),"",SUM(#REF!,#REF!,#REF!,#REF!,#REF!)) ->  | CB188: =IF(AND(#REF!="",#REF!="",#REF!="",#REF!=""),"",SUM(#REF!,#REF!,#REF!,#REF!,#REF!)) ->  | CD188: =IF(AND(#REF!="",#REF!="",#REF!="",#REF!=""),"",SUM(#REF!,#REF!,#REF!,#REF!)) -> 
A189: 183 | BV189: =IF(AND(#REF!="",#REF!="",#REF!="",#REF!=""),"",SUM(#REF!,#REF!,#REF!,#REF!,#REF!)) ->  | CB189: =IF(AND(#REF!="",#REF!="",#REF!="",#REF!=""),"",SUM(#REF!,#REF!,#REF!,#REF!,#REF!)) ->  | CD189: =IF(AND(#REF!="",#REF!="",#REF!="",#REF!=""),"",SUM(#REF!,#REF!,#REF!,#REF!)) -> 
A190: 184 | BV190: =IF(AND(#REF!="",#REF!="",#REF!="",#REF!=""),"",SUM(#REF!,#REF!,#REF!,#REF!,#REF!)) ->  | CB190: =IF(AND(#REF!="",#REF!="",#REF!="",#REF!=""),"",SUM(#REF!,#REF!,#REF!,#REF!,#REF!)) ->  | CD190: =IF(AND(#REF!="",#REF!="",#REF!="",#REF!=""),"",SUM(#REF!,#REF!,#REF!,#REF!)) -> 
A191: 185 | BV191: =IF(AND(#REF!="",#REF!="",#REF!="",#REF!=""),"",SUM(#REF!,#REF!,#REF!,#REF!,#REF!)) ->  | CB191: =IF(AND(#REF!="",#REF!="",#REF!="",#REF!=""),"",SUM(#REF!,#REF!,#REF!,#REF!,#REF!)) ->  | CD191: =IF(AND(#REF!="",#REF!="",#REF!="",#REF!=""),"",SUM(#REF!,#REF!,#REF!,#REF!)) -> 
A192: 186 | BV192: =IF(AND(#REF!="",#REF!="",#REF!="",#REF!=""),"",SUM(#REF!,#REF!,#REF!,#REF!,#REF!)) ->  | CB192: =IF(AND(#REF!="",#REF!="",#REF!="",#REF!=""),"",SUM(#REF!,#REF!,#REF!,#REF!,#REF!)) ->  | CD192: =IF(AND(#REF!="",#REF!="",#REF!="",#REF!=""),"",SUM(#REF!,#REF!,#REF!,#REF!)) -> 
A193: 187 | BV193: =IF(AND(#REF!="",#REF!="",#REF!="",#REF!=""),"",SUM(#REF!,#REF!,#REF!,#REF!,#REF!)) ->  | CB193: =IF(AND(#REF!="",#REF!="",#REF!="",#REF!=""),"",SUM(#REF!,#REF!,#REF!,#REF!,#REF!)) ->  | CD193: =IF(AND(#REF!="",#REF!="",#REF!="",#REF!=""),"",SUM(#REF!,#REF!,#REF!,#REF!)) -> 
A194: 188 | BV194: =IF(AND(#REF!="",#REF!="",#REF!="",#REF!=""),"",SUM(#REF!,#REF!,#REF!,#REF!,#REF!)) ->  | CB194: =IF(AND(#REF!="",#REF!="",#REF!="",#REF!=""),"",SUM(#REF!,#REF!,#REF!,#REF!,#REF!)) ->  | CD194: =IF(AND(#REF!="",#REF!="",#REF!="",#REF!=""),"",SUM(#REF!,#REF!,#REF!,#REF!)) -> 
A195: 189 | BV195: =IF(AND(#REF!="",#REF!="",#REF!="",#REF!=""),"",SUM(#REF!,#REF!,#REF!,#REF!,#REF!)) ->  | CB195: =IF(AND(#REF!="",#REF!="",#REF!="",#REF!=""),"",SUM(#REF!,#REF!,#REF!,#REF!,#REF!)) ->  | CD195: =IF(AND(#REF!="",#REF!="",#REF!="",#REF!=""),"",SUM(#REF!,#REF!,#REF!,#REF!)) -> 
A196: 190 | BV196: =IF(AND(#REF!="",#REF!="",#REF!="",#REF!=""),"",SUM(#REF!,#REF!,#REF!,#REF!,#REF!)) ->  | CB196: =IF(AND(#REF!="",#REF!="",#REF!="",#REF!=""),"",SUM(#REF!,#REF!,#REF!,#REF!,#REF!)) ->  | CD196: =IF(AND(#REF!="",#REF!="",#REF!="",#REF!=""),"",SUM(#REF!,#REF!,#REF!,#REF!)) -> 
A197: 191 | BV197: =IF(AND(#REF!="",#REF!="",#REF!="",#REF!=""),"",SUM(#REF!,#REF!,#REF!,#REF!,#REF!)) ->  | CB197: =IF(AND(#REF!="",#REF!="",#REF!="",#REF!=""),"",SUM(#REF!,#REF!,#REF!,#REF!,#REF!)) ->  | CD197: =IF(AND(#REF!="",#REF!="",#REF!="",#REF!=""),"",SUM(#REF!,#REF!,#REF!,#REF!)) -> 
A198: 192 | BV198: =IF(AND(#REF!="",#REF!="",#REF!="",#REF!=""),"",SUM(#REF!,#REF!,#REF!,#REF!,#REF!)) ->  | CB198: =IF(AND(#REF!="",#REF!="",#REF!="",#REF!=""),"",SUM(#REF!,#REF!,#REF!,#REF!,#REF!)) ->  | CD198: =IF(AND(#REF!="",#REF!="",#REF!="",#REF!=""),"",SUM(#REF!,#REF!,#REF!,#REF!)) -> 
A199: 193 | BV199: =IF(AND(#REF!="",#REF!="",#REF!="",#REF!=""),"",SUM(#REF!,#REF!,#REF!,#REF!,#REF!)) ->  | CB199: =IF(AND(#REF!="",#REF!="",#REF!="",#REF!=""),"",SUM(#REF!,#REF!,#REF!,#REF!,#REF!)) ->  | CD199: =IF(AND(#REF!="",#REF!="",#REF!="",#REF!=""),"",SUM(#REF!,#REF!,#REF!,#REF!)) -> 
A200: 194 | BQ200: =IF(I200="","",I200) ->  | BR200: =IF(AND(L200="",M200="",N200="",P200=""),"",SUM(L200,M200,N200,O200,P200)) ->  | BS200: =IFERROR(IF(BR200="","",ROUNDUP(BR200*20%,0)),"") ->  | BT200: =IF(AND(S200="",T200="",U200="",W200=""),"",SUM(S200,T200,U200,V200,W200)) ->  | BU200: =IFERROR(IF(BT200="","",ROUNDUP(BT200*20%,0)),"") ->  | BV200: =IF(AND(#REF!="",#REF!="",#REF!="",#REF!=""),"",SUM(#REF!,#REF!,#REF!,#REF!,#REF!)) ->  | BW200: =IFERROR(IF(BV200="","",ROUNDUP(BV200*20%,0)),"") ->  | BX200: =IF(AND(Z200="",AA200="",AB200="",AD200=""),"",SUM(Z200,AA200,AB200,AC200,AD200)) ->  | BY200: =IFERROR(IF(BX200="","",ROUNDUP(BX200*20%,0)),"") ->  | BZ200: =IF(AND(AG200="",AH200="",AI200="",AK200=""),"",SUM(AG200,AH200,AI200,AJ200,AK200)) ->  | CA200: =IFERROR(IF(BZ200="","",ROUNDUP(BZ200*20%,0)),"") ->  | CB200: =IF(AND(#REF!="",#REF!="",#REF!="",#REF!=""),"",SUM(#REF!,#REF!,#REF!,#REF!,#REF!)) ->  | CC200: =IFERROR(IF(CB200="","",ROUNDUP(CB200*20%,0)),"") ->  | CD200: =IF(AND(#REF!="",#REF!="",#REF!="",#REF!=""),"",SUM(#REF!,#REF!,#REF!,#REF!)) ->  | CE200: =IFERROR(IF(CD200="","",IF($CD$5=100,ROUNDUP(CD200*20%,0),IF($CD$5=86,ROUNDUP((CD200/$CD$5)*$CE$5,0),IF($CD$5=66,ROUNDUP((CD200/$CD$5)*$CE$5,0),"")))),"") -> 
... 6 more rows

Sheet Marks Entry 2nd
A1: =IF('Master sheet'!D11="Hindi",'Master sheet'!D8,'Master sheet'!D7) -> Mahatma Gandhi Government School (English Medium) Bar, Pali | P1: This Sheet Password :- Resultsheet2024 (सामान्य जानकारी , Master Sheet & Marksheet पर try नहीं करें ) | AN1: ए/बी/सी/डी/ई ग्रेडिंग देनी है (A/B/C/D/E Grade) | AT1: =IF('Master sheet'!$D$11="Hindi","अतिरिक्त विषय ","Extra Subject") -> Extra Subject | CG1: =L3 -> 0 | CJ1: =AN3 -> WORK EXP.
A2: =IF('Master sheet'!D11="Hindi","रिजल्ट वर्कशीट","RESULT WORKSHEET") -> RESULT WORKSHEET | I2: 2023-2024 | CG2: =S3 -> 0 | CJ2: =AP3 -> ART EDU.
A3: =IF('Master sheet'!D11="Hindi","विद्यार्थी की सामान्य जानकारी","General Information of Students") -> General Information of Students | I3: =IF('Master sheet'!D11="Hindi","कक्षा :-","CLASS :- ") -> CLASS :- | J3: 2nd | O3: =IF('Master sheet'!$D$11="Hindi","हिंदी","Hindi") -> Hindi | P3: =UPPER('Master sheet'!H14) -> ABHIMANYU SINGH | V3: =IF('Master sheet'!$D$11="Hindi","अंग्रेजी","English") -> English | W3: =UPPER('Master sheet'!H15) -> SAMPAT RAJ | AC3: =IF('Master sheet'!$D$11="Hindi","गणित","Maths") -> Maths | AD3: =UPPER('Master sheet'!H16) -> PRADIP SINGH | AJ3: =IF('Master sheet'!$D$11="Hindi","पर्यावरण अध्ययन","EVS") -> EVS | AK3: =UPPER('Master sheet'!H17) -> PUSHPENDRA JAWRA | AN3: =IF('Master sheet'!$D$11="Hindi","कार्यानुभव","WORK EXP.") -> WORK EXP. | AP3: =IF('Master sheet'!$D$11="Hindi","कला शिक्षा","ART EDU.") -> ART EDU. | AR3: =IF('Master sheet'!$D$11="Hindi","स्वा. एवं शा. शिक्षा","HE.&PH. EDU.") -> HE.&PH. EDU. | AX3: =IF('Master sheet'!$D$11="Hindi","उपस्थिति","Attendance") -> Attendance | CG3: =#REF! ->  | CJ3: =AR3 -> HE.&PH. EDU.
A4: =IF('Master sheet'!D11="Hindi","क्र. स.","Sr. No. ") -> Sr. No. | B4: =IF('Master sheet'!D11="Hindi","कक्षा","CLASS ") -> CLASS | C4: =IF('Master sheet'!D11="Hindi","सेक्शन","Section ") -> Section | D4: =IF('Master sheet'!D11="Hindi","प्रवेशांक","SR. NO.") -> SR. NO. | E4: =IF('Master sheet'!D11="Hindi","जन्म दिनांक","Date of Birth") -> Date of Birth | F4: =IF('Master sheet'!D11="Hindi","विद्यार्थी का नाम","Student's Name") -> Student's Name | G4: =IF('Master sheet'!D11="Hindi","पिता का नाम","Father's Name") -> Father's Name | H4: =IF('Master sheet'!D11="Hindi","माता का नाम ","Mother's Name") -> Mother's Name | I4: =IF('Master sheet'!D11="Hindi","कक्षा रोल न. ","Class Roll No.") -> Class Roll No. | J4: =IF('Master sheet'!D11="Hindi","लिंग ","Gender") -> Gender | K4: =IF('Master sheet'!D11="Hindi","वर्ग ","Category") -> Category | O4: =IF('Master sheet'!$D$11="Hindi","अर्द्धवार्षिक","Half Yearly") -> Half Yearly | Q4: =IF('Master sheet'!$D$11="Hindi","वार्षिक","Yearly") -> Yearly | V4: =IF('Master sheet'!$D$11="Hindi","अर्द्धवार्षिक","Half Yearly") -> Half Yearly | X4: =IF('Master sheet'!$D$11="Hindi","वार्षिक","Yearly") -> Yearly | AC4: =IF('Master sheet'!$D$11="Hindi","अर्द्धवार्षिक","Half Yearly") -> Half Yearly | AE4: =IF('Master sheet'!$D$11="Hindi","वार्षिक","Yearly") -> Yearly | AJ4: =IF('Master sheet'!$D$11="Hindi","अर्द्धवार्षिक","Half Yearly") -> Half Yearly | AL4: =IF('Master sheet'!$D$11="Hindi","वार्षिक","Yearly") -> Yearly | AN4: Manoj kumar | AP4: Pradip Singh | AR4: Sampat Raj | AX4: =IF('Master sheet'!$D$11="Hindi","कुल कार्य दिवस","Total Meeting") -> Total Meeting | AY4: =IF('Master sheet'!$D$11="Hindi","कुल उपस्थिति","Total Attendance") -> Total Attendance | CG4: =Z3 -> 0
O5: =IF('Master sheet'!$D$11="Hindi","लिखित","Written") -> Written | P5: =IF('Master sheet'!$D$11="Hindi","मौखिक","Oral") -> Oral | Q5: =IF('Master sheet'!$D$11="Hindi","लिखित","Written") -> Written | R5: =IF('Master sheet'!$D$11="Hindi","मौखिक","Oral") -> Oral | V5: =IF('Master sheet'!$D$11="Hindi","लिखित","Written") -> Written | W5: =IF('Master sheet'!$D$11="Hindi","मौखिक","Oral") -> Oral | X5: =IF('Master sheet'!$D$11="Hindi","लिखित","Written") -> Written | Y5: =IF('Master sheet'!$D$11="Hindi","मौखिक","Oral") -> Oral | AC5: =IF('Master sheet'!$D$11="Hindi","लिखित","Written") -> Written | AD5: =IF('Master sheet'!$D$11="Hindi","मौखिक","Oral") -> Oral | AE5: =IF('Master sheet'!$D$11="Hindi","लिखित","Written") -> Written | AF5: =IF('Master sheet'!$D$11="Hindi","मौखिक","Oral") -> Oral | AJ5: =IF('Master sheet'!$D$11="Hindi","लिखित","Written") -> Written | AK5: =IF('Master sheet'!$D$11="Hindi","मौखिक","Oral") -> Oral | AL5: =IF('Master sheet'!$D$11="Hindi","लिखित","Written") -> Written | AM5: =IF('Master sheet'!$D$11="Hindi","मौखिक","Oral") -> Oral | AN5: =IF('Master sheet'!$D$11="Hindi","अर्द्धवार्षिक","Half Yearly") -> Half Yearly | AO5: =IF('Master sheet'!$D$11="Hindi","वार्षिक","Yearly") -> Yearly | AP5: =IF('Master sheet'!$D$11="Hindi","अर्द्धवार्षिक","Half Yearly") -> Half Yearly | AQ5: =IF('Master sheet'!$D$11="Hindi","वार्षिक","Yearly") -> Yearly | AR5: =IF('Master sheet'!$D$11="Hindi","अर्द्धवार्षिक","Half Yearly") -> Half Yearly | AS5: =IF('Master sheet'!$D$11="Hindi","वार्षिक","Yearly") -> Yearly | AT5: =IF('Master sheet'!$D$11="Hindi","अर्द्धवार्षिक","Half Yearly") -> Half Yearly | AU5: =IF('Master sheet'!$D$11="Hindi","वार्षिक","Yearly") -> Yearly | AV5: =IF('Master sheet'!$D$11="Hindi","अर्द्धवार्षिक","Half Yearly") -> Half Yearly | AW5: =IF('Master sheet'!$D$11="Hindi","वार्षिक","Yearly") -> Yearly | BR5: =IF(AND(L6="",M6="",N6="",P6=""),"",SUM(L6,M6,N6,O6,P6)) -> 100 | BS5: 20 | BT5: =IF(AND(S6="",T6="",U6="",W6=""),"",SUM(S6,T6,U6,V6,W6)) -> 50 | BU5: 20 | BV5: =IF(AND(#REF!="",#REF!="",#REF!="",#REF!=""),"",SUM(#REF!,#REF!,#REF!,#REF!,#REF!)) ->  | BW5: 20 | BX5: =IF(AND(Z6="",AA6="",AB6="",AD6=""),"",SUM(Z6,AA6,AB6,AC6,AD6)) -> 100 | BY5: 20 | BZ5: =IF(AND(AG6="",AH6="",AI6="",AK6=""),"",SUM(AG6,AH6,AI6,AJ6,AK6)) ->  | CA5: 20 | CB5: =IF(AND(#REF!="",#REF!="",#REF!="",#REF!=""),"",SUM(#REF!,#REF!,#REF!,#REF!,#REF!)) ->  | CC5: 20 | CG5: =AG3 -> 0
O6: 30 | P6: 70 | Q6: 30 | R6: 70 | V6: 15 | W6: 35 | X6: 15 | Y6: 35 | AC6: 30 | AD6: 70 | AE6: 30 | AF6: 70 | AJ6: 50 | AL6: 50 | AN6: 25 | AO6: 25 | AP6: 25 | AQ6: 25 | AR6: 50 | AS6: 50 | AT6: 50 | AU6: 50 | AV6: 50 | AW6: 50 | AX6: 350 | BA6: परम पूज्य गुरूदेव वासुदेव जी महाराज | BR6: 1 | BS6: 1 | BT6: 2 | BU6: 2 | BV6: 3 | BW6: 3 | BX6: 4 | BY6: 4 | BZ6: 5 | CA6: 5 | CB6: 6 | CC6: 6 | CG6: =#REF! -> 
A7: 1 | B7: 2 | C7: A | D7: 936 | E7: 28-10-2014 | F7: AAKIFA BANO | G7: SHABBIR MOHAMMAD | H7: HEENA KOUSER | I7: 201 | J7: F | K7: OBC | O7: 25 | P7: 62 | Q7: 29 | R7: 25 | V7: 15 | W7: 30 | X7: 10 | Y7: 30 | AC7: 22 | AD7: 64 | AE7: 21 | AF7: 56 | AJ7: 45 | AL7: 45 | AN7: 25 | AO7: 20 | AP7: 11 | AQ7: 20 | AR7: 41 | AS7: 35 | AX7: 220 | AY7: 28 | BQ7: =IF(I7="","",I7) -> 201 | BR7: =IF(AND(L7="",M7="",N7="",P7=""),"",SUM(L7,M7,N7,O7,P7)) -> 87 | BS7: =IFERROR(IF(BR7="","",ROUNDUP(BR7*20%,0)),"") -> 18 | BT7: =IF(AND(S7="",T7="",U7="",W7=""),"",SUM(S7,T7,U7,V7,W7)) -> 45 | BU7: =IFERROR(IF(BT7="","",ROUNDUP(BT7*20%,0)),"") -> 9 | BV7: =IF(AND(#REF!="",#REF!="",#REF!="",#REF!=""),"",SUM(#REF!,#REF!,#REF!,#REF!,#REF!)) ->  | BW7: =IFERROR(IF(BV7="","",ROUNDUP(BV7*20%,0)),"") ->  | BX7: =IF(AND(Z7="",AA7="",AB7="",AD7=""),"",SUM(Z7,AA7,AB7,AC7,AD7)) -> 86 | BY7: =IFERROR(IF(BX7="","",ROUNDUP(BX7*20%,0)),"") -> 18 | BZ7: =IF(AND(AG7="",AH7="",AI7="",AK7=""),"",SUM(AG7,AH7,AI7,AJ7,AK7)) ->  | CA7: =IFERROR(IF(BZ7="","",ROUNDUP(BZ7*20%,0)),"") ->  | CB7: =IF(AND(#REF!="",#REF!="",#REF!="",#REF!=""),"",SUM(#REF!,#REF!,#REF!,#REF!,#REF!)) ->  | CC7: =IFERROR(IF(CB7="","",ROUNDUP(CB7*20%,0)),"") -> 
A8: 2 | B8: 2 | C8: A | D8: 944 | E8: 2015-01-01 | F8: ANUJ GIRI | G8: BHAGWAT GIRI | H8: KANTA DEVI | I8: 202 | J8: M | K8: OBC | O8: 20 | P8: 63 | Q8: 21 | R8: 20 | V8: 12 | W8: 31 | X8: 10 | Y8: 31 | AC8: 23 | AD8: 65 | AE8: 22 | AF8: 60 | AJ8: 45 | AL8: 14 | AN8: 24 | AO8: 20 | AP8: 11 | AQ8: 21 | AR8: 31 | AS8: 36 | AX8: 220 | AY8: 24 | BA8: https://youtu.be/ThY9TGuohzE | BQ8: =IF(I8="","",I8) -> 202 | BR8: 83 | BS8: =IFERROR(IF(BR8="","",ROUNDUP(BR8*20%,0)),"") -> 17 | BT8: =IF(AND(S8="",T8="",U8="",W8=""),"",SUM(S8,T8,U8,V8,W8)) -> 43 | BU8: =IFERROR(IF(BT8="","",ROUNDUP(BT8*20%,0)),"") -> 9 | BV8: =IF(AND(#REF!="",#REF!="",#REF!="",#REF!=""),"",SUM(#REF!,#REF!,#REF!,#REF!,#REF!)) ->  | BW8: =IFERROR(IF(BV8="","",ROUNDUP(BV8*20%,0)),"") ->  | BX8: =IF(AND(Z8="",AA8="",AB8="",AD8=""),"",SUM(Z8,AA8,AB8,AC8,AD8)) -> 88 | BY8: =IFERROR(IF(BX8="","",ROUNDUP(BX8*20%,0)),"") -> 18 | BZ8: =IF(AND(AG8="",AH8="",AI8="",AK8=""),"",SUM(AG8,AH8,AI8,AJ8,AK8)) ->  | CA8: =IFERROR(IF(BZ8="","",ROUNDUP(BZ8*20%,0)),"") ->  | CB8: =IF(AND(#REF!="",#REF!="",#REF!="",#REF!=""),"",SUM(#REF!,#REF!,#REF!,#REF!,#REF!)) ->  | CC8: =IFERROR(IF(CB8="","",ROUNDUP(CB8*20%,0)),"") -> 
A9: 3 | B9: 2 | C9: A | D9: 934 | E9: 2015-12-10 | F9: ARMAN HUSSAIN | G9: AARIF HUSSAIN | H9: SALMA BANO | I9: 203 | J9: M | K9: OBC | O9: 21 | P9: 69 | Q9: 27 | R9: 21 | V9: 13 | W9: 30 | X9: 11 | Y9: 32 | AC9: 24 | AD9: 62 | AE9: 23 | AF9: 62 | AJ9: 45 | AL9: 45 | AN9: AB | AO9: 18 | AP9: 11 | AQ9: 21 | AR9: 45 | AS9: 36 | AX9: 220 | AY9: 36 | BQ9: 203 | BR9: 90 | BS9: 18 | BT9: 43 | BU9: 9 | BV9: =IF(AND(#REF!="",#REF!="",#REF!="",#REF!=""),"",SUM(#REF!,#REF!,#REF!,#REF!,#REF!)) ->  | BX9: 86 | BY9: 18 | CB9: =IF(AND(#REF!="",#REF!="",#REF!="",#REF!=""),"",SUM(#REF!,#REF!,#REF!,#REF!,#REF!)) -> 
A10: 4 | B10: 2 | C10: A | D10: 926 | E10: 2016-05-01 | F10: ARMAN SHAH | G10: JAKIR SHAH | H10: HEENA BANU | I10: 204 | J10: M | K10: OBC | O10: 23 | P10: 68 | Q10: 25 | R10: 24 | V10: 14 | W10: 32 | X10: 12 | Y10: 30 | AC10: 25 | AD10: 61 | AE10: 25 | AF10: 63 | AJ10: 45 | AL10: 48 | AN10: 20 | AO10: AB | AP10: 11 | AQ10: 25 | AR10: 46 | AS10: 36 | AX10: 220 | AY10: 36 | BA10: Presented By :- | BQ10: 204 | BR10: 91 | BS10: 19 | BT10: 46 | BU10: 10 | BV10: =IF(AND(#REF!="",#REF!="",#REF!="",#REF!=""),"",SUM(#REF!,#REF!,#REF!,#REF!,#REF!)) ->  | BX10: 86 | BY10: 18 | CB10: =IF(AND(#REF!="",#REF!="",#REF!="",#REF!=""),"",SUM(#REF!,#REF!,#REF!,#REF!,#REF!)) -> 
A11: 5 | B11: 2 | C11: A | D11: 951 | E11: 25-08-2015 | F11: BHAVYANSH SINGH CHOUHAN | G11: AJIT SINGH | H11: MEENA | I11: 205 | J11: M | K11: OBC | O11: 25 | P11: 67 | Q11: 26 | R11: 21 | V11: 15 | W11: 31 | X11: 12 | Y11: 32 | AC11: 26 | AD11: 64 | AE11: 24 | AF11: 65 | AJ11: 45 | AL11: 48 | AN11: 22 | AO11: 24 | AP11: 11 | AQ11: 24 | AR11: 47 | AS11: 36 | AX11: 220 | AY11: 0 | BQ11: 205 | BR11: 92 | BS11: 19 | BT11: 46 | BU11: 10 | BV11: =IF(AND(#REF!="",#REF!="",#REF!="",#REF!=""),"",SUM(#REF!,#REF!,#REF!,#REF!,#REF!)) ->  | BX11: 90 | BY11: 18 | CB11: =IF(AND(#REF!="",#REF!="",#REF!="",#REF!=""),"",SUM(#REF!,#REF!,#REF!,#REF!,#REF!)) -> 
A12: 6 | B12: 2 | C12: A | D12: 939 | E12: 16-06-2014 | F12: BHUMIKA BAGRI | G12: MUKESH BAGRI | H12: SEEMA BAGRI | I12: 206 | J12: F | K12: OBC | O12: 26 | P12: 64 | Q12: 28 | R12: 20 | V12: 12 | W12: 30 | X12: 10 | Y12: 31 | AC12: 25 | AD12: 64 | AE12: 21 | AF12: 64 | AJ12: 45 | AL12: 47 | AN12: 21 | AO12: 22 | AP12: 12 | AQ12: 21 | AR12: 48 | AS12: 36 | AX12: 220 | AY12: 26 | BA12: HEERA LAL JAT | BQ12: 206 | BR12: 90 | BS12: 18 | BT12: 42 | BU12: 9 | BV12: =IF(AND(#REF!="",#REF!="",#REF!="",#REF!=""),"",SUM(#REF!,#REF!,#REF!,#REF!,#REF!)) ->  | BX12: 89 | BY12: 18 | CB12: =IF(AND(#REF!="",#REF!="",#REF!="",#REF!=""),"",SUM(#REF!,#REF!,#REF!,#REF!,#REF!)) -> 
A13: 7 | B13: 2 | C13: A | D13: 942 | E13: 28-09-2015 | F13: DAKSH PRAJAPAT | G13: PRAKASH PRAJAPAT | H13: REKHA PRAJAPATI | I13: 207 | J13: M | K13: OBC | O13: 24 | P13: 65 | Q13: 29 | R13: 25 | V13: 13 | W13: 32 | X13: 12 | Y13: 34 | AC13: 24 | AD13: 64 | AE13: 20 | AF13: 69 | AJ13: 41 | AL13: 48 | AN13: NA | AO13: 25 | AP13: 13 | AQ13: 20 | AR13: 23 | AS13: 36 | AX13: 220 | AY13: 36 | BQ13: 207 | BR13: 89 | BS13: 18 | BT13: 45 | BU13: 9 | BV13: =IF(AND(#REF!="",#REF!="",#REF!="",#REF!=""),"",SUM(#REF!,#REF!,#REF!,#REF!,#REF!)) ->  | BX13: 88 | BY13: 18 | CB13: =IF(AND(#REF!="",#REF!="",#REF!="",#REF!=""),"",SUM(#REF!,#REF!,#REF!,#REF!,#REF!)) -> 
A14: 8 | B14: 2 | C14: A | D14: 925 | E14: 26-10-2015 | F14: DIVYA BAGRI | G14: MUKESH | H14: SEEMA | I14: 208 | J14: F | K14: OBC | O14: 28 | P14: 61 | Q14: 24 | R14: 24 | V14: 10 | W14: 31 | X14: 14 | Y14: 32 | AC14: 21 | AD14: 64 | AE14: 23 | AF14: 68 | AJ14: 41 | AL14: 49 | AN14: 23 | AO14: 24 | AP14: 13 | AQ14: 23 | AR14: 45 | AS14: 36 | AX14: 220 | AY14: 28 | BA14: Sr. Teacher at MGGS BAR (PALI) | BQ14: 208 | BR14: 89 | BS14: 18 | BT14: 41 | BU14: 9 | BV14: =IF(AND(#REF!="",#REF!="",#REF!="",#REF!=""),"",SUM(#REF!,#REF!,#REF!,#REF!,#REF!)) ->  | BX14: 85 | BY14: 17 | CB14: =IF(AND(#REF!="",#REF!="",#REF!="",#REF!=""),"",SUM(#REF!,#REF!,#REF!,#REF!,#REF!)) -> 
A15: 9 | B15: 2 | C15: A | D15: 952 | E15: 2015-02-12 | F15: DUSHYANT DAYAMA | G15: BASANT KUMAR DAYAMA | H15: PUSHPA DAYAMA | I15: 209 | J15: M | K15: SC | O15: 29 | P15: 62 | Q15: 24 | R15: 21 | V15: 14 | W15: 30 | X15: 10 | Y15: 31 | AC15: 20 | AD15: 64 | AE15: 25 | AF15: 67 | AJ15: 41 | AL15: 47 | AN15: 21 | AO15: 21 | AP15: 14 | AQ15: 20 | AR15: 41 | AS15: 36 | AX15: 220 | AY15: 18 | BQ15: 209 | BR15: 91 | BS15: 19 | BT15: 44 | BU15: 9 | BV15: =IF(AND(#REF!="",#REF!="",#REF!="",#REF!=""),"",SUM(#REF!,#REF!,#REF!,#REF!,#REF!)) ->  | BX15: 84 | BY15: 17 | CB15: =IF(AND(#REF!="",#REF!="",#REF!="",#REF!=""),"",SUM(#REF!,#REF!,#REF!,#REF!,#REF!)) -> 
A16: 10 | B16: 2 | C16: A | D16: 931 | E16: 23-10-2015 | F16: GUNEET CHOUHAN | G16: KAILASH CHOUHAN | H16: PUSHPA DEVI | I16: 210 | J16: M | K16: OBC | O16: 29 | P16: 62 | Q16: 24 | R16: 20 | V16: 14 | W16: 32 | X16: 12 | Y16: 30 | AC16: 23 | AD16: 64 | AE16: 26 | AF16: 64 | AJ16: 41 | AL16: 48 | AN16: 25 | AO16: 20 | AP16: 15 | AQ16: 21 | AR16: 40 | AS16: 36 | AX16: 220 | AY16: 36 | BA16: V./P. - CHANDAWAL NAGAR , SOJAT (PALI) | BQ16: 210 | BR16: 91 | BS16: 19 | BT16: 46 | BU16: 10 | BV16: =IF(AND(#REF!="",#REF!="",#REF!="",#REF!=""),"",SUM(#REF!,#REF!,#REF!,#REF!,#REF!)) ->  | BX16: 87 | BY16: 18 | CB16: =IF(AND(#REF!="",#REF!="",#REF!="",#REF!=""),"",SUM(#REF!,#REF!,#REF!,#REF!,#REF!)) -> 
A17: 11 | B17: 2 | C17: A | D17: 923 | E17: 23-10-2015 | F17: GUNJAN TAK | G17: DINESH KUMAR TAK | H17: SHARDA TAK | I17: 211 | J17: F | K17: OBC | O17: 29 | P17: 65 | Q17: 24 | R17: 20 | V17: 14 | W17: 32 | X17: 13 | Y17: 32 | AC17: 25 | AD17: 64 | AE17: 24 | AF17: 65 | AJ17: 41 | AL17: 45 | AN17: 23 | AO17: 20 | AP17: 15 | AQ17: 23 | AR17: 42 | AS17: 36 | AX17: 220 | AY17: 28 | BQ17: 211 | BR17: 94 | BS17: 19 | BT17: 46 | BU17: 10 | BV17: =IF(AND(#REF!="",#REF!="",#REF!="",#REF!=""),"",SUM(#REF!,#REF!,#REF!,#REF!,#REF!)) ->  | BX17: 89 | BY17: 18 | CB17: =IF(AND(#REF!="",#REF!="",#REF!="",#REF!=""),"",SUM(#REF!,#REF!,#REF!,#REF!,#REF!)) -> 
A18: 12 | B18: 2 | C18: A | D18: 949 | E18: 30-10-2014 | F18: JAGRAT SOLANKI | G18: KRISHAN KAMAL SOLANKI | H18: GEETA DEVI | I18: 212 | J18: M | K18: OBC | O18: 29 | P18: 68 | Q18: 24 | R18: 23 | V18: 14 | W18: 32 | X18: 10 | Y18: 32 | AC18: 26 | AD18: 64 | AE18: 21 | AF18: 62 | AJ18: 42 | AL18: 49 | AN18: ML | AO18: 21 | AP18: 15 | AQ18: 20 | AR18: 43 | AS18: 23 | AX18: 220 | AY18: 12 | BQ18: 212 | BR18: 97 | BS18: 20 | BT18: 46 | BU18: 10 | BV18: =IF(AND(#REF!="",#REF!="",#REF!="",#REF!=""),"",SUM(#REF!,#REF!,#REF!,#REF!,#REF!)) ->  | BX18: 90 | BY18: 18 | CB18: =IF(AND(#REF!="",#REF!="",#REF!="",#REF!=""),"",SUM(#REF!,#REF!,#REF!,#REF!,#REF!)) -> 
A19: 13 | B19: 2 | C19: A | D19: 933 | E19: 26-05-2014 | F19: JOYA KHAN | G19: BARGAT KHAN | H19: MADINA BANO | I19: 213 | J19: F | K19: OBC | O19: 29 | P19: 69 | Q19: 24 | R19: 20 | V19: 14 | W19: 32 | X19: 10 | Y19: 30 | AC19: 28 | AD19: 64 | AE19: 23 | AF19: 63 | AJ19: 45 | AL19: 47 | AN19: 23 | AO19: ML | AP19: 15 | AQ19: 21 | AR19: 40 | AS19: 23 | AX19: 220 | AY19: 22 | BQ19: 213 | BR19: 98 | BS19: 20 | BT19: 46 | BU19: 10 | BV19: =IF(AND(#REF!="",#REF!="",#REF!="",#REF!=""),"",SUM(#REF!,#REF!,#REF!,#REF!,#REF!)) ->  | BX19: 92 | BY19: 19 | CB19: =IF(AND(#REF!="",#REF!="",#REF!="",#REF!=""),"",SUM(#REF!,#REF!,#REF!,#REF!,#REF!)) -> 
A20: 14 | B20: 2 | C20: A | D20: 946 | E20: 18-02-2015 | F20: JOYA KHAN | G20: SAHIMAN LOHAR | H20: SABINA BANO | I20: 214 | J20: F | K20: OBC | O20: 29 | P20: 68 | Q20: 24 | R20: 21 | V20: 14 | W20: 32 | X20: 10 | Y20: 32 | AC20: 22 | AD20: 64 | AE20: 25 | AF20: 65 | AJ20: 41 | AL20: 48 | AN20: AB | AO20: AB | AQ20: 23 | AR20: 45 | AX20: 220 | AY20: 40 | BQ20: 214 | BR20: 97 | BS20: 20 | BT20: 46 | BU20: 10 | BV20: =IF(AND(#REF!="",#REF!="",#REF!="",#REF!=""),"",SUM(#REF!,#REF!,#REF!,#REF!,#REF!)) ->  | BX20: 86 | BY20: 18 | CB20: =IF(AND(#REF!="",#REF!="",#REF!="",#REF!=""),"",SUM(#REF!,#REF!,#REF!,#REF!,#REF!)) -> 
A21: 15 | B21: 2 | C21: A | D21: 935 | E21: 24-09-2015 | F21: KHUSHVEER SINGH | G21: PUSA RAM | H21: POOJA | I21: 215 | J21: M | K21: SC | O21: 29 | P21: 62 | Q21: 24 | R21: 24 | V21: 14 | W21: 32 | X21: 10 | Y21: 30 | AC21: 22 | AD21: 64 | AE21: 26 | AF21: 64 | AJ21: 42 | AL21: 49 | AN21: ML | AO21: ML | AQ21: 20 | AR21: 47 | AX21: 220 | AY21: 4 | BQ21: 215 | BR21: 91 | BS21: 19 | BT21: 46 | BU21: 10 | BV21: =IF(AND(#REF!="",#REF!="",#REF!="",#REF!=""),"",SUM(#REF!,#REF!,#REF!,#REF!,#REF!)) ->  | BX21: 86 | BY21: 18 | CB21: =IF(AND(#REF!="",#REF!="",#REF!="",#REF!=""),"",SUM(#REF!,#REF!,#REF!,#REF!,#REF!)) -> 
A22: 16 | B22: 2 | C22: A | D22: 940 | E22: 21-01-2016 | F22: KINJAL SAINI | G22: DURGESH CHAND BAGRI | H22: PUSHPA DEVI | I22: 216 | J22: F | K22: OBC | O22: 29 | P22: 50 | Q22: 24 | R22: 21 | V22: 14 | W22: 32 | X22: 10 | Y22: 32 | AC22: 22 | AD22: 64 | AE22: 28 | AF22: 69 | AJ22: 41 | AL22: 48 | AN22: NA | AO22: NA | AQ22: 21 | AR22: 48 | AX22: 220 | AY22: 26 | BQ22: 216 | BR22: 79 | BS22: 16 | BT22: 46 | BU22: 10 | BV22: =IF(AND(#REF!="",#REF!="",#REF!="",#REF!=""),"",SUM(#REF!,#REF!,#REF!,#REF!,#REF!)) ->  | BX22: 86 | BY22: 18 | CB22: =IF(AND(#REF!="",#REF!="",#REF!="",#REF!=""),"",SUM(#REF!,#REF!,#REF!,#REF!,#REF!)) -> 
A23: 17 | B23: 2 | C23: A | D23: 924 | E23: 14-02-2016 | F23: LUCKY PRAJAPATI | G23: NAR SINGH | H23: BHAWNA | I23: 217 | J23: M | K23: OBC | O23: 29 | P23: 51 | Q23: 24 | R23: 20 | V23: 14 | W23: 32 | X23: 10 | Y23: 31 | AC23: 22 | AD23: 64 | AE23: 27 | AF23: 68 | AJ23: 42 | AL23: 47 | AN23: NA | AR23: 49 | AX23: 220 | AY23: 38 | BQ23: 217 | BR23: 80 | BS23: 16 | BT23: 46 | BU23: 10 | BV23: =IF(AND(#REF!="",#REF!="",#REF!="",#REF!=""),"",SUM(#REF!,#REF!,#REF!,#REF!,#REF!)) ->  | BX23: 86 | BY23: 18 | CB23: =IF(AND(#REF!="",#REF!="",#REF!="",#REF!=""),"",SUM(#REF!,#REF!,#REF!,#REF!,#REF!)) -> 
A24: 18 | B24: 2 | C24: A | D24: 921 | E24: 2015-01-04 | F24: MAHENDRA PARTAP SINGH CHUNDAWAT | G24: CHANDRA SINGH CHUNDAWAT | H24: RITU KANWAR | I24: 218 | J24: M | K24: GEN | O24: 29 | P24: 54 | Q24: 24 | R24: 21 | V24: 14 | W24: 32 | X24: 10 | Y24: 30 | AC24: 22 | AD24: 64 | AE24: 24 | AF24: 65 | AJ24: 40 | AL24: 49 | AO24: AB | AR24: 35 | AX24: 220 | AY24: 22 | BQ24: 218 | BR24: 83 | BS24: 17 | BT24: 46 | BU24: 10 | BV24: =IF(AND(#REF!="",#REF!="",#REF!="",#REF!=""),"",SUM(#REF!,#REF!,#REF!,#REF!,#REF!)) ->  | BX24: 86 | BY24: 18 | CB24: =IF(AND(#REF!="",#REF!="",#REF!="",#REF!=""),"",SUM(#REF!,#REF!,#REF!,#REF!,#REF!)) -> 
A25: 19 | B25: 2 | C25: A | D25: 948 | E25: 2015-09-10 | F25: MANVEER GURJAR | G25: VIKRAM SINGH | H25: BARKHA | I25: 219 | J25: M | K25: SBC | O25: 29 | P25: 56 | Q25: 24 | R25: 24 | V25: 14 | W25: 32 | X25: 10 | Y25: 30 | AC25: 22 | AD25: 64 | AE25: 21 | AF25: 61 | AJ25: 41 | AL25: 41 | AR25: 36 | AX25: 220 | AY25: 24 | BQ25: 219 | BR25: 85 | BS25: 17 | BT25: 46 | BU25: 10 | BV25: =IF(AND(#REF!="",#REF!="",#REF!="",#REF!=""),"",SUM(#REF!,#REF!,#REF!,#REF!,#REF!)) ->  | BX25: 86 | BY25: 18 | CB25: =IF(AND(#REF!="",#REF!="",#REF!="",#REF!=""),"",SUM(#REF!,#REF!,#REF!,#REF!,#REF!)) -> 
A26: 20 | B26: 2 | C26: A | D26: 943 | E26: 13-01-2015 | F26: PALAK DAMER | G26: GOVIND LAL | H26: LEELA | I26: 220 | J26: F | K26: SC | O26: 29 | P26: 58 | Q26: 24 | R26: 45 | V26: 14 | W26: 32 | X26: 10 | Y26: 30 | AC26: 22 | AD26: 64 | AE26: 25 | AF26: 62 | AJ26: 42 | AL26: 44 | AX26: 220 | AY26: 16 | BQ26: 220 | BR26: 87 | BS26: 18 | BT26: 46 | BU26: 10 | BV26: =IF(AND(#REF!="",#REF!="",#REF!="",#REF!=""),"",SUM(#REF!,#REF!,#REF!,#REF!,#REF!)) ->  | BX26: 86 | BY26: 18 | CB26: =IF(AND(#REF!="",#REF!="",#REF!="",#REF!=""),"",SUM(#REF!,#REF!,#REF!,#REF!,#REF!)) -> 
A27: 21 | B27: 2 | C27: A | D27: 929 | E27: 21-10-2014 | F27: PAWAN CHOUHAN | G27: NARENDRA SINGH | H27: SHOBHA | I27: 221 | J27: M | K27: OBC | O27: 29 | P27: 59 | Q27: 24 | R27: 45 | V27: 14 | W27: 32 | X27: 10 | Y27: 30 | AC27: 22 | AD27: 64 | AE27: 26 | AF27: 63 | AJ27: 43 | AL27: 42 | AX27: 220 | AY27: 34 | BQ27: 221 | BR27: 88 | BS27: 18 | BT27: 46 | BU27: 10 | BV27: =IF(AND(#REF!="",#REF!="",#REF!="",#REF!=""),"",SUM(#REF!,#REF!,#REF!,#REF!,#REF!)) ->  | BX27: 86 | BY27: 18 | CB27: =IF(AND(#REF!="",#REF!="",#REF!="",#REF!=""),"",SUM(#REF!,#REF!,#REF!,#REF!,#REF!)) -> 
A28: 22 | B28: 2 | C28: A | D28: 932 | E28: 15-11-2014 | F28: PRAGYA | G28: SUGANDAS | H28: ANITA | I28: 222 | J28: F | K28: OBC | O28: 29 | P28: 57 | Q28: 24 | R28: 45 | V28: 14 | W28: 32 | X28: 10 | Y28: 30 | AC28: 22 | AD28: 64 | AE28: 23 | AF28: 62 | AJ28: 42 | AL28: 45 | AX28: 220 | AY28: 22 | BQ28: 222 | BR28: 86 | BS28: 18 | BT28: 46 | BU28: 10 | BV28: =IF(AND(#REF!="",#REF!="",#REF!="",#REF!=""),"",SUM(#REF!,#REF!,#REF!,#REF!,#REF!)) ->  | BX28: 86 | BY28: 18 | CB28: =IF(AND(#REF!="",#REF!="",#REF!="",#REF!=""),"",SUM(#REF!,#REF!,#REF!,#REF!,#REF!)) -> 
A29: 23 | B29: 2 | C29: A | D29: 927 | E29: 31-01-2016 | F29: PRAMOD BHATI | G29: PANKAJ | H29: PINKI | I29: 223 | J29: M | K29: OBC | O29: 29 | P29: 54 | Q29: 24 | R29: 45 | V29: 14 | W29: 32 | X29: 10 | Y29: 30 | AC29: 22 | AD29: 64 | AE29: 21 | AF29: 62 | AJ29: 45 | AL29: 46 | AX29: 220 | AY29: 32 | BQ29: 223 | BR29: 83 | BS29: 17 | BT29: 46 | BU29: 10 | BV29: =IF(AND(#REF!="",#REF!="",#REF!="",#REF!=""),"",SUM(#REF!,#REF!,#REF!,#REF!,#REF!)) ->  | BX29: 86 | BY29: 18 | CB29: =IF(AND(#REF!="",#REF!="",#REF!="",#REF!=""),"",SUM(#REF!,#REF!,#REF!,#REF!,#REF!)) -> 
A30: 24 | B30: 2 | C30: A | D30: 938 | E30: 24-06-2015 | F30: PRAVEEN GURJAR | G30: SUKHDEV | H30: MANJU DEVI | I30: 224 | J30: M | K30: SBC | O30: 29 | P30: 51 | Q30: 24 | R30: 45 | V30: 14 | W30: 32 | X30: 10 | Y30: 30 | AC30: 22 | AD30: 64 | AE30: 20 | AF30: 62 | AJ30: 47 | AL30: 48 | AX30: 220 | AY30: 20 | BQ30: 224 | BR30: 80 | BS30: 16 | BT30: 46 | BU30: 10 | BV30: =IF(AND(#REF!="",#REF!="",#REF!="",#REF!=""),"",SUM(#REF!,#REF!,#REF!,#REF!,#REF!)) ->  | BX30: 86 | BY30: 18 | CB30: =IF(AND(#REF!="",#REF!="",#REF!="",#REF!=""),"",SUM(#REF!,#REF!,#REF!,#REF!,#REF!)) -> 
A31: 25 | B31: 2 | C31: A | D31: 950 | E31: 27-02-2016 | F31: PRIYANSHU | G31: KULDEEP | H31: KHUSBOO MALI | I31: 225 | J31: M | K31: OBC | O31: 29 | P31: 52 | Q31: 24 | R31: 45 | V31: 14 | W31: 32 | X31: 10 | Y31: 30 | AC31: 22 | AD31: 64 | AE31: 23 | AF31: 62 | AJ31: 48 | AL31: 48 | AX31: 220 | AY31: 12 | BQ31: 225 | BR31: 81 | BS31: 17 | BT31: 46 | BU31: 10 | BV31: =IF(AND(#REF!="",#REF!="",#REF!="",#REF!=""),"",SUM(#REF!,#REF!,#REF!,#REF!,#REF!)) ->  | BX31: 86 | BY31: 18 | CB31: =IF(AND(#REF!="",#REF!="",#REF!="",#REF!=""),"",SUM(#REF!,#REF!,#REF!,#REF!,#REF!)) -> 
A32: 26 | B32: 2 | C32: A | D32: 945 | E32: 22-07-2015 | F32: PRIYANSHU RAWAT | G32: MANOHAR SINGH | H32: SAPNA | I32: 226 | J32: M | K32: OBC | O32: 29 | P32: 53 | Q32: 24 | R32: 45 | V32: 14 | W32: 32 | X32: 10 | Y32: 30 | AC32: 22 | AD32: 64 | AE32: 20 | AF32: 62 | AJ32: 49 | AL32: 47 | AX32: 220 | AY32: 22 | BQ32: 226 | BR32: 82 | BS32: 17 | BT32: 46 | BU32: 10 | BV32: =IF(AND(#REF!="",#REF!="",#REF!="",#REF!=""),"",SUM(#REF!,#REF!,#REF!,#REF!,#REF!)) ->  | BX32: 86 | BY32: 18 | CB32: =IF(AND(#REF!="",#REF!="",#REF!="",#REF!=""),"",SUM(#REF!,#REF!,#REF!,#REF!,#REF!)) -> 
A33: 27 | B33: 2 | C33: A | D33: 928 | E33: 2016-11-02 | F33: RANVEER | G33: TOTA RAM | H33: JAYA | I33: 227 | J33: M | K33: OBC | O33: 29 | P33: 56 | Q33: 24 | R33: 45 | V33: 14 | W33: 32 | X33: 10 | Y33: 30 | AC33: 22 | AD33: 64 | AE33: 20 | AF33: 62 | AJ33: 43 | AL33: 49 | AX33: 220 | AY33: 24 | BQ33: 227 | BR33: 85 | BS33: 17 | BT33: 46 | BU33: 10 | BV33: =IF(AND(#REF!="",#REF!="",#REF!="",#REF!=""),"",SUM(#REF!,#REF!,#REF!,#REF!,#REF!)) ->  | BX33: 86 | BY33: 18 | CB33: =IF(AND(#REF!="",#REF!="",#REF!="",#REF!=""),"",SUM(#REF!,#REF!,#REF!,#REF!,#REF!)) -> 
A34: 28 | B34: 2 | C34: A | D34: 947 | E34: 18-07-2015 | F34: SURAJ BHATI | G34: RAJURAM BHATI | H34: REKHA DEVI | I34: 228 | J34: M | K34: OBC | O34: 29 | P34: 62 | Q34: 24 | R34: 45 | V34: 13 | W34: 32 | X34: 10 | Y34: 30 | AC34: 22 | AD34: 64 | AE34: 20 | AF34: 62 | AJ34: 45 | AL34: 46 | AX34: 220 | AY34: 20 | BQ34: 228 | BR34: 91 | BS34: 19 | BT34: 45 | BU34: 9 | BV34: =IF(AND(#REF!="",#REF!="",#REF!="",#REF!=""),"",SUM(#REF!,#REF!,#REF!,#REF!,#REF!)) ->  | BX34: 86 | BY34: 18 | CB34: =IF(AND(#REF!="",#REF!="",#REF!="",#REF!=""),"",SUM(#REF!,#REF!,#REF!,#REF!,#REF!)) -> 
A35: 29 | B35: 2 | C35: A | D35: 930 | E35: 13-03-2015 | F35: YUVRAJ SHARMA | G35: ARVIND SHARMA | H35: ANKITA SHARMA | I35: 229 | J35: M | K35: OBC | O35: 29 | P35: 65 | Q35: 24 | R35: 45 | V35: 14 | W35: 32 | X35: 10 | Y35: 30 | AC35: 22 | AD35: 64 | AE35: 20 | AF35: 62 | AJ35: 41 | AL35: 47 | AX35: 220 | AY35: 34 | BQ35: 229 | BR35: 94 | BS35: 19 | BT35: 46 | BU35: 10 | BV35: =IF(AND(#REF!="",#REF!="",#REF!="",#REF!=""),"",SUM(#REF!,#REF!,#REF!,#REF!,#REF!)) ->  | BX35: 86 | BY35: 18 | CB35: =IF(AND(#REF!="",#REF!="",#REF!="",#REF!=""),"",SUM(#REF!,#REF!,#REF!,#REF!,#REF!)) -> 
A36: 30 | B36: 2 | C36: A | D36: 941 | E36: 2015-08-03 | F36: ZEENAT SHEIKH | G36: SAMEER SHEIKH | H36: SHABNAM KHNAM | I36: 230 | J36: F | K36: GEN | O36: 29 | P36: 68 | Q36: 24 | R36: 45 | V36: 15 | W36: 32 | X36: 10 | Y36: 30 | AC36: 22 | AD36: 64 | AE36: 20 | AF36: 62 | AJ36: 40 | AL36: 42 | AX36: 220 | AY36: 28 | BQ36: 230 | BR36: 97 | BS36: 20 | BT36: 47 | BU36: 10 | BV36: =IF(AND(#REF!="",#REF!="",#REF!="",#REF!=""),"",SUM(#REF!,#REF!,#REF!,#REF!,#REF!)) ->  | BX36: 86 | BY36: 18 | CB36: =IF(AND(#REF!="",#REF!="",#REF!="",#REF!=""),"",SUM(#REF!,#REF!,#REF!,#REF!,#REF!)) -> 
A37: 31 | BV37: =IF(AND(#REF!="",#REF!="",#REF!="",#REF!=""),"",SUM(#REF!,#REF!,#REF!,#REF!,#REF!)) ->  | CB37: =IF(AND(#REF!="",#REF!="",#REF!="",#REF!=""),"",SUM(#REF!,#REF!,#REF!,#REF!,#REF!)) -> 
A38: 32 | BV38: =IF(AND(#REF!="",#REF!="",#REF!="",#REF!=""),"",SUM(#REF!,#REF!,#REF!,#REF!,#REF!)) ->  | CB38: =IF(AND(#REF!="",#REF!="",#REF!="",#REF!=""),"",SUM(#REF!,#REF!,#REF!,#REF!,#REF!)) -> 
A39: 33 | BR39: =IF(AND(L39="",M39="",N39="",P39=""),"",SUM(L39,M39,N39,O39,P39)) ->  | BV39: =IF(AND(#REF!="",#REF!="",#REF!="",#REF!=""),"",SUM(#REF!,#REF!,#REF!,#REF!,#REF!)) ->  | CB39: =IF(AND(#REF!="",#REF!="",#REF!="",#REF!=""),"",SUM(#REF!,#REF!,#REF!,#REF!,#REF!)) -> 
A40: 34 | BV40: =IF(AND(#REF!="",#REF!="",#REF!="",#REF!=""),"",SUM(#REF!,#REF!,#REF!,#REF!,#REF!)) ->  | CB40: =IF(AND(#REF!="",#REF!="",#REF!="",#REF!=""),"",SUM(#REF!,#REF!,#REF!,#REF!,#REF!)) -> 
A41: 35 | BV41: =IF(AND(#REF!="",#REF!="",#REF!="",#REF!=""),"",SUM(#REF!,#REF!,#REF!,#REF!,#REF!)) ->  | CB41: =IF(AND(#REF!="",#REF!="",#REF!="",#REF!=""),"",SUM(#REF!,#REF!,#REF!,#REF!,#REF!)) -> 
A42: 36 | BV42: =IF(AND(#REF!="",#REF!="",#REF!="",#REF!=""),"",SUM(#REF!,#REF!,#REF!,#REF!,#REF!)) ->  | CB42: =IF(AND(#REF!="",#REF!="",#REF!="",#REF!=""),"",SUM(#REF!,#REF!,#REF!,#REF!,#REF!)) -> 
A43: 37 | BV43: =IF(AND(#REF!="",#REF!="",#REF!="",#REF!=""),"",SUM(#REF!,#REF!,#REF!,#REF!,#REF!)) ->  | CB43: =IF(AND(#REF!="",#REF!="",#REF!="",#REF!=""),"",SUM(#REF!,#REF!,#REF!,#REF!,#REF!)) -> 
A44: 38 | BV44: =IF(AND(#REF!="",#REF!="",#REF!="",#REF!=""),"",SUM(#REF!,#REF!,#REF!,#REF!,#REF!)) ->  | CB44: =IF(AND(#REF!="",#REF!="",#REF!="",#REF!=""),"",SUM(#REF!,#REF!,#REF!,#REF!,#REF!)) -> 
A45: 39 | BV45: =IF(AND(#REF!="",#REF!="",#REF!="",#REF!=""),"",SUM(#REF!,#REF!,#REF!,#REF!,#REF!)) ->  | CB45: =IF(AND(#REF!="",#REF!="",#REF!="",#REF!=""),"",SUM(#REF!,#REF!,#REF!,#REF!,#REF!)) -> 
A46: 40 | BV46: =IF(AND(#REF!="",#REF!="",#REF!="",#REF!=""),"",SUM(#REF!,#REF!,#REF!,#REF!,#REF!)) ->  | CB46: =IF(AND(#REF!="",#REF!="",#REF!="",#REF!=""),"",SUM(#REF!,#REF!,#REF!,#REF!,#REF!)) -> 
A47: 41 | BV47: =IF(AND(#REF!="",#REF!="",#REF!="",#REF!=""),"",SUM(#REF!,#REF!,#REF!,#REF!,#REF!)) ->  | CB47: =IF(AND(#REF!="",#REF!="",#REF!="",#REF!=""),"",SUM(#REF!,#REF!,#REF!,#REF!,#REF!)) -> 
A48: 42 | BV48: =IF(AND(#REF!="",#REF!="",#REF!="",#REF!=""),"",SUM(#REF!,#REF!,#REF!,#REF!,#REF!)) ->  | CB48: =IF(AND(#REF!="",#REF!="",#REF!="",#REF!=""),"",SUM(#REF!,#REF!,#REF!,#REF!,#REF!)) -> 
A49: 43 | BV49: =IF(AND(#REF!="",#REF!="",#REF!="",#REF!=""),"",SUM(#REF!,#REF!,#REF!,#REF!,#REF!)) ->  | CB49: =IF(AND(#REF!="",#REF!="",#REF!="",#REF!=""),"",SUM(#REF!,#REF!,#REF!,#REF!,#REF!)) -> 
A50: 44 | BV50: =IF(AND(#REF!="",#REF!="",#REF!="",#REF!=""),"",SUM(#REF!,#REF!,#REF!,#REF!,#REF!)) ->  | CB50: =IF(AND(#REF!="",#REF!="",#REF!="",#REF!=""),"",SUM(#REF!,#REF!,#REF!,#REF!,#REF!)) -> 
A51: 45 | BV51: =IF(AND(#REF!="",#REF!="",#REF!="",#REF!=""),"",SUM(#REF!,#REF!,#REF!,#REF!,#REF!)) ->  | CB51: =IF(AND(#REF!="",#REF!="",#REF!="",#REF!=""),"",SUM(#REF!,#REF!,#REF!,#REF!,#REF!)) -> 
A52: 46 | BV52: =IF(AND(#REF!="",#REF!="",#REF!="",#REF!=""),"",SUM(#REF!,#REF!,#REF!,#REF!,#REF!)) ->  | CB52: =IF(AND(#REF!="",#REF!="",#REF!="",#REF!=""),"",SUM(#REF!,#REF!,#REF!,#REF!,#REF!)) -> 
A53: 47 | BV53: =IF(AND(#REF!="",#REF!="",#REF!="",#REF!=""),"",SUM(#REF!,#REF!,#REF!,#REF!,#REF!)) ->  | CB53: =IF(AND(#REF!="",#REF!="",#REF!="",#REF!=""),"",SUM(#REF!,#REF!,#REF!,#REF!,#REF!)) -> 
A54: 48 | BV54: =IF(AND(#REF!="",#REF!="",#REF!="",#REF!=""),"",SUM(#REF!,#REF!,#REF!,#REF!,#REF!)) ->  | CB54: =IF(AND(#REF!="",#REF!="",#REF!="",#REF!=""),"",SUM(#REF!,#REF!,#REF!,#REF!,#REF!)) -> 
A55: 49 | BV55: =IF(AND(#REF!="",#REF!="",#REF!="",#REF!=""),"",SUM(#REF!,#REF!,#REF!,#REF!,#REF!)) ->  | CB55: =IF(AND(#REF!="",#REF!="",#REF!="",#REF!=""),"",SUM(#REF!,#REF!,#REF!,#REF!,#REF!)) -> 
A56: 50 | BV56: =IF(AND(#REF!="",#REF!="",#REF!="",#REF!=""),"",SUM(#REF!,#REF!,#REF!,#REF!,#REF!)) ->  | CB56: =IF(AND(#REF!="",#REF!="",#REF!="",#REF!=""),"",SUM(#REF!,#REF!,#REF!,#REF!,#REF!)) -> 
A57: 51 | BV57: =IF(AND(#REF!="",#REF!="",#REF!="",#REF!=""),"",SUM(#REF!,#REF!,#REF!,#REF!,#REF!)) ->  | CB57: =IF(AND(#REF!="",#REF!="",#REF!="",#REF!=""),"",SUM(#REF!,#REF!,#REF!,#REF!,#REF!)) -> 
A58: 52 | BV58: =IF(AND(#REF!="",#REF!="",#REF!="",#REF!=""),"",SUM(#REF!,#REF!,#REF!,#REF!,#REF!)) ->  | CB58: =IF(AND(#REF!="",#REF!="",#REF!="",#REF!=""),"",SUM(#REF!,#REF!,#REF!,#REF!,#REF!)) -> 
A59: 53 | BV59: =IF(AND(#REF!="",#REF!="",#REF!="",#REF!=""),"",SUM(#REF!,#REF!,#REF!,#REF!,#REF!)) ->  | CB59: =IF(AND(#REF!="",#REF!="",#REF!="",#REF!=""),"",SUM(#REF!,#REF!,#REF!,#REF!,#REF!)) -> 
A60: 54 | BV60: =IF(AND(#REF!="",#REF!="",#REF!="",#REF!=""),"",SUM(#REF!,#REF!,#REF!,#REF!,#REF!)) ->  | CB60: =IF(AND(#REF!="",#REF!="",#REF!="",#REF!=""),"",SUM(#REF!,#REF!,#REF!,#REF!,#REF!)) -> 
A61: 55 | BV61: =IF(AND(#REF!="",#REF!="",#REF!="",#REF!=""),"",SUM(#REF!,#REF!,#REF!,#REF!,#REF!)) ->  | CB61: =IF(AND(#REF!="",#REF!="",#REF!="",#REF!=""),"",SUM(#REF!,#REF!,#REF!,#REF!,#REF!)) -> 
A62: 56 | BV62: =IF(AND(#REF!="",#REF!="",#REF!="",#REF!=""),"",SUM(#REF!,#REF!,#REF!,#REF!,#REF!)) ->  | CB62: =IF(AND(#REF!="",#REF!="",#REF!="",#REF!=""),"",SUM(#REF!,#REF!,#REF!,#REF!,#REF!)) -> 
A63: 57 | BV63: =IF(AND(#REF!="",#REF!="",#REF!="",#REF!=""),"",SUM(#REF!,#REF!,#REF!,#REF!,#REF!)) ->  | CB63: =IF(AND(#REF!="",#REF!="",#REF!="",#REF!=""),"",SUM(#REF!,#REF!,#REF!,#REF!,#REF!)) -> 
A64: 58 | BV64: =IF(AND(#REF!="",#REF!="",#REF!="",#REF!=""),"",SUM(#REF!,#REF!,#REF!,#REF!,#REF!)) ->  | CB64: =IF(AND(#REF!="",#REF!="",#REF!="",#REF!=""),"",SUM(#REF!,#REF!,#REF!,#REF!,#REF!)) -> 
A65: 59 | BV65: =IF(AND(#REF!="",#REF!="",#REF!="",#REF!=""),"",SUM(#REF!,#REF!,#REF!,#REF!,#REF!)) ->  | CB65: =IF(AND(#REF!="",#REF!="",#REF!="",#REF!=""),"",SUM(#REF!,#REF!,#REF!,#REF!,#REF!)) -> 
A66: 60 | BV66: =IF(AND(#REF!="",#REF!="",#REF!="",#REF!=""),"",SUM(#REF!,#REF!,#REF!,#REF!,#REF!)) ->  | CB66: =IF(AND(#REF!="",#REF!="",#REF!="",#REF!=""),"",SUM(#REF!,#REF!,#REF!,#REF!,#REF!)) -> 
A67: 61 | BV67: =IF(AND(#REF!="",#REF!="",#REF!="",#REF!=""),"",SUM(#REF!,#REF!,#REF!,#REF!,#REF!)) ->  | CB67: =IF(AND(#REF!="",#REF!="",#REF!="",#REF!=""),"",SUM(#REF!,#REF!,#REF!,#REF!,#REF!)) -> 
A68: 62 | BV68: =IF(AND(#REF!="",#REF!="",#REF!="",#REF!=""),"",SUM(#REF!,#REF!,#REF!,#REF!,#REF!)) ->  | CB68: =IF(AND(#REF!="",#REF!="",#REF!="",#REF!=""),"",SUM(#REF!,#REF!,#REF!,#REF!,#REF!)) -> 
A69: 63 | BV69: =IF(AND(#REF!="",#REF!="",#REF!="",#REF!=""),"",SUM(#REF!,#REF!,#REF!,#REF!,#REF!)) ->  | CB69: =IF(AND(#REF!="",#REF!="",#REF!="",#REF!=""),"",SUM(#REF!,#REF!,#REF!,#REF!,#REF!)) -> 
A70: 64 | BV70: =IF(AND(#REF!="",#REF!="",#REF!="",#REF!=""),"",SUM(#REF!,#REF!,#REF!,#REF!,#REF!)) ->  | CB70: =IF(AND(#REF!="",#REF!="",#REF!="",#REF!=""),"",SUM(#REF!,#REF!,#REF!,#REF!,#REF!)) -> 
A71: 65 | BR71: =IF(AND(L71="",M71="",N71="",P71=""),"",SUM(L71,M71,N71,O71,P71)) ->  | BV71: =IF(AND(#REF!="",#REF!="",#REF!="",#REF!=""),"",SUM(#REF!,#REF!,#REF!,#REF!,#REF!)) ->  | CB71: =IF(AND(#REF!="",#REF!="",#REF!="",#REF!=""),"",SUM(#REF!,#REF!,#REF!,#REF!,#REF!)) -> 
A72: 66 | BQ72: =IF(I72="","",I72) ->  | BS72: =IFERROR(IF(BR72="","",ROUNDUP(BR72*20%,0)),"") ->  | BT72: =IF(AND(S72="",T72="",U72="",W72=""),"",SUM(S72,T72,U72,V72,W72)) ->  | BU72: =IFERROR(IF(BT72="","",ROUNDUP(BT72*20%,0)),"") ->  | BV72: =IF(AND(#REF!="",#REF!="",#REF!="",#REF!=""),"",SUM(#REF!,#REF!,#REF!,#REF!,#REF!)) ->  | BW72: =IFERROR(IF(BV72="","",ROUNDUP(BV72*20%,0)),"") ->  | BX72: =IF(AND(Z72="",AA72="",AB72="",AD72=""),"",SUM(Z72,AA72,AB72,AC72,AD72)) ->  | BY72: =IFERROR(IF(BX72="","",ROUNDUP(BX72*20%,0)),"") ->  | BZ72: =IF(AND(AG72="",AH72="",AI72="",AK72=""),"",SUM(AG72,AH72,AI72,AJ72,AK72)) ->  | CA72: =IFERROR(IF(BZ72="","",ROUNDUP(BZ72*20%,0)),"") ->  | CB72: =IF(AND(#REF!="",#REF!="",#REF!="",#REF!=""),"",SUM(#REF!,#REF!,#REF!,#REF!,#REF!)) ->  | CC72: =IFERROR(IF(CB72="","",ROUNDUP(CB72*20%,0)),"") -> 
A73: 67 | BV73: =IF(AND(#REF!="",#REF!="",#REF!="",#REF!=""),"",SUM(#REF!,#REF!,#REF!,#REF!,#REF!)) ->  | CB73: =IF(AND(#REF!="",#REF!="",#REF!="",#REF!=""),"",SUM(#REF!,#REF!,#REF!,#REF!,#REF!)) -> 
A74: 68 | BV74: =IF(AND(#REF!="",#REF!="",#REF!="",#REF!=""),"",SUM(#REF!,#REF!,#REF!,#REF!,#REF!)) ->  | CB74: =IF(AND(#REF!="",#REF!="",#REF!="",#REF!=""),"",SUM(#REF!,#REF!,#REF!,#REF!,#REF!)) -> 
A75: 69 | BV75: =IF(AND(#REF!="",#REF!="",#REF!="",#REF!=""),"",SUM(#REF!,#REF!,#REF!,#REF!,#REF!)) ->  | CB75: =IF(AND(#REF!="",#REF!="",#REF!="",#REF!=""),"",SUM(#REF!,#REF!,#REF!,#REF!,#REF!)) -> 
A76: 70 | BV76: =IF(AND(#REF!="",#REF!="",#REF!="",#REF!=""),"",SUM(#REF!,#REF!,#REF!,#REF!,#REF!)) ->  | CB76: =IF(AND(#REF!="",#REF!="",#REF!="",#REF!=""),"",SUM(#REF!,#REF!,#REF!,#REF!,#REF!)) -> 
A77: 71 | BV77: =IF(AND(#REF!="",#REF!="",#REF!="",#REF!=""),"",SUM(#REF!,#REF!,#REF!,#REF!,#REF!)) ->  | CB77: =IF(AND(#REF!="",#REF!="",#REF!="",#REF!=""),"",SUM(#REF!,#REF!,#REF!,#REF!,#REF!)) -> 
A78: 72 | BV78: =IF(AND(#REF!="",#REF!="",#REF!="",#REF!=""),"",SUM(#REF!,#REF!,#REF!,#REF!,#REF!)) ->  | CB78: =IF(AND(#REF!="",#REF!="",#REF!="",#REF!=""),"",SUM(#REF!,#REF!,#REF!,#REF!,#REF!)) -> 
A79: 73 | BV79: =IF(AND(#REF!="",#REF!="",#REF!="",#REF!=""),"",SUM(#REF!,#REF!,#REF!,#REF!,#REF!)) ->  | CB79: =IF(AND(#REF!="",#REF!="",#REF!="",#REF!=""),"",SUM(#REF!,#REF!,#REF!,#REF!,#REF!)) -> 
A80: 74 | BV80: =IF(AND(#REF!="",#REF!="",#REF!="",#REF!=""),"",SUM(#REF!,#REF!,#REF!,#REF!,#REF!)) ->  | CB80: =IF(AND(#REF!="",#REF!="",#REF!="",#REF!=""),"",SUM(#REF!,#REF!,#REF!,#REF!,#REF!)) -> 
A81: 75 | BV81: =IF(AND(#REF!="",#REF!="",#REF!="",#REF!=""),"",SUM(#REF!,#REF!,#REF!,#REF!,#REF!)) ->  | CB81: =IF(AND(#REF!="",#REF!="",#REF!="",#REF!=""),"",SUM(#REF!,#REF!,#REF!,#REF!,#REF!)) -> 
A82: 76 | BV82: =IF(AND(#REF!="",#REF!="",#REF!="",#REF!=""),"",SUM(#REF!,#REF!,#REF!,#REF!,#REF!)) ->  | CB82: =IF(AND(#REF!="",#REF!="",#REF!="",#REF!=""),"",SUM(#REF!,#REF!,#REF!,#REF!,#REF!)) -> 
A83: 77 | BV83: =IF(AND(#REF!="",#REF!="",#REF!="",#REF!=""),"",SUM(#REF!,#REF!,#REF!,#REF!,#REF!)) ->  | CB83: =IF(AND(#REF!="",#REF!="",#REF!="",#REF!=""),"",SUM(#REF!,#REF!,#REF!,#REF!,#REF!)) -> 
A84: 78 | BV84: =IF(AND(#REF!="",#REF!="",#REF!="",#REF!=""),"",SUM(#REF!,#REF!,#REF!,#REF!,#REF!)) ->  | CB84: =IF(AND(#REF!="",#REF!="",#REF!="",#REF!=""),"",SUM(#REF!,#REF!,#REF!,#REF!,#REF!)) -> 
A85: 79 | BV85: =IF(AND(#REF!="",#REF!="",#REF!="",#REF!=""),"",SUM(#REF!,#REF!,#REF!,#REF!,#REF!)) ->  | CB85: =IF(AND(#REF!="",#REF!="",#REF!="",#REF!=""),"",SUM(#REF!,#REF!,#REF!,#REF!,#REF!)) -> 
A86: 80 | BV86: =IF(AND(#REF!="",#REF!="",#REF!="",#REF!=""),"",SUM(#REF!,#REF!,#REF!,#REF!,#REF!)) ->  | CB86: =IF(AND(#REF!="",#REF!="",#REF!="",#REF!=""),"",SUM(#REF!,#REF!,#REF!,#REF!,#REF!)) -> 
A87: 81 | BV87: =IF(AND(#REF!="",#REF!="",#REF!="",#REF!=""),"",SUM(#REF!,#REF!,#REF!,#REF!,#REF!)) ->  | CB87: =IF(AND(#REF!="",#REF!="",#REF!="",#REF!=""),"",SUM(#REF!,#REF!,#REF!,#REF!,#REF!)) -> 
A88: 82 | BV88: =IF(AND(#REF!="",#REF!="",#REF!="",#REF!=""),"",SUM(#REF!,#REF!,#REF!,#REF!,#REF!)) ->  | CB88: =IF(AND(#REF!="",#REF!="",#REF!="",#REF!=""),"",SUM(#REF!,#REF!,#REF!,#REF!,#REF!)) -> 
A89: 83 | BV89: =IF(AND(#REF!="",#REF!="",#REF!="",#REF!=""),"",SUM(#REF!,#REF!,#REF!,#REF!,#REF!)) ->  | CB89: =IF(AND(#REF!="",#REF!="",#REF!="",#REF!=""),"",SUM(#REF!,#REF!,#REF!,#REF!,#REF!)) -> 
A90: 84 | BV90: =IF(AND(#REF!="",#REF!="",#REF!="",#REF!=""),"",SUM(#REF!,#REF!,#REF!,#REF!,#REF!)) ->  | CB90: =IF(AND(#REF!="",#REF!="",#REF!="",#REF!=""),"",SUM(#REF!,#REF!,#REF!,#REF!,#REF!)) -> 
A91: 85 | BV91: =IF(AND(#REF!="",#REF!="",#REF!="",#REF!=""),"",SUM(#REF!,#REF!,#REF!,#REF!,#REF!)) ->  | CB91: =IF(AND(#REF!="",#REF!="",#REF!="",#REF!=""),"",SUM(#REF!,#REF!,#REF!,#REF!,#REF!)) -> 
A92: 86 | BV92: =IF(AND(#REF!="",#REF!="",#REF!="",#REF!=""),"",SUM(#REF!,#REF!,#REF!,#REF!,#REF!)) ->  | CB92: =IF(AND(#REF!="",#REF!="",#REF!="",#REF!=""),"",SUM(#REF!,#REF!,#REF!,#REF!,#REF!)) -> 
A93: 87 | BV93: =IF(AND(#REF!="",#REF!="",#REF!="",#REF!=""),"",SUM(#REF!,#REF!,#REF!,#REF!,#REF!)) ->  | CB93: =IF(AND(#REF!="",#REF!="",#REF!="",#REF!=""),"",SUM(#REF!,#REF!,#REF!,#REF!,#REF!)) -> 
A94: 88 | BV94: =IF(AND(#REF!="",#REF!="",#REF!="",#REF!=""),"",SUM(#REF!,#REF!,#REF!,#REF!,#REF!)) ->  | CB94: =IF(AND(#REF!="",#REF!="",#REF!="",#REF!=""),"",SUM(#REF!,#REF!,#REF!,#REF!,#REF!)) -> 
A95: 89 | BV95: =IF(AND(#REF!="",#REF!="",#REF!="",#REF!=""),"",SUM(#REF!,#REF!,#REF!,#REF!,#REF!)) ->  | CB95: =IF(AND(#REF!="",#REF!="",#REF!="",#REF!=""),"",SUM(#REF!,#REF!,#REF!,#REF!,#REF!)) -> 
A96: 90 | BV96: =IF(AND(#REF!="",#REF!="",#REF!="",#REF!=""),"",SUM(#REF!,#REF!,#REF!,#REF!,#REF!)) ->  | CB96: =IF(AND(#REF!="",#REF!="",#REF!="",#REF!=""),"",SUM(#REF!,#REF!,#REF!,#REF!,#REF!)) -> 
A97: 91 | BV97: =IF(AND(#REF!="",#REF!="",#REF!="",#REF!=""),"",SUM(#REF!,#REF!,#REF!,#REF!,#REF!)) ->  | CB97: =IF(AND(#REF!="",#REF!="",#REF!="",#REF!=""),"",SUM(#REF!,#REF!,#REF!,#REF!,#REF!)) -> 
A98: 92 | BV98: =IF(AND(#REF!="",#REF!="",#REF!="",#REF!=""),"",SUM(#REF!,#REF!,#REF!,#REF!,#REF!)) ->  | CB98: =IF(AND(#REF!="",#REF!="",#REF!="",#REF!=""),"",SUM(#REF!,#REF!,#REF!,#REF!,#REF!)) -> 
A99: 93 | BV99: =IF(AND(#REF!="",#REF!="",#REF!="",#REF!=""),"",SUM(#REF!,#REF!,#REF!,#REF!,#REF!)) ->  | CB99: =IF(AND(#REF!="",#REF!="",#REF!="",#REF!=""),"",SUM(#REF!,#REF!,#REF!,#REF!,#REF!)) -> 
A100: 94 | BV100: =IF(AND(#REF!="",#REF!="",#REF!="",#REF!=""),"",SUM(#REF!,#REF!,#REF!,#REF!,#REF!)) ->  | CB100: =IF(AND(#REF!="",#REF!="",#REF!="",#REF!=""),"",SUM(#REF!,#REF!,#REF!,#REF!,#REF!)) -> 
A101: 95 | BV101: =IF(AND(#REF!="",#REF!="",#REF!="",#REF!=""),"",SUM(#REF!,#REF!,#REF!,#REF!,#REF!)) ->  | CB101: =IF(AND(#REF!="",#REF!="",#REF!="",#REF!=""),"",SUM(#REF!,#REF!,#REF!,#REF!,#REF!)) -> 
A102: 96 | BV102: =IF(AND(#REF!="",#REF!="",#REF!="",#REF!=""),"",SUM(#REF!,#REF!,#REF!,#REF!,#REF!)) ->  | CB102: =IF(AND(#REF!="",#REF!="",#REF!="",#REF!=""),"",SUM(#REF!,#REF!,#REF!,#REF!,#REF!)) -> 
A103: 97 | BR103: =IF(AND(L103="",M103="",N103="",P103=""),"",SUM(L103,M103,N103,O103,P103)) ->  | BV103: =IF(AND(#REF!="",#REF!="",#REF!="",#REF!=""),"",SUM(#REF!,#REF!,#REF!,#REF!,#REF!)) ->  | CB103: =IF(AND(#REF!="",#REF!="",#REF!="",#REF!=""),"",SUM(#REF!,#REF!,#REF!,#REF!,#REF!)) -> 
A104: 98 | BV104: =IF(AND(#REF!="",#REF!="",#REF!="",#REF!=""),"",SUM(#REF!,#REF!,#REF!,#REF!,#REF!)) ->  | CB104: =IF(AND(#REF!="",#REF!="",#REF!="",#REF!=""),"",SUM(#REF!,#REF!,#REF!,#REF!,#REF!)) -> 
A105: 99 | BV105: =IF(AND(#REF!="",#REF!="",#REF!="",#REF!=""),"",SUM(#REF!,#REF!,#REF!,#REF!,#REF!)) ->  | CB105: =IF(AND(#REF!="",#REF!="",#REF!="",#REF!=""),"",SUM(#REF!,#REF!,#REF!,#REF!,#REF!)) -> 
A106: 100 | BV106: =IF(AND(#REF!="",#REF!="",#REF!="",#REF!=""),"",SUM(#REF!,#REF!,#REF!,#REF!,#REF!)) ->  | CB106: =IF(AND(#REF!="",#REF!="",#REF!="",#REF!=""),"",SUM(#REF!,#REF!,#REF!,#REF!,#REF!)) -> 
A107: 101 | BV107: =IF(AND(#REF!="",#REF!="",#REF!="",#REF!=""),"",SUM(#REF!,#REF!,#REF!,#REF!,#REF!)) ->  | CB107: =IF(AND(#REF!="",#REF!="",#REF!="",#REF!=""),"",SUM(#REF!,#REF!,#REF!,#REF!,#REF!)) -> 
A108: 102 | BV108: =IF(AND(#REF!="",#REF!="",#REF!="",#REF!=""),"",SUM(#REF!,#REF!,#REF!,#REF!,#REF!)) ->  | CB108: =IF(AND(#REF!="",#REF!="",#REF!="",#REF!=""),"",SUM(#REF!,#REF!,#REF!,#REF!,#REF!)) -> 
A109: 103 | BV109: =IF(AND(#REF!="",#REF!="",#REF!="",#REF!=""),"",SUM(#REF!,#REF!,#REF!,#REF!,#REF!)) ->  | CB109: =IF(AND(#REF!="",#REF!="",#REF!="",#REF!=""),"",SUM(#REF!,#REF!,#REF!,#REF!,#REF!)) -> 
A110: 104 | BV110: =IF(AND(#REF!="",#REF!="",#REF!="",#REF!=""),"",SUM(#REF!,#REF!,#REF!,#REF!,#REF!)) ->  | CB110: =IF(AND(#REF!="",#REF!="",#REF!="",#REF!=""),"",SUM(#REF!,#REF!,#REF!,#REF!,#REF!)) -> 
A111: 105 | BV111: =IF(AND(#REF!="",#REF!="",#REF!="",#REF!=""),"",SUM(#REF!,#REF!,#REF!,#REF!,#REF!)) ->  | CB111: =IF(AND(#REF!="",#REF!="",#REF!="",#REF!=""),"",SUM(#REF!,#REF!,#REF!,#REF!,#REF!)) -> 
A112: 106 | BV112: =IF(AND(#REF!="",#REF!="",#REF!="",#REF!=""),"",SUM(#REF!,#REF!,#REF!,#REF!,#REF!)) ->  | CB112: =IF(AND(#REF!="",#REF!="",#REF!="",#REF!=""),"",SUM(#REF!,#REF!,#REF!,#REF!,#REF!)) -> 
A113: 107 | BV113: =IF(AND(#REF!="",#REF!="",#REF!="",#REF!=""),"",SUM(#REF!,#REF!,#REF!,#REF!,#REF!)) ->  | CB113: =IF(AND(#REF!="",#REF!="",#REF!="",#REF!=""),"",SUM(#REF!,#REF!,#REF!,#REF!,#REF!)) -> 
A114: 108 | BV114: =IF(AND(#REF!="",#REF!="",#REF!="",#REF!=""),"",SUM(#REF!,#REF!,#REF!,#REF!,#REF!)) ->  | CB114: =IF(AND(#REF!="",#REF!="",#REF!="",#REF!=""),"",SUM(#REF!,#REF!,#REF!,#REF!,#REF!)) -> 
A115: 109 | BV115: =IF(AND(#REF!="",#REF!="",#REF!="",#REF!=""),"",SUM(#REF!,#REF!,#REF!,#REF!,#REF!)) ->  | CB115: =IF(AND(#REF!="",#REF!="",#REF!="",#REF!=""),"",SUM(#REF!,#REF!,#REF!,#REF!,#REF!)) -> 
A116: 110 | BV116: =IF(AND(#REF!="",#REF!="",#REF!="",#REF!=""),"",SUM(#REF!,#REF!,#REF!,#REF!,#REF!)) ->  | CB116: =IF(AND(#REF!="",#REF!="",#REF!="",#REF!=""),"",SUM(#REF!,#REF!,#REF!,#REF!,#REF!)) -> 
A117: 111 | BV117: =IF(AND(#REF!="",#REF!="",#REF!="",#REF!=""),"",SUM(#REF!,#REF!,#REF!,#REF!,#REF!)) ->  | CB117: =IF(AND(#REF!="",#REF!="",#REF!="",#REF!=""),"",SUM(#REF!,#REF!,#REF!,#REF!,#REF!)) -> 
A118: 112 | BV118: =IF(AND(#REF!="",#REF!="",#REF!="",#REF!=""),"",SUM(#REF!,#REF!,#REF!,#REF!,#REF!)) ->  | CB118: =IF(AND(#REF!="",#REF!="",#REF!="",#REF!=""),"",SUM(#REF!,#REF!,#REF!,#REF!,#REF!)) -> 
A119: 113 | BV119: =IF(AND(#REF!="",#REF!="",#REF!="",#REF!=""),"",SUM(#REF!,#REF!,#REF!,#REF!,#REF!)) ->  | CB119: =IF(AND(#REF!="",#REF!="",#REF!="",#REF!=""),"",SUM(#REF!,#REF!,#REF!,#REF!,#REF!)) -> 
A120: 114 | BV120: =IF(AND(#REF!="",#REF!="",#REF!="",#REF!=""),"",SUM(#REF!,#REF!,#REF!,#REF!,#REF!)) ->  | CB120: =IF(AND(#REF!="",#REF!="",#REF!="",#REF!=""),"",SUM(#REF!,#REF!,#REF!,#REF!,#REF!)) -> 
A121: 115 | BV121: =IF(AND(#REF!="",#REF!="",#REF!="",#REF!=""),"",SUM(#REF!,#REF!,#REF!,#REF!,#REF!)) ->  | CB121: =IF(AND(#REF!="",#REF!="",#REF!="",#REF!=""),"",SUM(#REF!,#REF!,#REF!,#REF!,#REF!)) -> 
A122: 116 | BV122: =IF(AND(#REF!="",#REF!="",#REF!="",#REF!=""),"",SUM(#REF!,#REF!,#REF!,#REF!,#REF!)) ->  | CB122: =IF(AND(#REF!="",#REF!="",#REF!="",#REF!=""),"",SUM(#REF!,#REF!,#REF!,#REF!,#REF!)) -> 
A123: 117 | BV123: =IF(AND(#REF!="",#REF!="",#REF!="",#REF!=""),"",SUM(#REF!,#REF!,#REF!,#REF!,#REF!)) ->  | CB123: =IF(AND(#REF!="",#REF!="",#REF!="",#REF!=""),"",SUM(#REF!,#REF!,#REF!,#REF!,#REF!)) -> 
A124: 118 | BV124: =IF(AND(#REF!="",#REF!="",#REF!="",#REF!=""),"",SUM(#REF!,#REF!,#REF!,#REF!,#REF!)) ->  | CB124: =IF(AND(#REF!="",#REF!="",#REF!="",#REF!=""),"",SUM(#REF!,#REF!,#REF!,#REF!,#REF!)) -> 
A125: 119 | BV125: =IF(AND(#REF!="",#REF!="",#REF!="",#REF!=""),"",SUM(#REF!,#REF!,#REF!,#REF!,#REF!)) ->  | CB125: =IF(AND(#REF!="",#REF!="",#REF!="",#REF!=""),"",SUM(#REF!,#REF!,#REF!,#REF!,#REF!)) -> 
A126: 120 | BV126: =IF(AND(#REF!="",#REF!="",#REF!="",#REF!=""),"",SUM(#REF!,#REF!,#REF!,#REF!,#REF!)) ->  | CB126: =IF(AND(#REF!="",#REF!="",#REF!="",#REF!=""),"",SUM(#REF!,#REF!,#REF!,#REF!,#REF!)) -> 
A127: 121 | BV127: =IF(AND(#REF!="",#REF!="",#REF!="",#REF!=""),"",SUM(#REF!,#REF!,#REF!,#REF!,#REF!)) ->  | CB127: =IF(AND(#REF!="",#REF!="",#REF!="",#REF!=""),"",SUM(#REF!,#REF!,#REF!,#REF!,#REF!)) ->  | CD127: =IF(AND(#REF!="",#REF!="",#REF!="",#REF!=""),"",SUM(#REF!,#REF!,#REF!,#REF!)) ->  | CE127: =IFERROR(IF(CD127="","",IF($CD$5=100,ROUNDUP(CD127*20%,0),IF($CD$5=86,ROUNDUP((CD127/$CD$5)*$CE$5,0),IF($CD$5=66,ROUNDUP((CD127/$CD$5)*$CE$5,0),"")))),"") -> 
A128: 122 | BV128: =IF(AND(#REF!="",#REF!="",#REF!="",#REF!=""),"",SUM(#REF!,#REF!,#REF!,#REF!,#REF!)) ->  | CB128: =IF(AND(#REF!="",#REF!="",#REF!="",#REF!=""),"",SUM(#REF!,#REF!,#REF!,#REF!,#REF!)) ->  | CD128: =IF(AND(#REF!="",#REF!="",#REF!="",#REF!=""),"",SUM(#REF!,#REF!,#REF!,#REF!)) -> 
A129: 123 | BV129: =IF(AND(#REF!="",#REF!="",#REF!="",#REF!=""),"",SUM(#REF!,#REF!,#REF!,#REF!,#REF!)) ->  | CB129: =IF(AND(#REF!="",#REF!="",#REF!="",#REF!=""),"",SUM(#REF!,#REF!,#REF!,#REF!,#REF!)) ->  | CD129: =IF(AND(#REF!="",#REF!="",#REF!="",#REF!=""),"",SUM(#REF!,#REF!,#REF!,#REF!)) -> 
A130: 124 | BV130: =IF(AND(#REF!="",#REF!="",#REF!="",#REF!=""),"",SUM(#REF!,#REF!,#REF!,#REF!,#REF!)) ->  | CB130: =IF(AND(#REF!="",#REF!="",#REF!="",#REF!=""),"",SUM(#REF!,#REF!,#REF!,#REF!,#REF!)) ->  | CD130: =IF(AND(#REF!="",#REF!="",#REF!="",#REF!=""),"",SUM(#REF!,#REF!,#REF!,#REF!)) -> 
A131: 125 | BV131: =IF(AND(#REF!="",#REF!="",#REF!="",#REF!=""),"",SUM(#REF!,#REF!,#REF!,#REF!,#REF!)) ->  | CB131: =IF(AND(#REF!="",#REF!="",#REF!="",#REF!=""),"",SUM(#REF!,#REF!,#REF!,#REF!,#REF!)) ->  | CD131: =IF(AND(#REF!="",#REF!="",#REF!="",#REF!=""),"",SUM(#REF!,#REF!,#REF!,#REF!)) -> 
A132: 126 | BV132: =IF(AND(#REF!="",#REF!="",#REF!="",#REF!=""),"",SUM(#REF!,#REF!,#REF!,#REF!,#REF!)) ->  | CB132: =IF(AND(#REF!="",#REF!="",#REF!="",#REF!=""),"",SUM(#REF!,#REF!,#REF!,#REF!,#REF!)) ->  | CD132: =IF(AND(#REF!="",#REF!="",#REF!="",#REF!=""),"",SUM(#REF!,#REF!,#REF!,#REF!)) -> 
A133: 127 | BV133: =IF(AND(#REF!="",#REF!="",#REF!="",#REF!=""),"",SUM(#REF!,#REF!,#REF!,#REF!,#REF!)) ->  | CB133: =IF(AND(#REF!="",#REF!="",#REF!="",#REF!=""),"",SUM(#REF!,#REF!,#REF!,#REF!,#REF!)) ->  | CD133: =IF(AND(#REF!="",#REF!="",#REF!="",#REF!=""),"",SUM(#REF!,#REF!,#REF!,#REF!)) -> 
A134: 128 | BV134: =IF(AND(#REF!="",#REF!="",#REF!="",#REF!=""),"",SUM(#REF!,#REF!,#REF!,#REF!,#REF!)) ->  | CB134: =IF(AND(#REF!="",#REF!="",#REF!="",#REF!=""),"",SUM(#REF!,#REF!,#REF!,#REF!,#REF!)) ->  | CD134: =IF(AND(#REF!="",#REF!="",#REF!="",#REF!=""),"",SUM(#REF!,#REF!,#REF!,#REF!)) -> 
A135: 129 | BR135: =IF(AND(L135="",M135="",N135="",P135=""),"",SUM(L135,M135,N135,O135,P135)) ->  | BV135: =IF(AND(#REF!="",#REF!="",#REF!="",#REF!=""),"",SUM(#REF!,#REF!,#REF!,#REF!,#REF!)) ->  | CB135: =IF(AND(#REF!="",#REF!="",#REF!="",#REF!=""),"",SUM(#REF!,#REF!,#REF!,#REF!,#REF!)) ->  | CD135: =IF(AND(#REF!="",#REF!="",#REF!="",#REF!=""),"",SUM(#REF!,#REF!,#REF!,#REF!)) -> 
A136: 130 | BQ136: =IF(I136="","",I136) ->  | BS136: =IFERROR(IF(BR136="","",ROUNDUP(BR136*20%,0)),"") ->  | BT136: =IF(AND(S136="",T136="",U136="",W136=""),"",SUM(S136,T136,U136,V136,W136)) ->  | BU136: =IFERROR(IF(BT136="","",ROUNDUP(BT136*20%,0)),"") ->  | BV136: =IF(AND(#REF!="",#REF!="",#REF!="",#REF!=""),"",SUM(#REF!,#REF!,#REF!,#REF!,#REF!)) ->  | BW136: =IFERROR(IF(BV136="","",ROUNDUP(BV136*20%,0)),"") ->  | BX136: =IF(AND(Z136="",AA136="",AB136="",AD136=""),"",SUM(Z136,AA136,AB136,AC136,AD136)) ->  | BY136: =IFERROR(IF(BX136="","",ROUNDUP(BX136*20%,0)),"") ->  | BZ136: =IF(AND(AG136="",AH136="",AI136="",AK136=""),"",SUM(AG136,AH136,AI136,AJ136,AK136)) ->  | CA136: =IFERROR(IF(BZ136="","",ROUNDUP(BZ136*20%,0)),"") ->  | CB136: =IF(AND(#REF!="",#REF!="",#REF!="",#REF!=""),"",SUM(#REF!,#REF!,#REF!,#REF!,#REF!)) ->  | CC136: =IFERROR(IF(CB136="","",ROUNDUP(CB136*20%,0)),"") ->  | CD136: =IF(AND(#REF!="",#REF!="",#REF!="",#REF!=""),"",SUM(#REF!,#REF!,#REF!,#REF!)) -> 
A137: 131 | BV137: =IF(AND(#REF!="",#REF!="",#REF!="",#REF!=""),"",SUM(#REF!,#REF!,#REF!,#REF!,#REF!)) ->  | CB137: =IF(AND(#REF!="",#REF!="",#REF!="",#REF!=""),"",SUM(#REF!,#REF!,#REF!,#REF!,#REF!)) ->  | CD137: =IF(AND(#REF!="",#REF!="",#REF!="",#REF!=""),"",SUM(#REF!,#REF!,#REF!,#REF!)) -> 
A138: 132 | BV138: =IF(AND(#REF!="",#REF!="",#REF!="",#REF!=""),"",SUM(#REF!,#REF!,#REF!,#REF!,#REF!)) ->  | CB138: =IF(AND(#REF!="",#REF!="",#REF!="",#REF!=""),"",SUM(#REF!,#REF!,#REF!,#REF!,#REF!)) ->  | CD138: =IF(AND(#REF!="",#REF!="",#REF!="",#REF!=""),"",SUM(#REF!,#REF!,#REF!,#REF!)) -> 
A139: 133 | BV139: =IF(AND(#REF!="",#REF!="",#REF!="",#REF!=""),"",SUM(#REF!,#REF!,#REF!,#REF!,#REF!)) ->  | CB139: =IF(AND(#REF!="",#REF!="",#REF!="",#REF!=""),"",SUM(#REF!,#REF!,#REF!,#REF!,#REF!)) ->  | CD139: =IF(AND(#REF!="",#REF!="",#REF!="",#REF!=""),"",SUM(#REF!,#REF!,#REF!,#REF!)) -> 
A140: 134 | BV140: =IF(AND(#REF!="",#REF!="",#REF!="",#REF!=""),"",SUM(#REF!,#REF!,#REF!,#REF!,#REF!)) ->  | CB140: =IF(AND(#REF!="",#REF!="",#REF!="",#REF!=""),"",SUM(#REF!,#REF!,#REF!,#REF!,#REF!)) ->  | CD140: =IF(AND(#REF!="",#REF!="",#REF!="",#REF!=""),"",SUM(#REF!,#REF!,#REF!,#REF!)) -> 
A141: 135 | BV141: =IF(AND(#REF!="",#REF!="",#REF!="",#REF!=""),"",SUM(#REF!,#REF!,#REF!,#REF!,#REF!)) ->  | CB141: =IF(AND(#REF!="",#REF!="",#REF!="",#REF!=""),"",SUM(#REF!,#REF!,#REF!,#REF!,#REF!)) ->  | CD141: =IF(AND(#REF!="",#REF!="",#REF!="",#REF!=""),"",SUM(#REF!,#REF!,#REF!,#REF!)) -> 
A142: 136 | BV142: =IF(AND(#REF!="",#REF!="",#REF!="",#REF!=""),"",SUM(#REF!,#REF!,#REF!,#REF!,#REF!)) ->  | CB142: =IF(AND(#REF!="",#REF!="",#REF!="",#REF!=""),"",SUM(#REF!,#REF!,#REF!,#REF!,#REF!)) ->  | CD142: =IF(AND(#REF!="",#REF!="",#REF!="",#REF!=""),"",SUM(#REF!,#REF!,#REF!,#REF!)) -> 
A143: 137 | BV143: =IF(AND(#REF!="",#REF!="",#REF!="",#REF!=""),"",SUM(#REF!,#REF!,#REF!,#REF!,#REF!)) ->  | CB143: =IF(AND(#REF!="",#REF!="",#REF!="",#REF!=""),"",SUM(#REF!,#REF!,#REF!,#REF!,#REF!)) ->  | CD143: =IF(AND(#REF!="",#REF!="",#REF!="",#REF!=""),"",SUM(#REF!,#REF!,#REF!,#REF!)) -> 
A144: 138 | BV144: =IF(AND(#REF!="",#REF!="",#REF!="",#REF!=""),"",SUM(#REF!,#REF!,#REF!,#REF!,#REF!)) ->  | CB144: =IF(AND(#REF!="",#REF!="",#REF!="",#REF!=""),"",SUM(#REF!,#REF!,#REF!,#REF!,#REF!)) ->  | CD144: =IF(AND(#REF!="",#REF!="",#REF!="",#REF!=""),"",SUM(#REF!,#REF!,#REF!,#REF!)) -> 
A145: 139 | BV145: =IF(AND(#REF!="",#REF!="",#REF!="",#REF!=""),"",SUM(#REF!,#REF!,#REF!,#REF!,#REF!)) ->  | CB145: =IF(AND(#REF!="",#REF!="",#REF!="",#REF!=""),"",SUM(#REF!,#REF!,#REF!,#REF!,#REF!)) ->  | CD145: =IF(AND(#REF!="",#REF!="",#REF!="",#REF!=""),"",SUM(#REF!,#REF!,#REF!,#REF!)) -> 
A146: 140 | BV146: =IF(AND(#REF!="",#REF!="",#REF!="",#REF!=""),"",SUM(#REF!,#REF!,#REF!,#REF!,#REF!)) ->  | CB146: =IF(AND(#REF!="",#REF!="",#REF!="",#REF!=""),"",SUM(#REF!,#REF!,#REF!,#REF!,#REF!)) ->  | CD146: =IF(AND(#REF!="",#REF!="",#REF!="",#REF!=""),"",SUM(#REF!,#REF!,#REF!,#REF!)) -> 
A147: 141 | BV147: =IF(AND(#REF!="",#REF!="",#REF!="",#REF!=""),"",SUM(#REF!,#REF!,#REF!,#REF!,#REF!)) ->  | CB147: =IF(AND(#REF!="",#REF!="",#REF!="",#REF!=""),"",SUM(#REF!,#REF!,#REF!,#REF!,#REF!)) ->  | CD147: =IF(AND(#REF!="",#REF!="",#REF!="",#REF!=""),"",SUM(#REF!,#REF!,#REF!,#REF!)) -> 
A148: 142 | BV148: =IF(AND(#REF!="",#REF!="",#REF!="",#REF!=""),"",SUM(#REF!,#REF!,#REF!,#REF!,#REF!)) ->  | CB148: =IF(AND(#REF!="",#REF!="",#REF!="",#REF!=""),"",SUM(#REF!,#REF!,#REF!,#REF!,#REF!)) ->  | CD148: =IF(AND(#REF!="",#REF!="",#REF!="",#REF!=""),"",SUM(#REF!,#REF!,#REF!,#REF!)) -> 
A149: 143 | BV149: =IF(AND(#REF!="",#REF!="",#REF!="",#REF!=""),"",SUM(#REF!,#REF!,#REF!,#REF!,#REF!)) ->  | CB149: =IF(AND(#REF!="",#REF!="",#REF!="",#REF!=""),"",SUM(#REF!,#REF!,#REF!,#REF!,#REF!)) ->  | CD149: =IF(AND(#REF!="",#REF!="",#REF!="",#REF!=""),"",SUM(#REF!,#REF!,#REF!,#REF!)) -> 
A150: 144 | BV150: =IF(AND(#REF!="",#REF!="",#REF!="",#REF!=""),"",SUM(#REF!,#REF!,#REF!,#REF!,#REF!)) ->  | CB150: =IF(AND(#REF!="",#REF!="",#REF!="",#REF!=""),"",SUM(#REF!,#REF!,#REF!,#REF!,#REF!)) ->  | CD150: =IF(AND(#REF!="",#REF!="",#REF!="",#REF!=""),"",SUM(#REF!,#REF!,#REF!,#REF!)) -> 
A151: 145 | BV151: =IF(AND(#REF!="",#REF!="",#REF!="",#REF!=""),"",SUM(#REF!,#REF!,#REF!,#REF!,#REF!)) ->  | CB151: =IF(AND(#REF!="",#REF!="",#REF!="",#REF!=""),"",SUM(#REF!,#REF!,#REF!,#REF!,#REF!)) ->  | CD151: =IF(AND(#REF!="",#REF!="",#REF!="",#REF!=""),"",SUM(#REF!,#REF!,#REF!,#REF!)) -> 
A152: 146 | BV152: =IF(AND(#REF!="",#REF!="",#REF!="",#REF!=""),"",SUM(#REF!,#REF!,#REF!,#REF!,#REF!)) ->  | CB152: =IF(AND(#REF!="",#REF!="",#REF!="",#REF!=""),"",SUM(#REF!,#REF!,#REF!,#REF!,#REF!)) ->  | CD152: =IF(AND(#REF!="",#REF!="",#REF!="",#REF!=""),"",SUM(#REF!,#REF!,#REF!,#REF!)) -> 
A153: 147 | BV153: =IF(AND(#REF!="",#REF!="",#REF!="",#REF!=""),"",SUM(#REF!,#REF!,#REF!,#REF!,#REF!)) ->  | CB153: =IF(AND(#REF!="",#REF!="",#REF!="",#REF!=""),"",SUM(#REF!,#REF!,#REF!,#REF!,#REF!)) ->  | CD153: =IF(AND(#REF!="",#REF!="",#REF!="",#REF!=""),"",SUM(#REF!,#REF!,#REF!,#REF!)) -> 
A154: 148 | BV154: =IF(AND(#REF!="",#REF!="",#REF!="",#REF!=""),"",SUM(#REF!,#REF!,#REF!,#REF!,#REF!)) ->  | CB154: =IF(AND(#REF!="",#REF!="",#REF!="",#REF!=""),"",SUM(#REF!,#REF!,#REF!,#REF!,#REF!)) ->  | CD154: =IF(AND(#REF!="",#REF!="",#REF!="",#REF!=""),"",SUM(#REF!,#REF!,#REF!,#REF!)) -> 
A155: 149 | BV155: =IF(AND(#REF!="",#REF!="",#REF!="",#REF!=""),"",SUM(#REF!,#REF!,#REF!,#REF!,#REF!)) ->  | CB155: =IF(AND(#REF!="",#REF!="",#REF!="",#REF!=""),"",SUM(#REF!,#REF!,#REF!,#REF!,#REF!)) ->  | CD155: =IF(AND(#REF!="",#REF!="",#REF!="",#REF!=""),"",SUM(#REF!,#REF!,#REF!,#REF!)) -> 
A156: 150 | BV156: =IF(AND(#REF!="",#REF!="",#REF!="",#REF!=""),"",SUM(#REF!,#REF!,#REF!,#REF!,#REF!)) ->  | CB156: =IF(AND(#REF!="",#REF!="",#REF!="",#REF!=""),"",SUM(#REF!,#REF!,#REF!,#REF!,#REF!)) ->  | CD156: =IF(AND(#REF!="",#REF!="",#REF!="",#REF!=""),"",SUM(#REF!,#REF!,#REF!,#REF!)) -> 
A157: 151 | BV157: =IF(AND(#REF!="",#REF!="",#REF!="",#REF!=""),"",SUM(#REF!,#REF!,#REF!,#REF!,#REF!)) ->  | CB157: =IF(AND(#REF!="",#REF!="",#REF!="",#REF!=""),"",SUM(#REF!,#REF!,#REF!,#REF!,#REF!)) ->  | CD157: =IF(AND(#REF!="",#REF!="",#REF!="",#REF!=""),"",SUM(#REF!,#REF!,#REF!,#REF!)) -> 
A158: 152 | BV158: =IF(AND(#REF!="",#REF!="",#REF!="",#REF!=""),"",SUM(#REF!,#REF!,#REF!,#REF!,#REF!)) ->  | CB158: =IF(AND(#REF!="",#REF!="",#REF!="",#REF!=""),"",SUM(#REF!,#REF!,#REF!,#REF!,#REF!)) ->  | CD158: =IF(AND(#REF!="",#REF!="",#REF!="",#REF!=""),"",SUM(#REF!,#REF!,#REF!,#REF!)) -> 
A159: 153 | BV159: =IF(AND(#REF!="",#REF!="",#REF!="",#REF!=""),"",SUM(#REF!,#REF!,#REF!,#REF!,#REF!)) ->  | CB159: =IF(AND(#REF!="",#REF!="",#REF!="",#REF!=""),"",SUM(#REF!,#REF!,#REF!,#REF!,#REF!)) ->  | CD159: =IF(AND(#REF!="",#REF!="",#REF!="",#REF!=""),"",SUM(#REF!,#REF!,#REF!,#REF!)) -> 
A160: 154 | BV160: =IF(AND(#REF!="",#REF!="",#REF!="",#REF!=""),"",SUM(#REF!,#REF!,#REF!,#REF!,#REF!)) ->  | CB160: =IF(AND(#REF!="",#REF!="",#REF!="",#REF!=""),"",SUM(#REF!,#REF!,#REF!,#REF!,#REF!)) ->  | CD160: =IF(AND(#REF!="",#REF!="",#REF!="",#REF!=""),"",SUM(#REF!,#REF!,#REF!,#REF!)) -> 
A161: 155 | BV161: =IF(AND(#REF!="",#REF!="",#REF!="",#REF!=""),"",SUM(#REF!,#REF!,#REF!,#REF!,#REF!)) ->  | CB161: =IF(AND(#REF!="",#REF!="",#REF!="",#REF!=""),"",SUM(#REF!,#REF!,#REF!,#REF!,#REF!)) ->  | CD161: =IF(AND(#REF!="",#REF!="",#REF!="",#REF!=""),"",SUM(#REF!,#REF!,#REF!,#REF!)) -> 
A162: 156 | BV162: =IF(AND(#REF!="",#REF!="",#REF!="",#REF!=""),"",SUM(#REF!,#REF!,#REF!,#REF!,#REF!)) ->  | CB162: =IF(AND(#REF!="",#REF!="",#REF!="",#REF!=""),"",SUM(#REF!,#REF!,#REF!,#REF!,#REF!)) ->  | CD162: =IF(AND(#REF!="",#REF!="",#REF!="",#REF!=""),"",SUM(#REF!,#REF!,#REF!,#REF!)) -> 
A163: 157 | BV163: =IF(AND(#REF!="",#REF!="",#REF!="",#REF!=""),"",SUM(#REF!,#REF!,#REF!,#REF!,#REF!)) ->  | CB163: =IF(AND(#REF!="",#REF!="",#REF!="",#REF!=""),"",SUM(#REF!,#REF!,#REF!,#REF!,#REF!)) ->  | CD163: =IF(AND(#REF!="",#REF!="",#REF!="",#REF!=""),"",SUM(#REF!,#REF!,#REF!,#REF!)) -> 
A164: 158 | BV164: =IF(AND(#REF!="",#REF!="",#REF!="",#REF!=""),"",SUM(#REF!,#REF!,#REF!,#REF!,#REF!)) ->  | CB164: =IF(AND(#REF!="",#REF!="",#REF!="",#REF!=""),"",SUM(#REF!,#REF!,#REF!,#REF!,#REF!)) ->  | CD164: =IF(AND(#REF!="",#REF!="",#REF!="",#REF!=""),"",SUM(#REF!,#REF!,#REF!,#REF!)) -> 
A165: 159 | BV165: =IF(AND(#REF!="",#REF!="",#REF!="",#REF!=""),"",SUM(#REF!,#REF!,#REF!,#REF!,#REF!)) ->  | CB165: =IF(AND(#REF!="",#REF!="",#REF!="",#REF!=""),"",SUM(#REF!,#REF!,#REF!,#REF!,#REF!)) ->  | CD165: =IF(AND(#REF!="",#REF!="",#REF!="",#REF!=""),"",SUM(#REF!,#REF!,#REF!,#REF!)) -> 
A166: 160 | BV166: =IF(AND(#REF!="",#REF!="",#REF!="",#REF!=""),"",SUM(#REF!,#REF!,#REF!,#REF!,#REF!)) ->  | CB166: =IF(AND(#REF!="",#REF!="",#REF!="",#REF!=""),"",SUM(#REF!,#REF!,#REF!,#REF!,#REF!)) ->  | CD166: =IF(AND(#REF!="",#REF!="",#REF!="",#REF!=""),"",SUM(#REF!,#REF!,#REF!,#REF!)) -> 
A167: 161 | BR167: =IF(AND(L167="",M167="",N167="",P167=""),"",SUM(L167,M167,N167,O167,P167)) ->  | BV167: =IF(AND(#REF!="",#REF!="",#REF!="",#REF!=""),"",SUM(#REF!,#REF!,#REF!,#REF!,#REF!)) ->  | CB167: =IF(AND(#REF!="",#REF!="",#REF!="",#REF!=""),"",SUM(#REF!,#REF!,#REF!,#REF!,#REF!)) ->  | CD167: =IF(AND(#REF!="",#REF!="",#REF!="",#REF!=""),"",SUM(#REF!,#REF!,#REF!,#REF!)) -> 
A168: 162 | BV168: =IF(AND(#REF!="",#REF!="",#REF!="",#REF!=""),"",SUM(#REF!,#REF!,#REF!,#REF!,#REF!)) ->  | CB168: =IF(AND(#REF!="",#REF!="",#REF!="",#REF!=""),"",SUM(#REF!,#REF!,#REF!,#REF!,#REF!)) ->  | CD168: =IF(AND(#REF!="",#REF!="",#REF!="",#REF!=""),"",SUM(#REF!,#REF!,#REF!,#REF!)) -> 
A169: 163 | BV169: =IF(AND(#REF!="",#REF!="",#REF!="",#REF!=""),"",SUM(#REF!,#REF!,#REF!,#REF!,#REF!)) ->  | CB169: =IF(AND(#REF!="",#REF!="",#REF!="",#REF!=""),"",SUM(#REF!,#REF!,#REF!,#REF!,#REF!)) ->  | CD169: =IF(AND(#REF!="",#REF!="",#REF!="",#REF!=""),"",SUM(#REF!,#REF!,#REF!,#REF!)) -> 
A170: 164 | BV170: =IF(AND(#REF!="",#REF!="",#REF!="",#REF!=""),"",SUM(#REF!,#REF!,#REF!,#REF!,#REF!)) ->  | CB170: =IF(AND(#REF!="",#REF!="",#REF!="",#REF!=""),"",SUM(#REF!,#REF!,#REF!,#REF!,#REF!)) ->  | CD170: =IF(AND(#REF!="",#REF!="",#REF!="",#REF!=""),"",SUM(#REF!,#REF!,#REF!,#REF!)) -> 
A171: 165 | BV171: =IF(AND(#REF!="",#REF!="",#REF!="",#REF!=""),"",SUM(#REF!,#REF!,#REF!,#REF!,#REF!)) ->  | CB171: =IF(AND(#REF!="",#REF!="",#REF!="",#REF!=""),"",SUM(#REF!,#REF!,#REF!,#REF!,#REF!)) ->  | CD171: =IF(AND(#REF!="",#REF!="",#REF!="",#REF!=""),"",SUM(#REF!,#REF!,#REF!,#REF!)) -> 
A172: 166 | BV172: =IF(AND(#REF!="",#REF!="",#REF!="",#REF!=""),"",SUM(#REF!,#REF!,#REF!,#REF!,#REF!)) ->  | CB172: =IF(AND(#REF!="",#REF!="",#REF!="",#REF!=""),"",SUM(#REF!,#REF!,#REF!,#REF!,#REF!)) ->  | CD172: =IF(AND(#REF!="",#REF!="",#REF!="",#REF!=""),"",SUM(#REF!,#REF!,#REF!,#REF!)) -> 
A173: 167 | BV173: =IF(AND(#REF!="",#REF!="",#REF!="",#REF!=""),"",SUM(#REF!,#REF!,#REF!,#REF!,#REF!)) ->  | CB173: =IF(AND(#REF!="",#REF!="",#REF!="",#REF!=""),"",SUM(#REF!,#REF!,#REF!,#REF!,#REF!)) ->  | CD173: =IF(AND(#REF!="",#REF!="",#REF!="",#REF!=""),"",SUM(#REF!,#REF!,#REF!,#REF!)) -> 
A174: 168 | BV174: =IF(AND(#REF!="",#REF!="",#REF!="",#REF!=""),"",SUM(#REF!,#REF!,#REF!,#REF!,#REF!)) ->  | CB174: =IF(AND(#REF!="",#REF!="",#REF!="",#REF!=""),"",SUM(#REF!,#REF!,#REF!,#REF!,#REF!)) ->  | CD174: =IF(AND(#REF!="",#REF!="",#REF!="",#REF!=""),"",SUM(#REF!,#REF!,#REF!,#REF!)) -> 
A175: 169 | BV175: =IF(AND(#REF!="",#REF!="",#REF!="",#REF!=""),"",SUM(#REF!,#REF!,#REF!,#REF!,#REF!)) ->  | CB175: =IF(AND(#REF!="",#REF!="",#REF!="",#REF!=""),"",SUM(#REF!,#REF!,#REF!,#REF!,#REF!)) ->  | CD175: =IF(AND(#REF!="",#REF!="",#REF!="",#REF!=""),"",SUM(#REF!,#REF!,#REF!,#REF!)) -> 
A176: 170 | BV176: =IF(AND(#REF!="",#REF!="",#REF!="",#REF!=""),"",SUM(#REF!,#REF!,#REF!,#REF!,#REF!)) ->  | CB176: =IF(AND(#REF!="",#REF!="",#REF!="",#REF!=""),"",SUM(#REF!,#REF!,#REF!,#REF!,#REF!)) ->  | CD176: =IF(AND(#REF!="",#REF!="",#REF!="",#REF!=""),"",SUM(#REF!,#REF!,#REF!,#REF!)) -> 
A177: 171 | BV177: =IF(AND(#REF!="",#REF!="",#REF!="",#REF!=""),"",SUM(#REF!,#REF!,#REF!,#REF!,#REF!)) ->  | CB177: =IF(AND(#REF!="",#REF!="",#REF!="",#REF!=""),"",SUM(#REF!,#REF!,#REF!,#REF!,#REF!)) ->  | CD177: =IF(AND(#REF!="",#REF!="",#REF!="",#REF!=""),"",SUM(#REF!,#REF!,#REF!,#REF!)) -> 
A178: 172 | BV178: =IF(AND(#REF!="",#REF!="",#REF!="",#REF!=""),"",SUM(#REF!,#REF!,#REF!,#REF!,#REF!)) ->  | CB178: =IF(AND(#REF!="",#REF!="",#REF!="",#REF!=""),"",SUM(#REF!,#REF!,#REF!,#REF!,#REF!)) ->  | CD178: =IF(AND(#REF!="",#REF!="",#REF!="",#REF!=""),"",SUM(#REF!,#REF!,#REF!,#REF!)) -> 
A179: 173 | BV179: =IF(AND(#REF!="",#REF!="",#REF!="",#REF!=""),"",SUM(#REF!,#REF!,#REF!,#REF!,#REF!)) ->  | CB179: =IF(AND(#REF!="",#REF!="",#REF!="",#REF!=""),"",SUM(#REF!,#REF!,#REF!,#REF!,#REF!)) ->  | CD179: =IF(AND(#REF!="",#REF!="",#REF!="",#REF!=""),"",SUM(#REF!,#REF!,#REF!,#REF!)) -> 
A180: 174 | BV180: =IF(AND(#REF!="",#REF!="",#REF!="",#REF!=""),"",SUM(#REF!,#REF!,#REF!,#REF!,#REF!)) ->  | CB180: =IF(AND(#REF!="",#REF!="",#REF!="",#REF!=""),"",SUM(#REF!,#REF!,#REF!,#REF!,#REF!)) ->  | CD180: =IF(AND(#REF!="",#REF!="",#REF!="",#REF!=""),"",SUM(#REF!,#REF!,#REF!,#REF!)) -> 
A181: 175 | BV181: =IF(AND(#REF!="",#REF!="",#REF!="",#REF!=""),"",SUM(#REF!,#REF!,#REF!,#REF!,#REF!)) ->  | CB181: =IF(AND(#REF!="",#REF!="",#REF!="",#REF!=""),"",SUM(#REF!,#REF!,#REF!,#REF!,#REF!)) ->  | CD181: =IF(AND(#REF!="",#REF!="",#REF!="",#REF!=""),"",SUM(#REF!,#REF!,#REF!,#REF!)) -> 
A182: 176 | BV182: =IF(AND(#REF!="",#REF!="",#REF!="",#REF!=""),"",SUM(#REF!,#REF!,#REF!,#REF!,#REF!)) ->  | CB182: =IF(AND(#REF!="",#REF!="",#REF!="",#REF!=""),"",SUM(#REF!,#REF!,#REF!,#REF!,#REF!)) ->  | CD182: =IF(AND(#REF!="",#REF!="",#REF!="",#REF!=""),"",SUM(#REF!,#REF!,#REF!,#REF!)) -> 
A183: 177 | BV183: =IF(AND(#REF!="",#REF!="",#REF!="",#REF!=""),"",SUM(#REF!,#REF!,#REF!,#REF!,#REF!)) ->  | CB183: =IF(AND(#REF!="",#REF!="",#REF!="",#REF!=""),"",SUM(#REF!,#REF!,#REF!,#REF!,#REF!)) ->  | CD183: =IF(AND(#REF!="",#REF!="",#REF!="",#REF!=""),"",SUM(#REF!,#REF!,#REF!,#REF!)) -> 
A184: 178 | BV184: =IF(AND(#REF!="",#REF!="",#REF!="",#REF!=""),"",SUM(#REF!,#REF!,#REF!,#REF!,#REF!)) ->  | CB184: =IF(AND(#REF!="",#REF!="",#REF!="",#REF!=""),"",SUM(#REF!,#REF!,#REF!,#REF!,#REF!)) ->  | CD184: =IF(AND(#REF!="",#REF!="",#REF!="",#REF!=""),"",SUM(#REF!,#REF!,#REF!,#REF!)) -> 
A185: 179 | BV185: =IF(AND(#REF!="",#REF!="",#REF!="",#REF!=""),"",SUM(#REF!,#REF!,#REF!,#REF!,#REF!)) ->  | CB185: =IF(AND(#REF!="",#REF!="",#REF!="",#REF!=""),"",SUM(#REF!,#REF!,#REF!,#REF!,#REF!)) ->  | CD185: =IF(AND(#REF!="",#REF!="",#REF!="",#REF!=""),"",SUM(#REF!,#REF!,#REF!,#REF!)) -> 
A186: 180 | BV186: =IF(AND(#REF!="",#REF!="",#REF!="",#REF!=""),"",SUM(#REF!,#REF!,#REF!,#REF!,#REF!)) ->  | CB186: =IF(AND(#REF!="",#REF!="",#REF!="",#REF!=""),"",SUM(#REF!,#REF!,#REF!,#REF!,#REF!)) ->  | CD186: =IF(AND(#REF!="",#REF!="",#REF!="",#REF!=""),"",SUM(#REF!,#REF!,#REF!,#REF!)) -> 
A187: 181 | BV187: =IF(AND(#REF!="",#REF!="",#REF!="",#REF!=""),"",SUM(#REF!,#REF!,#REF!,#REF!,#REF!)) ->  | CB187: =IF(AND(#REF!="",#REF!="",#REF!="",#REF!=""),"",SUM(#REF!,#REF!,#REF!,#REF!,#REF!)) ->  | CD187: =IF(AND(#REF!="",#REF!="",#REF!="",#REF!=""),"",SUM(#REF!,#REF!,#REF!,#REF!)) -> 
A188: 182 | BV188: =IF(AND(#REF!="",#REF!="",#REF!="",#REF!=""),"",SUM(#REF!,#REF!,#REF!,#REF!,#REF!)) ->  | CB188: =IF(AND(#REF!="",#REF!="",#REF!="",#REF!=""),"",SUM(#REF!,#REF!,#REF!,#REF!,#REF!)) ->  | CD188: =IF(AND(#REF!="",#REF!="",#REF!="",#REF!=""),"",SUM(#REF!,#REF!,#REF!,#REF!)) -> 
A189: 183 | BV189: =IF(AND(#REF!="",#REF!="",#REF!="",#REF!=""),"",SUM(#REF!,#REF!,#REF!,#REF!,#REF!)) ->  | CB189: =IF(AND(#REF!="",#REF!="",#REF!="",#REF!=""),"",SUM(#REF!,#REF!,#REF!,#REF!,#REF!)) ->  | CD189: =IF(AND(#REF!="",#REF!="",#REF!="",#REF!=""),"",SUM(#REF!,#REF!,#REF!,#REF!)) -> 
A190: 184 | BV190: =IF(AND(#REF!="",#REF!="",#REF!="",#REF!=""),"",SUM(#REF!,#REF!,#REF!,#REF!,#REF!)) ->  | CB190: =IF(AND(#REF!="",#REF!="",#REF!="",#REF!=""),"",SUM(#REF!,#REF!,#REF!,#REF!,#REF!)) ->  | CD190: =IF(AND(#REF!="",#REF!="",#REF!="",#REF!=""),"",SUM(#REF!,#REF!,#REF!,#REF!)) -> 
A191: 185 | BV191: =IF(AND(#REF!="",#REF!="",#REF!="",#REF!=""),"",SUM(#REF!,#REF!,#REF!,#REF!,#REF!)) ->  | CB191: =IF(AND(#REF!="",#REF!="",#REF!="",#REF!=""),"",SUM(#REF!,#REF!,#REF!,#REF!,#REF!)) ->  | CD191: =IF(AND(#REF!="",#REF!="",#REF!="",#REF!=""),"",SUM(#REF!,#REF!,#REF!,#REF!)) ->  | CE191: =IFERROR(IF(CD191="","",IF($CD$5=100,ROUNDUP(CD191*20%,0),IF($CD$5=86,ROUNDUP((CD191/$CD$5)*$CE$5,0),IF($CD$5=66,ROUNDUP((CD191/$CD$5)*$CE$5,0),"")))),"") -> 
A192: 186 | BV192: =IF(AND(#REF!="",#REF!="",#REF!="",#REF!=""),"",SUM(#REF!,#REF!,#REF!,#REF!,#REF!)) ->  | CB192: =IF(AND(#REF!="",#REF!="",#REF!="",#REF!=""),"",SUM(#REF!,#REF!,#REF!,#REF!,#REF!)) ->  | CD192: =IF(AND(#REF!="",#REF!="",#REF!="",#REF!=""),"",SUM(#REF!,#REF!,#REF!,#REF!)) -> 
A193: 187 | BV193: =IF(AND(#REF!="",#REF!="",#REF!="",#REF!=""),"",SUM(#REF!,#REF!,#REF!,#REF!,#REF!)) ->  | CB193: =IF(AND(#REF!="",#REF!="",#REF!="",#REF!=""),"",SUM(#REF!,#REF!,#REF!,#REF!,#REF!)) ->  | CD193: =IF(AND(#REF!="",#REF!="",#REF!="",#REF!=""),"",SUM(#REF!,#REF!,#REF!,#REF!)) -> 
A194: 188 | BV194: =IF(AND(#REF!="",#REF!="",#REF!="",#REF!=""),"",SUM(#REF!,#REF!,#REF!,#REF!,#REF!)) ->  | CB194: =IF(AND(#REF!="",#REF!="",#REF!="",#REF!=""),"",SUM(#REF!,#REF!,#REF!,#REF!,#REF!)) ->  | CD194: =IF(AND(#REF!="",#REF!="",#REF!="",#REF!=""),"",SUM(#REF!,#REF!,#REF!,#REF!)) -> 
A195: 189 | BV195: =IF(AND(#REF!="",#REF!="",#REF!="",#REF!=""),"",SUM(#REF!,#REF!,#REF!,#REF!,#REF!)) ->  | CB195: =IF(AND(#REF!="",#REF!="",#REF!="",#REF!=""),"",SUM(#REF!,#REF!,#REF!,#REF!,#REF!)) ->  | CD195: =IF(AND(#REF!="",#REF!="",#REF!="",#REF!=""),"",SUM(#REF!,#REF!,#REF!,#REF!)) -> 
A196: 190 | BV196: =IF(AND(#REF!="",#REF!="",#REF!="",#REF!=""),"",SUM(#REF!,#REF!,#REF!,#REF!,#REF!)) ->  | CB196: =IF(AND(#REF!="",#REF!="",#REF!="",#REF!=""),"",SUM(#REF!,#REF!,#REF!,#REF!,#REF!)) ->  | CD196: =IF(AND(#REF!="",#REF!="",#REF!="",#REF!=""),"",SUM(#REF!,#REF!,#REF!,#REF!)) -> 
A197: 191 | BV197: =IF(AND(#REF!="",#REF!="",#REF!="",#REF!=""),"",SUM(#REF!,#REF!,#REF!,#REF!,#REF!)) ->  | CB197: =IF(AND(#REF!="",#REF!="",#REF!="",#REF!=""),"",SUM(#REF!,#REF!,#REF!,#REF!,#REF!)) ->  | CD197: =IF(AND(#REF!="",#REF!="",#REF!="",#REF!=""),"",SUM(#REF!,#REF!,#REF!,#REF!)) -> 
A198: 192 | BV198: =IF(AND(#REF!="",#REF!="",#REF!="",#REF!=""),"",SUM(#REF!,#REF!,#REF!,#REF!,#REF!)) ->  | CB198: =IF(AND(#REF!="",#REF!="",#REF!="",#REF!=""),"",SUM(#REF!,#REF!,#REF!,#REF!,#REF!)) ->  | CD198: =IF(AND(#REF!="",#REF!="",#REF!="",#REF!=""),"",SUM(#REF!,#REF!,#REF!,#REF!)) -> 
A199: 193 | BR199: =IF(AND(L199="",M199="",N199="",P199=""),"",SUM(L199,M199,N199,O199,P199)) ->  | BV199: =IF(AND(#REF!="",#REF!="",#REF!="",#REF!=""),"",SUM(#REF!,#REF!,#REF!,#REF!,#REF!)) ->  | CB199: =IF(AND(#REF!="",#REF!="",#REF!="",#REF!=""),"",SUM(#REF!,#REF!,#REF!,#REF!,#REF!)) ->  | CD199: =IF(AND(#REF!="",#REF!="",#REF!="",#REF!=""),"",SUM(#REF!,#REF!,#REF!,#REF!)) -> 
A200: 194 | BQ200: =IF(I200="","",I200) ->  | BS200: =IFERROR(IF(BR200="","",ROUNDUP(BR200*20%,0)),"") ->  | BT200: =IF(AND(S200="",T200="",U200="",W200=""),"",SUM(S200,T200,U200,V200,W200)) ->  | BU200: =IFERROR(IF(BT200="","",ROUNDUP(BT200*20%,0)),"") ->  | BV200: =IF(AND(#REF!="",#REF!="",#REF!="",#REF!=""),"",SUM(#REF!,#REF!,#REF!,#REF!,#REF!)) ->  | BW200: =IFERROR(IF(BV200="","",ROUNDUP(BV200*20%,0)),"") ->  | BX200: =IF(AND(Z200="",AA200="",AB200="",AD200=""),"",SUM(Z200,AA200,AB200,AC200,AD200)) ->  | BY200: =IFERROR(IF(BX200="","",ROUNDUP(BX200*20%,0)),"") ->  | BZ200: =IF(AND(AG200="",AH200="",AI200="",AK200=""),"",SUM(AG200,AH200,AI200,AJ200,AK200)) ->  | CA200: =IFERROR(IF(BZ200="","",ROUNDUP(BZ200*20%,0)),"") ->  | CB200: =IF(AND(#REF!="",#REF!="",#REF!="",#REF!=""),"",SUM(#REF!,#REF!,#REF!,#REF!,#REF!)) ->  | CC200: =IFERROR(IF(CB200="","",ROUNDUP(CB200*20%,0)),"") ->  | CD200: =IF(AND(#REF!="",#REF!="",#REF!="",#REF!=""),"",SUM(#REF!,#REF!,#REF!,#REF!)) -> 
... 6 more rows

Sheet Result Sheet
G1: जिस क्लास की रिजल्ट शीट चाहिए, पीले कलर की सेल में वो क्लास सलेक्ट करें I यहाँ पर जो क्लास शो होगी, रिपोर्ट कार्ड तथा अन्य रिपोर्ट उसी कक्षा के प्रिंट होंगे I
A2: =IF('Master sheet'!D11="Hindi","विद्यालय का नाम :-","School Name :- ") -> School Name :- | F2: =IF('Master sheet'!D11="Hindi",'Master sheet'!D8,'Master sheet'!D7) -> Mahatma Gandhi Government School (English Medium) Bar, Pali
A3: =IF('Master sheet'!D11="Hindi","कक्षा :-","CLASS :- ") -> CLASS :- | D3: 0 | E3: 1st | G3: =IF('Master sheet'!D11="Hindi","सत्र :- ","Session :- ") -> Session :- | H3: 0 | I3: 0 | J3: ='Marks Entry 1st'!I2 -> 2023-2024 | DA3: =IF('[1]Master sheet'!$D$11="Hindi","अतिरिक्त विषय ","Extra Subject") -> अतिरिक्त विषय
A4: =IF('Master sheet'!D11="Hindi","विद्यार्थी विवरण","Student Detail") -> Student Detail | P4: =IF('Master sheet'!$D$11="Hindi","हिंदी","Hindi") -> Hindi | S4: =IF(AND($E$3="1st"),UPPER('Marks Entry 1st'!P3),IF(AND($E$3="2nd"),UPPER('Marks Entry 2nd'!P3),"")) -> MANOJ KUMAR PACHORI | AH4: =IF('Master sheet'!$D$11="Hindi","अंग्रेजी","English") -> English | AK4: =IF(AND($E$3="1st"),UPPER('Marks Entry 1st'!W3),IF(AND($E$3="2nd"),UPPER('Marks Entry 2nd'!W3),"")) -> SAMPAT RAJ | AZ4: =IF('Master sheet'!$D$11="Hindi","गणित","Maths") -> Maths | BC4: =IF(AND($E$3="1st"),UPPER('Marks Entry 1st'!AD3),IF(AND($E$3="2nd"),UPPER('Marks Entry 2nd'!AD3),"")) -> PRADIP SINGH | BR4: =IF('Master sheet'!$D$11="Hindi","पर्यावरण अध्ययन","EVS") -> EVS | BU4: =IF(AND($E$3="1st"),UPPER('Marks Entry 1st'!AK3),IF(AND($E$3="2nd"),UPPER('Marks Entry 2nd'!AK3),"")) -> PUSHPENDRA JAWRA | CF4: =IF('Master sheet'!$D$11="Hindi","कार्यानुभव","WORK EXP.") -> WORK EXP. | CM4: =IF('Master sheet'!$D$11="Hindi","कला शिक्षा","ART EDU.") -> ART EDU. | CT4: =IF('Master sheet'!$D$11="Hindi","स्वा. एवं शा. शिक्षा","HE.&PH. EDU.") -> HE.&PH. EDU. | DA4: =IF(AND('Marks Entry 1st'!AT3="",'Marks Entry 2nd'!AT3=""),"",IF(AND($E$3="1st"),'Marks Entry 1st'!AT3,IF(AND($E$3="2nd"),'Marks Entry 2nd'!AT3,""))) ->  | DE4: =IF(AND('Marks Entry 1st'!AV3="",'Marks Entry 2nd'!AV3=""),"",IF(AND($E$3="1st"),'Marks Entry 1st'!AV3,IF(AND($E$3="2nd"),'Marks Entry 2nd'!AV3,""))) ->  | DI4: =IF('Master sheet'!$D$11="Hindi","कुल विषय योग","Grand Total") -> Grand Total | DJ4: =IF('Master sheet'!$D$11="Hindi","प्रतिशत","Percentage") -> Percentage | DK4: =IF('Master sheet'!$D$11="Hindi","श्रेणी ","Division") -> Division | DL4: =IF('Master sheet'!$D$11="Hindi","कक्षा में स्थान","Position in the Class") -> Position in the Class | DM4: =IF('Master sheet'!$D$11="Hindi","परीक्षा परिणाम","Results") -> Results | DN4: =IF('Master sheet'!$D$11="Hindi","उपस्थिति","Attendance") -> Attendance | DP4: =IF('Master sheet'!$D$11="Hindi","ग्रेड","Grade") -> Grade | DQ4: =IF('Master sheet'!$D$11="Hindi","विशेष विवरण","Specifications") -> Specifications
A5: =IF('Master sheet'!D11="Hindi","क्र. स.","Sr. No. ") -> Sr. No. | B5: =IF('Master sheet'!D11="Hindi","नामांक","Roll No.") -> Roll No. | C5: =IF('Master sheet'!D11="Hindi","कक्षा","CLASS ") -> CLASS | D5: =IF('Master sheet'!D11="Hindi","सेक्शन","Section ") -> Section | E5: =IF('Master sheet'!D11="Hindi","जन्म दिनांक","Date of Birth") -> Date of Birth | F5: =IF('Master sheet'!D11="Hindi","प्रवेशांक","SR. NO.") -> SR. NO. | G5: =IF('Master sheet'!D11="Hindi","विद्यार्थी का नाम","Student's Name") -> Student's Name | H5: =IF('Master sheet'!D11="Hindi","पिता का नाम","Father's Name") -> Father's Name | I5: =IF('Master sheet'!D11="Hindi","माता का नाम ","Mother's Name") -> Mother's Name | P5: =IF('Master sheet'!$D$11="Hindi","अर्द्धवार्षिक","Half Yearly") -> Half Yearly | S5: =IF('Master sheet'!$D$11="Hindi","अर्द्ध वा. तक योग","Total Till H.Y.") -> Total Till H.Y. | T5: =IF('Master sheet'!$D$11="Hindi","वार्षिक","Yearly") -> Yearly | W5: =IF('Master sheet'!$D$11="Hindi","विषय कुल योग ","Subject Total") -> Subject Total | X5: EXEMPTION | Y5: SUBJECT MM | Z5: 2T+E OR 2E+T | AA5: SUBJECT RESULT | AB5: SUBJECT DIVISION | AC5: =IF('Master sheet'!$D$11="Hindi","ग्रेड","Grade") -> Grade | AH5: =IF('Master sheet'!$D$11="Hindi","अर्द्धवार्षिक","Half Yearly") -> Half Yearly | AK5: =IF('Master sheet'!$D$11="Hindi","अर्द्ध वा. तक योग","Total Till H.Y.") -> Total Till H.Y. | AL5: =IF('Master sheet'!$D$11="Hindi","वार्षिक","Yearly") -> Yearly | AO5: =IF('Master sheet'!$D$11="Hindi","विषय कुल योग ","Subject Total") -> Subject Total | AP5: EXEMPTION | AQ5: SUBJECT MM | AR5: 2T+E OR 2E+T | AS5: SUBJECT RESULT | AT5: SUBJECT DIVISION | AU5: =IF('Master sheet'!$D$11="Hindi","ग्रेड","Grade") -> Grade | AZ5: =IF('Master sheet'!$D$11="Hindi","अर्द्धवार्षिक","Half Yearly") -> Half Yearly | BC5: =IF('Master sheet'!$D$11="Hindi","अर्द्ध वा. तक योग","Total Till H.Y.") -> Total Till H.Y. | BD5: =IF('Master sheet'!$D$11="Hindi","वार्षिक","Yearly") -> Yearly | BG5: =IF('Master sheet'!$D$11="Hindi","विषय कुल योग ","Subject Total") -> Subject Total | BH5: EXEMPTION | BI5: SUBJECT MM | BJ5: 2T+E OR 2E+T | BK5: SUBJECT RESULT | BL5: SUBJECT DIVISION | BM5: =IF('Master sheet'!$D$11="Hindi","ग्रेड","Grade") -> Grade | BR5: =IF('Master sheet'!$D$11="Hindi","अर्द्धवार्षिक","Half Yearly") -> Half Yearly | BU5: =IF('Master sheet'!$D$11="Hindi","अर्द्ध वा. तक योग","Total Till H.Y.") -> Total Till H.Y. | BV5: =IF('Master sheet'!$D$11="Hindi","वार्षिक","Yearly") -> Yearly | BY5: =IF('Master sheet'!$D$11="Hindi","विषय कुल योग ","Subject Total") -> Subject Total | BZ5: EXEMPTION | CA5: SUBJECT MM | CB5: 2T+E OR 2E+T | CC5: SUBJECT RESULT | CD5: SUBJECT DIVISION | CE5: =IF('Master sheet'!$D$11="Hindi","ग्रेड","Grade") -> Grade | CF5: =IF('Master sheet'!$D$11="Hindi","अर्द्धवार्षिक","Half Yearly") -> Half Yearly | CG5: =IF('Master sheet'!$D$11="Hindi","वार्षिक","Yearly") -> Yearly | CH5: =IF('Master sheet'!$D$11="Hindi","योग","Total") -> Total | CI5: EXEMPTION | CJ5: SUBJECT MM | CK5: SUBJECT RESULT | CL5: =IF('Master sheet'!$D$11="Hindi","ग्रेड","Grade") -> Grade | CM5: =IF('Master sheet'!$D$11="Hindi","अर्द्धवार्षिक","Half Yearly") -> Half Yearly | CN5: =IF('Master sheet'!$D$11="Hindi","वार्षिक","Yearly") -> Yearly | CO5: =IF('Master sheet'!$D$11="Hindi","योग","Total") -> Total | CP5: EXEMPTION | CQ5: SUBJECT MM | CR5: SUBJECT RESULT | CS5: =IF('Master sheet'!$D$11="Hindi","ग्रेड","Grade") -> Grade | CT5: =IF('Master sheet'!$D$11="Hindi","अर्द्धवार्षिक","Half Yearly") -> Half Yearly | CU5: =IF('Master sheet'!$D$11="Hindi","वार्षिक","Yearly") -> Yearly | CV5: =IF('Master sheet'!$D$11="Hindi","योग","Total") -> Total | CW5: EXEMPTION | CX5: SUBJECT MM | CY5: SUBJECT RESULT | CZ5: =IF('Master sheet'!$D$11="Hindi","ग्रेड","Grade") -> Grade | DA5: =IF('Master sheet'!$D$11="Hindi","अर्द्धवार्षिक","Half Yearly") -> Half Yearly | DB5: =IF('Master sheet'!$D$11="Hindi","वार्षिक","Yearly") -> Yearly | DC5: =IF('Master sheet'!$D$11="Hindi","योग","Total") -> Total | DD5: =IF('Master sheet'!$D$11="Hindi","ग्रेड","Grade") -> Grade | DE5: =IF('Master sheet'!$D$11="Hindi","अर्द्धवार्षिक","Half Yearly") -> Half Yearly | DF5: =IF('Master sheet'!$D$11="Hindi","वार्षिक","Yearly") -> Yearly | DG5: =IF('Master sheet'!$D$11="Hindi","योग","Total") -> Total | DH5: =IF('Master sheet'!$D$11="Hindi","ग्रेड","Grade") -> Grade | DI5: 0 | DM5: 0
E6: 0 | F6: 0 | G6: 0 | H6: 0 | I6: 0 | J6: =IF('Master sheet'!D11="Hindi","लिंग ","Gender") -> Gender | K6: =IF('Master sheet'!D11="Hindi","वर्ग ","Category") -> Category | P6: =IF('Master sheet'!$D$11="Hindi","लिखित","Written") -> Written | Q6: =IF('Master sheet'!$D$11="Hindi","मौखिक","Oral") -> Oral | R6: =IF('Master sheet'!$D$11="Hindi","अर्द्ध वा. योग","H.Y. Total") -> H.Y. Total | T6: =IF('Master sheet'!$D$11="Hindi","लिखित","Written") -> Written | U6: =IF('Master sheet'!$D$11="Hindi","मौखिक","Oral") -> Oral | V6: =IF('Master sheet'!$D$11="Hindi","वार्षिक योग","Yearly Total") -> Yearly Total | AC6: 0 | AH6: =IF('Master sheet'!$D$11="Hindi","लिखित","Written") -> Written | AI6: =IF('Master sheet'!$D$11="Hindi","मौखिक","Oral") -> Oral | AJ6: =IF('Master sheet'!$D$11="Hindi","अर्द्ध वा. योग","H.Y. Total") -> H.Y. Total | AL6: =IF('Master sheet'!$D$11="Hindi","लिखित","Written") -> Written | AM6: =IF('Master sheet'!$D$11="Hindi","मौखिक","Oral") -> Oral | AN6: =IF('Master sheet'!$D$11="Hindi","वार्षिक योग","Yearly Total") -> Yearly Total | AU6: 0 | AZ6: =IF('Master sheet'!$D$11="Hindi","लिखित","Written") -> Written | BA6: =IF('Master sheet'!$D$11="Hindi","मौखिक","Oral") -> Oral | BB6: =IF('Master sheet'!$D$11="Hindi","अर्द्ध वा. योग","H.Y. Total") -> H.Y. Total | BD6: =IF('Master sheet'!$D$11="Hindi","लिखित","Written") -> Written | BE6: =IF('Master sheet'!$D$11="Hindi","मौखिक","Oral") -> Oral | BF6: =IF('Master sheet'!$D$11="Hindi","वार्षिक योग","Yearly Total") -> Yearly Total | BM6: 0 | BR6: =IF('Master sheet'!$D$11="Hindi","लिखित","Written") -> Written | BS6: =IF('Master sheet'!$D$11="Hindi","मौखिक","Oral") -> Oral | BT6: =IF('Master sheet'!$D$11="Hindi","अर्द्ध वा. योग","H.Y. Total") -> H.Y. Total | BV6: =IF('Master sheet'!$D$11="Hindi","लिखित","Written") -> Written | BW6: =IF('Master sheet'!$D$11="Hindi","मौखिक","Oral") -> Oral | BX6: =IF('Master sheet'!$D$11="Hindi","वार्षिक योग","Yearly Total") -> Yearly Total | CE6: 0 | CH6: 0 | CL6: 0 | CO6: 0 | CS6: 0 | CV6: 0 | CZ6: 0 | DI6: 0 | DM6: 0 | DN6: =IF('Master sheet'!$D$11="Hindi","कुल कार्य दिवस","Total Meeting") -> Total Meeting | DO6: =IF('Master sheet'!$D$11="Hindi","कुल उपस्थिति","Total Attendance") -> Total Attendance
P7: =IF(AND($E$3="1st"),'Marks Entry 1st'!O6,IF(AND($E$3="2nd"),'Marks Entry 2nd'!O6,"")) -> 30 | Q7: =IF(AND($E$3="1st"),'Marks Entry 1st'!P6,IF(AND($E$3="2nd"),'Marks Entry 2nd'!P6,"")) -> 70 | R7: =IF(AND(P7="",Q7=""),"",IF(AND(Q7="NA",P7="NA"),"NA",SUM(P7:Q7))) -> 100 | S7: =IF(AND(O7="NA",R7="NA"),"NA",SUM(O7,R7)) -> 100 | T7: =IF(AND($E$3="1st"),'Marks Entry 1st'!Q6,IF(AND($E$3="2nd"),'Marks Entry 2nd'!Q6,"")) -> 30 | U7: =IF(AND($E$3="1st"),'Marks Entry 1st'!R6,IF(AND($E$3="2nd"),'Marks Entry 2nd'!R6,"")) -> 70 | V7: =IF(AND(T7="",U7=""),"",SUM(T7:U7)) -> 100 | W7: =IF(V7="","",SUM(S7,V7)) -> 200 | AH7: =IF(AND($E$3="1st"),'Marks Entry 1st'!V6,IF(AND($E$3="2nd"),'Marks Entry 2nd'!V6,"")) -> 15 | AI7: =IF(AND($E$3="1st"),'Marks Entry 1st'!W6,IF(AND($E$3="2nd"),'Marks Entry 2nd'!W6,"")) -> 35 | AJ7: =IF(AND(AH7="",AI7=""),"",IF(AND(AI7="NA",AH7="NA"),"NA",SUM(AH7:AI7))) -> 50 | AK7: =IF(AND(AG7="NA",AJ7="NA"),"NA",SUM(AG7,AJ7)) -> 50 | AL7: =IF(AND($E$3="1st"),'Marks Entry 1st'!X6,IF(AND($E$3="2nd"),'Marks Entry 2nd'!X6,"")) -> 15 | AM7: =IF(AND($E$3="1st"),'Marks Entry 1st'!Y6,IF(AND($E$3="2nd"),'Marks Entry 2nd'!Y6,"")) -> 35 | AN7: =IF(AND(AL7="",AM7=""),"",SUM(AL7:AM7)) -> 50 | AO7: =IF(AN7="","",SUM(AK7,AN7)) -> 100 | AZ7: =IF(AND($E$3="1st"),'Marks Entry 1st'!AC6,IF(AND($E$3="2nd"),'Marks Entry 2nd'!AC6,"")) -> 30 | BA7: =IF(AND($E$3="1st"),'Marks Entry 1st'!AD6,IF(AND($E$3="2nd"),'Marks Entry 2nd'!AD6,"")) -> 70 | BB7: =IF(AND(AZ7="",BA7=""),"",IF(AND(BA7="NA",AZ7="NA"),"NA",SUM(AZ7:BA7))) -> 100 | BC7: =IF(AND(AY7="NA",BB7="NA"),"NA",SUM(AY7,BB7)) -> 100 | BD7: =IF(AND($E$3="1st"),'Marks Entry 1st'!AE6,IF(AND($E$3="2nd"),'Marks Entry 2nd'!AE6,"")) -> 30 | BE7: =IF(AND($E$3="1st"),'Marks Entry 1st'!AF6,IF(AND($E$3="2nd"),'Marks Entry 2nd'!AF6,"")) -> 70 | BF7: =IF(AND(BD7="",BE7=""),"",SUM(BD7:BE7)) -> 100 | BG7: =IF(BF7="","",SUM(BC7,BF7)) -> 200 | BR7: =IF(AND('Marks Entry 1st'!AJ6="",'Marks Entry 2nd'!AJ6=""),"",IF(AND($E$3="1st"),'Marks Entry 1st'!AJ6,IF(AND($E$3="2nd"),'Marks Entry 2nd'!AJ6,""))) -> 50 | BS7: =IF(AND('Marks Entry 1st'!AK6="",'Marks Entry 2nd'!AK6=""),"",IF(AND($E$3="1st"),'Marks Entry 1st'!AK6,IF(AND($E$3="2nd"),'Marks Entry 2nd'!AK6,""))) ->  | BT7: =IF(AND(BR7="",BS7=""),"",IF(AND(BS7="NA",BR7="NA"),"NA",SUM(BR7:BS7))) -> 50 | BU7: =IF(AND(BQ7="NA",BT7="NA"),"NA",SUM(BQ7,BT7)) -> 50 | BV7: =IF(AND('Marks Entry 1st'!AL6="",'Marks Entry 2nd'!AL6=""),"",IF(AND($E$3="1st"),'Marks Entry 1st'!AL6,IF(AND($E$3="2nd"),'Marks Entry 2nd'!AL6,""))) -> 50 | BW7: =IF(AND('Marks Entry 1st'!AM6="",'Marks Entry 2nd'!AM6=""),"",IF(AND($E$3="1st"),'Marks Entry 1st'!AM6,IF(AND($E$3="2nd"),'Marks Entry 2nd'!AM6,""))) ->  | BX7: =IF(AND(BV7="",BW7=""),"",SUM(BV7:BW7)) -> 50 | BY7: =IF(BX7="","",SUM(BU7,BX7)) -> 100 | CF7: =IF(AND('Marks Entry 1st'!AN6="",'Marks Entry 2nd'!AN6=""),"",IF(AND($E$3="1st"),'Marks Entry 1st'!AN6,IF(AND($E$3="2nd"),'Marks Entry 2nd'!AN6,""))) -> 25 | CG7: =IF(AND('Marks Entry 1st'!AO6="",'Marks Entry 2nd'!AO6=""),"",IF(AND($E$3="1st"),'Marks Entry 1st'!AO6,IF(AND($E$3="2nd"),'Marks Entry 2nd'!AO6,""))) -> 25 | CH7: =IF(AND(CF7="",CG7=""),"",SUM(CF7:CG7)) -> 50 | CM7: =IF(AND('Marks Entry 1st'!AP6="",'Marks Entry 2nd'!AP6=""),"",IF(AND($E$3="1st"),'Marks Entry 1st'!AP6,IF(AND($E$3="2nd"),'Marks Entry 2nd'!AP6,""))) -> 25 | CN7: =IF(AND('Marks Entry 1st'!AQ6="",'Marks Entry 2nd'!AQ6=""),"",IF(AND($E$3="1st"),'Marks Entry 1st'!AQ6,IF(AND($E$3="2nd"),'Marks Entry 2nd'!AQ6,""))) -> 25 | CO7: =IF(AND(CM7="",CN7=""),"",SUM(CM7:CN7)) -> 50 | CT7: =IF(AND('Marks Entry 1st'!AR6="",'Marks Entry 2nd'!AR6=""),"",IF(AND($E$3="1st"),'Marks Entry 1st'!AR6,IF(AND($E$3="2nd"),'Marks Entry 2nd'!AR6,""))) -> 50 | CU7: =IF(AND('Marks Entry 1st'!AS6="",'Marks Entry 2nd'!AS6=""),"",IF(AND($E$3="1st"),'Marks Entry 1st'!AS6,IF(AND($E$3="2nd"),'Marks Entry 2nd'!AS6,""))) -> 50 | CV7: =IF(AND(CT7="",CU7=""),"",SUM(CT7:CU7)) -> 100 | DA7: =IF(AND('Marks Entry 1st'!AT6="",'Marks Entry 2nd'!AT6=""),"",IF(AND($E$3="1st"),'Marks Entry 1st'!AT6,IF(AND($E$3="2nd"),'Marks Entry 2nd'!AT6,""))) -> 50 | DB7: =IF(AND('Marks Entry 1st'!AU6="",'Marks Entry 2nd'!AU6=""),"",IF(AND($E$3="1st"),'Marks Entry 1st'!AU6,IF(AND($E$3="2nd"),'Marks Entry 2nd'!AU6,""))) -> 50 | DC7: =IF(AND(DA7="",DB7=""),"",SUM(DA7:DB7)) -> 100 | DE7: =IF(AND('Marks Entry 1st'!AV6="",'Marks Entry 2nd'!AV6=""),"",IF(AND($E$3="1st"),'Marks Entry 1st'!AV6,IF(AND($E$3="2nd"),'Marks Entry 2nd'!AV6,""))) -> 50 | DF7: =IF(AND('Marks Entry 1st'!AW6="",'Marks Entry 2nd'!AW6=""),"",IF(AND($E$3="1st"),'Marks Entry 1st'!AW6,IF(AND($E$3="2nd"),'Marks Entry 2nd'!AW6,""))) -> 50 | DG7: =IF(AND(DE7="",DF7=""),"",SUM(DE7:DF7)) -> 100 | DI7: =IF(E3="","",SUM(W7,AO7,BG7)) -> 500 | DM7: 0 | DN7: =IF(AND($E$3="1st"),'Marks Entry 1st'!AX6,IF(AND($E$3="2nd"),'Marks Entry 2nd'!AX6,"")) -> 350
A8: 1 | B8: =IF(OR(DX8=0,DX8=""),"",IF(AND($E$3="1st"),'Marks Entry 1st'!I7,IF(AND($E$3="2nd"),'Marks Entry 2nd'!I7,""))) -> 101 | C8: =IF(OR(B8=0,B8=""),"",IF(AND($E$3="1st"),'Marks Entry 1st'!B7,IF(AND($E$3="2nd"),'Marks Entry 2nd'!B7,""))) -> 1 | D8: =IF(OR(B8=0,B8=""),"",IF(AND($E$3="1st"),'Marks Entry 1st'!C7,IF(AND($E$3="2nd"),'Marks Entry 2nd'!C7,""))) -> A | E8: =IF(OR(B8=0,B8=""),"",IF(AND($E$3="1st"),'Marks Entry 1st'!E7,IF(AND($E$3="2nd"),'Marks Entry 2nd'!E7,""))) -> 28-10-2014 | F8: =IF(OR(B8=0,B8=""),"",IF(AND($E$3="1st"),'Marks Entry 1st'!D7,IF(AND($E$3="2nd"),'Marks Entry 2nd'!D7,""))) -> 936 | G8: =IF(OR(B8=0,B8=""),"",IF(AND($E$3="1st"),'Marks Entry 1st'!F7,IF(AND($E$3="2nd"),'Marks Entry 2nd'!F7,""))) -> AAKIFA BANO | H8: =IF(OR(B8=0,B8=""),"",IF(AND($E$3="1st"),'Marks Entry 1st'!G7,IF(AND($E$3="2nd"),'Marks Entry 2nd'!G7,""))) -> SHABBIR MOHAMMAD | I8: =IF(OR(B8=0,B8=""),"",IF(AND($E$3="1st"),'Marks Entry 1st'!H7,IF(AND($E$3="2nd"),'Marks Entry 2nd'!H7,""))) -> HEENA KOUSER | J8: =IF(OR(B8=0,B8=""),"",IF(AND($E$3="1st"),'Marks Entry 1st'!J7,IF(AND($E$3="2nd"),'Marks Entry 2nd'!J7,""))) -> F | K8: =IF(OR(B8=0,B8=""),"",IF(AND($E$3="1st"),'Marks Entry 1st'!K7,IF(AND($E$3="2nd"),'Marks Entry 2nd'!K7,""))) -> OBC | P8: =IF(OR(B8=0,B8=""),"",IF(AND($E$3="1st"),'Marks Entry 1st'!O7,IF(AND($E$3="2nd"),'Marks Entry 2nd'!O7,""))) -> 25 | Q8: =IF(OR(B8=0,B8=""),"",IF(AND($E$3="1st"),'Marks Entry 1st'!P7,IF(AND($E$3="2nd"),'Marks Entry 2nd'!P7,""))) -> 62 | R8: =IF(AND(P8="",Q8=""),"",IF(AND(P8="NA",Q8="NA"),"NA",IF(AND(P8="AB",Q8="AB"),"AB",SUM(P8:Q8)))) -> 87 | S8: =IF(AND(O8="NA",R8="NA"),"NA",IF(AND(O8="AB",R8="AB"),"AB",SUM(O8,R8))) -> 87 | T8: =IF(OR(B8=0,B8=""),"",IF(AND($E$3="1st"),'Marks Entry 1st'!Q7,IF(AND($E$3="2nd"),'Marks Entry 2nd'!Q7,""))) -> 29 | U8: =IF(OR(B8=0,B8=""),"",IF(AND($E$3="1st"),'Marks Entry 1st'!R7,IF(AND($E$3="2nd"),'Marks Entry 2nd'!R7,""))) -> 25 | V8: =IF(AND(T8="",U8=""),"",IF(AND(T8="AB",U8="AB"),"AB",SUM(T8:U8))) -> 54 | W8: =IF(V8="","",IF(AND(S8="AB",V8="AB"),"AB",SUM(S8,V8))) -> 141 | X8: =COUNTIF(L8:N8,"NA")*10+(COUNTIF(L8:N8,"ML")*10)+(COUNTIF(P8,"ML")*$P$7)+(COUNTIF(Q8,"ML")*$Q$7)+(COUNTIF(T8,"ML")*$T$7)+(COUNTIF(U8,"ML")*$U$7) -> 0 | Y8: =IF(OR(B8="NSO",B8=0,B8=""),"",IF(AND(P8="",T8=""),"",IF(AND(P8="",Q8=""),100-X8,IF(AND(T8="",U8=""),100-X8,200-X8)))) -> 200 | Z8: =IF(AND(OR(L8="ab",L8="ml"),OR(M8="ab",M8="ml"),OR(P8="ab",P8="ml")),"AB",IF(AND(OR(L8="ab",L8="ml"),OR(P8="ab",P8="ml"),OR(T8="ab",T8="ml")),"AB",IF(AND(OR(M8="ab",M8="ml"),OR(N8="ab",N8="ml"),OR(P8="ab",P8="ml")),"AB",IF(AND(OR(M8="ab",M8="ml"),OR(N8="ab",N8="ml"),OR(T8="ab",T8="ml")),"AB","")))) ->  | AA8: =IF(OR(B8="NSO",B8="",T8=""),"",IF(OR(Z8="AB",T8="ab"),"AB",IF(T8="ML","RE",IF(AND(W8>=36%*Y8,T8>=$T$7*20%),"P",IF(AND(W8>=34%*Y8,T8>=$T$7*20%),"G2",IF(AND(W8>=31%*Y8,T8>=$T$7*20%),"G1",IF(AND(W8>=25%*Y8,T8>=$T$7*20%),"S","F"))))))) -> P | AB8: =IF(OR(AA8="",AA8=0,AA8="S",AA8="RE",AA8="F",AA8="AB"),"",IF(W8>=75%*Y8,"D",IF(W8>=60%*Y8,"I",IF(W8>=48%*Y8,"II",IF(W8>=36%*Y8,"III",""))))) -> I | AC8: =IF(W8="","",IF(OR(AA8="",AA8=0,AA8="RE",AA8="AB"),"",IF(W8>85%*Y8,"A",IF(W8>70%*Y8,"B",IF(W8>50%*Y8,"C",IF(W8>30%*Y8,"D","E")))))) -> B | AH8: =IF(OR(B8=0,B8=""),"",IF(AND($E$3="1st"),'Marks Entry 1st'!V7,IF(AND($E$3="2nd"),'Marks Entry 2nd'!V7,""))) -> 15 | AI8: =IF(OR(B8=0,B8=""),"",IF(AND($E$3="1st"),'Marks Entry 1st'!W7,IF(AND($E$3="2nd"),'Marks Entry 2nd'!W7,""))) -> 30 | AJ8: =IF(AND(AH8="",AI8=""),"",IF(AND(AH8="NA",AI8="NA"),"NA",IF(AND(AH8="AB",AI8="AB"),"AB",SUM(AH8:AI8)))) -> 45 | AK8: =IF(AND(AG8="NA",AJ8="NA"),"NA",IF(AND(AG8="AB",AJ8="AB"),"AB",SUM(AG8,AJ8))) -> 45 | AL8: =IF(OR(B8=0,B8=""),"",IF(AND($E$3="1st"),'Marks Entry 1st'!X7,IF(AND($E$3="2nd"),'Marks Entry 2nd'!X7,""))) -> 10 | AM8: =IF(OR(B8=0,B8=""),"",IF(AND($E$3="1st"),'Marks Entry 1st'!Y7,IF(AND($E$3="2nd"),'Marks Entry 2nd'!Y7,""))) -> 30 | AN8: =IF(AND(AL8="",AM8=""),"",IF(AND(AL8="AB",AM8="AB"),"AB",SUM(AL8:AM8))) -> 40 | AO8: =IF(AN8="","",IF(AND(AK8="AB",AN8="AB"),"AB",SUM(AK8,AN8))) -> 85 | AP8: =COUNTIF(AD8:AF8,"NA")*10+(COUNTIF(AD8:AF8,"ML")*10)+(COUNTIF(AH8,"ML")*$AH$7)+(COUNTIF(AI8,"ML")*$AI$7)+(COUNTIF(AL8,"ML")*$AL$7)+(COUNTIF(AM8,"ML")*$AM$7) -> 0 | AQ8: =IF(OR(B8="NSO",B8=0,B8=""),"",IF(AND(AH8="",AL8=""),"",IF(AND(AH8="",AI8=""),50-AP8,IF(AND(AL8="",AM8=""),50-AP8,100-AP8)))) -> 100 | AR8: =IF(AND(OR(AD8="ab",AD8="ml"),OR(AE8="ab",AE8="ml"),OR(AH8="ab",AH8="ml")),"AB",IF(AND(OR(AD8="ab",AD8="ml"),OR(AH8="ab",AH8="ml"),OR(AL8="ab",AL8="ml")),"AB",IF(AND(OR(AE8="ab",AE8="ml"),OR(AF8="ab",AF8="ml"),OR(AH8="ab",AH8="ml")),"AB",IF(AND(OR(AE8="ab",AE8="ml"),OR(AF8="ab",AF8="ml"),OR(AL8="ab",AL8="ml")),"AB","")))) ->  | AS8: =IF(OR(B8="NSO",B8="",AL8=""),"",IF(OR(AR8="AB",AL8="ab"),"AB",IF(AL8="ML","RE",IF(AND(AO8>=36%*AQ8,AL8>=$AL$7*20%),"P",IF(AND(AO8>=34%*AQ8,AL8>=$AL$7*20%),"G2",IF(AND(AO8>=31%*AQ8,AL8>=$AL$7*20%),"G1",IF(AND(AO8>=25%*AQ8,AL8>=$AL$7*20%),"S","F"))))))) -> P | AT8: =IF(OR(AS8="",AS8=0,AS8="S",AS8="RE",AS8="F",AS8="AB"),"",IF(AO8>=75%*AQ8,"D",IF(AO8>=60%*AQ8,"I",IF(AO8>=48%*AQ8,"II",IF(AO8>=36%*AQ8,"III",""))))) -> D | AU8: =IF(AO8="","",IF(OR(AS8="",AS8=0,AS8="RE",AS8="AB"),"",IF(AO8>85%*AQ8,"A",IF(AO8>70%*AQ8,"B",IF(AO8>50%*AQ8,"C",IF(AO8>30%*AQ8,"D","E")))))) -> B | AZ8: =IF(OR(B8=0,B8=""),"",IF(AND($E$3="1st"),'Marks Entry 1st'!AC7,IF(AND($E$3="2nd"),'Marks Entry 2nd'!AC7,""))) -> 22 | BA8: =IF(OR(B8=0,B8=""),"",IF(AND($E$3="1st"),'Marks Entry 1st'!AD7,IF(AND($E$3="2nd"),'Marks Entry 2nd'!AD7,""))) -> 64 | BB8: =IF(AND(AZ8="",BA8=""),"",IF(AND(AZ8="NA",BA8="NA"),"NA",IF(AND(AZ8="AB",BA8="AB"),"AB",SUM(AZ8:BA8)))) -> 86 | BC8: =IF(AND(AY8="NA",BB8="NA"),"NA",IF(AND(AY8="AB",BB8="AB"),"AB",SUM(AY8,BB8))) -> 86 | BD8: =IF(OR(B8=0,B8=""),"",IF(AND($E$3="1st"),'Marks Entry 1st'!AE7,IF(AND($E$3="2nd"),'Marks Entry 2nd'!AE7,""))) -> 21 | BE8: =IF(OR(B8=0,B8=""),"",IF(AND($E$3="1st"),'Marks Entry 1st'!AF7,IF(AND($E$3="2nd"),'Marks Entry 2nd'!AF7,""))) -> 56 | BF8: =IF(AND(BD8="",BE8=""),"",IF(AND(BD8="AB",BE8="AB"),"AB",SUM(BD8:BE8))) -> 77 | BG8: =IF(BF8="","",IF(AND(BC8="AB",BF8="AB"),"AB",SUM(BC8,BF8))) -> 163 | BH8: =COUNTIF(AV8:AX8,"NA")*10+(COUNTIF(AV8:AX8,"ML")*10)+(COUNTIF(AZ8,"ML")*$AZ$7)+(COUNTIF(BA8,"ML")*$BA$7)+(COUNTIF(BD8,"ML")*$BD$7)+(COUNTIF(BE8,"ML")*$BE$7) -> 0 | BI8: =IF(OR(B8="NSO",B8=0,B8=""),"",IF(AND(AZ8="",BD8=""),"",IF(AND(AZ8="",BA8=""),100-BH8,IF(AND(BD8="",BE8=""),100-BH8,200-BH8)))) -> 200 | BJ8: =IF(AND(OR(AV8="ab",AV8="ml"),OR(AW8="ab",AW8="ml"),OR(AZ8="ab",AZ8="ml")),"AB",IF(AND(OR(AV8="ab",AV8="ml"),OR(AZ8="ab",AZ8="ml"),OR(BD8="ab",BD8="ml")),"AB",IF(AND(OR(AW8="ab",AW8="ml"),OR(AX8="ab",AX8="ml"),OR(AZ8="ab",AZ8="ml")),"AB",IF(AND(OR(AW8="ab",AW8="ml"),OR(AX8="ab",AX8="ml"),OR(BD8="ab",BD8="ml")),"AB","")))) ->  | BK8: =IF(OR(B8="NSO",B8="",BD8=""),"",IF(OR(BJ8="AB",BD8="ab"),"AB",IF(BD8="ML","RE",IF(AND(BG8>=36%*BI8,BD8>=$BD$7*20%),"P",IF(AND(BG8>=34%*BI8,BD8>=$BD$7*20%),"G2",IF(AND(BG8>=31%*BI8,BD8>=$BD$7*20%),"G1",IF(AND(BG8>=25%*BI8,BD8>=$BD$7*20%),"S","F"))))))) -> P | BL8: =IF(OR(BK8="",BK8=0,BK8="S",BK8="RE",BK8="F",BK8="AB"),"",IF(BG8>=75%*BI8,"D",IF(BG8>=60%*BI8,"I",IF(BG8>=48%*BI8,"II",IF(BG8>=36%*BI8,"III",""))))) -> D | BM8: =IF(BG8="","",IF(OR(BK8="",BK8=0,BK8="RE",BK8="AB"),"",IF(BG8>85%*BI8,"A",IF(BG8>70%*BI8,"B",IF(BG8>50%*BI8,"C",IF(BG8>30%*BI8,"D","E")))))) -> B | BR8: =IF(OR(B8=0,B8=""),"",IF(AND('Marks Entry 1st'!AJ7="",'Marks Entry 2nd'!AJ7=""),"",IF(AND($E$3="1st"),'Marks Entry 1st'!AJ7,IF(AND($E$3="2nd"),'Marks Entry 2nd'!AJ7,"")))) -> 45 | BS8: =IF(OR(B8=0,B8=""),"",IF(AND('Marks Entry 1st'!AK7="",'Marks Entry 2nd'!AK7=""),"",IF(AND($E$3="1st"),'Marks Entry 1st'!AK7,IF(AND($E$3="2nd"),'Marks Entry 2nd'!AK7,"")))) ->  | BT8: =IF(AND(BR8="",BS8=""),"",IF(AND(BR8="NA",BS8="NA"),"NA",IF(AND(BR8="AB",BS8="AB"),"AB",SUM(BR8:BS8)))) -> 45 | BU8: =IF(AND(BQ8="NA",BT8="NA"),"NA",IF(AND(BQ8="AB",BT8="AB"),"AB",SUM(BQ8,BT8))) -> 45 | BV8: =IF(OR(B8=0,B8=""),"",IF(AND('Marks Entry 1st'!AL7="",'Marks Entry 2nd'!AL7=""),"",IF(AND($E$3="1st"),'Marks Entry 1st'!AL7,IF(AND($E$3="2nd"),'Marks Entry 2nd'!AL7,"")))) -> 45 | BW8: =IF(OR(B8=0,B8=""),"",IF(AND('Marks Entry 1st'!AM7="",'Marks Entry 2nd'!AM7=""),"",IF(AND($E$3="1st"),'Marks Entry 1st'!AM7,IF(AND($E$3="2nd"),'Marks Entry 2nd'!AM7,"")))) ->  | BX8: =IF(AND(BV8="",BW8=""),"",IF(AND(BV8="AB",BW8="AB"),"AB",SUM(BV8:BW8))) -> 45 | BY8: =IF(BX8="","",IF(AND(BU8="AB",BX8="AB"),"AB",SUM(BU8,BX8))) -> 90 | BZ8: =COUNTIF(BN8:BP8,"NA")*10+(COUNTIF(BN8:BP8,"ML")*10)+(COUNTIF(BR8,"ML")*$BR$7)+(COUNTIF(BV8,"ML")*$BV$7) -> 0 | CA8: =IF(OR(B8="NSO",B8=0,B8=""),"",IF(AND(BR8="",BV8=""),"",IF(AND(BR8="",BS8=""),50-BZ8,IF(AND(BV8="",BW8=""),50-BZ8,100-BZ8)))) -> 100 | CB8: =IF(AND(OR(BN8="ab",BN8="ml"),OR(BO8="ab",BO8="ml"),OR(BR8="ab",BR8="ml")),"AB",IF(AND(OR(BN8="ab",BN8="ml"),OR(BR8="ab",BR8="ml"),OR(BV8="ab",BV8="ml")),"AB",IF(AND(OR(BO8="ab",BO8="ml"),OR(BP8="ab",BP8="ml"),OR(BR8="ab",BR8="ml")),"AB",IF(AND(OR(BO8="ab",BO8="ml"),OR(BP8="ab",BP8="ml"),OR(BV8="ab",BV8="ml")),"AB","")))) ->  | CC8: =IF(OR(B8="NSO",B8="",BV8=""),"",IF(OR(CB8="AB",BV8="ab"),"AB",IF(BV8="ML","RE",IF(AND(BY8>=36%*CA8,BV8>=$BV$7*20%),"P",IF(AND(BY8>=34%*CA8,BV8>=$BV$7*20%),"G2",IF(AND(BY8>=31%*CA8,BV8>=$BV$7*20%),"G1",IF(AND(BY8>=25%*CA8,BV8>=$BV$7*20%),"S","F"))))))) -> P | CD8: =IF(OR(CC8="",CC8=0,CC8="S",CC8="RE",CC8="F",CC8="AB"),"",IF(BY8>=75%*CA8,"D",IF(BY8>=60%*CA8,"I",IF(BY8>=48%*CA8,"II",IF(BY8>=36%*CA8,"III",""))))) -> D | CE8: =IF(BY8="","",IF(OR(CC8="",CC8=0,CC8="RE",CC8="AB"),"",IF(BY8>85%*CA8,"A",IF(BY8>70%*CA8,"B",IF(BY8>50%*CA8,"C",IF(BY8>30%*CA8,"D","E")))))) -> A | CF8: =IF(OR(B8=0,B8=""),"",IF(AND($E$3="1st"),'Marks Entry 1st'!AN7,IF(AND($E$3="2nd"),'Marks Entry 2nd'!AN7,""))) -> 25 | CG8: =IF(OR(B8=0,B8=""),"",IF(AND($E$3="1st"),'Marks Entry 1st'!AO7,IF(AND($E$3="2nd"),'Marks Entry 2nd'!AO7,""))) -> 20 | CH8: =IF(AND(CF8="",CG8=""),"",IF(AND(CF8="AB",CG8="AB"),"AB",SUM(CF8:CG8))) -> 45 | CI8: =COUNTIF(CF8,"ML")*$CF$7+COUNTIF(CG8,"ML")*$CG$7 -> 0 | CJ8: =IF(OR(B8="NSO",B8="",CH8="",CH8=0),"",IF(AND(CF8="",CG8=""),"",IF(AND(CF8=""),$CF$7-CI8,IF(CG8="",($CF$7+$CG$7)-CI8,$CH$7-CI8)))) -> 50 | CK8: =IF(OR(B8="NSO",B8="",CH8="",CH8=0),"",IF(OR(CF8="AB",CG8="AB"),"AB",IF(CH8>=36%*CJ8,"P","S"))) -> P | CL8: =IF(CH8="","",IF(OR(CK8="",CK8=0,CK8="S",CK8="RE",CK8="F",CK8="AB"),"",IF(CH8>90%*CJ8,"A+",IF(CH8>75%*CJ8,"A",IF(CH8>60%*CJ8,"B",IF(CH8>40%*CJ8,"C","D")))))) -> A | CM8: =IF(OR(B8=0,B8=""),"",IF(AND($E$3="1st"),'Marks Entry 1st'!AP7,IF(AND($E$3="2nd"),'Marks Entry 2nd'!AP7,""))) -> 11 | CN8: =IF(OR(B8=0,B8=""),"",IF(AND($E$3="1st"),'Marks Entry 1st'!AQ7,IF(AND($E$3="2nd"),'Marks Entry 2nd'!AQ7,""))) -> 20 | CO8: =IF(AND(CM8="",CN8=""),"",IF(AND(CM8="AB",CN8="AB"),"AB",SUM(CM8:CN8))) -> 31 | CP8: =COUNTIF(CM8,"ML")*$CM$7+COUNTIF(CN8,"ML")*$CN$7 -> 0 | CQ8: =IF(OR(B8="NSO",B8="",CO8="",CO8=0),"",IF(AND(CM8="",CN8=""),"",IF(AND(CM8=""),$CM$7-CP8,IF(CN8="",($CM$7+$CN$7)-CP8,$CO$7-CP8)))) -> 50 | CR8: =IF(OR(B8="NSO",B8="",CO8="",CO8=0),"",IF(OR(CM8="AB",CN8="AB"),"AB",IF(CO8>=36%*CQ8,"P","S"))) -> P | CS8: =IF(CO8="","",IF(OR(CR8="",CR8=0,CR8="S",CR8="RE",CR8="F",CR8="AB"),"",IF(CO8>90%*CQ8,"A+",IF(CO8>75%*CQ8,"A",IF(CO8>60%*CQ8,"B",IF(CO8>40%*CQ8,"C","D")))))) -> B | CT8: =IF(OR(B8=0,B8=""),"",IF(AND($E$3="1st"),'Marks Entry 1st'!AR7,IF(AND($E$3="2nd"),'Marks Entry 2nd'!AR7,""))) -> 41 | CU8: =IF(OR(B8=0,B8=""),"",IF(AND($E$3="1st"),'Marks Entry 1st'!AS7,IF(AND($E$3="2nd"),'Marks Entry 2nd'!AS7,""))) -> 35 | CV8: =IF(AND(CT8="",CU8=""),"",IF(AND(CT8="AB",CU8="AB"),"AB",SUM(CT8:CU8))) -> 76 | CW8: =COUNTIF(CT8,"ML")*$CT$7+COUNTIF(CU8,"ML")*$CU$7 -> 0 | CX8: =IF(OR(B8="NSO",B8="",CV8="",CV8=0),"",IF(AND(CT8="",CU8=""),"",IF(AND(CT8=""),$CT$7-CW8,IF(CU8="",($CT$7+$CU$7)-CW8,$CV$7-CW8)))) -> 100 | CY8: =IF(OR(B8="NSO",B8="",CV8="",CV8=0),"",IF(OR(CT8="AB",CU8="AB"),"AB",IF(CV8>=36%*CX8,"P","S"))) -> P | CZ8: =IF(CV8="","",IF(OR(CY8="",CY8=0,CY8="S",CY8="RE",CY8="F",CY8="AB"),"",IF(CV8>90%*CX8,"A+",IF(CV8>75%*CX8,"A",IF(CV8>60%*CX8,"B",IF(CV8>40%*CX8,"C","D")))))) -> A | DA8: =IF(OR(B8=0,B8=""),"",IF(AND('Marks Entry 1st'!AT7="",'Marks Entry 2nd'!AT7=""),"",IF(AND($E$3="1st"),'Marks Entry 1st'!AT7,IF(AND($E$3="2nd"),'Marks Entry 2nd'!AT7,"")))) -> 45 | DB8: =IF(OR(B8=0,B8=""),"",IF(AND('Marks Entry 1st'!AU7="",'Marks Entry 2nd'!AU7=""),"",IF(AND($E$3="1st"),'Marks Entry 1st'!AU7,IF(AND($E$3="2nd"),'Marks Entry 2nd'!AU7,"")))) -> 46 | DC8: =IF(AND(DA8="",DB8=""),"",SUM(DA8:DB8)) -> 91 | DD8: =IF(DC8="","",IF(OR(DC8="",DC8=0,DC8="RE",DC8="AB"),"",IF(DC8>85%*$DC$7,"A",IF(DC8>70%*$DC$7,"B",IF(DC8>50%*$DC$7,"C",IF(DC8>30%*$DC$7,"D","E")))))) -> A | DE8: =IF(OR(B8=0,B8=""),"",IF(AND('Marks Entry 1st'!AV7="",'Marks Entry 2nd'!AV7=""),"",IF(AND($E$3="1st"),'Marks Entry 1st'!AV7,IF(AND($E$3="2nd"),'Marks Entry 2nd'!AV7,"")))) -> 47 | DF8: =IF(OR(B8=0,B8=""),"",IF(AND('Marks Entry 1st'!AW7="",'Marks Entry 2nd'!AW7=""),"",IF(AND($E$3="1st"),'Marks Entry 1st'!AW7,IF(AND($E$3="2nd"),'Marks Entry 2nd'!AW7,"")))) -> 48 | DG8: =IF(AND(DE8="",DF8=""),"",SUM(DE8:DF8)) -> 95 | DH8: =IF(DG8="","",IF(OR(DG8="",DG8=0,DG8="RE",DG8="AB"),"",IF(DG8>85%*$DG$7,"A",IF(DG8>70%*$DG$7,"B",IF(DG8>50%*$DG$7,"C",IF(DG8>30%*$DG$7,"D","E")))))) -> A | DI8: =IF($E$3="","",IF(OR(B8="",G8="",C8=""),"",SUM(W8,AO8,BG8))) -> 389 | DJ8: =IF(OR(DI8="",DI8=0),"",DI8*100/(Y8+AQ8+BI8)) -> 77.80 % | DK8: =IF(OR(DJ8="",B8="NSO"),"",IF(AND(DJ8>=60),"I",IF(AND(DJ8>=48),"II",IF(AND(DJ8>=36),"III","")))) -> I | DL8: =IF(OR(DJ8="",B8="NSO",DI8=0),"",SUMPRODUCT((DJ8<$DJ$8:$DJ$207)/COUNTIF($DJ$8:$DJ$207,$DJ$8:$DJ$207))) -> 19 | DM8: =IF(B8="NSO","NSO",IF(OR(D8="",G8="",F8="",B8="",DI8=0),"",IF('Master sheet'!$D$11="Hindi","कक्षोंन्नति","Promoted"))) -> Promoted | DN8: =IF(OR(B8=0,B8=""),"",IF(AND($E$3="1st"),'Marks Entry 1st'!AX7,IF(AND($E$3="2nd"),'Marks Entry 2nd'!AX7,""))) -> 220 | DO8: =IF(OR(B8=0,B8=""),"",IF(AND($E$3="1st"),'Marks Entry 1st'!AY7,IF(AND($E$3="2nd"),'Marks Entry 2nd'!AY7,""))) -> 170 | DP8: =IF(OR(B8="",G8="",DI8="",B8="NSO"),"",IF(DI8>85%*(Y8+AQ8+BI8),"A",IF(DI8>70%*(Y8+AQ8+BI8),"B",IF(DI8>50%*(Y8+AQ8+BI8),"C",IF(DI8>30%*(Y8+AQ8+BI8),"D","E"))))) -> B | DX8: =IF(AND($E$3="1st"),'Marks Entry 1st'!I7,IF(AND($E$3="2nd"),'Marks Entry 2nd'!I7,"")) -> 101
A9: 2 | B9: =IF(OR(DX9=0,DX9=""),"",IF(AND($E$3="1st"),'Marks Entry 1st'!I8,IF(AND($E$3="2nd"),'Marks Entry 2nd'!I8,""))) -> 102 | C9: =IF(OR(B9=0,B9=""),"",IF(AND($E$3="1st"),'Marks Entry 1st'!B8,IF(AND($E$3="2nd"),'Marks Entry 2nd'!B8,""))) -> 1 | D9: =IF(OR(B9=0,B9=""),"",IF(AND($E$3="1st"),'Marks Entry 1st'!C8,IF(AND($E$3="2nd"),'Marks Entry 2nd'!C8,""))) -> A | E9: =IF(OR(B9=0,B9=""),"",IF(AND($E$3="1st"),'Marks Entry 1st'!E8,IF(AND($E$3="2nd"),'Marks Entry 2nd'!E8,""))) -> 2015-01-01 | F9: =IF(OR(B9=0,B9=""),"",IF(AND($E$3="1st"),'Marks Entry 1st'!D8,IF(AND($E$3="2nd"),'Marks Entry 2nd'!D8,""))) -> 944 | G9: =IF(OR(B9=0,B9=""),"",IF(AND($E$3="1st"),'Marks Entry 1st'!F8,IF(AND($E$3="2nd"),'Marks Entry 2nd'!F8,""))) -> ANUJ GIRI | H9: =IF(OR(B9=0,B9=""),"",IF(AND($E$3="1st"),'Marks Entry 1st'!G8,IF(AND($E$3="2nd"),'Marks Entry 2nd'!G8,""))) -> BHAGWAT GIRI | I9: =IF(OR(B9=0,B9=""),"",IF(AND($E$3="1st"),'Marks Entry 1st'!H8,IF(AND($E$3="2nd"),'Marks Entry 2nd'!H8,""))) -> KANTA DEVI | J9: =IF(OR(B9=0,B9=""),"",IF(AND($E$3="1st"),'Marks Entry 1st'!J8,IF(AND($E$3="2nd"),'Marks Entry 2nd'!J8,""))) -> M | K9: =IF(OR(B9=0,B9=""),"",IF(AND($E$3="1st"),'Marks Entry 1st'!K8,IF(AND($E$3="2nd"),'Marks Entry 2nd'!K8,""))) -> OBC | P9: =IF(OR(B9=0,B9=""),"",IF(AND($E$3="1st"),'Marks Entry 1st'!O8,IF(AND($E$3="2nd"),'Marks Entry 2nd'!O8,""))) -> 20 | Q9: =IF(OR(B9=0,B9=""),"",IF(AND($E$3="1st"),'Marks Entry 1st'!P8,IF(AND($E$3="2nd"),'Marks Entry 2nd'!P8,""))) -> 63 | R9: =IF(AND(P9="",Q9=""),"",IF(AND(P9="NA",Q9="NA"),"NA",IF(AND(P9="AB",Q9="AB"),"AB",SUM(P9:Q9)))) -> 83 | S9: =IF(AND(O9="NA",R9="NA"),"NA",IF(AND(O9="AB",R9="AB"),"AB",SUM(O9,R9))) -> 83 | T9: =IF(OR(B9=0,B9=""),"",IF(AND($E$3="1st"),'Marks Entry 1st'!Q8,IF(AND($E$3="2nd"),'Marks Entry 2nd'!Q8,""))) -> 21 | U9: =IF(OR(B9=0,B9=""),"",IF(AND($E$3="1st"),'Marks Entry 1st'!R8,IF(AND($E$3="2nd"),'Marks Entry 2nd'!R8,""))) -> 20 | V9: =IF(AND(T9="",U9=""),"",IF(AND(T9="AB",U9="AB"),"AB",SUM(T9:U9))) -> 41 | W9: =IF(V9="","",IF(AND(S9="AB",V9="AB"),"AB",SUM(S9,V9))) -> 124 | X9: =COUNTIF(L9:N9,"NA")*10+(COUNTIF(L9:N9,"ML")*10)+(COUNTIF(P9,"ML")*$P$7)+(COUNTIF(Q9,"ML")*$Q$7)+(COUNTIF(T9,"ML")*$T$7)+(COUNTIF(U9,"ML")*$U$7) -> 0 | Y9: =IF(OR(B9="NSO",B9=0,B9=""),"",IF(AND(P9="",T9=""),"",IF(AND(P9="",Q9=""),100-X9,IF(AND(T9="",U9=""),100-X9,200-X9)))) -> 200 | Z9: =IF(AND(OR(L9="ab",L9="ml"),OR(M9="ab",M9="ml"),OR(P9="ab",P9="ml")),"AB",IF(AND(OR(L9="ab",L9="ml"),OR(P9="ab",P9="ml"),OR(T9="ab",T9="ml")),"AB",IF(AND(OR(M9="ab",M9="ml"),OR(N9="ab",N9="ml"),OR(P9="ab",P9="ml")),"AB",IF(AND(OR(M9="ab",M9="ml"),OR(N9="ab",N9="ml"),OR(T9="ab",T9="ml")),"AB","")))) ->  | AA9: =IF(OR(B9="NSO",B9="",T9=""),"",IF(OR(Z9="AB",T9="ab"),"AB",IF(T9="ML","RE",IF(AND(W9>=36%*Y9,T9>=$T$7*20%),"P",IF(AND(W9>=34%*Y9,T9>=$T$7*20%),"G2",IF(AND(W9>=31%*Y9,T9>=$T$7*20%),"G1",IF(AND(W9>=25%*Y9,T9>=$T$7*20%),"S","F"))))))) -> P | AB9: =IF(OR(AA9="",AA9=0,AA9="S",AA9="RE",AA9="F",AA9="AB"),"",IF(W9>=75%*Y9,"D",IF(W9>=60%*Y9,"I",IF(W9>=48%*Y9,"II",IF(W9>=36%*Y9,"III",""))))) -> I | AC9: =IF(W9="","",IF(OR(AA9="",AA9=0,AA9="RE",AA9="AB"),"",IF(W9>85%*Y9,"A",IF(W9>70%*Y9,"B",IF(W9>50%*Y9,"C",IF(W9>30%*Y9,"D","E")))))) -> C | AH9: =IF(OR(B9=0,B9=""),"",IF(AND($E$3="1st"),'Marks Entry 1st'!V8,IF(AND($E$3="2nd"),'Marks Entry 2nd'!V8,""))) -> 12 | AI9: =IF(OR(B9=0,B9=""),"",IF(AND($E$3="1st"),'Marks Entry 1st'!W8,IF(AND($E$3="2nd"),'Marks Entry 2nd'!W8,""))) -> 31 | AJ9: =IF(AND(AH9="",AI9=""),"",IF(AND(AH9="NA",AI9="NA"),"NA",IF(AND(AH9="AB",AI9="AB"),"AB",SUM(AH9:AI9)))) -> 43 | AK9: =IF(AND(AG9="NA",AJ9="NA"),"NA",IF(AND(AG9="AB",AJ9="AB"),"AB",SUM(AG9,AJ9))) -> 43 | AL9: =IF(OR(B9=0,B9=""),"",IF(AND($E$3="1st"),'Marks Entry 1st'!X8,IF(AND($E$3="2nd"),'Marks Entry 2nd'!X8,""))) -> 10 | AM9: =IF(OR(B9=0,B9=""),"",IF(AND($E$3="1st"),'Marks Entry 1st'!Y8,IF(AND($E$3="2nd"),'Marks Entry 2nd'!Y8,""))) -> 31 | AN9: =IF(AND(AL9="",AM9=""),"",IF(AND(AL9="AB",AM9="AB"),"AB",SUM(AL9:AM9))) -> 41 | AO9: =IF(AN9="","",IF(AND(AK9="AB",AN9="AB"),"AB",SUM(AK9,AN9))) -> 84 | AP9: =COUNTIF(AD9:AF9,"NA")*10+(COUNTIF(AD9:AF9,"ML")*10)+(COUNTIF(AH9,"ML")*$AH$7)+(COUNTIF(AI9,"ML")*$AI$7)+(COUNTIF(AL9,"ML")*$AL$7)+(COUNTIF(AM9,"ML")*$AM$7) -> 0 | AQ9: =IF(OR(B9="NSO",B9=0,B9=""),"",IF(AND(AH9="",AL9=""),"",IF(AND(AH9="",AI9=""),50-AP9,IF(AND(AL9="",AM9=""),50-AP9,100-AP9)))) -> 100 | AR9: =IF(AND(OR(AD9="ab",AD9="ml"),OR(AE9="ab",AE9="ml"),OR(AH9="ab",AH9="ml")),"AB",IF(AND(OR(AD9="ab",AD9="ml"),OR(AH9="ab",AH9="ml"),OR(AL9="ab",AL9="ml")),"AB",IF(AND(OR(AE9="ab",AE9="ml"),OR(AF9="ab",AF9="ml"),OR(AH9="ab",AH9="ml")),"AB",IF(AND(OR(AE9="ab",AE9="ml"),OR(AF9="ab",AF9="ml"),OR(AL9="ab",AL9="ml")),"AB","")))) ->  | AS9: =IF(OR(B9="NSO",B9="",AL9=""),"",IF(OR(AR9="AB",AL9="ab"),"AB",IF(AL9="ML","RE",IF(AND(AO9>=36%*AQ9,AL9>=$AL$7*20%),"P",IF(AND(AO9>=34%*AQ9,AL9>=$AL$7*20%),"G2",IF(AND(AO9>=31%*AQ9,AL9>=$AL$7*20%),"G1",IF(AND(AO9>=25%*AQ9,AL9>=$AL$7*20%),"S","F"))))))) -> P | AT9: =IF(OR(AS9="",AS9=0,AS9="S",AS9="RE",AS9="F",AS9="AB"),"",IF(AO9>=75%*AQ9,"D",IF(AO9>=60%*AQ9,"I",IF(AO9>=48%*AQ9,"II",IF(AO9>=36%*AQ9,"III",""))))) -> D | AU9: =IF(AO9="","",IF(OR(AS9="",AS9=0,AS9="RE",AS9="AB"),"",IF(AO9>85%*AQ9,"A",IF(AO9>70%*AQ9,"B",IF(AO9>50%*AQ9,"C",IF(AO9>30%*AQ9,"D","E")))))) -> B | AZ9: =IF(OR(B9=0,B9=""),"",IF(AND($E$3="1st"),'Marks Entry 1st'!AC8,IF(AND($E$3="2nd"),'Marks Entry 2nd'!AC8,""))) -> 23 | BA9: =IF(OR(B9=0,B9=""),"",IF(AND($E$3="1st"),'Marks Entry 1st'!AD8,IF(AND($E$3="2nd"),'Marks Entry 2nd'!AD8,""))) -> 65 | BB9: =IF(AND(AZ9="",BA9=""),"",IF(AND(AZ9="NA",BA9="NA"),"NA",IF(AND(AZ9="AB",BA9="AB"),"AB",SUM(AZ9:BA9)))) -> 88 | BC9: =IF(AND(AY9="NA",BB9="NA"),"NA",IF(AND(AY9="AB",BB9="AB"),"AB",SUM(AY9,BB9))) -> 88 | BD9: =IF(OR(B9=0,B9=""),"",IF(AND($E$3="1st"),'Marks Entry 1st'!AE8,IF(AND($E$3="2nd"),'Marks Entry 2nd'!AE8,""))) -> 22 | BE9: =IF(OR(B9=0,B9=""),"",IF(AND($E$3="1st"),'Marks Entry 1st'!AF8,IF(AND($E$3="2nd"),'Marks Entry 2nd'!AF8,""))) -> 60 | BF9: =IF(AND(BD9="",BE9=""),"",IF(AND(BD9="AB",BE9="AB"),"AB",SUM(BD9:BE9))) -> 82 | BG9: =IF(BF9="","",IF(AND(BC9="AB",BF9="AB"),"AB",SUM(BC9,BF9))) -> 170 | BH9: =COUNTIF(AV9:AX9,"NA")*10+(COUNTIF(AV9:AX9,"ML")*10)+(COUNTIF(AZ9,"ML")*$AZ$7)+(COUNTIF(BA9,"ML")*$BA$7)+(COUNTIF(BD9,"ML")*$BD$7)+(COUNTIF(BE9,"ML")*$BE$7) -> 0 | BI9: =IF(OR(B9="NSO",B9=0,B9=""),"",IF(AND(AZ9="",BD9=""),"",IF(AND(AZ9="",BA9=""),100-BH9,IF(AND(BD9="",BE9=""),100-BH9,200-BH9)))) -> 200 | BJ9: =IF(AND(OR(AV9="ab",AV9="ml"),OR(AW9="ab",AW9="ml"),OR(AZ9="ab",AZ9="ml")),"AB",IF(AND(OR(AV9="ab",AV9="ml"),OR(AZ9="ab",AZ9="ml"),OR(BD9="ab",BD9="ml")),"AB",IF(AND(OR(AW9="ab",AW9="ml"),OR(AX9="ab",AX9="ml"),OR(AZ9="ab",AZ9="ml")),"AB",IF(AND(OR(AW9="ab",AW9="ml"),OR(AX9="ab",AX9="ml"),OR(BD9="ab",BD9="ml")),"AB","")))) ->  | BK9: =IF(OR(B9="NSO",B9="",BD9=""),"",IF(OR(BJ9="AB",BD9="ab"),"AB",IF(BD9="ML","RE",IF(AND(BG9>=36%*BI9,BD9>=$BD$7*20%),"P",IF(AND(BG9>=34%*BI9,BD9>=$BD$7*20%),"G2",IF(AND(BG9>=31%*BI9,BD9>=$BD$7*20%),"G1",IF(AND(BG9>=25%*BI9,BD9>=$BD$7*20%),"S","F"))))))) -> P | BL9: =IF(OR(BK9="",BK9=0,BK9="S",BK9="RE",BK9="F",BK9="AB"),"",IF(BG9>=75%*BI9,"D",IF(BG9>=60%*BI9,"I",IF(BG9>=48%*BI9,"II",IF(BG9>=36%*BI9,"III",""))))) -> D | BM9: =IF(BG9="","",IF(OR(BK9="",BK9=0,BK9="RE",BK9="AB"),"",IF(BG9>85%*BI9,"A",IF(BG9>70%*BI9,"B",IF(BG9>50%*BI9,"C",IF(BG9>30%*BI9,"D","E")))))) -> B | BR9: =IF(OR(B9=0,B9=""),"",IF(AND('Marks Entry 1st'!AJ8="",'Marks Entry 2nd'!AJ8=""),"",IF(AND($E$3="1st"),'Marks Entry 1st'!AJ8,IF(AND($E$3="2nd"),'Marks Entry 2nd'!AJ8,"")))) -> 45 | BS9: =IF(OR(B9=0,B9=""),"",IF(AND('Marks Entry 1st'!AK8="",'Marks Entry 2nd'!AK8=""),"",IF(AND($E$3="1st"),'Marks Entry 1st'!AK8,IF(AND($E$3="2nd"),'Marks Entry 2nd'!AK8,"")))) ->  | BT9: =IF(AND(BR9="",BS9=""),"",IF(AND(BR9="NA",BS9="NA"),"NA",IF(AND(BR9="AB",BS9="AB"),"AB",SUM(BR9:BS9)))) -> 45 | BU9: =IF(AND(BQ9="NA",BT9="NA"),"NA",IF(AND(BQ9="AB",BT9="AB"),"AB",SUM(BQ9,BT9))) -> 45 | BV9: =IF(OR(B9=0,B9=""),"",IF(AND('Marks Entry 1st'!AL8="",'Marks Entry 2nd'!AL8=""),"",IF(AND($E$3="1st"),'Marks Entry 1st'!AL8,IF(AND($E$3="2nd"),'Marks Entry 2nd'!AL8,"")))) -> 14 | BW9: =IF(OR(B9=0,B9=""),"",IF(AND('Marks Entry 1st'!AM8="",'Marks Entry 2nd'!AM8=""),"",IF(AND($E$3="1st"),'Marks Entry 1st'!AM8,IF(AND($E$3="2nd"),'Marks Entry 2nd'!AM8,"")))) ->  | BX9: =IF(AND(BV9="",BW9=""),"",IF(AND(BV9="AB",BW9="AB"),"AB",SUM(BV9:BW9))) -> 14 | BY9: =IF(BX9="","",IF(AND(BU9="AB",BX9="AB"),"AB",SUM(BU9,BX9))) -> 59 | BZ9: =COUNTIF(BN9:BP9,"NA")*10+(COUNTIF(BN9:BP9,"ML")*10)+(COUNTIF(BR9,"ML")*$BR$7)+(COUNTIF(BV9,"ML")*$BV$7) -> 0 | CA9: =IF(OR(B9="NSO",B9=0,B9=""),"",IF(AND(BR9="",BV9=""),"",IF(AND(BR9="",BS9=""),50-BZ9,IF(AND(BV9="",BW9=""),50-BZ9,100-BZ9)))) -> 100 | CB9: =IF(AND(OR(BN9="ab",BN9="ml"),OR(BO9="ab",BO9="ml"),OR(BR9="ab",BR9="ml")),"AB",IF(AND(OR(BN9="ab",BN9="ml"),OR(BR9="ab",BR9="ml"),OR(BV9="ab",BV9="ml")),"AB",IF(AND(OR(BO9="ab",BO9="ml"),OR(BP9="ab",BP9="ml"),OR(BR9="ab",BR9="ml")),"AB",IF(AND(OR(BO9="ab",BO9="ml"),OR(BP9="ab",BP9="ml"),OR(BV9="ab",BV9="ml")),"AB","")))) ->  | CC9: =IF(OR(B9="NSO",B9="",BV9=""),"",IF(OR(CB9="AB",BV9="ab"),"AB",IF(BV9="ML","RE",IF(AND(BY9>=36%*CA9,BV9>=$BV$7*20%),"P",IF(AND(BY9>=34%*CA9,BV9>=$BV$7*20%),"G2",IF(AND(BY9>=31%*CA9,BV9>=$BV$7*20%),"G1",IF(AND(BY9>=25%*CA9,BV9>=$BV$7*20%),"S","F"))))))) -> P | CD9: =IF(OR(CC9="",CC9=0,CC9="S",CC9="RE",CC9="F",CC9="AB"),"",IF(BY9>=75%*CA9,"D",IF(BY9>=60%*CA9,"I",IF(BY9>=48%*CA9,"II",IF(BY9>=36%*CA9,"III",""))))) -> II | CE9: =IF(BY9="","",IF(OR(CC9="",CC9=0,CC9="RE",CC9="AB"),"",IF(BY9>85%*CA9,"A",IF(BY9>70%*CA9,"B",IF(BY9>50%*CA9,"C",IF(BY9>30%*CA9,"D","E")))))) -> C | CF9: =IF(OR(B9=0,B9=""),"",IF(AND($E$3="1st"),'Marks Entry 1st'!AN8,IF(AND($E$3="2nd"),'Marks Entry 2nd'!AN8,""))) -> 24 | CG9: =IF(OR(B9=0,B9=""),"",IF(AND($E$3="1st"),'Marks Entry 1st'!AO8,IF(AND($E$3="2nd"),'Marks Entry 2nd'!AO8,""))) -> 20 | CH9: =IF(AND(CF9="",CG9=""),"",IF(AND(CF9="AB",CG9="AB"),"AB",SUM(CF9:CG9))) -> 44 | CI9: =COUNTIF(CF9,"ML")*$CF$7+COUNTIF(CG9,"ML")*$CG$7 -> 0 | CJ9: =IF(OR(B9="NSO",B9="",CH9="",CH9=0),"",IF(AND(CF9="",CG9=""),"",IF(AND(CF9=""),$CF$7-CI9,IF(CG9="",($CF$7+$CG$7)-CI9,$CH$7-CI9)))) -> 50 | CK9: =IF(OR(B9="NSO",B9="",CH9="",CH9=0),"",IF(OR(CF9="AB",CG9="AB"),"AB",IF(CH9>=36%*CJ9,"P","S"))) -> P | CL9: =IF(CH9="","",IF(OR(CK9="",CK9=0,CK9="S",CK9="RE",CK9="F",CK9="AB"),"",IF(CH9>90%*CJ9,"A+",IF(CH9>75%*CJ9,"A",IF(CH9>60%*CJ9,"B",IF(CH9>40%*CJ9,"C","D")))))) -> A | CM9: =IF(OR(B9=0,B9=""),"",IF(AND($E$3="1st"),'Marks Entry 1st'!AP8,IF(AND($E$3="2nd"),'Marks Entry 2nd'!AP8,""))) -> 11 | CN9: =IF(OR(B9=0,B9=""),"",IF(AND($E$3="1st"),'Marks Entry 1st'!AQ8,IF(AND($E$3="2nd"),'Marks Entry 2nd'!AQ8,""))) -> 21 | CO9: =IF(AND(CM9="",CN9=""),"",IF(AND(CM9="AB",CN9="AB"),"AB",SUM(CM9:CN9))) -> 32 | CP9: =COUNTIF(CM9,"ML")*$CM$7+COUNTIF(CN9,"ML")*$CN$7 -> 0 | CQ9: =IF(OR(B9="NSO",B9="",CO9="",CO9=0),"",IF(AND(CM9="",CN9=""),"",IF(AND(CM9=""),$CM$7-CP9,IF(CN9="",($CM$7+$CN$7)-CP9,$CO$7-CP9)))) -> 50 | CR9: =IF(OR(B9="NSO",B9="",CO9="",CO9=0),"",IF(OR(CM9="AB",CN9="AB"),"AB",IF(CO9>=36%*CQ9,"P","S"))) -> P | CS9: =IF(CO9="","",IF(OR(CR9="",CR9=0,CR9="S",CR9="RE",CR9="F",CR9="AB"),"",IF(CO9>90%*CQ9,"A+",IF(CO9>75%*CQ9,"A",IF(CO9>60%*CQ9,"B",IF(CO9>40%*CQ9,"C","D")))))) -> B | CT9: =IF(OR(B9=0,B9=""),"",IF(AND($E$3="1st"),'Marks Entry 1st'!AR8,IF(AND($E$3="2nd"),'Marks Entry 2nd'!AR8,""))) -> 31 | CU9: =IF(OR(B9=0,B9=""),"",IF(AND($E$3="1st"),'Marks Entry 1st'!AS8,IF(AND($E$3="2nd"),'Marks Entry 2nd'!AS8,""))) -> 36 | CV9: =IF(AND(CT9="",CU9=""),"",IF(AND(CT9="AB",CU9="AB"),"AB",SUM(CT9:CU9))) -> 67 | CW9: =COUNTIF(CT9,"ML")*$CT$7+COUNTIF(CU9,"ML")*$CU$7 -> 0 | CX9: =IF(OR(B9="NSO",B9="",CV9="",CV9=0),"",IF(AND(CT9="",CU9=""),"",IF(AND(CT9=""),$CT$7-CW9,IF(CU9="",($CT$7+$CU$7)-CW9,$CV$7-CW9)))) -> 100 | CY9: =IF(OR(B9="NSO",B9="",CV9="",CV9=0),"",IF(OR(CT9="AB",CU9="AB"),"AB",IF(CV9>=36%*CX9,"P","S"))) -> P | CZ9: =IF(CV9="","",IF(OR(CY9="",CY9=0,CY9="S",CY9="RE",CY9="F",CY9="AB"),"",IF(CV9>90%*CX9,"A+",IF(CV9>75%*CX9,"A",IF(CV9>60%*CX9,"B",IF(CV9>40%*CX9,"C","D")))))) -> B | DA9: =IF(OR(B9=0,B9=""),"",IF(AND('Marks Entry 1st'!AT8="",'Marks Entry 2nd'!AT8=""),"",IF(AND($E$3="1st"),'Marks Entry 1st'!AT8,IF(AND($E$3="2nd"),'Marks Entry 2nd'!AT8,"")))) -> 46 | DB9: =IF(OR(B9=0,B9=""),"",IF(AND('Marks Entry 1st'!AU8="",'Marks Entry 2nd'!AU8=""),"",IF(AND($E$3="1st"),'Marks Entry 1st'!AU8,IF(AND($E$3="2nd"),'Marks Entry 2nd'!AU8,"")))) -> 32 | DC9: =IF(AND(DA9="",DB9=""),"",SUM(DA9:DB9)) -> 78 | DD9: =IF(DC9="","",IF(OR(DC9="",DC9=0,DC9="RE",DC9="AB"),"",IF(DC9>85%*$DC$7,"A",IF(DC9>70%*$DC$7,"B",IF(DC9>50%*$DC$7,"C",IF(DC9>30%*$DC$7,"D","E")))))) -> B | DE9: =IF(OR(B9=0,B9=""),"",IF(AND('Marks Entry 1st'!AV8="",'Marks Entry 2nd'!AV8=""),"",IF(AND($E$3="1st"),'Marks Entry 1st'!AV8,IF(AND($E$3="2nd"),'Marks Entry 2nd'!AV8,"")))) -> 42 | DF9: =IF(OR(B9=0,B9=""),"",IF(AND('Marks Entry 1st'!AW8="",'Marks Entry 2nd'!AW8=""),"",IF(AND($E$3="1st"),'Marks Entry 1st'!AW8,IF(AND($E$3="2nd"),'Marks Entry 2nd'!AW8,"")))) -> 41 | DG9: =IF(AND(DE9="",DF9=""),"",SUM(DE9:DF9)) -> 83 | DH9: =IF(DG9="","",IF(OR(DG9="",DG9=0,DG9="RE",DG9="AB"),"",IF(DG9>85%*$DG$7,"A",IF(DG9>70%*$DG$7,"B",IF(DG9>50%*$DG$7,"C",IF(DG9>30%*$DG$7,"D","E")))))) -> B | DI9: =IF($E$3="","",IF(OR(B9="",G9="",C9=""),"",SUM(W9,AO9,BG9))) -> 378 | DJ9: =IF(OR(DI9="",DI9=0),"",DI9*100/(Y9+AQ9+BI9)) -> 75.60 % | DK9: =IF(OR(DJ9="",B9="NSO"),"",IF(AND(DJ9>=60),"I",IF(AND(DJ9>=48),"II",IF(AND(DJ9>=36),"III","")))) -> I | DL9: =IF(OR(DJ9="",B9="NSO",DI9=0),"",SUMPRODUCT((DJ9<$DJ$8:$DJ$207)/COUNTIF($DJ$8:$DJ$207,$DJ$8:$DJ$207))) -> 21 | DM9: =IF(B9="NSO","NSO",IF(OR(D9="",G9="",F9="",B9="",DI9=0),"",IF('Master sheet'!$D$11="Hindi","कक्षोंन्नति","Promoted"))) -> Promoted | DN9: =IF(OR(B9=0,B9=""),"",IF(AND($E$3="1st"),'Marks Entry 1st'!AX8,IF(AND($E$3="2nd"),'Marks Entry 2nd'!AX8,""))) -> 220 | DO9: =IF(OR(B9=0,B9=""),"",IF(AND($E$3="1st"),'Marks Entry 1st'!AY8,IF(AND($E$3="2nd"),'Marks Entry 2nd'!AY8,""))) -> 168 | DP9: =IF(OR(B9="",G9="",DI9="",B9="NSO"),"",IF(DI9>85%*(Y9+AQ9+BI9),"A",IF(DI9>70%*(Y9+AQ9+BI9),"B",IF(DI9>50%*(Y9+AQ9+BI9),"C",IF(DI9>30%*(Y9+AQ9+BI9),"D","E"))))) -> B | DX9: =IF(AND($E$3="1st"),'Marks Entry 1st'!I8,IF(AND($E$3="2nd"),'Marks Entry 2nd'!I8,"")) -> 102
A10: 3 | B10: =IF(OR(DX10=0,DX10=""),"",IF(AND($E$3="1st"),'Marks Entry 1st'!I9,IF(AND($E$3="2nd"),'Marks Entry 2nd'!I9,""))) -> 103 | C10: =IF(OR(B10=0,B10=""),"",IF(AND($E$3="1st"),'Marks Entry 1st'!B9,IF(AND($E$3="2nd"),'Marks Entry 2nd'!B9,""))) -> 1 | D10: =IF(OR(B10=0,B10=""),"",IF(AND($E$3="1st"),'Marks Entry 1st'!C9,IF(AND($E$3="2nd"),'Marks Entry 2nd'!C9,""))) -> A | E10: =IF(OR(B10=0,B10=""),"",IF(AND($E$3="1st"),'Marks Entry 1st'!E9,IF(AND($E$3="2nd"),'Marks Entry 2nd'!E9,""))) -> 2015-12-10 | F10: =IF(OR(B10=0,B10=""),"",IF(AND($E$3="1st"),'Marks Entry 1st'!D9,IF(AND($E$3="2nd"),'Marks Entry 2nd'!D9,""))) -> 934 | G10: =IF(OR(B10=0,B10=""),"",IF(AND($E$3="1st"),'Marks Entry 1st'!F9,IF(AND($E$3="2nd"),'Marks Entry 2nd'!F9,""))) -> ARMAN HUSSAIN | H10: =IF(OR(B10=0,B10=""),"",IF(AND($E$3="1st"),'Marks Entry 1st'!G9,IF(AND($E$3="2nd"),'Marks Entry 2nd'!G9,""))) -> AARIF HUSSAIN | I10: =IF(OR(B10=0,B10=""),"",IF(AND($E$3="1st"),'Marks Entry 1st'!H9,IF(AND($E$3="2nd"),'Marks Entry 2nd'!H9,""))) -> SALMA BANO | J10: =IF(OR(B10=0,B10=""),"",IF(AND($E$3="1st"),'Marks Entry 1st'!J9,IF(AND($E$3="2nd"),'Marks Entry 2nd'!J9,""))) -> M | K10: =IF(OR(B10=0,B10=""),"",IF(AND($E$3="1st"),'Marks Entry 1st'!K9,IF(AND($E$3="2nd"),'Marks Entry 2nd'!K9,""))) -> OBC | P10: =IF(OR(B10=0,B10=""),"",IF(AND($E$3="1st"),'Marks Entry 1st'!O9,IF(AND($E$3="2nd"),'Marks Entry 2nd'!O9,""))) -> 21 | Q10: =IF(OR(B10=0,B10=""),"",IF(AND($E$3="1st"),'Marks Entry 1st'!P9,IF(AND($E$3="2nd"),'Marks Entry 2nd'!P9,""))) -> 69 | R10: 90 | S10: 90 | T10: =IF(OR(B10=0,B10=""),"",IF(AND($E$3="1st"),'Marks Entry 1st'!Q9,IF(AND($E$3="2nd"),'Marks Entry 2nd'!Q9,""))) -> 27 | U10: =IF(OR(B10=0,B10=""),"",IF(AND($E$3="1st"),'Marks Entry 1st'!R9,IF(AND($E$3="2nd"),'Marks Entry 2nd'!R9,""))) -> 21 | V10: 48 | W10: 138 | X10: 0 | Y10: 200 | AA10: P | AB10: I | AC10: C | AH10: =IF(OR(B10=0,B10=""),"",IF(AND($E$3="1st"),'Marks Entry 1st'!V9,IF(AND($E$3="2nd"),'Marks Entry 2nd'!V9,""))) -> 13 | AI10: =IF(OR(B10=0,B10=""),"",IF(AND($E$3="1st"),'Marks Entry 1st'!W9,IF(AND($E$3="2nd"),'Marks Entry 2nd'!W9,""))) -> 30 | AJ10: 43 | AK10: 43 | AL10: =IF(OR(B10=0,B10=""),"",IF(AND($E$3="1st"),'Marks Entry 1st'!X9,IF(AND($E$3="2nd"),'Marks Entry 2nd'!X9,""))) -> 11 | AM10: =IF(OR(B10=0,B10=""),"",IF(AND($E$3="1st"),'Marks Entry 1st'!Y9,IF(AND($E$3="2nd"),'Marks Entry 2nd'!Y9,""))) -> 32 | AN10: 43 | AO10: 86 | AP10: 0 | AQ10: 100 | AS10: P | AT10: D | AU10: A | AZ10: =IF(OR(B10=0,B10=""),"",IF(AND($E$3="1st"),'Marks Entry 1st'!AC9,IF(AND($E$3="2nd"),'Marks Entry 2nd'!AC9,""))) -> 24 | BA10: =IF(OR(B10=0,B10=""),"",IF(AND($E$3="1st"),'Marks Entry 1st'!AD9,IF(AND($E$3="2nd"),'Marks Entry 2nd'!AD9,""))) -> 62 | BB10: 86 | BC10: 86 | BD10: =IF(OR(B10=0,B10=""),"",IF(AND($E$3="1st"),'Marks Entry 1st'!AE9,IF(AND($E$3="2nd"),'Marks Entry 2nd'!AE9,""))) -> 23 | BE10: =IF(OR(B10=0,B10=""),"",IF(AND($E$3="1st"),'Marks Entry 1st'!AF9,IF(AND($E$3="2nd"),'Marks Entry 2nd'!AF9,""))) -> 62 | BF10: 85 | BG10: 171 | BH10: 0 | BI10: 200 | BK10: P | BL10: D | BM10: A | BR10: =IF(OR(B10=0,B10=""),"",IF(AND('Marks Entry 1st'!AJ9="",'Marks Entry 2nd'!AJ9=""),"",IF(AND($E$3="1st"),'Marks Entry 1st'!AJ9,IF(AND($E$3="2nd"),'Marks Entry 2nd'!AJ9,"")))) -> 45 | BS10: =IF(OR(B10=0,B10=""),"",IF(AND('Marks Entry 1st'!AK9="",'Marks Entry 2nd'!AK9=""),"",IF(AND($E$3="1st"),'Marks Entry 1st'!AK9,IF(AND($E$3="2nd"),'Marks Entry 2nd'!AK9,"")))) ->  | BT10: 45 | BU10: 45 | BV10: =IF(OR(B10=0,B10=""),"",IF(AND('Marks Entry 1st'!AL9="",'Marks Entry 2nd'!AL9=""),"",IF(AND($E$3="1st"),'Marks Entry 1st'!AL9,IF(AND($E$3="2nd"),'Marks Entry 2nd'!AL9,"")))) -> 45 | BW10: =IF(OR(B10=0,B10=""),"",IF(AND('Marks Entry 1st'!AM9="",'Marks Entry 2nd'!AM9=""),"",IF(AND($E$3="1st"),'Marks Entry 1st'!AM9,IF(AND($E$3="2nd"),'Marks Entry 2nd'!AM9,"")))) ->  | BX10: 45 | BY10: 90 | BZ10: 0 | CA10: 100 | CC10: P | CD10: D | CE10: A | CF10: =IF(OR(B10=0,B10=""),"",IF(AND($E$3="1st"),'Marks Entry 1st'!AN9,IF(AND($E$3="2nd"),'Marks Entry 2nd'!AN9,""))) -> AB | CG10: =IF(OR(B10=0,B10=""),"",IF(AND($E$3="1st"),'Marks Entry 1st'!AO9,IF(AND($E$3="2nd"),'Marks Entry 2nd'!AO9,""))) -> 18 | CH10: 18 | CI10: 0 | CJ10: 50 | CK10: AB | CM10: =IF(OR(B10=0,B10=""),"",IF(AND($E$3="1st"),'Marks Entry 1st'!AP9,IF(AND($E$3="2nd"),'Marks Entry 2nd'!AP9,""))) -> 11 | CN10: =IF(OR(B10=0,B10=""),"",IF(AND($E$3="1st"),'Marks Entry 1st'!AQ9,IF(AND($E$3="2nd"),'Marks Entry 2nd'!AQ9,""))) -> 21 | CO10: 32 | CP10: 0 | CQ10: 50 | CR10: P | CS10: B | CT10: =IF(OR(B10=0,B10=""),"",IF(AND($E$3="1st"),'Marks Entry 1st'!AR9,IF(AND($E$3="2nd"),'Marks Entry 2nd'!AR9,""))) -> 45 | CU10: =IF(OR(B10=0,B10=""),"",IF(AND($E$3="1st"),'Marks Entry 1st'!AS9,IF(AND($E$3="2nd"),'Marks Entry 2nd'!AS9,""))) -> 36 | CV10: 81 | CW10: 0 | CX10: 100 | CY10: P | CZ10: A | DA10: =IF(OR(B10=0,B10=""),"",IF(AND('Marks Entry 1st'!AT9="",'Marks Entry 2nd'!AT9=""),"",IF(AND($E$3="1st"),'Marks Entry 1st'!AT9,IF(AND($E$3="2nd"),'Marks Entry 2nd'!AT9,"")))) -> 46 | DB10: =IF(OR(B10=0,B10=""),"",IF(AND('Marks Entry 1st'!AU9="",'Marks Entry 2nd'!AU9=""),"",IF(AND($E$3="1st"),'Marks Entry 1st'!AU9,IF(AND($E$3="2nd"),'Marks Entry 2nd'!AU9,"")))) -> 32 | DC10: 78 | DD10: B | DE10: =IF(OR(B10=0,B10=""),"",IF(AND('Marks Entry 1st'!AV9="",'Marks Entry 2nd'!AV9=""),"",IF(AND($E$3="1st"),'Marks Entry 1st'!AV9,IF(AND($E$3="2nd"),'Marks Entry 2nd'!AV9,"")))) -> 42 | DF10: =IF(OR(B10=0,B10=""),"",IF(AND('Marks Entry 1st'!AW9="",'Marks Entry 2nd'!AW9=""),"",IF(AND($E$3="1st"),'Marks Entry 1st'!AW9,IF(AND($E$3="2nd"),'Marks Entry 2nd'!AW9,"")))) -> 41 | DG10: 83 | DH10: B | DI10: =IF($E$3="","",IF(OR(B10="",G10="",C10=""),"",SUM(W10,AO10,BG10))) -> 395 | DJ10: =IF(OR(DI10="",DI10=0),"",DI10*100/(Y10+AQ10+BI10)) -> 79.00 % | DK10: I | DL10: 17 | DM10: =IF(B10="NSO","NSO",IF(OR(D10="",G10="",F10="",B10="",DI10=0),"",IF('Master sheet'!$D$11="Hindi","कक्षोंन्नति","Promoted"))) -> Promoted | DN10: =IF(OR(B10=0,B10=""),"",IF(AND($E$3="1st"),'Marks Entry 1st'!AX9,IF(AND($E$3="2nd"),'Marks Entry 2nd'!AX9,""))) -> 220 | DO10: =IF(OR(B10=0,B10=""),"",IF(AND($E$3="1st"),'Marks Entry 1st'!AY9,IF(AND($E$3="2nd"),'Marks Entry 2nd'!AY9,""))) -> 160 | DP10: B | DX10: =IF(AND($E$3="1st"),'Marks Entry 1st'!I9,IF(AND($E$3="2nd"),'Marks Entry 2nd'!I9,"")) -> 103
A11: 4 | B11: =IF(OR(DX11=0,DX11=""),"",IF(AND($E$3="1st"),'Marks Entry 1st'!I10,IF(AND($E$3="2nd"),'Marks Entry 2nd'!I10,""))) -> 104 | C11: =IF(OR(B11=0,B11=""),"",IF(AND($E$3="1st"),'Marks Entry 1st'!B10,IF(AND($E$3="2nd"),'Marks Entry 2nd'!B10,""))) -> 1 | D11: =IF(OR(B11=0,B11=""),"",IF(AND($E$3="1st"),'Marks Entry 1st'!C10,IF(AND($E$3="2nd"),'Marks Entry 2nd'!C10,""))) -> A | E11: =IF(OR(B11=0,B11=""),"",IF(AND($E$3="1st"),'Marks Entry 1st'!E10,IF(AND($E$3="2nd"),'Marks Entry 2nd'!E10,""))) -> 2016-05-01 | F11: =IF(OR(B11=0,B11=""),"",IF(AND($E$3="1st"),'Marks Entry 1st'!D10,IF(AND($E$3="2nd"),'Marks Entry 2nd'!D10,""))) -> 926 | G11: =IF(OR(B11=0,B11=""),"",IF(AND($E$3="1st"),'Marks Entry 1st'!F10,IF(AND($E$3="2nd"),'Marks Entry 2nd'!F10,""))) -> ARMAN SHAH | H11: =IF(OR(B11=0,B11=""),"",IF(AND($E$3="1st"),'Marks Entry 1st'!G10,IF(AND($E$3="2nd"),'Marks Entry 2nd'!G10,""))) -> JAKIR SHAH | I11: =IF(OR(B11=0,B11=""),"",IF(AND($E$3="1st"),'Marks Entry 1st'!H10,IF(AND($E$3="2nd"),'Marks Entry 2nd'!H10,""))) -> HEENA BANU | J11: =IF(OR(B11=0,B11=""),"",IF(AND($E$3="1st"),'Marks Entry 1st'!J10,IF(AND($E$3="2nd"),'Marks Entry 2nd'!J10,""))) -> M | K11: =IF(OR(B11=0,B11=""),"",IF(AND($E$3="1st"),'Marks Entry 1st'!K10,IF(AND($E$3="2nd"),'Marks Entry 2nd'!K10,""))) -> OBC | P11: =IF(OR(B11=0,B11=""),"",IF(AND($E$3="1st"),'Marks Entry 1st'!O10,IF(AND($E$3="2nd"),'Marks Entry 2nd'!O10,""))) -> 23 | Q11: =IF(OR(B11=0,B11=""),"",IF(AND($E$3="1st"),'Marks Entry 1st'!P10,IF(AND($E$3="2nd"),'Marks Entry 2nd'!P10,""))) -> 68 | R11: 91 | S11: 91 | T11: =IF(OR(B11=0,B11=""),"",IF(AND($E$3="1st"),'Marks Entry 1st'!Q10,IF(AND($E$3="2nd"),'Marks Entry 2nd'!Q10,""))) -> 25 | U11: =IF(OR(B11=0,B11=""),"",IF(AND($E$3="1st"),'Marks Entry 1st'!R10,IF(AND($E$3="2nd"),'Marks Entry 2nd'!R10,""))) -> 24 | V11: 49 | W11: 140 | X11: 0 | Y11: 200 | AA11: P | AB11: I | AC11: C | AH11: =IF(OR(B11=0,B11=""),"",IF(AND($E$3="1st"),'Marks Entry 1st'!V10,IF(AND($E$3="2nd"),'Marks Entry 2nd'!V10,""))) -> 14 | AI11: =IF(OR(B11=0,B11=""),"",IF(AND($E$3="1st"),'Marks Entry 1st'!W10,IF(AND($E$3="2nd"),'Marks Entry 2nd'!W10,""))) -> 32 | AJ11: 46 | AK11: 46 | AL11: =IF(OR(B11=0,B11=""),"",IF(AND($E$3="1st"),'Marks Entry 1st'!X10,IF(AND($E$3="2nd"),'Marks Entry 2nd'!X10,""))) -> 12 | AM11: =IF(OR(B11=0,B11=""),"",IF(AND($E$3="1st"),'Marks Entry 1st'!Y10,IF(AND($E$3="2nd"),'Marks Entry 2nd'!Y10,""))) -> 30 | AN11: 42 | AO11: 88 | AP11: 0 | AQ11: 100 | AS11: P | AT11: D | AU11: A | AZ11: =IF(OR(B11=0,B11=""),"",IF(AND($E$3="1st"),'Marks Entry 1st'!AC10,IF(AND($E$3="2nd"),'Marks Entry 2nd'!AC10,""))) -> 25 | BA11: =IF(OR(B11=0,B11=""),"",IF(AND($E$3="1st"),'Marks Entry 1st'!AD10,IF(AND($E$3="2nd"),'Marks Entry 2nd'!AD10,""))) -> 61 | BB11: 86 | BC11: 86 | BD11: =IF(OR(B11=0,B11=""),"",IF(AND($E$3="1st"),'Marks Entry 1st'!AE10,IF(AND($E$3="2nd"),'Marks Entry 2nd'!AE10,""))) -> 25 | BE11: =IF(OR(B11=0,B11=""),"",IF(AND($E$3="1st"),'Marks Entry 1st'!AF10,IF(AND($E$3="2nd"),'Marks Entry 2nd'!AF10,""))) -> 63 | BF11: 88 | BG11: 174 | BH11: 0 | BI11: 200 | BK11: P | BL11: D | BM11: A | BR11: =IF(OR(B11=0,B11=""),"",IF(AND('Marks Entry 1st'!AJ10="",'Marks Entry 2nd'!AJ10=""),"",IF(AND($E$3="1st"),'Marks Entry 1st'!AJ10,IF(AND($E$3="2nd"),'Marks Entry 2nd'!AJ10,"")))) -> 35 | BS11: =IF(OR(B11=0,B11=""),"",IF(AND('Marks Entry 1st'!AK10="",'Marks Entry 2nd'!AK10=""),"",IF(AND($E$3="1st"),'Marks Entry 1st'!AK10,IF(AND($E$3="2nd"),'Marks Entry 2nd'!AK10,"")))) ->  | BT11: 35 | BU11: 35 | BV11: =IF(OR(B11=0,B11=""),"",IF(AND('Marks Entry 1st'!AL10="",'Marks Entry 2nd'!AL10=""),"",IF(AND($E$3="1st"),'Marks Entry 1st'!AL10,IF(AND($E$3="2nd"),'Marks Entry 2nd'!AL10,"")))) -> 48 | BW11: =IF(OR(B11=0,B11=""),"",IF(AND('Marks Entry 1st'!AM10="",'Marks Entry 2nd'!AM10=""),"",IF(AND($E$3="1st"),'Marks Entry 1st'!AM10,IF(AND($E$3="2nd"),'Marks Entry 2nd'!AM10,"")))) ->  | BX11: 48 | BY11: 83 | BZ11: 0 | CA11: 100 | CC11: P | CD11: D | CE11: B | CF11: =IF(OR(B11=0,B11=""),"",IF(AND($E$3="1st"),'Marks Entry 1st'!AN10,IF(AND($E$3="2nd"),'Marks Entry 2nd'!AN10,""))) -> 20 | CG11: =IF(OR(B11=0,B11=""),"",IF(AND($E$3="1st"),'Marks Entry 1st'!AO10,IF(AND($E$3="2nd"),'Marks Entry 2nd'!AO10,""))) -> AB | CH11: 20 | CI11: 0 | CJ11: 50 | CK11: AB | CM11: =IF(OR(B11=0,B11=""),"",IF(AND($E$3="1st"),'Marks Entry 1st'!AP10,IF(AND($E$3="2nd"),'Marks Entry 2nd'!AP10,""))) -> 11 | CN11: =IF(OR(B11=0,B11=""),"",IF(AND($E$3="1st"),'Marks Entry 1st'!AQ10,IF(AND($E$3="2nd"),'Marks Entry 2nd'!AQ10,""))) -> 25 | CO11: 36 | CP11: 0 | CQ11: 50 | CR11: P | CS11: B | CT11: =IF(OR(B11=0,B11=""),"",IF(AND($E$3="1st"),'Marks Entry 1st'!AR10,IF(AND($E$3="2nd"),'Marks Entry 2nd'!AR10,""))) -> 46 | CU11: =IF(OR(B11=0,B11=""),"",IF(AND($E$3="1st"),'Marks Entry 1st'!AS10,IF(AND($E$3="2nd"),'Marks Entry 2nd'!AS10,""))) -> 36 | CV11: 82 | CW11: 0 | CX11: 100 | CY11: P | CZ11: A | DA11: =IF(OR(B11=0,B11=""),"",IF(AND('Marks Entry 1st'!AT10="",'Marks Entry 2nd'!AT10=""),"",IF(AND($E$3="1st"),'Marks Entry 1st'!AT10,IF(AND($E$3="2nd"),'Marks Entry 2nd'!AT10,"")))) -> 46 | DB11: =IF(OR(B11=0,B11=""),"",IF(AND('Marks Entry 1st'!AU10="",'Marks Entry 2nd'!AU10=""),"",IF(AND($E$3="1st"),'Marks Entry 1st'!AU10,IF(AND($E$3="2nd"),'Marks Entry 2nd'!AU10,"")))) -> 32 | DC11: 78 | DD11: B | DE11: =IF(OR(B11=0,B11=""),"",IF(AND('Marks Entry 1st'!AV10="",'Marks Entry 2nd'!AV10=""),"",IF(AND($E$3="1st"),'Marks Entry 1st'!AV10,IF(AND($E$3="2nd"),'Marks Entry 2nd'!AV10,"")))) -> 42 | DF11: =IF(OR(B11=0,B11=""),"",IF(AND('Marks Entry 1st'!AW10="",'Marks Entry 2nd'!AW10=""),"",IF(AND($E$3="1st"),'Marks Entry 1st'!AW10,IF(AND($E$3="2nd"),'Marks Entry 2nd'!AW10,"")))) -> 41 | DG11: 83 | DH11: B | DI11: 402 | DJ11: 80.40 % | DK11: I | DL11: 13 | DM11: =IF(B11="NSO","NSO",IF(OR(D11="",G11="",F11="",B11="",DI11=0),"",IF('Master sheet'!$D$11="Hindi","कक्षोंन्नति","Promoted"))) -> Promoted | DN11: =IF(OR(B11=0,B11=""),"",IF(AND($E$3="1st"),'Marks Entry 1st'!AX10,IF(AND($E$3="2nd"),'Marks Entry 2nd'!AX10,""))) -> 220 | DO11: =IF(OR(B11=0,B11=""),"",IF(AND($E$3="1st"),'Marks Entry 1st'!AY10,IF(AND($E$3="2nd"),'Marks Entry 2nd'!AY10,""))) -> 188 | DP11: B | DX11: =IF(AND($E$3="1st"),'Marks Entry 1st'!I10,IF(AND($E$3="2nd"),'Marks Entry 2nd'!I10,"")) -> 104
A12: 5 | B12: =IF(OR(DX12=0,DX12=""),"",IF(AND($E$3="1st"),'Marks Entry 1st'!I11,IF(AND($E$3="2nd"),'Marks Entry 2nd'!I11,""))) -> 105 | C12: =IF(OR(B12=0,B12=""),"",IF(AND($E$3="1st"),'Marks Entry 1st'!B11,IF(AND($E$3="2nd"),'Marks Entry 2nd'!B11,""))) -> 1 | D12: =IF(OR(B12=0,B12=""),"",IF(AND($E$3="1st"),'Marks Entry 1st'!C11,IF(AND($E$3="2nd"),'Marks Entry 2nd'!C11,""))) -> A | E12: =IF(OR(B12=0,B12=""),"",IF(AND($E$3="1st"),'Marks Entry 1st'!E11,IF(AND($E$3="2nd"),'Marks Entry 2nd'!E11,""))) -> 25-08-2015 | F12: =IF(OR(B12=0,B12=""),"",IF(AND($E$3="1st"),'Marks Entry 1st'!D11,IF(AND($E$3="2nd"),'Marks Entry 2nd'!D11,""))) -> 951 | G12: =IF(OR(B12=0,B12=""),"",IF(AND($E$3="1st"),'Marks Entry 1st'!F11,IF(AND($E$3="2nd"),'Marks Entry 2nd'!F11,""))) -> BHAVYANSH SINGH CHOUHAN | H12: =IF(OR(B12=0,B12=""),"",IF(AND($E$3="1st"),'Marks Entry 1st'!G11,IF(AND($E$3="2nd"),'Marks Entry 2nd'!G11,""))) -> AJIT SINGH | I12: =IF(OR(B12=0,B12=""),"",IF(AND($E$3="1st"),'Marks Entry 1st'!H11,IF(AND($E$3="2nd"),'Marks Entry 2nd'!H11,""))) -> MEENA | J12: =IF(OR(B12=0,B12=""),"",IF(AND($E$3="1st"),'Marks Entry 1st'!J11,IF(AND($E$3="2nd"),'Marks Entry 2nd'!J11,""))) -> M | K12: =IF(OR(B12=0,B12=""),"",IF(AND($E$3="1st"),'Marks Entry 1st'!K11,IF(AND($E$3="2nd"),'Marks Entry 2nd'!K11,""))) -> OBC | P12: =IF(OR(B12=0,B12=""),"",IF(AND($E$3="1st"),'Marks Entry 1st'!O11,IF(AND($E$3="2nd"),'Marks Entry 2nd'!O11,""))) -> 25 | Q12: =IF(OR(B12=0,B12=""),"",IF(AND($E$3="1st"),'Marks Entry 1st'!P11,IF(AND($E$3="2nd"),'Marks Entry 2nd'!P11,""))) -> 67 | R12: 92 | S12: 92 | T12: =IF(OR(B12=0,B12=""),"",IF(AND($E$3="1st"),'Marks Entry 1st'!Q11,IF(AND($E$3="2nd"),'Marks Entry 2nd'!Q11,""))) -> 26 | U12: =IF(OR(B12=0,B12=""),"",IF(AND($E$3="1st"),'Marks Entry 1st'!R11,IF(AND($E$3="2nd"),'Marks Entry 2nd'!R11,""))) -> 21 | V12: 47 | W12: 139 | X12: 0 | Y12: 200 | AA12: P | AB12: I | AC12: C | AH12: =IF(OR(B12=0,B12=""),"",IF(AND($E$3="1st"),'Marks Entry 1st'!V11,IF(AND($E$3="2nd"),'Marks Entry 2nd'!V11,""))) -> 15 | AI12: =IF(OR(B12=0,B12=""),"",IF(AND($E$3="1st"),'Marks Entry 1st'!W11,IF(AND($E$3="2nd"),'Marks Entry 2nd'!W11,""))) -> 31 | AJ12: 46 | AK12: 46 | AL12: =IF(OR(B12=0,B12=""),"",IF(AND($E$3="1st"),'Marks Entry 1st'!X11,IF(AND($E$3="2nd"),'Marks Entry 2nd'!X11,""))) -> 12 | AM12: =IF(OR(B12=0,B12=""),"",IF(AND($E$3="1st"),'Marks Entry 1st'!Y11,IF(AND($E$3="2nd"),'Marks Entry 2nd'!Y11,""))) -> 32 | AN12: 44 | AO12: 90 | AP12: 0 | AQ12: 100 | AS12: P | AT12: D | AU12: A | AZ12: =IF(OR(B12=0,B12=""),"",IF(AND($E$3="1st"),'Marks Entry 1st'!AC11,IF(AND($E$3="2nd"),'Marks Entry 2nd'!AC11,""))) -> 26 | BA12: =IF(OR(B12=0,B12=""),"",IF(AND($E$3="1st"),'Marks Entry 1st'!AD11,IF(AND($E$3="2nd"),'Marks Entry 2nd'!AD11,""))) -> 64 | BB12: 90 | BC12: 90 | BD12: =IF(OR(B12=0,B12=""),"",IF(AND($E$3="1st"),'Marks Entry 1st'!AE11,IF(AND($E$3="2nd"),'Marks Entry 2nd'!AE11,""))) -> 24 | BE12: =IF(OR(B12=0,B12=""),"",IF(AND($E$3="1st"),'Marks Entry 1st'!AF11,IF(AND($E$3="2nd"),'Marks Entry 2nd'!AF11,""))) -> 65 | BF12: 89 | BG12: 179 | BH12: 0 | BI12: 200 | BK12: P | BL12: D | BM12: A | BR12: =IF(OR(B12=0,B12=""),"",IF(AND('Marks Entry 1st'!AJ11="",'Marks Entry 2nd'!AJ11=""),"",IF(AND($E$3="1st"),'Marks Entry 1st'!AJ11,IF(AND($E$3="2nd"),'Marks Entry 2nd'!AJ11,"")))) -> 42 | BS12: =IF(OR(B12=0,B12=""),"",IF(AND('Marks Entry 1st'!AK11="",'Marks Entry 2nd'!AK11=""),"",IF(AND($E$3="1st"),'Marks Entry 1st'!AK11,IF(AND($E$3="2nd"),'Marks Entry 2nd'!AK11,"")))) ->  | BT12: 42 | BU12: 42 | BV12: =IF(OR(B12=0,B12=""),"",IF(AND('Marks Entry 1st'!AL11="",'Marks Entry 2nd'!AL11=""),"",IF(AND($E$3="1st"),'Marks Entry 1st'!AL11,IF(AND($E$3="2nd"),'Marks Entry 2nd'!AL11,"")))) -> 48 | BW12: =IF(OR(B12=0,B12=""),"",IF(AND('Marks Entry 1st'!AM11="",'Marks Entry 2nd'!AM11=""),"",IF(AND($E$3="1st"),'Marks Entry 1st'!AM11,IF(AND($E$3="2nd"),'Marks Entry 2nd'!AM11,"")))) ->  | BX12: 48 | BY12: 90 | BZ12: 0 | CA12: 100 | CC12: P | CD12: D | CE12: A | CF12: =IF(OR(B12=0,B12=""),"",IF(AND($E$3="1st"),'Marks Entry 1st'!AN11,IF(AND($E$3="2nd"),'Marks Entry 2nd'!AN11,""))) -> 22 | CG12: =IF(OR(B12=0,B12=""),"",IF(AND($E$3="1st"),'Marks Entry 1st'!AO11,IF(AND($E$3="2nd"),'Marks Entry 2nd'!AO11,""))) -> 24 | CH12: 46 | CI12: 0 | CJ12: 50 | CK12: P | CL12: A+ | CM12: =IF(OR(B12=0,B12=""),"",IF(AND($E$3="1st"),'Marks Entry 1st'!AP11,IF(AND($E$3="2nd"),'Marks Entry 2nd'!AP11,""))) -> 11 | CN12: =IF(OR(B12=0,B12=""),"",IF(AND($E$3="1st"),'Marks Entry 1st'!AQ11,IF(AND($E$3="2nd"),'Marks Entry 2nd'!AQ11,""))) -> 24 | CO12: 35 | CP12: 0 | CQ12: 50 | CR12: P | CS12: B | CT12: =IF(OR(B12=0,B12=""),"",IF(AND($E$3="1st"),'Marks Entry 1st'!AR11,IF(AND($E$3="2nd"),'Marks Entry 2nd'!AR11,""))) -> 47 | CU12: =IF(OR(B12=0,B12=""),"",IF(AND($E$3="1st"),'Marks Entry 1st'!AS11,IF(AND($E$3="2nd"),'Marks Entry 2nd'!AS11,""))) -> 36 | CV12: 83 | CW12: 0 | CX12: 100 | CY12: P | CZ12: A | DA12: =IF(OR(B12=0,B12=""),"",IF(AND('Marks Entry 1st'!AT11="",'Marks Entry 2nd'!AT11=""),"",IF(AND($E$3="1st"),'Marks Entry 1st'!AT11,IF(AND($E$3="2nd"),'Marks Entry 2nd'!AT11,"")))) -> 46 | DB12: =IF(OR(B12=0,B12=""),"",IF(AND('Marks Entry 1st'!AU11="",'Marks Entry 2nd'!AU11=""),"",IF(AND($E$3="1st"),'Marks Entry 1st'!AU11,IF(AND($E$3="2nd"),'Marks Entry 2nd'!AU11,"")))) -> 32 | DC12: 78 | DD12: B | DE12: =IF(OR(B12=0,B12=""),"",IF(AND('Marks Entry 1st'!AV11="",'Marks Entry 2nd'!AV11=""),"",IF(AND($E$3="1st"),'Marks Entry 1st'!AV11,IF(AND($E$3="2nd"),'Marks Entry 2nd'!AV11,"")))) -> 42 | DF12: =IF(OR(B12=0,B12=""),"",IF(AND('Marks Entry 1st'!AW11="",'Marks Entry 2nd'!AW11=""),"",IF(AND($E$3="1st"),'Marks Entry 1st'!AW11,IF(AND($E$3="2nd"),'Marks Entry 2nd'!AW11,"")))) -> 41 | DG12: 83 | DH12: B | DI12: 408 | DJ12: 81.60 % | DK12: I | DL12: 8 | DM12: =IF(B12="NSO","NSO",IF(OR(D12="",G12="",F12="",B12="",DI12=0),"",IF('Master sheet'!$D$11="Hindi","कक्षोंन्नति","Promoted"))) -> Promoted | DN12: =IF(OR(B12=0,B12=""),"",IF(AND($E$3="1st"),'Marks Entry 1st'!AX11,IF(AND($E$3="2nd"),'Marks Entry 2nd'!AX11,""))) -> 220 | DO12: =IF(OR(B12=0,B12=""),"",IF(AND($E$3="1st"),'Marks Entry 1st'!AY11,IF(AND($E$3="2nd"),'Marks Entry 2nd'!AY11,""))) -> 188 | DP12: B | DX12: =IF(AND($E$3="1st"),'Marks Entry 1st'!I11,IF(AND($E$3="2nd"),'Marks Entry 2nd'!I11,"")) -> 105
A13: 6 | B13: =IF(OR(DX13=0,DX13=""),"",IF(AND($E$3="1st"),'Marks Entry 1st'!I12,IF(AND($E$3="2nd"),'Marks Entry 2nd'!I12,""))) -> 106 | C13: =IF(OR(B13=0,B13=""),"",IF(AND($E$3="1st"),'Marks Entry 1st'!B12,IF(AND($E$3="2nd"),'Marks Entry 2nd'!B12,""))) -> 1 | D13: =IF(OR(B13=0,B13=""),"",IF(AND($E$3="1st"),'Marks Entry 1st'!C12,IF(AND($E$3="2nd"),'Marks Entry 2nd'!C12,""))) -> A | E13: =IF(OR(B13=0,B13=""),"",IF(AND($E$3="1st"),'Marks Entry 1st'!E12,IF(AND($E$3="2nd"),'Marks Entry 2nd'!E12,""))) -> 16-06-2014 | F13: =IF(OR(B13=0,B13=""),"",IF(AND($E$3="1st"),'Marks Entry 1st'!D12,IF(AND($E$3="2nd"),'Marks Entry 2nd'!D12,""))) -> 939 | G13: =IF(OR(B13=0,B13=""),"",IF(AND($E$3="1st"),'Marks Entry 1st'!F12,IF(AND($E$3="2nd"),'Marks Entry 2nd'!F12,""))) -> BHUMIKA BAGRI | H13: =IF(OR(B13=0,B13=""),"",IF(AND($E$3="1st"),'Marks Entry 1st'!G12,IF(AND($E$3="2nd"),'Marks Entry 2nd'!G12,""))) -> MUKESH BAGRI | I13: =IF(OR(B13=0,B13=""),"",IF(AND($E$3="1st"),'Marks Entry 1st'!H12,IF(AND($E$3="2nd"),'Marks Entry 2nd'!H12,""))) -> SEEMA BAGRI | J13: =IF(OR(B13=0,B13=""),"",IF(AND($E$3="1st"),'Marks Entry 1st'!J12,IF(AND($E$3="2nd"),'Marks Entry 2nd'!J12,""))) -> F | K13: =IF(OR(B13=0,B13=""),"",IF(AND($E$3="1st"),'Marks Entry 1st'!K12,IF(AND($E$3="2nd"),'Marks Entry 2nd'!K12,""))) -> OBC | P13: =IF(OR(B13=0,B13=""),"",IF(AND($E$3="1st"),'Marks Entry 1st'!O12,IF(AND($E$3="2nd"),'Marks Entry 2nd'!O12,""))) -> 26 | Q13: =IF(OR(B13=0,B13=""),"",IF(AND($E$3="1st"),'Marks Entry 1st'!P12,IF(AND($E$3="2nd"),'Marks Entry 2nd'!P12,""))) -> 64 | R13: 90 | S13: 90 | T13: =IF(OR(B13=0,B13=""),"",IF(AND($E$3="1st"),'Marks Entry 1st'!Q12,IF(AND($E$3="2nd"),'Marks Entry 2nd'!Q12,""))) -> 28 | U13: =IF(OR(B13=0,B13=""),"",IF(AND($E$3="1st"),'Marks Entry 1st'!R12,IF(AND($E$3="2nd"),'Marks Entry 2nd'!R12,""))) -> 20 | V13: 48 | W13: 138 | X13: 0 | Y13: 200 | AA13: P | AB13: I | AC13: C | AH13: =IF(OR(B13=0,B13=""),"",IF(AND($E$3="1st"),'Marks Entry 1st'!V12,IF(AND($E$3="2nd"),'Marks Entry 2nd'!V12,""))) -> 12 | AI13: =IF(OR(B13=0,B13=""),"",IF(AND($E$3="1st"),'Marks Entry 1st'!W12,IF(AND($E$3="2nd"),'Marks Entry 2nd'!W12,""))) -> 30 | AJ13: 42 | AK13: 42 | AL13: =IF(OR(B13=0,B13=""),"",IF(AND($E$3="1st"),'Marks Entry 1st'!X12,IF(AND($E$3="2nd"),'Marks Entry 2nd'!X12,""))) -> 10 | AM13: =IF(OR(B13=0,B13=""),"",IF(AND($E$3="1st"),'Marks Entry 1st'!Y12,IF(AND($E$3="2nd"),'Marks Entry 2nd'!Y12,""))) -> 31 | AN13: 41 | AO13: 83 | AP13: 0 | AQ13: 100 | AS13: P | AT13: D | AU13: B | AZ13: =IF(OR(B13=0,B13=""),"",IF(AND($E$3="1st"),'Marks Entry 1st'!AC12,IF(AND($E$3="2nd"),'Marks Entry 2nd'!AC12,""))) -> 25 | BA13: =IF(OR(B13=0,B13=""),"",IF(AND($E$3="1st"),'Marks Entry 1st'!AD12,IF(AND($E$3="2nd"),'Marks Entry 2nd'!AD12,""))) -> 64 | BB13: 89 | BC13: 89 | BD13: =IF(OR(B13=0,B13=""),"",IF(AND($E$3="1st"),'Marks Entry 1st'!AE12,IF(AND($E$3="2nd"),'Marks Entry 2nd'!AE12,""))) -> 21 | BE13: =IF(OR(B13=0,B13=""),"",IF(AND($E$3="1st"),'Marks Entry 1st'!AF12,IF(AND($E$3="2nd"),'Marks Entry 2nd'!AF12,""))) -> 64 | BF13: 85 | BG13: 174 | BH13: 0 | BI13: 200 | BK13: P | BL13: D | BM13: A | BR13: =IF(OR(B13=0,B13=""),"",IF(AND('Marks Entry 1st'!AJ12="",'Marks Entry 2nd'!AJ12=""),"",IF(AND($E$3="1st"),'Marks Entry 1st'!AJ12,IF(AND($E$3="2nd"),'Marks Entry 2nd'!AJ12,"")))) -> 36 | BS13: =IF(OR(B13=0,B13=""),"",IF(AND('Marks Entry 1st'!AK12="",'Marks Entry 2nd'!AK12=""),"",IF(AND($E$3="1st"),'Marks Entry 1st'!AK12,IF(AND($E$3="2nd"),'Marks Entry 2nd'!AK12,"")))) ->  | BT13: 36 | BU13: 36 | BV13: =IF(OR(B13=0,B13=""),"",IF(AND('Marks Entry 1st'!AL12="",'Marks Entry 2nd'!AL12=""),"",IF(AND($E$3="1st"),'Marks Entry 1st'!AL12,IF(AND($E$3="2nd"),'Marks Entry 2nd'!AL12,"")))) -> 47 | BW13: =IF(OR(B13=0,B13=""),"",IF(AND('Marks Entry 1st'!AM12="",'Marks Entry 2nd'!AM12=""),"",IF(AND($E$3="1st"),'Marks Entry 1st'!AM12,IF(AND($E$3="2nd"),'Marks Entry 2nd'!AM12,"")))) ->  | BX13: 47 | BY13: 83 | BZ13: 0 | CA13: 100 | CC13: P | CD13: D | CE13: B | CF13: =IF(OR(B13=0,B13=""),"",IF(AND($E$3="1st"),'Marks Entry 1st'!AN12,IF(AND($E$3="2nd"),'Marks Entry 2nd'!AN12,""))) -> 21 | CG13: =IF(OR(B13=0,B13=""),"",IF(AND($E$3="1st"),'Marks Entry 1st'!AO12,IF(AND($E$3="2nd"),'Marks Entry 2nd'!AO12,""))) -> 22 | CH13: 43 | CI13: 0 | CJ13: 50 | CK13: P | CL13: A | CM13: =IF(OR(B13=0,B13=""),"",IF(AND($E$3="1st"),'Marks Entry 1st'!AP12,IF(AND($E$3="2nd"),'Marks Entry 2nd'!AP12,""))) -> 12 | CN13: =IF(OR(B13=0,B13=""),"",IF(AND($E$3="1st"),'Marks Entry 1st'!AQ12,IF(AND($E$3="2nd"),'Marks Entry 2nd'!AQ12,""))) -> 21 | CO13: 33 | CP13: 0 | CQ13: 50 | CR13: P | CS13: B | CT13: =IF(OR(B13=0,B13=""),"",IF(AND($E$3="1st"),'Marks Entry 1st'!AR12,IF(AND($E$3="2nd"),'Marks Entry 2nd'!AR12,""))) -> 48 | CU13: =IF(OR(B13=0,B13=""),"",IF(AND($E$3="1st"),'Marks Entry 1st'!AS12,IF(AND($E$3="2nd"),'Marks Entry 2nd'!AS12,""))) -> 36 | CV13: 84 | CW13: 0 | CX13: 100 | CY13: P | CZ13: A | DA13: =IF(OR(B13=0,B13=""),"",IF(AND('Marks Entry 1st'!AT12="",'Marks Entry 2nd'!AT12=""),"",IF(AND($E$3="1st"),'Marks Entry 1st'!AT12,IF(AND($E$3="2nd"),'Marks Entry 2nd'!AT12,"")))) -> 46 | DB13: =IF(OR(B13=0,B13=""),"",IF(AND('Marks Entry 1st'!AU12="",'Marks Entry 2nd'!AU12=""),"",IF(AND($E$3="1st"),'Marks Entry 1st'!AU12,IF(AND($E$3="2nd"),'Marks Entry 2nd'!AU12,"")))) -> 32 | DC13: 78 | DD13: B | DE13: =IF(OR(B13=0,B13=""),"",IF(AND('Marks Entry 1st'!AV12="",'Marks Entry 2nd'!AV12=""),"",IF(AND($E$3="1st"),'Marks Entry 1st'!AV12,IF(AND($E$3="2nd"),'Marks Entry 2nd'!AV12,"")))) -> 42 | DF13: =IF(OR(B13=0,B13=""),"",IF(AND('Marks Entry 1st'!AW12="",'Marks Entry 2nd'!AW12=""),"",IF(AND($E$3="1st"),'Marks Entry 1st'!AW12,IF(AND($E$3="2nd"),'Marks Entry 2nd'!AW12,"")))) -> 41 | DG13: 83 | DH13: B | DI13: 395 | DJ13: 79.00 % | DK13: I | DL13: 17 | DM13: =IF(B13="NSO","NSO",IF(OR(D13="",G13="",F13="",B13="",DI13=0),"",IF('Master sheet'!$D$11="Hindi","कक्षोंन्नति","Promoted"))) -> Promoted | DN13: =IF(OR(B13=0,B13=""),"",IF(AND($E$3="1st"),'Marks Entry 1st'!AX12,IF(AND($E$3="2nd"),'Marks Entry 2nd'!AX12,""))) -> 220 | DO13: =IF(OR(B13=0,B13=""),"",IF(AND($E$3="1st"),'Marks Entry 1st'!AY12,IF(AND($E$3="2nd"),'Marks Entry 2nd'!AY12,""))) -> 180 | DP13: B | DX13: =IF(AND($E$3="1st"),'Marks Entry 1st'!I12,IF(AND($E$3="2nd"),'Marks Entry 2nd'!I12,"")) -> 106
A14: 7 | B14: =IF(OR(DX14=0,DX14=""),"",IF(AND($E$3="1st"),'Marks Entry 1st'!I13,IF(AND($E$3="2nd"),'Marks Entry 2nd'!I13,""))) -> 108 | C14: =IF(OR(B14=0,B14=""),"",IF(AND($E$3="1st"),'Marks Entry 1st'!B13,IF(AND($E$3="2nd"),'Marks Entry 2nd'!B13,""))) -> 1 | D14: =IF(OR(B14=0,B14=""),"",IF(AND($E$3="1st"),'Marks Entry 1st'!C13,IF(AND($E$3="2nd"),'Marks Entry 2nd'!C13,""))) -> A | E14: =IF(OR(B14=0,B14=""),"",IF(AND($E$3="1st"),'Marks Entry 1st'!E13,IF(AND($E$3="2nd"),'Marks Entry 2nd'!E13,""))) -> 28-09-2015 | F14: =IF(OR(B14=0,B14=""),"",IF(AND($E$3="1st"),'Marks Entry 1st'!D13,IF(AND($E$3="2nd"),'Marks Entry 2nd'!D13,""))) -> 942 | G14: =IF(OR(B14=0,B14=""),"",IF(AND($E$3="1st"),'Marks Entry 1st'!F13,IF(AND($E$3="2nd"),'Marks Entry 2nd'!F13,""))) -> DAKSH PRAJAPAT | H14: =IF(OR(B14=0,B14=""),"",IF(AND($E$3="1st"),'Marks Entry 1st'!G13,IF(AND($E$3="2nd"),'Marks Entry 2nd'!G13,""))) -> PRAKASH PRAJAPAT | I14: =IF(OR(B14=0,B14=""),"",IF(AND($E$3="1st"),'Marks Entry 1st'!H13,IF(AND($E$3="2nd"),'Marks Entry 2nd'!H13,""))) -> REKHA PRAJAPATI | J14: =IF(OR(B14=0,B14=""),"",IF(AND($E$3="1st"),'Marks Entry 1st'!J13,IF(AND($E$3="2nd"),'Marks Entry 2nd'!J13,""))) -> M | K14: =IF(OR(B14=0,B14=""),"",IF(AND($E$3="1st"),'Marks Entry 1st'!K13,IF(AND($E$3="2nd"),'Marks Entry 2nd'!K13,""))) -> OBC | P14: =IF(OR(B14=0,B14=""),"",IF(AND($E$3="1st"),'Marks Entry 1st'!O13,IF(AND($E$3="2nd"),'Marks Entry 2nd'!O13,""))) -> 24 | Q14: =IF(OR(B14=0,B14=""),"",IF(AND($E$3="1st"),'Marks Entry 1st'!P13,IF(AND($E$3="2nd"),'Marks Entry 2nd'!P13,""))) -> 65 | R14: 89 | S14: 89 | T14: =IF(OR(B14=0,B14=""),"",IF(AND($E$3="1st"),'Marks Entry 1st'!Q13,IF(AND($E$3="2nd"),'Marks Entry 2nd'!Q13,""))) -> 29 | U14: =IF(OR(B14=0,B14=""),"",IF(AND($E$3="1st"),'Marks Entry 1st'!R13,IF(AND($E$3="2nd"),'Marks Entry 2nd'!R13,""))) -> 25 | V14: 54 | W14: 143 | X14: 0 | Y14: 200 | AA14: P | AB14: I | AC14: B | AH14: =IF(OR(B14=0,B14=""),"",IF(AND($E$3="1st"),'Marks Entry 1st'!V13,IF(AND($E$3="2nd"),'Marks Entry 2nd'!V13,""))) -> 13 | AI14: =IF(OR(B14=0,B14=""),"",IF(AND($E$3="1st"),'Marks Entry 1st'!W13,IF(AND($E$3="2nd"),'Marks Entry 2nd'!W13,""))) -> 32 | AJ14: 45 | AK14: 45 | AL14: =IF(OR(B14=0,B14=""),"",IF(AND($E$3="1st"),'Marks Entry 1st'!X13,IF(AND($E$3="2nd"),'Marks Entry 2nd'!X13,""))) -> 12 | AM14: =IF(OR(B14=0,B14=""),"",IF(AND($E$3="1st"),'Marks Entry 1st'!Y13,IF(AND($E$3="2nd"),'Marks Entry 2nd'!Y13,""))) -> 34 | AN14: 46 | AO14: 91 | AP14: 0 | AQ14: 100 | AS14: P | AT14: D | AU14: A | AZ14: =IF(OR(B14=0,B14=""),"",IF(AND($E$3="1st"),'Marks Entry 1st'!AC13,IF(AND($E$3="2nd"),'Marks Entry 2nd'!AC13,""))) -> 24 | BA14: =IF(OR(B14=0,B14=""),"",IF(AND($E$3="1st"),'Marks Entry 1st'!AD13,IF(AND($E$3="2nd"),'Marks Entry 2nd'!AD13,""))) -> 64 | BB14: 88 | BC14: 88 | BD14: =IF(OR(B14=0,B14=""),"",IF(AND($E$3="1st"),'Marks Entry 1st'!AE13,IF(AND($E$3="2nd"),'Marks Entry 2nd'!AE13,""))) -> 20 | BE14: =IF(OR(B14=0,B14=""),"",IF(AND($E$3="1st"),'Marks Entry 1st'!AF13,IF(AND($E$3="2nd"),'Marks Entry 2nd'!AF13,""))) -> 69 | BF14: 89 | BG14: 177 | BH14: 0 | BI14: 200 | BK14: P | BL14: D | BM14: A | BR14: =IF(OR(B14=0,B14=""),"",IF(AND('Marks Entry 1st'!AJ13="",'Marks Entry 2nd'!AJ13=""),"",IF(AND($E$3="1st"),'Marks Entry 1st'!AJ13,IF(AND($E$3="2nd"),'Marks Entry 2nd'!AJ13,"")))) -> 32 | BS14: =IF(OR(B14=0,B14=""),"",IF(AND('Marks Entry 1st'!AK13="",'Marks Entry 2nd'!AK13=""),"",IF(AND($E$3="1st"),'Marks Entry 1st'!AK13,IF(AND($E$3="2nd"),'Marks Entry 2nd'!AK13,"")))) ->  | BT14: 32 | BU14: 32 | BV14: =IF(OR(B14=0,B14=""),"",IF(AND('Marks Entry 1st'!AL13="",'Marks Entry 2nd'!AL13=""),"",IF(AND($E$3="1st"),'Marks Entry 1st'!AL13,IF(AND($E$3="2nd"),'Marks Entry 2nd'!AL13,"")))) -> 48 | BW14: =IF(OR(B14=0,B14=""),"",IF(AND('Marks Entry 1st'!AM13="",'Marks Entry 2nd'!AM13=""),"",IF(AND($E$3="1st"),'Marks Entry 1st'!AM13,IF(AND($E$3="2nd"),'Marks Entry 2nd'!AM13,"")))) ->  | BX14: 48 | BY14: 80 | BZ14: 0 | CA14: 100 | CC14: P | CD14: D | CE14: B | CF14: =IF(OR(B14=0,B14=""),"",IF(AND($E$3="1st"),'Marks Entry 1st'!AN13,IF(AND($E$3="2nd"),'Marks Entry 2nd'!AN13,""))) -> NA | CG14: =IF(OR(B14=0,B14=""),"",IF(AND($E$3="1st"),'Marks Entry 1st'!AO13,IF(AND($E$3="2nd"),'Marks Entry 2nd'!AO13,""))) -> 25 | CH14: 25 | CI14: 0 | CJ14: 50 | CK14: P | CL14: C | CM14: =IF(OR(B14=0,B14=""),"",IF(AND($E$3="1st"),'Marks Entry 1st'!AP13,IF(AND($E$3="2nd"),'Marks Entry 2nd'!AP13,""))) -> 13 | CN14: =IF(OR(B14=0,B14=""),"",IF(AND($E$3="1st"),'Marks Entry 1st'!AQ13,IF(AND($E$3="2nd"),'Marks Entry 2nd'!AQ13,""))) -> 20 | CO14: 33 | CP14: 0 | CQ14: 50 | CR14: P | CS14: B | CT14: =IF(OR(B14=0,B14=""),"",IF(AND($E$3="1st"),'Marks Entry 1st'!AR13,IF(AND($E$3="2nd"),'Marks Entry 2nd'!AR13,""))) -> 23 | CU14: =IF(OR(B14=0,B14=""),"",IF(AND($E$3="1st"),'Marks Entry 1st'!AS13,IF(AND($E$3="2nd"),'Marks Entry 2nd'!AS13,""))) -> 36 | CV14: 59 | CW14: 0 | CX14: 100 | CY14: P | CZ14: C | DA14: =IF(OR(B14=0,B14=""),"",IF(AND('Marks Entry 1st'!AT13="",'Marks Entry 2nd'!AT13=""),"",IF(AND($E$3="1st"),'Marks Entry 1st'!AT13,IF(AND($E$3="2nd"),'Marks Entry 2nd'!AT13,"")))) -> 46 | DB14: =IF(OR(B14=0,B14=""),"",IF(AND('Marks Entry 1st'!AU13="",'Marks Entry 2nd'!AU13=""),"",IF(AND($E$3="1st"),'Marks Entry 1st'!AU13,IF(AND($E$3="2nd"),'Marks Entry 2nd'!AU13,"")))) -> 32 | DC14: 78 | DD14: B | DE14: =IF(OR(B14=0,B14=""),"",IF(AND('Marks Entry 1st'!AV13="",'Marks Entry 2nd'!AV13=""),"",IF(AND($E$3="1st"),'Marks Entry 1st'!AV13,IF(AND($E$3="2nd"),'Marks Entry 2nd'!AV13,"")))) -> 42 | DF14: =IF(OR(B14=0,B14=""),"",IF(AND('Marks Entry 1st'!AW13="",'Marks Entry 2nd'!AW13=""),"",IF(AND($E$3="1st"),'Marks Entry 1st'!AW13,IF(AND($E$3="2nd"),'Marks Entry 2nd'!AW13,"")))) -> 41 | DG14: 83 | DH14: B | DI14: 411 | DJ14: 82.20 % | DK14: I | DL14: 7 | DM14: =IF(B14="NSO","NSO",IF(OR(D14="",G14="",F14="",B14="",DI14=0),"",IF('Master sheet'!$D$11="Hindi","कक्षोंन्नति","Promoted"))) -> Promoted | DN14: =IF(OR(B14=0,B14=""),"",IF(AND($E$3="1st"),'Marks Entry 1st'!AX13,IF(AND($E$3="2nd"),'Marks Entry 2nd'!AX13,""))) -> 220 | DO14: =IF(OR(B14=0,B14=""),"",IF(AND($E$3="1st"),'Marks Entry 1st'!AY13,IF(AND($E$3="2nd"),'Marks Entry 2nd'!AY13,""))) -> 180 | DP14: B | DX14: =IF(AND($E$3="1st"),'Marks Entry 1st'!I13,IF(AND($E$3="2nd"),'Marks Entry 2nd'!I13,"")) -> 108
A15: 8 | B15: =IF(OR(DX15=0,DX15=""),"",IF(AND($E$3="1st"),'Marks Entry 1st'!I14,IF(AND($E$3="2nd"),'Marks Entry 2nd'!I14,""))) -> 109 | C15: =IF(OR(B15=0,B15=""),"",IF(AND($E$3="1st"),'Marks Entry 1st'!B14,IF(AND($E$3="2nd"),'Marks Entry 2nd'!B14,""))) -> 1 | D15: =IF(OR(B15=0,B15=""),"",IF(AND($E$3="1st"),'Marks Entry 1st'!C14,IF(AND($E$3="2nd"),'Marks Entry 2nd'!C14,""))) -> A | E15: =IF(OR(B15=0,B15=""),"",IF(AND($E$3="1st"),'Marks Entry 1st'!E14,IF(AND($E$3="2nd"),'Marks Entry 2nd'!E14,""))) -> 2015-10-26 | F15: =IF(OR(B15=0,B15=""),"",IF(AND($E$3="1st"),'Marks Entry 1st'!D14,IF(AND($E$3="2nd"),'Marks Entry 2nd'!D14,""))) -> 925 | G15: =IF(OR(B15=0,B15=""),"",IF(AND($E$3="1st"),'Marks Entry 1st'!F14,IF(AND($E$3="2nd"),'Marks Entry 2nd'!F14,""))) -> DIVYA BAGRI | H15: =IF(OR(B15=0,B15=""),"",IF(AND($E$3="1st"),'Marks Entry 1st'!G14,IF(AND($E$3="2nd"),'Marks Entry 2nd'!G14,""))) -> MUKESH | I15: =IF(OR(B15=0,B15=""),"",IF(AND($E$3="1st"),'Marks Entry 1st'!H14,IF(AND($E$3="2nd"),'Marks Entry 2nd'!H14,""))) -> SEEMA | J15: =IF(OR(B15=0,B15=""),"",IF(AND($E$3="1st"),'Marks Entry 1st'!J14,IF(AND($E$3="2nd"),'Marks Entry 2nd'!J14,""))) -> F | K15: =IF(OR(B15=0,B15=""),"",IF(AND($E$3="1st"),'Marks Entry 1st'!K14,IF(AND($E$3="2nd"),'Marks Entry 2nd'!K14,""))) -> OBC | P15: =IF(OR(B15=0,B15=""),"",IF(AND($E$3="1st"),'Marks Entry 1st'!O14,IF(AND($E$3="2nd"),'Marks Entry 2nd'!O14,""))) -> 28 | Q15: =IF(OR(B15=0,B15=""),"",IF(AND($E$3="1st"),'Marks Entry 1st'!P14,IF(AND($E$3="2nd"),'Marks Entry 2nd'!P14,""))) -> 61 | R15: 89 | S15: 89 | T15: =IF(OR(B15=0,B15=""),"",IF(AND($E$3="1st"),'Marks Entry 1st'!Q14,IF(AND($E$3="2nd"),'Marks Entry 2nd'!Q14,""))) -> 24 | U15: =IF(OR(B15=0,B15=""),"",IF(AND($E$3="1st"),'Marks Entry 1st'!R14,IF(AND($E$3="2nd"),'Marks Entry 2nd'!R14,""))) -> 24 | V15: 48 | W15: 137 | X15: 0 | Y15: 200 | AA15: P | AB15: I | AC15: C | AH15: =IF(OR(B15=0,B15=""),"",IF(AND($E$3="1st"),'Marks Entry 1st'!V14,IF(AND($E$3="2nd"),'Marks Entry 2nd'!V14,""))) -> 10 | AI15: =IF(OR(B15=0,B15=""),"",IF(AND($E$3="1st"),'Marks Entry 1st'!W14,IF(AND($E$3="2nd"),'Marks Entry 2nd'!W14,""))) -> 31 | AJ15: 41 | AK15: 41 | AL15: =IF(OR(B15=0,B15=""),"",IF(AND($E$3="1st"),'Marks Entry 1st'!X14,IF(AND($E$3="2nd"),'Marks Entry 2nd'!X14,""))) -> 14 | AM15: =IF(OR(B15=0,B15=""),"",IF(AND($E$3="1st"),'Marks Entry 1st'!Y14,IF(AND($E$3="2nd"),'Marks Entry 2nd'!Y14,""))) -> 32 | AN15: 46 | AO15: 87 | AP15: 0 | AQ15: 100 | AS15: P | AT15: D | AU15: A | AZ15: =IF(OR(B15=0,B15=""),"",IF(AND($E$3="1st"),'Marks Entry 1st'!AC14,IF(AND($E$3="2nd"),'Marks Entry 2nd'!AC14,""))) -> 21 | BA15: =IF(OR(B15=0,B15=""),"",IF(AND($E$3="1st"),'Marks Entry 1st'!AD14,IF(AND($E$3="2nd"),'Marks Entry 2nd'!AD14,""))) -> 64 | BB15: 85 | BC15: 85 | BD15: =IF(OR(B15=0,B15=""),"",IF(AND($E$3="1st"),'Marks Entry 1st'!AE14,IF(AND($E$3="2nd"),'Marks Entry 2nd'!AE14,""))) -> 23 | BE15: =IF(OR(B15=0,B15=""),"",IF(AND($E$3="1st"),'Marks Entry 1st'!AF14,IF(AND($E$3="2nd"),'Marks Entry 2nd'!AF14,""))) -> 68 | BF15: 91 | BG15: 176 | BH15: 0 | BI15: 200 | BK15: P | BL15: D | BM15: A | BR15: =IF(OR(B15=0,B15=""),"",IF(AND('Marks Entry 1st'!AJ14="",'Marks Entry 2nd'!AJ14=""),"",IF(AND($E$3="1st"),'Marks Entry 1st'!AJ14,IF(AND($E$3="2nd"),'Marks Entry 2nd'!AJ14,"")))) -> 30 | BS15: =IF(OR(B15=0,B15=""),"",IF(AND('Marks Entry 1st'!AK14="",'Marks Entry 2nd'!AK14=""),"",IF(AND($E$3="1st"),'Marks Entry 1st'!AK14,IF(AND($E$3="2nd"),'Marks Entry 2nd'!AK14,"")))) ->  | BT15: 30 | BU15: 30 | BV15: =IF(OR(B15=0,B15=""),"",IF(AND('Marks Entry 1st'!AL14="",'Marks Entry 2nd'!AL14=""),"",IF(AND($E$3="1st"),'Marks Entry 1st'!AL14,IF(AND($E$3="2nd"),'Marks Entry 2nd'!AL14,"")))) -> 49 | BW15: =IF(OR(B15=0,B15=""),"",IF(AND('Marks Entry 1st'!AM14="",'Marks Entry 2nd'!AM14=""),"",IF(AND($E$3="1st"),'Marks Entry 1st'!AM14,IF(AND($E$3="2nd"),'Marks Entry 2nd'!AM14,"")))) ->  | BX15: 49 | BY15: 79 | BZ15: 0 | CA15: 100 | CC15: P | CD15: D | CE15: B | CF15: =IF(OR(B15=0,B15=""),"",IF(AND($E$3="1st"),'Marks Entry 1st'!AN14,IF(AND($E$3="2nd"),'Marks Entry 2nd'!AN14,""))) -> 23 | CG15: =IF(OR(B15=0,B15=""),"",IF(AND($E$3="1st"),'Marks Entry 1st'!AO14,IF(AND($E$3="2nd"),'Marks Entry 2nd'!AO14,""))) -> 24 | CH15: 47 | CI15: 0 | CJ15: 50 | CK15: P | CL15: A+ | CM15: =IF(OR(B15=0,B15=""),"",IF(AND($E$3="1st"),'Marks Entry 1st'!AP14,IF(AND($E$3="2nd"),'Marks Entry 2nd'!AP14,""))) -> 13 | CN15: =IF(OR(B15=0,B15=""),"",IF(AND($E$3="1st"),'Marks Entry 1st'!AQ14,IF(AND($E$3="2nd"),'Marks Entry 2nd'!AQ14,""))) -> 23 | CO15: 36 | CP15: 0 | CQ15: 50 | CR15: P | CS15: B | CT15: =IF(OR(B15=0,B15=""),"",IF(AND($E$3="1st"),'Marks Entry 1st'!AR14,IF(AND($E$3="2nd"),'Marks Entry 2nd'!AR14,""))) -> 45 | CU15: =IF(OR(B15=0,B15=""),"",IF(AND($E$3="1st"),'Marks Entry 1st'!AS14,IF(AND($E$3="2nd"),'Marks Entry 2nd'!AS14,""))) -> 36 | CV15: 81 | CW15: 0 | CX15: 100 | CY15: P | CZ15: A | DA15: =IF(OR(B15=0,B15=""),"",IF(AND('Marks Entry 1st'!AT14="",'Marks Entry 2nd'!AT14=""),"",IF(AND($E$3="1st"),'Marks Entry 1st'!AT14,IF(AND($E$3="2nd"),'Marks Entry 2nd'!AT14,"")))) -> 46 | DB15: =IF(OR(B15=0,B15=""),"",IF(AND('Marks Entry 1st'!AU14="",'Marks Entry 2nd'!AU14=""),"",IF(AND($E$3="1st"),'Marks Entry 1st'!AU14,IF(AND($E$3="2nd"),'Marks Entry 2nd'!AU14,"")))) -> 32 | DC15: 78 | DD15: B | DE15: =IF(OR(B15=0,B15=""),"",IF(AND('Marks Entry 1st'!AV14="",'Marks Entry 2nd'!AV14=""),"",IF(AND($E$3="1st"),'Marks Entry 1st'!AV14,IF(AND($E$3="2nd"),'Marks Entry 2nd'!AV14,"")))) -> 42 | DF15: =IF(OR(B15=0,B15=""),"",IF(AND('Marks Entry 1st'!AW14="",'Marks Entry 2nd'!AW14=""),"",IF(AND($E$3="1st"),'Marks Entry 1st'!AW14,IF(AND($E$3="2nd"),'Marks Entry 2nd'!AW14,"")))) -> 41 | DG15: 83 | DH15: B | DI15: 400 | DJ15: 80.00 % | DK15: I | DL15: 15 | DM15: =IF(B15="NSO","NSO",IF(OR(D15="",G15="",F15="",B15="",DI15=0),"",IF('Master sheet'!$D$11="Hindi","कक्षोंन्नति","Promoted"))) -> Promoted | DN15: =IF(OR(B15=0,B15=""),"",IF(AND($E$3="1st"),'Marks Entry 1st'!AX14,IF(AND($E$3="2nd"),'Marks Entry 2nd'!AX14,""))) -> 220 | DO15: =IF(OR(B15=0,B15=""),"",IF(AND($E$3="1st"),'Marks Entry 1st'!AY14,IF(AND($E$3="2nd"),'Marks Entry 2nd'!AY14,""))) -> 160 | DP15: B | DX15: =IF(AND($E$3="1st"),'Marks Entry 1st'!I14,IF(AND($E$3="2nd"),'Marks Entry 2nd'!I14,"")) -> 109
A16: 9 | B16: =IF(OR(DX16=0,DX16=""),"",IF(AND($E$3="1st"),'Marks Entry 1st'!I15,IF(AND($E$3="2nd"),'Marks Entry 2nd'!I15,""))) -> 110 | C16: =IF(OR(B16=0,B16=""),"",IF(AND($E$3="1st"),'Marks Entry 1st'!B15,IF(AND($E$3="2nd"),'Marks Entry 2nd'!B15,""))) -> 1 | D16: =IF(OR(B16=0,B16=""),"",IF(AND($E$3="1st"),'Marks Entry 1st'!C15,IF(AND($E$3="2nd"),'Marks Entry 2nd'!C15,""))) -> A | E16: =IF(OR(B16=0,B16=""),"",IF(AND($E$3="1st"),'Marks Entry 1st'!E15,IF(AND($E$3="2nd"),'Marks Entry 2nd'!E15,""))) -> 2015-02-12 | F16: =IF(OR(B16=0,B16=""),"",IF(AND($E$3="1st"),'Marks Entry 1st'!D15,IF(AND($E$3="2nd"),'Marks Entry 2nd'!D15,""))) -> 952 | G16: =IF(OR(B16=0,B16=""),"",IF(AND($E$3="1st"),'Marks Entry 1st'!F15,IF(AND($E$3="2nd"),'Marks Entry 2nd'!F15,""))) -> DUSHYANT DAYAMA | H16: =IF(OR(B16=0,B16=""),"",IF(AND($E$3="1st"),'Marks Entry 1st'!G15,IF(AND($E$3="2nd"),'Marks Entry 2nd'!G15,""))) -> BASANT KUMAR DAYAMA | I16: =IF(OR(B16=0,B16=""),"",IF(AND($E$3="1st"),'Marks Entry 1st'!H15,IF(AND($E$3="2nd"),'Marks Entry 2nd'!H15,""))) -> PUSHPA DAYAMA | J16: =IF(OR(B16=0,B16=""),"",IF(AND($E$3="1st"),'Marks Entry 1st'!J15,IF(AND($E$3="2nd"),'Marks Entry 2nd'!J15,""))) -> M | K16: =IF(OR(B16=0,B16=""),"",IF(AND($E$3="1st"),'Marks Entry 1st'!K15,IF(AND($E$3="2nd"),'Marks Entry 2nd'!K15,""))) -> SC | P16: =IF(OR(B16=0,B16=""),"",IF(AND($E$3="1st"),'Marks Entry 1st'!O15,IF(AND($E$3="2nd"),'Marks Entry 2nd'!O15,""))) -> 29 | Q16: =IF(OR(B16=0,B16=""),"",IF(AND($E$3="1st"),'Marks Entry 1st'!P15,IF(AND($E$3="2nd"),'Marks Entry 2nd'!P15,""))) -> 62 | R16: 91 | S16: 91 | T16: =IF(OR(B16=0,B16=""),"",IF(AND($E$3="1st"),'Marks Entry 1st'!Q15,IF(AND($E$3="2nd"),'Marks Entry 2nd'!Q15,""))) -> 24 | U16: =IF(OR(B16=0,B16=""),"",IF(AND($E$3="1st"),'Marks Entry 1st'!R15,IF(AND($E$3="2nd"),'Marks Entry 2nd'!R15,""))) -> 21 | V16: 45 | W16: 136 | X16: 0 | Y16: 200 | AA16: P | AB16: I | AC16: C | AH16: =IF(OR(B16=0,B16=""),"",IF(AND($E$3="1st"),'Marks Entry 1st'!V15,IF(AND($E$3="2nd"),'Marks Entry 2nd'!V15,""))) -> 14 | AI16: =IF(OR(B16=0,B16=""),"",IF(AND($E$3="1st"),'Marks Entry 1st'!W15,IF(AND($E$3="2nd"),'Marks Entry 2nd'!W15,""))) -> 30 | AJ16: 44 | AK16: 44 | AL16: =IF(OR(B16=0,B16=""),"",IF(AND($E$3="1st"),'Marks Entry 1st'!X15,IF(AND($E$3="2nd"),'Marks Entry 2nd'!X15,""))) -> 10 | AM16: =IF(OR(B16=0,B16=""),"",IF(AND($E$3="1st"),'Marks Entry 1st'!Y15,IF(AND($E$3="2nd"),'Marks Entry 2nd'!Y15,""))) -> 31 | AN16: 41 | AO16: 85 | AP16: 0 | AQ16: 100 | AS16: P | AT16: D | AU16: B | AZ16: =IF(OR(B16=0,B16=""),"",IF(AND($E$3="1st"),'Marks Entry 1st'!AC15,IF(AND($E$3="2nd"),'Marks Entry 2nd'!AC15,""))) -> 20 | BA16: =IF(OR(B16=0,B16=""),"",IF(AND($E$3="1st"),'Marks Entry 1st'!AD15,IF(AND($E$3="2nd"),'Marks Entry 2nd'!AD15,""))) -> 64 | BB16: 84 | BC16: 84 | BD16: =IF(OR(B16=0,B16=""),"",IF(AND($E$3="1st"),'Marks Entry 1st'!AE15,IF(AND($E$3="2nd"),'Marks Entry 2nd'!AE15,""))) -> 25 | BE16: =IF(OR(B16=0,B16=""),"",IF(AND($E$3="1st"),'Marks Entry 1st'!AF15,IF(AND($E$3="2nd"),'Marks Entry 2nd'!AF15,""))) -> 67 | BF16: 92 | BG16: 176 | BH16: 0 | BI16: 200 | BK16: P | BL16: D | BM16: A | BR16: =IF(OR(B16=0,B16=""),"",IF(AND('Marks Entry 1st'!AJ15="",'Marks Entry 2nd'!AJ15=""),"",IF(AND($E$3="1st"),'Marks Entry 1st'!AJ15,IF(AND($E$3="2nd"),'Marks Entry 2nd'!AJ15,"")))) -> 41 | BS16: =IF(OR(B16=0,B16=""),"",IF(AND('Marks Entry 1st'!AK15="",'Marks Entry 2nd'!AK15=""),"",IF(AND($E$3="1st"),'Marks Entry 1st'!AK15,IF(AND($E$3="2nd"),'Marks Entry 2nd'!AK15,"")))) ->  | BT16: 41 | BU16: 41 | BV16: =IF(OR(B16=0,B16=""),"",IF(AND('Marks Entry 1st'!AL15="",'Marks Entry 2nd'!AL15=""),"",IF(AND($E$3="1st"),'Marks Entry 1st'!AL15,IF(AND($E$3="2nd"),'Marks Entry 2nd'!AL15,"")))) -> 47 | BW16: =IF(OR(B16=0,B16=""),"",IF(AND('Marks Entry 1st'!AM15="",'Marks Entry 2nd'!AM15=""),"",IF(AND($E$3="1st"),'Marks Entry 1st'!AM15,IF(AND($E$3="2nd"),'Marks Entry 2nd'!AM15,"")))) ->  | BX16: 47 | BY16: 88 | BZ16: 0 | CA16: 100 | CC16: P | CD16: D | CE16: A | CF16: =IF(OR(B16=0,B16=""),"",IF(AND($E$3="1st"),'Marks Entry 1st'!AN15,IF(AND($E$3="2nd"),'Marks Entry 2nd'!AN15,""))) -> 21 | CG16: =IF(OR(B16=0,B16=""),"",IF(AND($E$3="1st"),'Marks Entry 1st'!AO15,IF(AND($E$3="2nd"),'Marks Entry 2nd'!AO15,""))) -> 21 | CH16: 42 | CI16: 0 | CJ16: 50 | CK16: P | CL16: A | CM16: =IF(OR(B16=0,B16=""),"",IF(AND($E$3="1st"),'Marks Entry 1st'!AP15,IF(AND($E$3="2nd"),'Marks Entry 2nd'!AP15,""))) -> 14 | CN16: =IF(OR(B16=0,B16=""),"",IF(AND($E$3="1st"),'Marks Entry 1st'!AQ15,IF(AND($E$3="2nd"),'Marks Entry 2nd'!AQ15,""))) -> 20 | CO16: 34 | CP16: 0 | CQ16: 50 | CR16: P | CS16: B | CT16: =IF(OR(B16=0,B16=""),"",IF(AND($E$3="1st"),'Marks Entry 1st'!AR15,IF(AND($E$3="2nd"),'Marks Entry 2nd'!AR15,""))) -> 41 | CU16: =IF(OR(B16=0,B16=""),"",IF(AND($E$3="1st"),'Marks Entry 1st'!AS15,IF(AND($E$3="2nd"),'Marks Entry 2nd'!AS15,""))) -> 36 | CV16: 77 | CW16: 0 | CX16: 100 | CY16: P | CZ16: A | DA16: =IF(OR(B16=0,B16=""),"",IF(AND('Marks Entry 1st'!AT15="",'Marks Entry 2nd'!AT15=""),"",IF(AND($E$3="1st"),'Marks Entry 1st'!AT15,IF(AND($E$3="2nd"),'Marks Entry 2nd'!AT15,"")))) -> 46 | DB16: =IF(OR(B16=0,B16=""),"",IF(AND('Marks Entry 1st'!AU15="",'Marks Entry 2nd'!AU15=""),"",IF(AND($E$3="1st"),'Marks Entry 1st'!AU15,IF(AND($E$3="2nd"),'Marks Entry 2nd'!AU15,"")))) -> 32 | DC16: 78 | DD16: B | DE16: =IF(OR(B16=0,B16=""),"",IF(AND('Marks Entry 1st'!AV15="",'Marks Entry 2nd'!AV15=""),"",IF(AND($E$3="1st"),'Marks Entry 1st'!AV15,IF(AND($E$3="2nd"),'Marks Entry 2nd'!AV15,"")))) -> 42 | DF16: =IF(OR(B16=0,B16=""),"",IF(AND('Marks Entry 1st'!AW15="",'Marks Entry 2nd'!AW15=""),"",IF(AND($E$3="1st"),'Marks Entry 1st'!AW15,IF(AND($E$3="2nd"),'Marks Entry 2nd'!AW15,"")))) -> 41 | DG16: 83 | DH16: B | DI16: 397 | DJ16: 79.40 % | DK16: I | DL16: 16 | DM16: =IF(B16="NSO","NSO",IF(OR(D16="",G16="",F16="",B16="",DI16=0),"",IF('Master sheet'!$D$11="Hindi","कक्षोंन्नति","Promoted"))) -> Promoted | DN16: =IF(OR(B16=0,B16=""),"",IF(AND($E$3="1st"),'Marks Entry 1st'!AX15,IF(AND($E$3="2nd"),'Marks Entry 2nd'!AX15,""))) -> 220 | DO16: =IF(OR(B16=0,B16=""),"",IF(AND($E$3="1st"),'Marks Entry 1st'!AY15,IF(AND($E$3="2nd"),'Marks Entry 2nd'!AY15,""))) -> 156 | DP16: B | DX16: =IF(AND($E$3="1st"),'Marks Entry 1st'!I15,IF(AND($E$3="2nd"),'Marks Entry 2nd'!I15,"")) -> 110
A17: 10 | B17: =IF(OR(DX17=0,DX17=""),"",IF(AND($E$3="1st"),'Marks Entry 1st'!I16,IF(AND($E$3="2nd"),'Marks Entry 2nd'!I16,""))) -> 111 | C17: =IF(OR(B17=0,B17=""),"",IF(AND($E$3="1st"),'Marks Entry 1st'!B16,IF(AND($E$3="2nd"),'Marks Entry 2nd'!B16,""))) -> 1 | D17: =IF(OR(B17=0,B17=""),"",IF(AND($E$3="1st"),'Marks Entry 1st'!C16,IF(AND($E$3="2nd"),'Marks Entry 2nd'!C16,""))) -> A | E17: =IF(OR(B17=0,B17=""),"",IF(AND($E$3="1st"),'Marks Entry 1st'!E16,IF(AND($E$3="2nd"),'Marks Entry 2nd'!E16,""))) -> 23-10-2015 | F17: =IF(OR(B17=0,B17=""),"",IF(AND($E$3="1st"),'Marks Entry 1st'!D16,IF(AND($E$3="2nd"),'Marks Entry 2nd'!D16,""))) -> 931 | G17: =IF(OR(B17=0,B17=""),"",IF(AND($E$3="1st"),'Marks Entry 1st'!F16,IF(AND($E$3="2nd"),'Marks Entry 2nd'!F16,""))) -> GUNEET CHOUHAN | H17: =IF(OR(B17=0,B17=""),"",IF(AND($E$3="1st"),'Marks Entry 1st'!G16,IF(AND($E$3="2nd"),'Marks Entry 2nd'!G16,""))) -> KAILASH CHOUHAN | I17: =IF(OR(B17=0,B17=""),"",IF(AND($E$3="1st"),'Marks Entry 1st'!H16,IF(AND($E$3="2nd"),'Marks Entry 2nd'!H16,""))) -> PUSHPA DEVI | J17: =IF(OR(B17=0,B17=""),"",IF(AND($E$3="1st"),'Marks Entry 1st'!J16,IF(AND($E$3="2nd"),'Marks Entry 2nd'!J16,""))) -> M | K17: =IF(OR(B17=0,B17=""),"",IF(AND($E$3="1st"),'Marks Entry 1st'!K16,IF(AND($E$3="2nd"),'Marks Entry 2nd'!K16,""))) -> OBC | P17: =IF(OR(B17=0,B17=""),"",IF(AND($E$3="1st"),'Marks Entry 1st'!O16,IF(AND($E$3="2nd"),'Marks Entry 2nd'!O16,""))) -> 29 | Q17: =IF(OR(B17=0,B17=""),"",IF(AND($E$3="1st"),'Marks Entry 1st'!P16,IF(AND($E$3="2nd"),'Marks Entry 2nd'!P16,""))) -> 62 | R17: 91 | S17: 91 | T17: =IF(OR(B17=0,B17=""),"",IF(AND($E$3="1st"),'Marks Entry 1st'!Q16,IF(AND($E$3="2nd"),'Marks Entry 2nd'!Q16,""))) -> 24 | U17: =IF(OR(B17=0,B17=""),"",IF(AND($E$3="1st"),'Marks Entry 1st'!R16,IF(AND($E$3="2nd"),'Marks Entry 2nd'!R16,""))) -> 20 | V17: 44 | W17: 135 | X17: 0 | Y17: 200 | AA17: P | AB17: I | AC17: C | AH17: =IF(OR(B17=0,B17=""),"",IF(AND($E$3="1st"),'Marks Entry 1st'!V16,IF(AND($E$3="2nd"),'Marks Entry 2nd'!V16,""))) -> 14 | AI17: =IF(OR(B17=0,B17=""),"",IF(AND($E$3="1st"),'Marks Entry 1st'!W16,IF(AND($E$3="2nd"),'Marks Entry 2nd'!W16,""))) -> 32 | AJ17: 46 | AK17: 46 | AL17: =IF(OR(B17=0,B17=""),"",IF(AND($E$3="1st"),'Marks Entry 1st'!X16,IF(AND($E$3="2nd"),'Marks Entry 2nd'!X16,""))) -> 12 | AM17: =IF(OR(B17=0,B17=""),"",IF(AND($E$3="1st"),'Marks Entry 1st'!Y16,IF(AND($E$3="2nd"),'Marks Entry 2nd'!Y16,""))) -> 30 | AN17: 42 | AO17: 88 | AP17: 0 | AQ17: 100 | AS17: P | AT17: D | AU17: A | AZ17: =IF(OR(B17=0,B17=""),"",IF(AND($E$3="1st"),'Marks Entry 1st'!AC16,IF(AND($E$3="2nd"),'Marks Entry 2nd'!AC16,""))) -> 23 | BA17: =IF(OR(B17=0,B17=""),"",IF(AND($E$3="1st"),'Marks Entry 1st'!AD16,IF(AND($E$3="2nd"),'Marks Entry 2nd'!AD16,""))) -> 64 | BB17: 87 | BC17: 87 | BD17: =IF(OR(B17=0,B17=""),"",IF(AND($E$3="1st"),'Marks Entry 1st'!AE16,IF(AND($E$3="2nd"),'Marks Entry 2nd'!AE16,""))) -> 26 | BE17: =IF(OR(B17=0,B17=""),"",IF(AND($E$3="1st"),'Marks Entry 1st'!AF16,IF(AND($E$3="2nd"),'Marks Entry 2nd'!AF16,""))) -> 64 | BF17: 90 | BG17: 177 | BH17: 0 | BI17: 200 | BK17: P | BL17: D | BM17: A | BR17: =IF(OR(B17=0,B17=""),"",IF(AND('Marks Entry 1st'!AJ16="",'Marks Entry 2nd'!AJ16=""),"",IF(AND($E$3="1st"),'Marks Entry 1st'!AJ16,IF(AND($E$3="2nd"),'Marks Entry 2nd'!AJ16,"")))) -> 41 | BS17: =IF(OR(B17=0,B17=""),"",IF(AND('Marks Entry 1st'!AK16="",'Marks Entry 2nd'!AK16=""),"",IF(AND($E$3="1st"),'Marks Entry 1st'!AK16,IF(AND($E$3="2nd"),'Marks Entry 2nd'!AK16,"")))) ->  | BT17: 41 | BU17: 41 | BV17: =IF(OR(B17=0,B17=""),"",IF(AND('Marks Entry 1st'!AL16="",'Marks Entry 2nd'!AL16=""),"",IF(AND($E$3="1st"),'Marks Entry 1st'!AL16,IF(AND($E$3="2nd"),'Marks Entry 2nd'!AL16,"")))) -> 48 | BW17: =IF(OR(B17=0,B17=""),"",IF(AND('Marks Entry 1st'!AM16="",'Marks Entry 2nd'!AM16=""),"",IF(AND($E$3="1st"),'Marks Entry 1st'!AM16,IF(AND($E$3="2nd"),'Marks Entry 2nd'!AM16,"")))) ->  | BX17: 48 | BY17: 89 | BZ17: 0 | CA17: 100 | CC17: P | CD17: D | CE17: A | CF17: =IF(OR(B17=0,B17=""),"",IF(AND($E$3="1st"),'Marks Entry 1st'!AN16,IF(AND($E$3="2nd"),'Marks Entry 2nd'!AN16,""))) -> 25 | CG17: =IF(OR(B17=0,B17=""),"",IF(AND($E$3="1st"),'Marks Entry 1st'!AO16,IF(AND($E$3="2nd"),'Marks Entry 2nd'!AO16,""))) -> 20 | CH17: 45 | CI17: 0 | CJ17: 50 | CK17: P | CL17: A | CM17: =IF(OR(B17=0,B17=""),"",IF(AND($E$3="1st"),'Marks Entry 1st'!AP16,IF(AND($E$3="2nd"),'Marks Entry 2nd'!AP16,""))) -> 15 | CN17: =IF(OR(B17=0,B17=""),"",IF(AND($E$3="1st"),'Marks Entry 1st'!AQ16,IF(AND($E$3="2nd"),'Marks Entry 2nd'!AQ16,""))) -> 21 | CO17: 36 | CP17: 0 | CQ17: 50 | CR17: P | CS17: B | CT17: =IF(OR(B17=0,B17=""),"",IF(AND($E$3="1st"),'Marks Entry 1st'!AR16,IF(AND($E$3="2nd"),'Marks Entry 2nd'!AR16,""))) -> 40 | CU17: =IF(OR(B17=0,B17=""),"",IF(AND($E$3="1st"),'Marks Entry 1st'!AS16,IF(AND($E$3="2nd"),'Marks Entry 2nd'!AS16,""))) -> 36 | CV17: 76 | CW17: 0 | CX17: 100 | CY17: P | CZ17: A | DA17: =IF(OR(B17=0,B17=""),"",IF(AND('Marks Entry 1st'!AT16="",'Marks Entry 2nd'!AT16=""),"",IF(AND($E$3="1st"),'Marks Entry 1st'!AT16,IF(AND($E$3="2nd"),'Marks Entry 2nd'!AT16,"")))) -> 46 | DB17: =IF(OR(B17=0,B17=""),"",IF(AND('Marks Entry 1st'!AU16="",'Marks Entry 2nd'!AU16=""),"",IF(AND($E$3="1st"),'Marks Entry 1st'!AU16,IF(AND($E$3="2nd"),'Marks Entry 2nd'!AU16,"")))) -> 32 | DC17: 78 | DD17: B | DE17: =IF(OR(B17=0,B17=""),"",IF(AND('Marks Entry 1st'!AV16="",'Marks Entry 2nd'!AV16=""),"",IF(AND($E$3="1st"),'Marks Entry 1st'!AV16,IF(AND($E$3="2nd"),'Marks Entry 2nd'!AV16,"")))) -> 42 | DF17: =IF(OR(B17=0,B17=""),"",IF(AND('Marks Entry 1st'!AW16="",'Marks Entry 2nd'!AW16=""),"",IF(AND($E$3="1st"),'Marks Entry 1st'!AW16,IF(AND($E$3="2nd"),'Marks Entry 2nd'!AW16,"")))) -> 41 | DG17: 83 | DH17: B | DI17: 400 | DJ17: 80.00 % | DK17: I | DL17: 15 | DM17: =IF(B17="NSO","NSO",IF(OR(D17="",G17="",F17="",B17="",DI17=0),"",IF('Master sheet'!$D$11="Hindi","कक्षोंन्नति","Promoted"))) -> Promoted | DN17: =IF(OR(B17=0,B17=""),"",IF(AND($E$3="1st"),'Marks Entry 1st'!AX16,IF(AND($E$3="2nd"),'Marks Entry 2nd'!AX16,""))) -> 220 | DO17: =IF(OR(B17=0,B17=""),"",IF(AND($E$3="1st"),'Marks Entry 1st'!AY16,IF(AND($E$3="2nd"),'Marks Entry 2nd'!AY16,""))) -> 158 | DP17: B | DX17: =IF(AND($E$3="1st"),'Marks Entry 1st'!I16,IF(AND($E$3="2nd"),'Marks Entry 2nd'!I16,"")) -> 111
A18: 11 | B18: =IF(OR(DX18=0,DX18=""),"",IF(AND($E$3="1st"),'Marks Entry 1st'!I17,IF(AND($E$3="2nd"),'Marks Entry 2nd'!I17,""))) -> 112 | C18: =IF(OR(B18=0,B18=""),"",IF(AND($E$3="1st"),'Marks Entry 1st'!B17,IF(AND($E$3="2nd"),'Marks Entry 2nd'!B17,""))) -> 1 | D18: =IF(OR(B18=0,B18=""),"",IF(AND($E$3="1st"),'Marks Entry 1st'!C17,IF(AND($E$3="2nd"),'Marks Entry 2nd'!C17,""))) -> A | E18: =IF(OR(B18=0,B18=""),"",IF(AND($E$3="1st"),'Marks Entry 1st'!E17,IF(AND($E$3="2nd"),'Marks Entry 2nd'!E17,""))) -> 23-10-2015 | F18: =IF(OR(B18=0,B18=""),"",IF(AND($E$3="1st"),'Marks Entry 1st'!D17,IF(AND($E$3="2nd"),'Marks Entry 2nd'!D17,""))) -> 923 | G18: =IF(OR(B18=0,B18=""),"",IF(AND($E$3="1st"),'Marks Entry 1st'!F17,IF(AND($E$3="2nd"),'Marks Entry 2nd'!F17,""))) -> GUNJAN TAK | H18: =IF(OR(B18=0,B18=""),"",IF(AND($E$3="1st"),'Marks Entry 1st'!G17,IF(AND($E$3="2nd"),'Marks Entry 2nd'!G17,""))) -> DINESH KUMAR TAK | I18: =IF(OR(B18=0,B18=""),"",IF(AND($E$3="1st"),'Marks Entry 1st'!H17,IF(AND($E$3="2nd"),'Marks Entry 2nd'!H17,""))) -> SHARDA TAK | J18: =IF(OR(B18=0,B18=""),"",IF(AND($E$3="1st"),'Marks Entry 1st'!J17,IF(AND($E$3="2nd"),'Marks Entry 2nd'!J17,""))) -> F | K18: =IF(OR(B18=0,B18=""),"",IF(AND($E$3="1st"),'Marks Entry 1st'!K17,IF(AND($E$3="2nd"),'Marks Entry 2nd'!K17,""))) -> OBC | P18: =IF(OR(B18=0,B18=""),"",IF(AND($E$3="1st"),'Marks Entry 1st'!O17,IF(AND($E$3="2nd"),'Marks Entry 2nd'!O17,""))) -> 29 | Q18: =IF(OR(B18=0,B18=""),"",IF(AND($E$3="1st"),'Marks Entry 1st'!P17,IF(AND($E$3="2nd"),'Marks Entry 2nd'!P17,""))) -> 65 | R18: 94 | S18: 94 | T18: =IF(OR(B18=0,B18=""),"",IF(AND($E$3="1st"),'Marks Entry 1st'!Q17,IF(AND($E$3="2nd"),'Marks Entry 2nd'!Q17,""))) -> 24 | U18: =IF(OR(B18=0,B18=""),"",IF(AND($E$3="1st"),'Marks Entry 1st'!R17,IF(AND($E$3="2nd"),'Marks Entry 2nd'!R17,""))) -> 20 | V18: 44 | W18: 138 | X18: 0 | Y18: 200 | AA18: P | AB18: I | AC18: C | AH18: =IF(OR(B18=0,B18=""),"",IF(AND($E$3="1st"),'Marks Entry 1st'!V17,IF(AND($E$3="2nd"),'Marks Entry 2nd'!V17,""))) -> 14 | AI18: =IF(OR(B18=0,B18=""),"",IF(AND($E$3="1st"),'Marks Entry 1st'!W17,IF(AND($E$3="2nd"),'Marks Entry 2nd'!W17,""))) -> 32 | AJ18: 46 | AK18: 46 | AL18: =IF(OR(B18=0,B18=""),"",IF(AND($E$3="1st"),'Marks Entry 1st'!X17,IF(AND($E$3="2nd"),'Marks Entry 2nd'!X17,""))) -> 13 | AM18: =IF(OR(B18=0,B18=""),"",IF(AND($E$3="1st"),'Marks Entry 1st'!Y17,IF(AND($E$3="2nd"),'Marks Entry 2nd'!Y17,""))) -> 32 | AN18: 45 | AO18: 91 | AP18: 0 | AQ18: 100 | AS18: P | AT18: D | AU18: A | AZ18: =IF(OR(B18=0,B18=""),"",IF(AND($E$3="1st"),'Marks Entry 1st'!AC17,IF(AND($E$3="2nd"),'Marks Entry 2nd'!AC17,""))) -> 25 | BA18: =IF(OR(B18=0,B18=""),"",IF(AND($E$3="1st"),'Marks Entry 1st'!AD17,IF(AND($E$3="2nd"),'Marks Entry 2nd'!AD17,""))) -> 64 | BB18: 89 | BC18: 89 | BD18: =IF(OR(B18=0,B18=""),"",IF(AND($E$3="1st"),'Marks Entry 1st'!AE17,IF(AND($E$3="2nd"),'Marks Entry 2nd'!AE17,""))) -> 24 | BE18: =IF(OR(B18=0,B18=""),"",IF(AND($E$3="1st"),'Marks Entry 1st'!AF17,IF(AND($E$3="2nd"),'Marks Entry 2nd'!AF17,""))) -> 65 | BF18: 89 | BG18: 178 | BH18: 0 | BI18: 200 | BK18: P | BL18: D | BM18: A | BR18: =IF(OR(B18=0,B18=""),"",IF(AND('Marks Entry 1st'!AJ17="",'Marks Entry 2nd'!AJ17=""),"",IF(AND($E$3="1st"),'Marks Entry 1st'!AJ17,IF(AND($E$3="2nd"),'Marks Entry 2nd'!AJ17,"")))) -> 41 | BS18: =IF(OR(B18=0,B18=""),"",IF(AND('Marks Entry 1st'!AK17="",'Marks Entry 2nd'!AK17=""),"",IF(AND($E$3="1st"),'Marks Entry 1st'!AK17,IF(AND($E$3="2nd"),'Marks Entry 2nd'!AK17,"")))) ->  | BT18: 41 | BU18: 41 | BV18: =IF(OR(B18=0,B18=""),"",IF(AND('Marks Entry 1st'!AL17="",'Marks Entry 2nd'!AL17=""),"",IF(AND($E$3="1st"),'Marks Entry 1st'!AL17,IF(AND($E$3="2nd"),'Marks Entry 2nd'!AL17,"")))) -> 45 | BW18: =IF(OR(B18=0,B18=""),"",IF(AND('Marks Entry 1st'!AM17="",'Marks Entry 2nd'!AM17=""),"",IF(AND($E$3="1st"),'Marks Entry 1st'!AM17,IF(AND($E$3="2nd"),'Marks Entry 2nd'!AM17,"")))) ->  | BX18: 45 | BY18: 86 | BZ18: 0 | CA18: 100 | CC18: P | CD18: D | CE18: A | CF18: =IF(OR(B18=0,B18=""),"",IF(AND($E$3="1st"),'Marks Entry 1st'!AN17,IF(AND($E$3="2nd"),'Marks Entry 2nd'!AN17,""))) -> 23 | CG18: =IF(OR(B18=0,B18=""),"",IF(AND($E$3="1st"),'Marks Entry 1st'!AO17,IF(AND($E$3="2nd"),'Marks Entry 2nd'!AO17,""))) -> 20 | CH18: 43 | CI18: 0 | CJ18: 50 | CK18: P | CL18: A | CM18: =IF(OR(B18=0,B18=""),"",IF(AND($E$3="1st"),'Marks Entry 1st'!AP17,IF(AND($E$3="2nd"),'Marks Entry 2nd'!AP17,""))) -> 15 | CN18: =IF(OR(B18=0,B18=""),"",IF(AND($E$3="1st"),'Marks Entry 1st'!AQ17,IF(AND($E$3="2nd"),'Marks Entry 2nd'!AQ17,""))) -> 23 | CO18: 38 | CP18: 0 | CQ18: 50 | CR18: P | CS18: A | CT18: =IF(OR(B18=0,B18=""),"",IF(AND($E$3="1st"),'Marks Entry 1st'!AR17,IF(AND($E$3="2nd"),'Marks Entry 2nd'!AR17,""))) -> 42 | CU18: =IF(OR(B18=0,B18=""),"",IF(AND($E$3="1st"),'Marks Entry 1st'!AS17,IF(AND($E$3="2nd"),'Marks Entry 2nd'!AS17,""))) -> 36 | CV18: 78 | CW18: 0 | CX18: 100 | CY18: P | CZ18: A | DA18: =IF(OR(B18=0,B18=""),"",IF(AND('Marks Entry 1st'!AT17="",'Marks Entry 2nd'!AT17=""),"",IF(AND($E$3="1st"),'Marks Entry 1st'!AT17,IF(AND($E$3="2nd"),'Marks Entry 2nd'!AT17,"")))) ->  | DB18: =IF(OR(B18=0,B18=""),"",IF(AND('Marks Entry 1st'!AU17="",'Marks Entry 2nd'!AU17=""),"",IF(AND($E$3="1st"),'Marks Entry 1st'!AU17,IF(AND($E$3="2nd"),'Marks Entry 2nd'!AU17,"")))) ->  | DE18: =IF(OR(B18=0,B18=""),"",IF(AND('Marks Entry 1st'!AV17="",'Marks Entry 2nd'!AV17=""),"",IF(AND($E$3="1st"),'Marks Entry 1st'!AV17,IF(AND($E$3="2nd"),'Marks Entry 2nd'!AV17,"")))) ->  | DF18: =IF(OR(B18=0,B18=""),"",IF(AND('Marks Entry 1st'!AW17="",'Marks Entry 2nd'!AW17=""),"",IF(AND($E$3="1st"),'Marks Entry 1st'!AW17,IF(AND($E$3="2nd"),'Marks Entry 2nd'!AW17,"")))) ->  | DI18: 407 | DJ18: 81.40 % | DK18: I | DL18: 9 | DM18: =IF(B18="NSO","NSO",IF(OR(D18="",G18="",F18="",B18="",DI18=0),"",IF('Master sheet'!$D$11="Hindi","कक्षोंन्नति","Promoted"))) -> Promoted | DN18: =IF(OR(B18=0,B18=""),"",IF(AND($E$3="1st"),'Marks Entry 1st'!AX17,IF(AND($E$3="2nd"),'Marks Entry 2nd'!AX17,""))) -> 220 | DO18: =IF(OR(B18=0,B18=""),"",IF(AND($E$3="1st"),'Marks Entry 1st'!AY17,IF(AND($E$3="2nd"),'Marks Entry 2nd'!AY17,""))) -> 158 | DP18: B | DX18: =IF(AND($E$3="1st"),'Marks Entry 1st'!I17,IF(AND($E$3="2nd"),'Marks Entry 2nd'!I17,"")) -> 112
A19: 12 | B19: =IF(OR(DX19=0,DX19=""),"",IF(AND($E$3="1st"),'Marks Entry 1st'!I18,IF(AND($E$3="2nd"),'Marks Entry 2nd'!I18,""))) -> 113 | C19: =IF(OR(B19=0,B19=""),"",IF(AND($E$3="1st"),'Marks Entry 1st'!B18,IF(AND($E$3="2nd"),'Marks Entry 2nd'!B18,""))) -> 1 | D19: =IF(OR(B19=0,B19=""),"",IF(AND($E$3="1st"),'Marks Entry 1st'!C18,IF(AND($E$3="2nd"),'Marks Entry 2nd'!C18,""))) -> A | E19: =IF(OR(B19=0,B19=""),"",IF(AND($E$3="1st"),'Marks Entry 1st'!E18,IF(AND($E$3="2nd"),'Marks Entry 2nd'!E18,""))) -> 30-10-2014 | F19: =IF(OR(B19=0,B19=""),"",IF(AND($E$3="1st"),'Marks Entry 1st'!D18,IF(AND($E$3="2nd"),'Marks Entry 2nd'!D18,""))) -> 949 | G19: =IF(OR(B19=0,B19=""),"",IF(AND($E$3="1st"),'Marks Entry 1st'!F18,IF(AND($E$3="2nd"),'Marks Entry 2nd'!F18,""))) -> JAGRAT SOLANKI | H19: =IF(OR(B19=0,B19=""),"",IF(AND($E$3="1st"),'Marks Entry 1st'!G18,IF(AND($E$3="2nd"),'Marks Entry 2nd'!G18,""))) -> KRISHAN KAMAL SOLANKI | I19: =IF(OR(B19=0,B19=""),"",IF(AND($E$3="1st"),'Marks Entry 1st'!H18,IF(AND($E$3="2nd"),'Marks Entry 2nd'!H18,""))) -> GEETA DEVI | J19: =IF(OR(B19=0,B19=""),"",IF(AND($E$3="1st"),'Marks Entry 1st'!J18,IF(AND($E$3="2nd"),'Marks Entry 2nd'!J18,""))) -> M | K19: =IF(OR(B19=0,B19=""),"",IF(AND($E$3="1st"),'Marks Entry 1st'!K18,IF(AND($E$3="2nd"),'Marks Entry 2nd'!K18,""))) -> OBC | P19: =IF(OR(B19=0,B19=""),"",IF(AND($E$3="1st"),'Marks Entry 1st'!O18,IF(AND($E$3="2nd"),'Marks Entry 2nd'!O18,""))) -> 29 | Q19: =IF(OR(B19=0,B19=""),"",IF(AND($E$3="1st"),'Marks Entry 1st'!P18,IF(AND($E$3="2nd"),'Marks Entry 2nd'!P18,""))) -> 68 | R19: 97 | S19: 97 | T19: =IF(OR(B19=0,B19=""),"",IF(AND($E$3="1st"),'Marks Entry 1st'!Q18,IF(AND($E$3="2nd"),'Marks Entry 2nd'!Q18,""))) -> 24 | U19: =IF(OR(B19=0,B19=""),"",IF(AND($E$3="1st"),'Marks Entry 1st'!R18,IF(AND($E$3="2nd"),'Marks Entry 2nd'!R18,""))) -> 23 | V19: 47 | W19: 144 | X19: 0 | Y19: 200 | AA19: P | AB19: I | AC19: B | AH19: =IF(OR(B19=0,B19=""),"",IF(AND($E$3="1st"),'Marks Entry 1st'!V18,IF(AND($E$3="2nd"),'Marks Entry 2nd'!V18,""))) -> 14 | AI19: =IF(OR(B19=0,B19=""),"",IF(AND($E$3="1st"),'Marks Entry 1st'!W18,IF(AND($E$3="2nd"),'Marks Entry 2nd'!W18,""))) -> 32 | AJ19: 46 | AK19: 46 | AL19: =IF(OR(B19=0,B19=""),"",IF(AND($E$3="1st"),'Marks Entry 1st'!X18,IF(AND($E$3="2nd"),'Marks Entry 2nd'!X18,""))) -> 10 | AM19: =IF(OR(B19=0,B19=""),"",IF(AND($E$3="1st"),'Marks Entry 1st'!Y18,IF(AND($E$3="2nd"),'Marks Entry 2nd'!Y18,""))) -> 32 | AN19: 42 | AO19: 88 | AP19: 0 | AQ19: 100 | AS19: P | AT19: D | AU19: A | AZ19: =IF(OR(B19=0,B19=""),"",IF(AND($E$3="1st"),'Marks Entry 1st'!AC18,IF(AND($E$3="2nd"),'Marks Entry 2nd'!AC18,""))) -> 26 | BA19: =IF(OR(B19=0,B19=""),"",IF(AND($E$3="1st"),'Marks Entry 1st'!AD18,IF(AND($E$3="2nd"),'Marks Entry 2nd'!AD18,""))) -> 64 | BB19: 90 | BC19: 90 | BD19: =IF(OR(B19=0,B19=""),"",IF(AND($E$3="1st"),'Marks Entry 1st'!AE18,IF(AND($E$3="2nd"),'Marks Entry 2nd'!AE18,""))) -> 21 | BE19: =IF(OR(B19=0,B19=""),"",IF(AND($E$3="1st"),'Marks Entry 1st'!AF18,IF(AND($E$3="2nd"),'Marks Entry 2nd'!AF18,""))) -> 62 | BF19: 83 | BG19: 173 | BH19: 0 | BI19: 200 | BK19: P | BL19: D | BM19: A | BR19: =IF(OR(B19=0,B19=""),"",IF(AND('Marks Entry 1st'!AJ18="",'Marks Entry 2nd'!AJ18=""),"",IF(AND($E$3="1st"),'Marks Entry 1st'!AJ18,IF(AND($E$3="2nd"),'Marks Entry 2nd'!AJ18,"")))) -> 42 | BS19: =IF(OR(B19=0,B19=""),"",IF(AND('Marks Entry 1st'!AK18="",'Marks Entry 2nd'!AK18=""),"",IF(AND($E$3="1st"),'Marks Entry 1st'!AK18,IF(AND($E$3="2nd"),'Marks Entry 2nd'!AK18,"")))) ->  | BT19: 42 | BU19: 42 | BV19: =IF(OR(B19=0,B19=""),"",IF(AND('Marks Entry 1st'!AL18="",'Marks Entry 2nd'!AL18=""),"",IF(AND($E$3="1st"),'Marks Entry 1st'!AL18,IF(AND($E$3="2nd"),'Marks Entry 2nd'!AL18,"")))) -> 49 | BW19: =IF(OR(B19=0,B19=""),"",IF(AND('Marks Entry 1st'!AM18="",'Marks Entry 2nd'!AM18=""),"",IF(AND($E$3="1st"),'Marks Entry 1st'!AM18,IF(AND($E$3="2nd"),'Marks Entry 2nd'!AM18,"")))) ->  | BX19: 49 | BY19: 91 | BZ19: 0 | CA19: 100 | CC19: P | CD19: D | CE19: A | CF19: =IF(OR(B19=0,B19=""),"",IF(AND($E$3="1st"),'Marks Entry 1st'!AN18,IF(AND($E$3="2nd"),'Marks Entry 2nd'!AN18,""))) -> ML | CG19: =IF(OR(B19=0,B19=""),"",IF(AND($E$3="1st"),'Marks Entry 1st'!AO18,IF(AND($E$3="2nd"),'Marks Entry 2nd'!AO18,""))) -> 21 | CH19: 21 | CI19: 25 | CJ19: 25 | CK19: P | CL19: A | CM19: =IF(OR(B19=0,B19=""),"",IF(AND($E$3="1st"),'Marks Entry 1st'!AP18,IF(AND($E$3="2nd"),'Marks Entry 2nd'!AP18,""))) -> 15 | CN19: =IF(OR(B19=0,B19=""),"",IF(AND($E$3="1st"),'Marks Entry 1st'!AQ18,IF(AND($E$3="2nd"),'Marks Entry 2nd'!AQ18,""))) -> 20 | CO19: 35 | CP19: 0 | CQ19: 50 | CR19: P | CS19: B | CT19: =IF(OR(B19=0,B19=""),"",IF(AND($E$3="1st"),'Marks Entry 1st'!AR18,IF(AND($E$3="2nd"),'Marks Entry 2nd'!AR18,""))) -> 43 | CU19: =IF(OR(B19=0,B19=""),"",IF(AND($E$3="1st"),'Marks Entry 1st'!AS18,IF(AND($E$3="2nd"),'Marks Entry 2nd'!AS18,""))) -> 23 | CV19: 66 | CW19: 0 | CX19: 100 | CY19: P | CZ19: B | DA19: =IF(OR(B19=0,B19=""),"",IF(AND('Marks Entry 1st'!AT18="",'Marks Entry 2nd'!AT18=""),"",IF(AND($E$3="1st"),'Marks Entry 1st'!AT18,IF(AND($E$3="2nd"),'Marks Entry 2nd'!AT18,"")))) ->  | DB19: =IF(OR(B19=0,B19=""),"",IF(AND('Marks Entry 1st'!AU18="",'Marks Entry 2nd'!AU18=""),"",IF(AND($E$3="1st"),'Marks Entry 1st'!AU18,IF(AND($E$3="2nd"),'Marks Entry 2nd'!AU18,"")))) ->  | DE19: =IF(OR(B19=0,B19=""),"",IF(AND('Marks Entry 1st'!AV18="",'Marks Entry 2nd'!AV18=""),"",IF(AND($E$3="1st"),'Marks Entry 1st'!AV18,IF(AND($E$3="2nd"),'Marks Entry 2nd'!AV18,"")))) ->  | DF19: =IF(OR(B19=0,B19=""),"",IF(AND('Marks Entry 1st'!AW18="",'Marks Entry 2nd'!AW18=""),"",IF(AND($E$3="1st"),'Marks Entry 1st'!AW18,IF(AND($E$3="2nd"),'Marks Entry 2nd'!AW18,"")))) ->  | DI19: 405 | DJ19: 81.00 % | DK19: I | DL19: 11 | DM19: =IF(B19="NSO","NSO",IF(OR(D19="",G19="",F19="",B19="",DI19=0),"",IF('Master sheet'!$D$11="Hindi","कक्षोंन्नति","Promoted"))) -> Promoted | DN19: =IF(OR(B19=0,B19=""),"",IF(AND($E$3="1st"),'Marks Entry 1st'!AX18,IF(AND($E$3="2nd"),'Marks Entry 2nd'!AX18,""))) -> 220 | DO19: =IF(OR(B19=0,B19=""),"",IF(AND($E$3="1st"),'Marks Entry 1st'!AY18,IF(AND($E$3="2nd"),'Marks Entry 2nd'!AY18,""))) -> 156 | DP19: B | DX19: =IF(AND($E$3="1st"),'Marks Entry 1st'!I18,IF(AND($E$3="2nd"),'Marks Entry 2nd'!I18,"")) -> 113
A20: 13 | B20: =IF(OR(DX20=0,DX20=""),"",IF(AND($E$3="1st"),'Marks Entry 1st'!I19,IF(AND($E$3="2nd"),'Marks Entry 2nd'!I19,""))) -> 114 | C20: =IF(OR(B20=0,B20=""),"",IF(AND($E$3="1st"),'Marks Entry 1st'!B19,IF(AND($E$3="2nd"),'Marks Entry 2nd'!B19,""))) -> 1 | D20: =IF(OR(B20=0,B20=""),"",IF(AND($E$3="1st"),'Marks Entry 1st'!C19,IF(AND($E$3="2nd"),'Marks Entry 2nd'!C19,""))) -> A | E20: =IF(OR(B20=0,B20=""),"",IF(AND($E$3="1st"),'Marks Entry 1st'!E19,IF(AND($E$3="2nd"),'Marks Entry 2nd'!E19,""))) -> 26-05-2014 | F20: =IF(OR(B20=0,B20=""),"",IF(AND($E$3="1st"),'Marks Entry 1st'!D19,IF(AND($E$3="2nd"),'Marks Entry 2nd'!D19,""))) -> 933 | G20: =IF(OR(B20=0,B20=""),"",IF(AND($E$3="1st"),'Marks Entry 1st'!F19,IF(AND($E$3="2nd"),'Marks Entry 2nd'!F19,""))) -> JOYA KHAN | H20: =IF(OR(B20=0,B20=""),"",IF(AND($E$3="1st"),'Marks Entry 1st'!G19,IF(AND($E$3="2nd"),'Marks Entry 2nd'!G19,""))) -> BARGAT KHAN | I20: =IF(OR(B20=0,B20=""),"",IF(AND($E$3="1st"),'Marks Entry 1st'!H19,IF(AND($E$3="2nd"),'Marks Entry 2nd'!H19,""))) -> MADINA BANO | J20: =IF(OR(B20=0,B20=""),"",IF(AND($E$3="1st"),'Marks Entry 1st'!J19,IF(AND($E$3="2nd"),'Marks Entry 2nd'!J19,""))) -> F | K20: =IF(OR(B20=0,B20=""),"",IF(AND($E$3="1st"),'Marks Entry 1st'!K19,IF(AND($E$3="2nd"),'Marks Entry 2nd'!K19,""))) -> OBC | P20: =IF(OR(B20=0,B20=""),"",IF(AND($E$3="1st"),'Marks Entry 1st'!O19,IF(AND($E$3="2nd"),'Marks Entry 2nd'!O19,""))) -> 29 | Q20: =IF(OR(B20=0,B20=""),"",IF(AND($E$3="1st"),'Marks Entry 1st'!P19,IF(AND($E$3="2nd"),'Marks Entry 2nd'!P19,""))) -> 69 | R20: 98 | S20: 98 | T20: =IF(OR(B20=0,B20=""),"",IF(AND($E$3="1st"),'Marks Entry 1st'!Q19,IF(AND($E$3="2nd"),'Marks Entry 2nd'!Q19,""))) -> 24 | U20: =IF(OR(B20=0,B20=""),"",IF(AND($E$3="1st"),'Marks Entry 1st'!R19,IF(AND($E$3="2nd"),'Marks Entry 2nd'!R19,""))) -> 20 | V20: 44 | W20: 142 | X20: 0 | Y20: 200 | AA20: P | AB20: I | AC20: B | AH20: =IF(OR(B20=0,B20=""),"",IF(AND($E$3="1st"),'Marks Entry 1st'!V19,IF(AND($E$3="2nd"),'Marks Entry 2nd'!V19,""))) -> 14 | AI20: =IF(OR(B20=0,B20=""),"",IF(AND($E$3="1st"),'Marks Entry 1st'!W19,IF(AND($E$3="2nd"),'Marks Entry 2nd'!W19,""))) -> 32 | AJ20: 46 | AK20: 46 | AL20: =IF(OR(B20=0,B20=""),"",IF(AND($E$3="1st"),'Marks Entry 1st'!X19,IF(AND($E$3="2nd"),'Marks Entry 2nd'!X19,""))) -> 10 | AM20: =IF(OR(B20=0,B20=""),"",IF(AND($E$3="1st"),'Marks Entry 1st'!Y19,IF(AND($E$3="2nd"),'Marks Entry 2nd'!Y19,""))) -> 30 | AN20: 40 | AO20: 86 | AP20: 0 | AQ20: 100 | AS20: P | AT20: D | AU20: A | AZ20: =IF(OR(B20=0,B20=""),"",IF(AND($E$3="1st"),'Marks Entry 1st'!AC19,IF(AND($E$3="2nd"),'Marks Entry 2nd'!AC19,""))) -> 28 | BA20: =IF(OR(B20=0,B20=""),"",IF(AND($E$3="1st"),'Marks Entry 1st'!AD19,IF(AND($E$3="2nd"),'Marks Entry 2nd'!AD19,""))) -> 64 | BB20: 92 | BC20: 92 | BD20: =IF(OR(B20=0,B20=""),"",IF(AND($E$3="1st"),'Marks Entry 1st'!AE19,IF(AND($E$3="2nd"),'Marks Entry 2nd'!AE19,""))) -> 23 | BE20: =IF(OR(B20=0,B20=""),"",IF(AND($E$3="1st"),'Marks Entry 1st'!AF19,IF(AND($E$3="2nd"),'Marks Entry 2nd'!AF19,""))) -> 63 | BF20: 86 | BG20: 178 | BH20: 0 | BI20: 200 | BK20: P | BL20: D | BM20: A | BR20: =IF(OR(B20=0,B20=""),"",IF(AND('Marks Entry 1st'!AJ19="",'Marks Entry 2nd'!AJ19=""),"",IF(AND($E$3="1st"),'Marks Entry 1st'!AJ19,IF(AND($E$3="2nd"),'Marks Entry 2nd'!AJ19,"")))) -> 45 | BS20: =IF(OR(B20=0,B20=""),"",IF(AND('Marks Entry 1st'!AK19="",'Marks Entry 2nd'!AK19=""),"",IF(AND($E$3="1st"),'Marks Entry 1st'!AK19,IF(AND($E$3="2nd"),'Marks Entry 2nd'!AK19,"")))) ->  | BT20: 45 | BU20: 45 | BV20: =IF(OR(B20=0,B20=""),"",IF(AND('Marks Entry 1st'!AL19="",'Marks Entry 2nd'!AL19=""),"",IF(AND($E$3="1st"),'Marks Entry 1st'!AL19,IF(AND($E$3="2nd"),'Marks Entry 2nd'!AL19,"")))) -> 47 | BW20: =IF(OR(B20=0,B20=""),"",IF(AND('Marks Entry 1st'!AM19="",'Marks Entry 2nd'!AM19=""),"",IF(AND($E$3="1st"),'Marks Entry 1st'!AM19,IF(AND($E$3="2nd"),'Marks Entry 2nd'!AM19,"")))) ->  | BX20: 47 | BY20: 92 | BZ20: 0 | CA20: 100 | CC20: P | CD20: D | CE20: A | CF20: =IF(OR(B20=0,B20=""),"",IF(AND($E$3="1st"),'Marks Entry 1st'!AN19,IF(AND($E$3="2nd"),'Marks Entry 2nd'!AN19,""))) -> 23 | CG20: =IF(OR(B20=0,B20=""),"",IF(AND($E$3="1st"),'Marks Entry 1st'!AO19,IF(AND($E$3="2nd"),'Marks Entry 2nd'!AO19,""))) -> ML | CH20: 23 | CI20: 25 | CJ20: 25 | CK20: P | CL20: A+ | CM20: =IF(OR(B20=0,B20=""),"",IF(AND($E$3="1st"),'Marks Entry 1st'!AP19,IF(AND($E$3="2nd"),'Marks Entry 2nd'!AP19,""))) -> 15 | CN20: =IF(OR(B20=0,B20=""),"",IF(AND($E$3="1st"),'Marks Entry 1st'!AQ19,IF(AND($E$3="2nd"),'Marks Entry 2nd'!AQ19,""))) -> 21 | CO20: 36 | CP20: 0 | CQ20: 50 | CR20: P | CS20: B | CT20: =IF(OR(B20=0,B20=""),"",IF(AND($E$3="1st"),'Marks Entry 1st'!AR19,IF(AND($E$3="2nd"),'Marks Entry 2nd'!AR19,""))) -> 40 | CU20: =IF(OR(B20=0,B20=""),"",IF(AND($E$3="1st"),'Marks Entry 1st'!AS19,IF(AND($E$3="2nd"),'Marks Entry 2nd'!AS19,""))) -> 23 | CV20: 63 | CW20: 0 | CX20: 100 | CY20: P | CZ20: B | DA20: =IF(OR(B20=0,B20=""),"",IF(AND('Marks Entry 1st'!AT19="",'Marks Entry 2nd'!AT19=""),"",IF(AND($E$3="1st"),'Marks Entry 1st'!AT19,IF(AND($E$3="2nd"),'Marks Entry 2nd'!AT19,"")))) ->  | DB20: =IF(OR(B20=0,B20=""),"",IF(AND('Marks Entry 1st'!AU19="",'Marks Entry 2nd'!AU19=""),"",IF(AND($E$3="1st"),'Marks Entry 1st'!AU19,IF(AND($E$3="2nd"),'Marks Entry 2nd'!AU19,"")))) ->  | DE20: =IF(OR(B20=0,B20=""),"",IF(AND('Marks Entry 1st'!AV19="",'Marks Entry 2nd'!AV19=""),"",IF(AND($E$3="1st"),'Marks Entry 1st'!AV19,IF(AND($E$3="2nd"),'Marks Entry 2nd'!AV19,"")))) ->  | DF20: =IF(OR(B20=0,B20=""),"",IF(AND('Marks Entry 1st'!AW19="",'Marks Entry 2nd'!AW19=""),"",IF(AND($E$3="1st"),'Marks Entry 1st'!AW19,IF(AND($E$3="2nd"),'Marks Entry 2nd'!AW19,"")))) ->  | DI20: 406 | DJ20: 81.20 % | DK20: I | DL20: 10 | DM20: =IF(B20="NSO","NSO",IF(OR(D20="",G20="",F20="",B20="",DI20=0),"",IF('Master sheet'!$D$11="Hindi","कक्षोंन्नति","Promoted"))) -> Promoted | DN20: =IF(OR(B20=0,B20=""),"",IF(AND($E$3="1st"),'Marks Entry 1st'!AX19,IF(AND($E$3="2nd"),'Marks Entry 2nd'!AX19,""))) -> 220 | DO20: =IF(OR(B20=0,B20=""),"",IF(AND($E$3="1st"),'Marks Entry 1st'!AY19,IF(AND($E$3="2nd"),'Marks Entry 2nd'!AY19,""))) -> 130 | DP20: B | DX20: =IF(AND($E$3="1st"),'Marks Entry 1st'!I19,IF(AND($E$3="2nd"),'Marks Entry 2nd'!I19,"")) -> 114
A21: 14 | B21: =IF(OR(DX21=0,DX21=""),"",IF(AND($E$3="1st"),'Marks Entry 1st'!I20,IF(AND($E$3="2nd"),'Marks Entry 2nd'!I20,""))) -> 115 | C21: =IF(OR(B21=0,B21=""),"",IF(AND($E$3="1st"),'Marks Entry 1st'!B20,IF(AND($E$3="2nd"),'Marks Entry 2nd'!B20,""))) -> 1 | D21: =IF(OR(B21=0,B21=""),"",IF(AND($E$3="1st"),'Marks Entry 1st'!C20,IF(AND($E$3="2nd"),'Marks Entry 2nd'!C20,""))) -> A | E21: =IF(OR(B21=0,B21=""),"",IF(AND($E$3="1st"),'Marks Entry 1st'!E20,IF(AND($E$3="2nd"),'Marks Entry 2nd'!E20,""))) -> 18-02-2015 | F21: =IF(OR(B21=0,B21=""),"",IF(AND($E$3="1st"),'Marks Entry 1st'!D20,IF(AND($E$3="2nd"),'Marks Entry 2nd'!D20,""))) -> 946 | G21: =IF(OR(B21=0,B21=""),"",IF(AND($E$3="1st"),'Marks Entry 1st'!F20,IF(AND($E$3="2nd"),'Marks Entry 2nd'!F20,""))) -> JOYA KHAN | H21: =IF(OR(B21=0,B21=""),"",IF(AND($E$3="1st"),'Marks Entry 1st'!G20,IF(AND($E$3="2nd"),'Marks Entry 2nd'!G20,""))) -> SAHIMAN LOHAR | I21: =IF(OR(B21=0,B21=""),"",IF(AND($E$3="1st"),'Marks Entry 1st'!H20,IF(AND($E$3="2nd"),'Marks Entry 2nd'!H20,""))) -> SABINA BANO | J21: =IF(OR(B21=0,B21=""),"",IF(AND($E$3="1st"),'Marks Entry 1st'!J20,IF(AND($E$3="2nd"),'Marks Entry 2nd'!J20,""))) -> F | K21: =IF(OR(B21=0,B21=""),"",IF(AND($E$3="1st"),'Marks Entry 1st'!K20,IF(AND($E$3="2nd"),'Marks Entry 2nd'!K20,""))) -> OBC | P21: =IF(OR(B21=0,B21=""),"",IF(AND($E$3="1st"),'Marks Entry 1st'!O20,IF(AND($E$3="2nd"),'Marks Entry 2nd'!O20,""))) -> 29 | Q21: =IF(OR(B21=0,B21=""),"",IF(AND($E$3="1st"),'Marks Entry 1st'!P20,IF(AND($E$3="2nd"),'Marks Entry 2nd'!P20,""))) -> 68 | R21: 97 | S21: 97 | T21: =IF(OR(B21=0,B21=""),"",IF(AND($E$3="1st"),'Marks Entry 1st'!Q20,IF(AND($E$3="2nd"),'Marks Entry 2nd'!Q20,""))) -> 24 | U21: =IF(OR(B21=0,B21=""),"",IF(AND($E$3="1st"),'Marks Entry 1st'!R20,IF(AND($E$3="2nd"),'Marks Entry 2nd'!R20,""))) -> 21 | V21: 45 | W21: 142 | X21: 0 | Y21: 200 | AA21: P | AB21: I | AC21: B | AH21: =IF(OR(B21=0,B21=""),"",IF(AND($E$3="1st"),'Marks Entry 1st'!V20,IF(AND($E$3="2nd"),'Marks Entry 2nd'!V20,""))) -> 14 | AI21: =IF(OR(B21=0,B21=""),"",IF(AND($E$3="1st"),'Marks Entry 1st'!W20,IF(AND($E$3="2nd"),'Marks Entry 2nd'!W20,""))) -> 32 | AJ21: 46 | AK21: 46 | AL21: =IF(OR(B21=0,B21=""),"",IF(AND($E$3="1st"),'Marks Entry 1st'!X20,IF(AND($E$3="2nd"),'Marks Entry 2nd'!X20,""))) -> 10 | AM21: =IF(OR(B21=0,B21=""),"",IF(AND($E$3="1st"),'Marks Entry 1st'!Y20,IF(AND($E$3="2nd"),'Marks Entry 2nd'!Y20,""))) -> 32 | AN21: 42 | AO21: 88 | AP21: 0 | AQ21: 100 | AS21: P | AT21: D | AU21: A | AZ21: =IF(OR(B21=0,B21=""),"",IF(AND($E$3="1st"),'Marks Entry 1st'!AC20,IF(AND($E$3="2nd"),'Marks Entry 2nd'!AC20,""))) -> 22 | BA21: =IF(OR(B21=0,B21=""),"",IF(AND($E$3="1st"),'Marks Entry 1st'!AD20,IF(AND($E$3="2nd"),'Marks Entry 2nd'!AD20,""))) -> 64 | BB21: 86 | BC21: 86 | BD21: =IF(OR(B21=0,B21=""),"",IF(AND($E$3="1st"),'Marks Entry 1st'!AE20,IF(AND($E$3="2nd"),'Marks Entry 2nd'!AE20,""))) -> 25 | BE21: =IF(OR(B21=0,B21=""),"",IF(AND($E$3="1st"),'Marks Entry 1st'!AF20,IF(AND($E$3="2nd"),'Marks Entry 2nd'!AF20,""))) -> 65 | BF21: 90 | BG21: 176 | BH21: 0 | BI21: 200 | BK21: P | BL21: D | BM21: A | BR21: =IF(OR(B21=0,B21=""),"",IF(AND('Marks Entry 1st'!AJ20="",'Marks Entry 2nd'!AJ20=""),"",IF(AND($E$3="1st"),'Marks Entry 1st'!AJ20,IF(AND($E$3="2nd"),'Marks Entry 2nd'!AJ20,"")))) -> 41 | BS21: =IF(OR(B21=0,B21=""),"",IF(AND('Marks Entry 1st'!AK20="",'Marks Entry 2nd'!AK20=""),"",IF(AND($E$3="1st"),'Marks Entry 1st'!AK20,IF(AND($E$3="2nd"),'Marks Entry 2nd'!AK20,"")))) ->  | BT21: 41 | BU21: 41 | BV21: =IF(OR(B21=0,B21=""),"",IF(AND('Marks Entry 1st'!AL20="",'Marks Entry 2nd'!AL20=""),"",IF(AND($E$3="1st"),'Marks Entry 1st'!AL20,IF(AND($E$3="2nd"),'Marks Entry 2nd'!AL20,"")))) -> 48 | BW21: =IF(OR(B21=0,B21=""),"",IF(AND('Marks Entry 1st'!AM20="",'Marks Entry 2nd'!AM20=""),"",IF(AND($E$3="1st"),'Marks Entry 1st'!AM20,IF(AND($E$3="2nd"),'Marks Entry 2nd'!AM20,"")))) ->  | BX21: 48 | BY21: 89 | BZ21: 0 | CA21: 100 | CC21: P | CD21: D | CE21: A | CF21: =IF(OR(B21=0,B21=""),"",IF(AND($E$3="1st"),'Marks Entry 1st'!AN20,IF(AND($E$3="2nd"),'Marks Entry 2nd'!AN20,""))) -> AB | CG21: =IF(OR(B21=0,B21=""),"",IF(AND($E$3="1st"),'Marks Entry 1st'!AO20,IF(AND($E$3="2nd"),'Marks Entry 2nd'!AO20,""))) -> AB | CH21: AB | CI21: 0 | CJ21: 50 | CK21: AB | CM21: =IF(OR(B21=0,B21=""),"",IF(AND($E$3="1st"),'Marks Entry 1st'!AP20,IF(AND($E$3="2nd"),'Marks Entry 2nd'!AP20,""))) -> 0 | CN21: =IF(OR(B21=0,B21=""),"",IF(AND($E$3="1st"),'Marks Entry 1st'!AQ20,IF(AND($E$3="2nd"),'Marks Entry 2nd'!AQ20,""))) -> 23 | CO21: 23 | CP21: 0 | CQ21: 50 | CR21: P | CS21: C | CT21: =IF(OR(B21=0,B21=""),"",IF(AND($E$3="1st"),'Marks Entry 1st'!AR20,IF(AND($E$3="2nd"),'Marks Entry 2nd'!AR20,""))) -> 45 | CU21: =IF(OR(B21=0,B21=""),"",IF(AND($E$3="1st"),'Marks Entry 1st'!AS20,IF(AND($E$3="2nd"),'Marks Entry 2nd'!AS20,""))) -> 0 | CV21: 45 | CW21: 0 | CX21: 100 | CY21: P | CZ21: C | DA21: =IF(OR(B21=0,B21=""),"",IF(AND('Marks Entry 1st'!AT20="",'Marks Entry 2nd'!AT20=""),"",IF(AND($E$3="1st"),'Marks Entry 1st'!AT20,IF(AND($E$3="2nd"),'Marks Entry 2nd'!AT20,"")))) ->  | DB21: =IF(OR(B21=0,B21=""),"",IF(AND('Marks Entry 1st'!AU20="",'Marks Entry 2nd'!AU20=""),"",IF(AND($E$3="1st"),'Marks Entry 1st'!AU20,IF(AND($E$3="2nd"),'Marks Entry 2nd'!AU20,"")))) ->  | DE21: =IF(OR(B21=0,B21=""),"",IF(AND('Marks Entry 1st'!AV20="",'Marks Entry 2nd'!AV20=""),"",IF(AND($E$3="1st"),'Marks Entry 1st'!AV20,IF(AND($E$3="2nd"),'Marks Entry 2nd'!AV20,"")))) ->  | DF21: =IF(OR(B21=0,B21=""),"",IF(AND('Marks Entry 1st'!AW20="",'Marks Entry 2nd'!AW20=""),"",IF(AND($E$3="1st"),'Marks Entry 1st'!AW20,IF(AND($E$3="2nd"),'Marks Entry 2nd'!AW20,"")))) ->  | DI21: 406 | DJ21: 81.20 % | DK21: I | DL21: 10 | DM21: =IF(B21="NSO","NSO",IF(OR(D21="",G21="",F21="",B21="",DI21=0),"",IF('Master sheet'!$D$11="Hindi","कक्षोंन्नति","Promoted"))) -> Promoted | DN21: =IF(OR(B21=0,B21=""),"",IF(AND($E$3="1st"),'Marks Entry 1st'!AX20,IF(AND($E$3="2nd"),'Marks Entry 2nd'!AX20,""))) -> 220 | DO21: =IF(OR(B21=0,B21=""),"",IF(AND($E$3="1st"),'Marks Entry 1st'!AY20,IF(AND($E$3="2nd"),'Marks Entry 2nd'!AY20,""))) -> 160 | DP21: B | DX21: =IF(AND($E$3="1st"),'Marks Entry 1st'!I20,IF(AND($E$3="2nd"),'Marks Entry 2nd'!I20,"")) -> 115
A22: 15 | B22: =IF(OR(DX22=0,DX22=""),"",IF(AND($E$3="1st"),'Marks Entry 1st'!I21,IF(AND($E$3="2nd"),'Marks Entry 2nd'!I21,""))) -> 117 | C22: =IF(OR(B22=0,B22=""),"",IF(AND($E$3="1st"),'Marks Entry 1st'!B21,IF(AND($E$3="2nd"),'Marks Entry 2nd'!B21,""))) -> 1 | D22: =IF(OR(B22=0,B22=""),"",IF(AND($E$3="1st"),'Marks Entry 1st'!C21,IF(AND($E$3="2nd"),'Marks Entry 2nd'!C21,""))) -> A | E22: =IF(OR(B22=0,B22=""),"",IF(AND($E$3="1st"),'Marks Entry 1st'!E21,IF(AND($E$3="2nd"),'Marks Entry 2nd'!E21,""))) -> 24-09-2015 | F22: =IF(OR(B22=0,B22=""),"",IF(AND($E$3="1st"),'Marks Entry 1st'!D21,IF(AND($E$3="2nd"),'Marks Entry 2nd'!D21,""))) -> 935 | G22: =IF(OR(B22=0,B22=""),"",IF(AND($E$3="1st"),'Marks Entry 1st'!F21,IF(AND($E$3="2nd"),'Marks Entry 2nd'!F21,""))) -> KHUSHVEER SINGH | H22: =IF(OR(B22=0,B22=""),"",IF(AND($E$3="1st"),'Marks Entry 1st'!G21,IF(AND($E$3="2nd"),'Marks Entry 2nd'!G21,""))) -> PUSA RAM | I22: =IF(OR(B22=0,B22=""),"",IF(AND($E$3="1st"),'Marks Entry 1st'!H21,IF(AND($E$3="2nd"),'Marks Entry 2nd'!H21,""))) -> POOJA | J22: =IF(OR(B22=0,B22=""),"",IF(AND($E$3="1st"),'Marks Entry 1st'!J21,IF(AND($E$3="2nd"),'Marks Entry 2nd'!J21,""))) -> M | K22: =IF(OR(B22=0,B22=""),"",IF(AND($E$3="1st"),'Marks Entry 1st'!K21,IF(AND($E$3="2nd"),'Marks Entry 2nd'!K21,""))) -> SC | P22: =IF(OR(B22=0,B22=""),"",IF(AND($E$3="1st"),'Marks Entry 1st'!O21,IF(AND($E$3="2nd"),'Marks Entry 2nd'!O21,""))) -> 29 | Q22: =IF(OR(B22=0,B22=""),"",IF(AND($E$3="1st"),'Marks Entry 1st'!P21,IF(AND($E$3="2nd"),'Marks Entry 2nd'!P21,""))) -> 62 | R22: 91 | S22: 91 | T22: =IF(OR(B22=0,B22=""),"",IF(AND($E$3="1st"),'Marks Entry 1st'!Q21,IF(AND($E$3="2nd"),'Marks Entry 2nd'!Q21,""))) -> 24 | U22: =IF(OR(B22=0,B22=""),"",IF(AND($E$3="1st"),'Marks Entry 1st'!R21,IF(AND($E$3="2nd"),'Marks Entry 2nd'!R21,""))) -> 24 | V22: 48 | W22: 139 | X22: 0 | Y22: 200 | AA22: P | AB22: I | AC22: C | AH22: =IF(OR(B22=0,B22=""),"",IF(AND($E$3="1st"),'Marks Entry 1st'!V21,IF(AND($E$3="2nd"),'Marks Entry 2nd'!V21,""))) -> 14 | AI22: =IF(OR(B22=0,B22=""),"",IF(AND($E$3="1st"),'Marks Entry 1st'!W21,IF(AND($E$3="2nd"),'Marks Entry 2nd'!W21,""))) -> 32 | AJ22: 46 | AK22: 46 | AL22: =IF(OR(B22=0,B22=""),"",IF(AND($E$3="1st"),'Marks Entry 1st'!X21,IF(AND($E$3="2nd"),'Marks Entry 2nd'!X21,""))) -> 10 | AM22: =IF(OR(B22=0,B22=""),"",IF(AND($E$3="1st"),'Marks Entry 1st'!Y21,IF(AND($E$3="2nd"),'Marks Entry 2nd'!Y21,""))) -> 30 | AN22: 40 | AO22: 86 | AP22: 0 | AQ22: 100 | AS22: P | AT22: D | AU22: A | AZ22: =IF(OR(B22=0,B22=""),"",IF(AND($E$3="1st"),'Marks Entry 1st'!AC21,IF(AND($E$3="2nd"),'Marks Entry 2nd'!AC21,""))) -> 22 | BA22: =IF(OR(B22=0,B22=""),"",IF(AND($E$3="1st"),'Marks Entry 1st'!AD21,IF(AND($E$3="2nd"),'Marks Entry 2nd'!AD21,""))) -> 64 | BB22: 86 | BC22: 86 | BD22: =IF(OR(B22=0,B22=""),"",IF(AND($E$3="1st"),'Marks Entry 1st'!AE21,IF(AND($E$3="2nd"),'Marks Entry 2nd'!AE21,""))) -> 26 | BE22: =IF(OR(B22=0,B22=""),"",IF(AND($E$3="1st"),'Marks Entry 1st'!AF21,IF(AND($E$3="2nd"),'Marks Entry 2nd'!AF21,""))) -> 64 | BF22: 90 | BG22: 176 | BH22: 0 | BI22: 200 | BK22: P | BL22: D | BM22: A | BR22: =IF(OR(B22=0,B22=""),"",IF(AND('Marks Entry 1st'!AJ21="",'Marks Entry 2nd'!AJ21=""),"",IF(AND($E$3="1st"),'Marks Entry 1st'!AJ21,IF(AND($E$3="2nd"),'Marks Entry 2nd'!AJ21,"")))) -> 42 | BS22: =IF(OR(B22=0,B22=""),"",IF(AND('Marks Entry 1st'!AK21="",'Marks Entry 2nd'!AK21=""),"",IF(AND($E$3="1st"),'Marks Entry 1st'!AK21,IF(AND($E$3="2nd"),'Marks Entry 2nd'!AK21,"")))) ->  | BT22: 42 | BU22: 42 | BV22: =IF(OR(B22=0,B22=""),"",IF(AND('Marks Entry 1st'!AL21="",'Marks Entry 2nd'!AL21=""),"",IF(AND($E$3="1st"),'Marks Entry 1st'!AL21,IF(AND($E$3="2nd"),'Marks Entry 2nd'!AL21,"")))) -> 49 | BW22: =IF(OR(B22=0,B22=""),"",IF(AND('Marks Entry 1st'!AM21="",'Marks Entry 2nd'!AM21=""),"",IF(AND($E$3="1st"),'Marks Entry 1st'!AM21,IF(AND($E$3="2nd"),'Marks Entry 2nd'!AM21,"")))) ->  | BX22: 49 | BY22: 91 | BZ22: 0 | CA22: 100 | CC22: P | CD22: D | CE22: A | CF22: =IF(OR(B22=0,B22=""),"",IF(AND($E$3="1st"),'Marks Entry 1st'!AN21,IF(AND($E$3="2nd"),'Marks Entry 2nd'!AN21,""))) -> ML | CG22: =IF(OR(B22=0,B22=""),"",IF(AND($E$3="1st"),'Marks Entry 1st'!AO21,IF(AND($E$3="2nd"),'Marks Entry 2nd'!AO21,""))) -> ML | CH22: 0 | CI22: 50 | CM22: =IF(OR(B22=0,B22=""),"",IF(AND($E$3="1st"),'Marks Entry 1st'!AP21,IF(AND($E$3="2nd"),'Marks Entry 2nd'!AP21,""))) -> 0 | CN22: =IF(OR(B22=0,B22=""),"",IF(AND($E$3="1st"),'Marks Entry 1st'!AQ21,IF(AND($E$3="2nd"),'Marks Entry 2nd'!AQ21,""))) -> 20 | CO22: 20 | CP22: 0 | CQ22: 50 | CR22: P | CS22: D | CT22: =IF(OR(B22=0,B22=""),"",IF(AND($E$3="1st"),'Marks Entry 1st'!AR21,IF(AND($E$3="2nd"),'Marks Entry 2nd'!AR21,""))) -> 47 | CU22: =IF(OR(B22=0,B22=""),"",IF(AND($E$3="1st"),'Marks Entry 1st'!AS21,IF(AND($E$3="2nd"),'Marks Entry 2nd'!AS21,""))) -> 0 | CV22: 47 | CW22: 0 | CX22: 100 | CY22: P | CZ22: C | DA22: =IF(OR(B22=0,B22=""),"",IF(AND('Marks Entry 1st'!AT21="",'Marks Entry 2nd'!AT21=""),"",IF(AND($E$3="1st"),'Marks Entry 1st'!AT21,IF(AND($E$3="2nd"),'Marks Entry 2nd'!AT21,"")))) ->  | DB22: =IF(OR(B22=0,B22=""),"",IF(AND('Marks Entry 1st'!AU21="",'Marks Entry 2nd'!AU21=""),"",IF(AND($E$3="1st"),'Marks Entry 1st'!AU21,IF(AND($E$3="2nd"),'Marks Entry 2nd'!AU21,"")))) ->  | DE22: =IF(OR(B22=0,B22=""),"",IF(AND('Marks Entry 1st'!AV21="",'Marks Entry 2nd'!AV21=""),"",IF(AND($E$3="1st"),'Marks Entry 1st'!AV21,IF(AND($E$3="2nd"),'Marks Entry 2nd'!AV21,"")))) ->  | DF22: =IF(OR(B22=0,B22=""),"",IF(AND('Marks Entry 1st'!AW21="",'Marks Entry 2nd'!AW21=""),"",IF(AND($E$3="1st"),'Marks Entry 1st'!AW21,IF(AND($E$3="2nd"),'Marks Entry 2nd'!AW21,"")))) ->  | DI22: 401 | DJ22: 80.20 % | DK22: I | DL22: 14 | DM22: =IF(B22="NSO","NSO",IF(OR(D22="",G22="",F22="",B22="",DI22=0),"",IF('Master sheet'!$D$11="Hindi","कक्षोंन्नति","Promoted"))) -> Promoted | DN22: =IF(OR(B22=0,B22=""),"",IF(AND($E$3="1st"),'Marks Entry 1st'!AX21,IF(AND($E$3="2nd"),'Marks Entry 2nd'!AX21,""))) -> 220 | DO22: =IF(OR(B22=0,B22=""),"",IF(AND($E$3="1st"),'Marks Entry 1st'!AY21,IF(AND($E$3="2nd"),'Marks Entry 2nd'!AY21,""))) -> 180 | DP22: B | DX22: =IF(AND($E$3="1st"),'Marks Entry 1st'!I21,IF(AND($E$3="2nd"),'Marks Entry 2nd'!I21,"")) -> 117
A23: 16 | B23: =IF(OR(DX23=0,DX23=""),"",IF(AND($E$3="1st"),'Marks Entry 1st'!I22,IF(AND($E$3="2nd"),'Marks Entry 2nd'!I22,""))) -> 118 | C23: =IF(OR(B23=0,B23=""),"",IF(AND($E$3="1st"),'Marks Entry 1st'!B22,IF(AND($E$3="2nd"),'Marks Entry 2nd'!B22,""))) -> 1 | D23: =IF(OR(B23=0,B23=""),"",IF(AND($E$3="1st"),'Marks Entry 1st'!C22,IF(AND($E$3="2nd"),'Marks Entry 2nd'!C22,""))) -> A | E23: =IF(OR(B23=0,B23=""),"",IF(AND($E$3="1st"),'Marks Entry 1st'!E22,IF(AND($E$3="2nd"),'Marks Entry 2nd'!E22,""))) -> 21-01-2016 | F23: =IF(OR(B23=0,B23=""),"",IF(AND($E$3="1st"),'Marks Entry 1st'!D22,IF(AND($E$3="2nd"),'Marks Entry 2nd'!D22,""))) -> 940 | G23: =IF(OR(B23=0,B23=""),"",IF(AND($E$3="1st"),'Marks Entry 1st'!F22,IF(AND($E$3="2nd"),'Marks Entry 2nd'!F22,""))) -> KINJAL SAINI | H23: =IF(OR(B23=0,B23=""),"",IF(AND($E$3="1st"),'Marks Entry 1st'!G22,IF(AND($E$3="2nd"),'Marks Entry 2nd'!G22,""))) -> DURGESH CHAND BAGRI | I23: =IF(OR(B23=0,B23=""),"",IF(AND($E$3="1st"),'Marks Entry 1st'!H22,IF(AND($E$3="2nd"),'Marks Entry 2nd'!H22,""))) -> PUSHPA DEVI | J23: =IF(OR(B23=0,B23=""),"",IF(AND($E$3="1st"),'Marks Entry 1st'!J22,IF(AND($E$3="2nd"),'Marks Entry 2nd'!J22,""))) -> F | K23: =IF(OR(B23=0,B23=""),"",IF(AND($E$3="1st"),'Marks Entry 1st'!K22,IF(AND($E$3="2nd"),'Marks Entry 2nd'!K22,""))) -> OBC | P23: =IF(OR(B23=0,B23=""),"",IF(AND($E$3="1st"),'Marks Entry 1st'!O22,IF(AND($E$3="2nd"),'Marks Entry 2nd'!O22,""))) -> 29 | Q23: =IF(OR(B23=0,B23=""),"",IF(AND($E$3="1st"),'Marks Entry 1st'!P22,IF(AND($E$3="2nd"),'Marks Entry 2nd'!P22,""))) -> 50 | R23: 79 | S23: 79 | T23: =IF(OR(B23=0,B23=""),"",IF(AND($E$3="1st"),'Marks Entry 1st'!Q22,IF(AND($E$3="2nd"),'Marks Entry 2nd'!Q22,""))) -> 24 | U23: =IF(OR(B23=0,B23=""),"",IF(AND($E$3="1st"),'Marks Entry 1st'!R22,IF(AND($E$3="2nd"),'Marks Entry 2nd'!R22,""))) -> 21 | V23: 45 | W23: 124 | X23: 0 | Y23: 200 | AA23: P | AB23: I | AC23: C | AH23: =IF(OR(B23=0,B23=""),"",IF(AND($E$3="1st"),'Marks Entry 1st'!V22,IF(AND($E$3="2nd"),'Marks Entry 2nd'!V22,""))) -> 14 | AI23: =IF(OR(B23=0,B23=""),"",IF(AND($E$3="1st"),'Marks Entry 1st'!W22,IF(AND($E$3="2nd"),'Marks Entry 2nd'!W22,""))) -> 32 | AJ23: 46 | AK23: 46 | AL23: =IF(OR(B23=0,B23=""),"",IF(AND($E$3="1st"),'Marks Entry 1st'!X22,IF(AND($E$3="2nd"),'Marks Entry 2nd'!X22,""))) -> 10 | AM23: =IF(OR(B23=0,B23=""),"",IF(AND($E$3="1st"),'Marks Entry 1st'!Y22,IF(AND($E$3="2nd"),'Marks Entry 2nd'!Y22,""))) -> 32 | AN23: 42 | AO23: 88 | AP23: 0 | AQ23: 100 | AS23: P | AT23: D | AU23: A | AZ23: =IF(OR(B23=0,B23=""),"",IF(AND($E$3="1st"),'Marks Entry 1st'!AC22,IF(AND($E$3="2nd"),'Marks Entry 2nd'!AC22,""))) -> 22 | BA23: =IF(OR(B23=0,B23=""),"",IF(AND($E$3="1st"),'Marks Entry 1st'!AD22,IF(AND($E$3="2nd"),'Marks Entry 2nd'!AD22,""))) -> 64 | BB23: 86 | BC23: 86 | BD23: =IF(OR(B23=0,B23=""),"",IF(AND($E$3="1st"),'Marks Entry 1st'!AE22,IF(AND($E$3="2nd"),'Marks Entry 2nd'!AE22,""))) -> 28 | BE23: =IF(OR(B23=0,B23=""),"",IF(AND($E$3="1st"),'Marks Entry 1st'!AF22,IF(AND($E$3="2nd"),'Marks Entry 2nd'!AF22,""))) -> 69 | BF23: 97 | BG23: 183 | BH23: 0 | BI23: 200 | BK23: P | BL23: D | BM23: A | BR23: =IF(OR(B23=0,B23=""),"",IF(AND('Marks Entry 1st'!AJ22="",'Marks Entry 2nd'!AJ22=""),"",IF(AND($E$3="1st"),'Marks Entry 1st'!AJ22,IF(AND($E$3="2nd"),'Marks Entry 2nd'!AJ22,"")))) -> 41 | BS23: =IF(OR(B23=0,B23=""),"",IF(AND('Marks Entry 1st'!AK22="",'Marks Entry 2nd'!AK22=""),"",IF(AND($E$3="1st"),'Marks Entry 1st'!AK22,IF(AND($E$3="2nd"),'Marks Entry 2nd'!AK22,"")))) ->  | BT23: 41 | BU23: 41 | BV23: =IF(OR(B23=0,B23=""),"",IF(AND('Marks Entry 1st'!AL22="",'Marks Entry 2nd'!AL22=""),"",IF(AND($E$3="1st"),'Marks Entry 1st'!AL22,IF(AND($E$3="2nd"),'Marks Entry 2nd'!AL22,"")))) -> 48 | BW23: =IF(OR(B23=0,B23=""),"",IF(AND('Marks Entry 1st'!AM22="",'Marks Entry 2nd'!AM22=""),"",IF(AND($E$3="1st"),'Marks Entry 1st'!AM22,IF(AND($E$3="2nd"),'Marks Entry 2nd'!AM22,"")))) ->  | BX23: 48 | BY23: 89 | BZ23: 0 | CA23: 100 | CC23: P | CD23: D | CE23: A | CF23: =IF(OR(B23=0,B23=""),"",IF(AND($E$3="1st"),'Marks Entry 1st'!AN22,IF(AND($E$3="2nd"),'Marks Entry 2nd'!AN22,""))) -> NA | CG23: =IF(OR(B23=0,B23=""),"",IF(AND($E$3="1st"),'Marks Entry 1st'!AO22,IF(AND($E$3="2nd"),'Marks Entry 2nd'!AO22,""))) -> NA | CH23: 0 | CI23: 0 | CM23: =IF(OR(B23=0,B23=""),"",IF(AND($E$3="1st"),'Marks Entry 1st'!AP22,IF(AND($E$3="2nd"),'Marks Entry 2nd'!AP22,""))) -> 0 | CN23: =IF(OR(B23=0,B23=""),"",IF(AND($E$3="1st"),'Marks Entry 1st'!AQ22,IF(AND($E$3="2nd"),'Marks Entry 2nd'!AQ22,""))) -> 21 | CO23: 21 | CP23: 0 | CQ23: 50 | CR23: P | CS23: C | CT23: =IF(OR(B23=0,B23=""),"",IF(AND($E$3="1st"),'Marks Entry 1st'!AR22,IF(AND($E$3="2nd"),'Marks Entry 2nd'!AR22,""))) -> 48 | CU23: =IF(OR(B23=0,B23=""),"",IF(AND($E$3="1st"),'Marks Entry 1st'!AS22,IF(AND($E$3="2nd"),'Marks Entry 2nd'!AS22,""))) -> 0 | CV23: 48 | CW23: 0 | CX23: 100 | CY23: P | CZ23: C | DA23: =IF(OR(B23=0,B23=""),"",IF(AND('Marks Entry 1st'!AT22="",'Marks Entry 2nd'!AT22=""),"",IF(AND($E$3="1st"),'Marks Entry 1st'!AT22,IF(AND($E$3="2nd"),'Marks Entry 2nd'!AT22,"")))) ->  | DB23: =IF(OR(B23=0,B23=""),"",IF(AND('Marks Entry 1st'!AU22="",'Marks Entry 2nd'!AU22=""),"",IF(AND($E$3="1st"),'Marks Entry 1st'!AU22,IF(AND($E$3="2nd"),'Marks Entry 2nd'!AU22,"")))) ->  | DE23: =IF(OR(B23=0,B23=""),"",IF(AND('Marks Entry 1st'!AV22="",'Marks Entry 2nd'!AV22=""),"",IF(AND($E$3="1st"),'Marks Entry 1st'!AV22,IF(AND($E$3="2nd"),'Marks Entry 2nd'!AV22,"")))) ->  | DF23: =IF(OR(B23=0,B23=""),"",IF(AND('Marks Entry 1st'!AW22="",'Marks Entry 2nd'!AW22=""),"",IF(AND($E$3="1st"),'Marks Entry 1st'!AW22,IF(AND($E$3="2nd"),'Marks Entry 2nd'!AW22,"")))) ->  | DI23: 395 | DJ23: 79.00 % | DK23: I | DL23: 17 | DM23: =IF(B23="NSO","NSO",IF(OR(D23="",G23="",F23="",B23="",DI23=0),"",IF('Master sheet'!$D$11="Hindi","कक्षोंन्नति","Promoted"))) -> Promoted | DN23: =IF(OR(B23=0,B23=""),"",IF(AND($E$3="1st"),'Marks Entry 1st'!AX22,IF(AND($E$3="2nd"),'Marks Entry 2nd'!AX22,""))) -> 220 | DO23: =IF(OR(B23=0,B23=""),"",IF(AND($E$3="1st"),'Marks Entry 1st'!AY22,IF(AND($E$3="2nd"),'Marks Entry 2nd'!AY22,""))) -> 180 | DP23: B | DX23: =IF(AND($E$3="1st"),'Marks Entry 1st'!I22,IF(AND($E$3="2nd"),'Marks Entry 2nd'!I22,"")) -> 118
A24: 17 | B24: =IF(OR(DX24=0,DX24=""),"",IF(AND($E$3="1st"),'Marks Entry 1st'!I23,IF(AND($E$3="2nd"),'Marks Entry 2nd'!I23,""))) -> 119 | C24: =IF(OR(B24=0,B24=""),"",IF(AND($E$3="1st"),'Marks Entry 1st'!B23,IF(AND($E$3="2nd"),'Marks Entry 2nd'!B23,""))) -> 1 | D24: =IF(OR(B24=0,B24=""),"",IF(AND($E$3="1st"),'Marks Entry 1st'!C23,IF(AND($E$3="2nd"),'Marks Entry 2nd'!C23,""))) -> A | E24: =IF(OR(B24=0,B24=""),"",IF(AND($E$3="1st"),'Marks Entry 1st'!E23,IF(AND($E$3="2nd"),'Marks Entry 2nd'!E23,""))) -> 14-02-2016 | F24: =IF(OR(B24=0,B24=""),"",IF(AND($E$3="1st"),'Marks Entry 1st'!D23,IF(AND($E$3="2nd"),'Marks Entry 2nd'!D23,""))) -> 924 | G24: =IF(OR(B24=0,B24=""),"",IF(AND($E$3="1st"),'Marks Entry 1st'!F23,IF(AND($E$3="2nd"),'Marks Entry 2nd'!F23,""))) -> LUCKY PRAJAPATI | H24: =IF(OR(B24=0,B24=""),"",IF(AND($E$3="1st"),'Marks Entry 1st'!G23,IF(AND($E$3="2nd"),'Marks Entry 2nd'!G23,""))) -> NAR SINGH | I24: =IF(OR(B24=0,B24=""),"",IF(AND($E$3="1st"),'Marks Entry 1st'!H23,IF(AND($E$3="2nd"),'Marks Entry 2nd'!H23,""))) -> BHAWNA | J24: =IF(OR(B24=0,B24=""),"",IF(AND($E$3="1st"),'Marks Entry 1st'!J23,IF(AND($E$3="2nd"),'Marks Entry 2nd'!J23,""))) -> M | K24: =IF(OR(B24=0,B24=""),"",IF(AND($E$3="1st"),'Marks Entry 1st'!K23,IF(AND($E$3="2nd"),'Marks Entry 2nd'!K23,""))) -> OBC | P24: =IF(OR(B24=0,B24=""),"",IF(AND($E$3="1st"),'Marks Entry 1st'!O23,IF(AND($E$3="2nd"),'Marks Entry 2nd'!O23,""))) -> 29 | Q24: =IF(OR(B24=0,B24=""),"",IF(AND($E$3="1st"),'Marks Entry 1st'!P23,IF(AND($E$3="2nd"),'Marks Entry 2nd'!P23,""))) -> 51 | R24: 80 | S24: 80 | T24: =IF(OR(B24=0,B24=""),"",IF(AND($E$3="1st"),'Marks Entry 1st'!Q23,IF(AND($E$3="2nd"),'Marks Entry 2nd'!Q23,""))) -> 24 | U24: =IF(OR(B24=0,B24=""),"",IF(AND($E$3="1st"),'Marks Entry 1st'!R23,IF(AND($E$3="2nd"),'Marks Entry 2nd'!R23,""))) -> 20 | V24: 44 | W24: 124 | X24: 0 | Y24: 200 | AA24: P | AB24: I | AC24: C | AH24: =IF(OR(B24=0,B24=""),"",IF(AND($E$3="1st"),'Marks Entry 1st'!V23,IF(AND($E$3="2nd"),'Marks Entry 2nd'!V23,""))) -> 14 | AI24: =IF(OR(B24=0,B24=""),"",IF(AND($E$3="1st"),'Marks Entry 1st'!W23,IF(AND($E$3="2nd"),'Marks Entry 2nd'!W23,""))) -> 32 | AJ24: 46 | AK24: 46 | AL24: =IF(OR(B24=0,B24=""),"",IF(AND($E$3="1st"),'Marks Entry 1st'!X23,IF(AND($E$3="2nd"),'Marks Entry 2nd'!X23,""))) -> 10 | AM24: =IF(OR(B24=0,B24=""),"",IF(AND($E$3="1st"),'Marks Entry 1st'!Y23,IF(AND($E$3="2nd"),'Marks Entry 2nd'!Y23,""))) -> 31 | AN24: 41 | AO24: 87 | AP24: 0 | AQ24: 100 | AS24: P | AT24: D | AU24: A | AZ24: =IF(OR(B24=0,B24=""),"",IF(AND($E$3="1st"),'Marks Entry 1st'!AC23,IF(AND($E$3="2nd"),'Marks Entry 2nd'!AC23,""))) -> 22 | BA24: =IF(OR(B24=0,B24=""),"",IF(AND($E$3="1st"),'Marks Entry 1st'!AD23,IF(AND($E$3="2nd"),'Marks Entry 2nd'!AD23,""))) -> 64 | BB24: 86 | BC24: 86 | BD24: =IF(OR(B24=0,B24=""),"",IF(AND($E$3="1st"),'Marks Entry 1st'!AE23,IF(AND($E$3="2nd"),'Marks Entry 2nd'!AE23,""))) -> 27 | BE24: =IF(OR(B24=0,B24=""),"",IF(AND($E$3="1st"),'Marks Entry 1st'!AF23,IF(AND($E$3="2nd"),'Marks Entry 2nd'!AF23,""))) -> 68 | BF24: 95 | BG24: 181 | BH24: 0 | BI24: 200 | BK24: P | BL24: D | BM24: A | BR24: =IF(OR(B24=0,B24=""),"",IF(AND('Marks Entry 1st'!AJ23="",'Marks Entry 2nd'!AJ23=""),"",IF(AND($E$3="1st"),'Marks Entry 1st'!AJ23,IF(AND($E$3="2nd"),'Marks Entry 2nd'!AJ23,"")))) -> 42 | BS24: =IF(OR(B24=0,B24=""),"",IF(AND('Marks Entry 1st'!AK23="",'Marks Entry 2nd'!AK23=""),"",IF(AND($E$3="1st"),'Marks Entry 1st'!AK23,IF(AND($E$3="2nd"),'Marks Entry 2nd'!AK23,"")))) ->  | BT24: 42 | BU24: 42 | BV24: =IF(OR(B24=0,B24=""),"",IF(AND('Marks Entry 1st'!AL23="",'Marks Entry 2nd'!AL23=""),"",IF(AND($E$3="1st"),'Marks Entry 1st'!AL23,IF(AND($E$3="2nd"),'Marks Entry 2nd'!AL23,"")))) -> 47 | BW24: =IF(OR(B24=0,B24=""),"",IF(AND('Marks Entry 1st'!AM23="",'Marks Entry 2nd'!AM23=""),"",IF(AND($E$3="1st"),'Marks Entry 1st'!AM23,IF(AND($E$3="2nd"),'Marks Entry 2nd'!AM23,"")))) ->  | BX24: 47 | BY24: 89 | BZ24: 0 | CA24: 100 | CC24: P | CD24: D | CE24: A | CF24: =IF(OR(B24=0,B24=""),"",IF(AND($E$3="1st"),'Marks Entry 1st'!AN23,IF(AND($E$3="2nd"),'Marks Entry 2nd'!AN23,""))) -> NA | CG24: =IF(OR(B24=0,B24=""),"",IF(AND($E$3="1st"),'Marks Entry 1st'!AO23,IF(AND($E$3="2nd"),'Marks Entry 2nd'!AO23,""))) -> 0 | CH24: 0 | CI24: 0 | CM24: =IF(OR(B24=0,B24=""),"",IF(AND($E$3="1st"),'Marks Entry 1st'!AP23,IF(AND($E$3="2nd"),'Marks Entry 2nd'!AP23,""))) -> 0 | CN24: =IF(OR(B24=0,B24=""),"",IF(AND($E$3="1st"),'Marks Entry 1st'!AQ23,IF(AND($E$3="2nd"),'Marks Entry 2nd'!AQ23,""))) -> 0 | CO24: 0 | CP24: 0 | CT24: =IF(OR(B24=0,B24=""),"",IF(AND($E$3="1st"),'Marks Entry 1st'!AR23,IF(AND($E$3="2nd"),'Marks Entry 2nd'!AR23,""))) -> 49 | CU24: =IF(OR(B24=0,B24=""),"",IF(AND($E$3="1st"),'Marks Entry 1st'!AS23,IF(AND($E$3="2nd"),'Marks Entry 2nd'!AS23,""))) -> 0 | CV24: 49 | CW24: 0 | CX24: 100 | CY24: P | CZ24: C | DA24: =IF(OR(B24=0,B24=""),"",IF(AND('Marks Entry 1st'!AT23="",'Marks Entry 2nd'!AT23=""),"",IF(AND($E$3="1st"),'Marks Entry 1st'!AT23,IF(AND($E$3="2nd"),'Marks Entry 2nd'!AT23,"")))) ->  | DB24: =IF(OR(B24=0,B24=""),"",IF(AND('Marks Entry 1st'!AU23="",'Marks Entry 2nd'!AU23=""),"",IF(AND($E$3="1st"),'Marks Entry 1st'!AU23,IF(AND($E$3="2nd"),'Marks Entry 2nd'!AU23,"")))) ->  | DE24: =IF(OR(B24=0,B24=""),"",IF(AND('Marks Entry 1st'!AV23="",'Marks Entry 2nd'!AV23=""),"",IF(AND($E$3="1st"),'Marks Entry 1st'!AV23,IF(AND($E$3="2nd"),'Marks Entry 2nd'!AV23,"")))) ->  | DF24: =IF(OR(B24=0,B24=""),"",IF(AND('Marks Entry 1st'!AW23="",'Marks Entry 2nd'!AW23=""),"",IF(AND($E$3="1st"),'Marks Entry 1st'!AW23,IF(AND($E$3="2nd"),'Marks Entry 2nd'!AW23,"")))) ->  | DI24: 392 | DJ24: 78.40 % | DK24: I | DL24: 18 | DM24: =IF(B24="NSO","NSO",IF(OR(D24="",G24="",F24="",B24="",DI24=0),"",IF('Master sheet'!$D$11="Hindi","कक्षोंन्नति","Promoted"))) -> Promoted | DN24: =IF(OR(B24=0,B24=""),"",IF(AND($E$3="1st"),'Marks Entry 1st'!AX23,IF(AND($E$3="2nd"),'Marks Entry 2nd'!AX23,""))) -> 220 | DO24: =IF(OR(B24=0,B24=""),"",IF(AND($E$3="1st"),'Marks Entry 1st'!AY23,IF(AND($E$3="2nd"),'Marks Entry 2nd'!AY23,""))) -> 158 | DP24: B | DX24: =IF(AND($E$3="1st"),'Marks Entry 1st'!I23,IF(AND($E$3="2nd"),'Marks Entry 2nd'!I23,"")) -> 119
A25: 18 | B25: =IF(OR(DX25=0,DX25=""),"",IF(AND($E$3="1st"),'Marks Entry 1st'!I24,IF(AND($E$3="2nd"),'Marks Entry 2nd'!I24,""))) -> 120 | C25: =IF(OR(B25=0,B25=""),"",IF(AND($E$3="1st"),'Marks Entry 1st'!B24,IF(AND($E$3="2nd"),'Marks Entry 2nd'!B24,""))) -> 1 | D25: =IF(OR(B25=0,B25=""),"",IF(AND($E$3="1st"),'Marks Entry 1st'!C24,IF(AND($E$3="2nd"),'Marks Entry 2nd'!C24,""))) -> A | E25: =IF(OR(B25=0,B25=""),"",IF(AND($E$3="1st"),'Marks Entry 1st'!E24,IF(AND($E$3="2nd"),'Marks Entry 2nd'!E24,""))) -> 2015-01-04 | F25: =IF(OR(B25=0,B25=""),"",IF(AND($E$3="1st"),'Marks Entry 1st'!D24,IF(AND($E$3="2nd"),'Marks Entry 2nd'!D24,""))) -> 921 | G25: =IF(OR(B25=0,B25=""),"",IF(AND($E$3="1st"),'Marks Entry 1st'!F24,IF(AND($E$3="2nd"),'Marks Entry 2nd'!F24,""))) -> MAHENDRA PARTAP SINGH CHUNDAWAT | H25: =IF(OR(B25=0,B25=""),"",IF(AND($E$3="1st"),'Marks Entry 1st'!G24,IF(AND($E$3="2nd"),'Marks Entry 2nd'!G24,""))) -> CHANDRA SINGH CHUNDAWAT | I25: =IF(OR(B25=0,B25=""),"",IF(AND($E$3="1st"),'Marks Entry 1st'!H24,IF(AND($E$3="2nd"),'Marks Entry 2nd'!H24,""))) -> RITU KANWAR | J25: =IF(OR(B25=0,B25=""),"",IF(AND($E$3="1st"),'Marks Entry 1st'!J24,IF(AND($E$3="2nd"),'Marks Entry 2nd'!J24,""))) -> M | K25: =IF(OR(B25=0,B25=""),"",IF(AND($E$3="1st"),'Marks Entry 1st'!K24,IF(AND($E$3="2nd"),'Marks Entry 2nd'!K24,""))) -> GEN | P25: =IF(OR(B25=0,B25=""),"",IF(AND($E$3="1st"),'Marks Entry 1st'!O24,IF(AND($E$3="2nd"),'Marks Entry 2nd'!O24,""))) -> 29 | Q25: =IF(OR(B25=0,B25=""),"",IF(AND($E$3="1st"),'Marks Entry 1st'!P24,IF(AND($E$3="2nd"),'Marks Entry 2nd'!P24,""))) -> 54 | R25: 83 | S25: 83 | T25: =IF(OR(B25=0,B25=""),"",IF(AND($E$3="1st"),'Marks Entry 1st'!Q24,IF(AND($E$3="2nd"),'Marks Entry 2nd'!Q24,""))) -> 24 | U25: =IF(OR(B25=0,B25=""),"",IF(AND($E$3="1st"),'Marks Entry 1st'!R24,IF(AND($E$3="2nd"),'Marks Entry 2nd'!R24,""))) -> 21 | V25: 45 | W25: 128 | X25: 0 | Y25: 200 | AA25: P | AB25: I | AC25: C | AH25: =IF(OR(B25=0,B25=""),"",IF(AND($E$3="1st"),'Marks Entry 1st'!V24,IF(AND($E$3="2nd"),'Marks Entry 2nd'!V24,""))) -> 14 | AI25: =IF(OR(B25=0,B25=""),"",IF(AND($E$3="1st"),'Marks Entry 1st'!W24,IF(AND($E$3="2nd"),'Marks Entry 2nd'!W24,""))) -> 32 | AJ25: 46 | AK25: 46 | AL25: =IF(OR(B25=0,B25=""),"",IF(AND($E$3="1st"),'Marks Entry 1st'!X24,IF(AND($E$3="2nd"),'Marks Entry 2nd'!X24,""))) -> 10 | AM25: =IF(OR(B25=0,B25=""),"",IF(AND($E$3="1st"),'Marks Entry 1st'!Y24,IF(AND($E$3="2nd"),'Marks Entry 2nd'!Y24,""))) -> 30 | AN25: 40 | AO25: 86 | AP25: 0 | AQ25: 100 | AS25: P | AT25: D | AU25: A | AZ25: =IF(OR(B25=0,B25=""),"",IF(AND($E$3="1st"),'Marks Entry 1st'!AC24,IF(AND($E$3="2nd"),'Marks Entry 2nd'!AC24,""))) -> 22 | BA25: =IF(OR(B25=0,B25=""),"",IF(AND($E$3="1st"),'Marks Entry 1st'!AD24,IF(AND($E$3="2nd"),'Marks Entry 2nd'!AD24,""))) -> 64 | BB25: 86 | BC25: 86 | BD25: =IF(OR(B25=0,B25=""),"",IF(AND($E$3="1st"),'Marks Entry 1st'!AE24,IF(AND($E$3="2nd"),'Marks Entry 2nd'!AE24,""))) -> 24 | BE25: =IF(OR(B25=0,B25=""),"",IF(AND($E$3="1st"),'Marks Entry 1st'!AF24,IF(AND($E$3="2nd"),'Marks Entry 2nd'!AF24,""))) -> 65 | BF25: 89 | BG25: 175 | BH25: 0 | BI25: 200 | BK25: P | BL25: D | BM25: A | BR25: =IF(OR(B25=0,B25=""),"",IF(AND('Marks Entry 1st'!AJ24="",'Marks Entry 2nd'!AJ24=""),"",IF(AND($E$3="1st"),'Marks Entry 1st'!AJ24,IF(AND($E$3="2nd"),'Marks Entry 2nd'!AJ24,"")))) -> 40 | BS25: =IF(OR(B25=0,B25=""),"",IF(AND('Marks Entry 1st'!AK24="",'Marks Entry 2nd'!AK24=""),"",IF(AND($E$3="1st"),'Marks Entry 1st'!AK24,IF(AND($E$3="2nd"),'Marks Entry 2nd'!AK24,"")))) ->  | BT25: 40 | BU25: 40 | BV25: =IF(OR(B25=0,B25=""),"",IF(AND('Marks Entry 1st'!AL24="",'Marks Entry 2nd'!AL24=""),"",IF(AND($E$3="1st"),'Marks Entry 1st'!AL24,IF(AND($E$3="2nd"),'Marks Entry 2nd'!AL24,"")))) -> 49 | BW25: =IF(OR(B25=0,B25=""),"",IF(AND('Marks Entry 1st'!AM24="",'Marks Entry 2nd'!AM24=""),"",IF(AND($E$3="1st"),'Marks Entry 1st'!AM24,IF(AND($E$3="2nd"),'Marks Entry 2nd'!AM24,"")))) ->  | BX25: 49 | BY25: 89 | BZ25: 0 | CA25: 100 | CC25: P | CD25: D | CE25: A | CF25: =IF(OR(B25=0,B25=""),"",IF(AND($E$3="1st"),'Marks Entry 1st'!AN24,IF(AND($E$3="2nd"),'Marks Entry 2nd'!AN24,""))) -> 0 | CG25: =IF(OR(B25=0,B25=""),"",IF(AND($E$3="1st"),'Marks Entry 1st'!AO24,IF(AND($E$3="2nd"),'Marks Entry 2nd'!AO24,""))) -> AB | CH25: 0 | CI25: 0 | CM25: =IF(OR(B25=0,B25=""),"",IF(AND($E$3="1st"),'Marks Entry 1st'!AP24,IF(AND($E$3="2nd"),'Marks Entry 2nd'!AP24,""))) -> 0 | CN25: =IF(OR(B25=0,B25=""),"",IF(AND($E$3="1st"),'Marks Entry 1st'!AQ24,IF(AND($E$3="2nd"),'Marks Entry 2nd'!AQ24,""))) -> 0 | CO25: 0 | CP25: 0 | CT25: =IF(OR(B25=0,B25=""),"",IF(AND($E$3="1st"),'Marks Entry 1st'!AR24,IF(AND($E$3="2nd"),'Marks Entry 2nd'!AR24,""))) -> 35 | CU25: =IF(OR(B25=0,B25=""),"",IF(AND($E$3="1st"),'Marks Entry 1st'!AS24,IF(AND($E$3="2nd"),'Marks Entry 2nd'!AS24,""))) -> 0 | CV25: 35 | CW25: 0 | CX25: 100 | CY25: S | DA25: =IF(OR(B25=0,B25=""),"",IF(AND('Marks Entry 1st'!AT24="",'Marks Entry 2nd'!AT24=""),"",IF(AND($E$3="1st"),'Marks Entry 1st'!AT24,IF(AND($E$3="2nd"),'Marks Entry 2nd'!AT24,"")))) ->  | DB25: =IF(OR(B25=0,B25=""),"",IF(AND('Marks Entry 1st'!AU24="",'Marks Entry 2nd'!AU24=""),"",IF(AND($E$3="1st"),'Marks Entry 1st'!AU24,IF(AND($E$3="2nd"),'Marks Entry 2nd'!AU24,"")))) ->  | DE25: =IF(OR(B25=0,B25=""),"",IF(AND('Marks Entry 1st'!AV24="",'Marks Entry 2nd'!AV24=""),"",IF(AND($E$3="1st"),'Marks Entry 1st'!AV24,IF(AND($E$3="2nd"),'Marks Entry 2nd'!AV24,"")))) ->  | DF25: =IF(OR(B25=0,B25=""),"",IF(AND('Marks Entry 1st'!AW24="",'Marks Entry 2nd'!AW24=""),"",IF(AND($E$3="1st"),'Marks Entry 1st'!AW24,IF(AND($E$3="2nd"),'Marks Entry 2nd'!AW24,"")))) ->  | DI25: 389 | DJ25: 77.80 % | DK25: I | DL25: 19 | DM25: =IF(B25="NSO","NSO",IF(OR(D25="",G25="",F25="",B25="",DI25=0),"",IF('Master sheet'!$D$11="Hindi","कक्षोंन्नति","Promoted"))) -> Promoted | DN25: =IF(OR(B25=0,B25=""),"",IF(AND($E$3="1st"),'Marks Entry 1st'!AX24,IF(AND($E$3="2nd"),'Marks Entry 2nd'!AX24,""))) -> 220 | DO25: =IF(OR(B25=0,B25=""),"",IF(AND($E$3="1st"),'Marks Entry 1st'!AY24,IF(AND($E$3="2nd"),'Marks Entry 2nd'!AY24,""))) -> 158 | DP25: B | DX25: =IF(AND($E$3="1st"),'Marks Entry 1st'!I24,IF(AND($E$3="2nd"),'Marks Entry 2nd'!I24,"")) -> 120
A26: 19 | B26: =IF(OR(DX26=0,DX26=""),"",IF(AND($E$3="1st"),'Marks Entry 1st'!I25,IF(AND($E$3="2nd"),'Marks Entry 2nd'!I25,""))) -> 121 | C26: =IF(OR(B26=0,B26=""),"",IF(AND($E$3="1st"),'Marks Entry 1st'!B25,IF(AND($E$3="2nd"),'Marks Entry 2nd'!B25,""))) -> 1 | D26: =IF(OR(B26=0,B26=""),"",IF(AND($E$3="1st"),'Marks Entry 1st'!C25,IF(AND($E$3="2nd"),'Marks Entry 2nd'!C25,""))) -> A | E26: =IF(OR(B26=0,B26=""),"",IF(AND($E$3="1st"),'Marks Entry 1st'!E25,IF(AND($E$3="2nd"),'Marks Entry 2nd'!E25,""))) -> 2015-09-10 | F26: =IF(OR(B26=0,B26=""),"",IF(AND($E$3="1st"),'Marks Entry 1st'!D25,IF(AND($E$3="2nd"),'Marks Entry 2nd'!D25,""))) -> 948 | G26: =IF(OR(B26=0,B26=""),"",IF(AND($E$3="1st"),'Marks Entry 1st'!F25,IF(AND($E$3="2nd"),'Marks Entry 2nd'!F25,""))) -> MANVEER GURJAR | H26: =IF(OR(B26=0,B26=""),"",IF(AND($E$3="1st"),'Marks Entry 1st'!G25,IF(AND($E$3="2nd"),'Marks Entry 2nd'!G25,""))) -> VIKRAM SINGH | I26: =IF(OR(B26=0,B26=""),"",IF(AND($E$3="1st"),'Marks Entry 1st'!H25,IF(AND($E$3="2nd"),'Marks Entry 2nd'!H25,""))) -> BARKHA | J26: =IF(OR(B26=0,B26=""),"",IF(AND($E$3="1st"),'Marks Entry 1st'!J25,IF(AND($E$3="2nd"),'Marks Entry 2nd'!J25,""))) -> M | K26: =IF(OR(B26=0,B26=""),"",IF(AND($E$3="1st"),'Marks Entry 1st'!K25,IF(AND($E$3="2nd"),'Marks Entry 2nd'!K25,""))) -> SBC | P26: =IF(OR(B26=0,B26=""),"",IF(AND($E$3="1st"),'Marks Entry 1st'!O25,IF(AND($E$3="2nd"),'Marks Entry 2nd'!O25,""))) -> 29 | Q26: =IF(OR(B26=0,B26=""),"",IF(AND($E$3="1st"),'Marks Entry 1st'!P25,IF(AND($E$3="2nd"),'Marks Entry 2nd'!P25,""))) -> 56 | R26: 85 | S26: 85 | T26: =IF(OR(B26=0,B26=""),"",IF(AND($E$3="1st"),'Marks Entry 1st'!Q25,IF(AND($E$3="2nd"),'Marks Entry 2nd'!Q25,""))) -> 24 | U26: =IF(OR(B26=0,B26=""),"",IF(AND($E$3="1st"),'Marks Entry 1st'!R25,IF(AND($E$3="2nd"),'Marks Entry 2nd'!R25,""))) -> 24 | V26: 48 | W26: 133 | X26: 0 | Y26: 200 | AA26: P | AB26: I | AC26: C | AH26: =IF(OR(B26=0,B26=""),"",IF(AND($E$3="1st"),'Marks Entry 1st'!V25,IF(AND($E$3="2nd"),'Marks Entry 2nd'!V25,""))) -> 14 | AI26: =IF(OR(B26=0,B26=""),"",IF(AND($E$3="1st"),'Marks Entry 1st'!W25,IF(AND($E$3="2nd"),'Marks Entry 2nd'!W25,""))) -> 32 | AJ26: 46 | AK26: 46 | AL26: =IF(OR(B26=0,B26=""),"",IF(AND($E$3="1st"),'Marks Entry 1st'!X25,IF(AND($E$3="2nd"),'Marks Entry 2nd'!X25,""))) -> 10 | AM26: =IF(OR(B26=0,B26=""),"",IF(AND($E$3="1st"),'Marks Entry 1st'!Y25,IF(AND($E$3="2nd"),'Marks Entry 2nd'!Y25,""))) -> 30 | AN26: 40 | AO26: 86 | AP26: 0 | AQ26: 100 | AS26: P | AT26: D | AU26: A | AZ26: =IF(OR(B26=0,B26=""),"",IF(AND($E$3="1st"),'Marks Entry 1st'!AC25,IF(AND($E$3="2nd"),'Marks Entry 2nd'!AC25,""))) -> 22 | BA26: =IF(OR(B26=0,B26=""),"",IF(AND($E$3="1st"),'Marks Entry 1st'!AD25,IF(AND($E$3="2nd"),'Marks Entry 2nd'!AD25,""))) -> 64 | BB26: 86 | BC26: 86 | BD26: =IF(OR(B26=0,B26=""),"",IF(AND($E$3="1st"),'Marks Entry 1st'!AE25,IF(AND($E$3="2nd"),'Marks Entry 2nd'!AE25,""))) -> 21 | BE26: =IF(OR(B26=0,B26=""),"",IF(AND($E$3="1st"),'Marks Entry 1st'!AF25,IF(AND($E$3="2nd"),'Marks Entry 2nd'!AF25,""))) -> 61 | BF26: 82 | BG26: 168 | BH26: 0 | BI26: 200 | BK26: P | BL26: D | BM26: B | BR26: =IF(OR(B26=0,B26=""),"",IF(AND('Marks Entry 1st'!AJ25="",'Marks Entry 2nd'!AJ25=""),"",IF(AND($E$3="1st"),'Marks Entry 1st'!AJ25,IF(AND($E$3="2nd"),'Marks Entry 2nd'!AJ25,"")))) -> 41 | BS26: =IF(OR(B26=0,B26=""),"",IF(AND('Marks Entry 1st'!AK25="",'Marks Entry 2nd'!AK25=""),"",IF(AND($E$3="1st"),'Marks Entry 1st'!AK25,IF(AND($E$3="2nd"),'Marks Entry 2nd'!AK25,"")))) ->  | BT26: 41 | BU26: 41 | BV26: =IF(OR(B26=0,B26=""),"",IF(AND('Marks Entry 1st'!AL25="",'Marks Entry 2nd'!AL25=""),"",IF(AND($E$3="1st"),'Marks Entry 1st'!AL25,IF(AND($E$3="2nd"),'Marks Entry 2nd'!AL25,"")))) -> 41 | BW26: =IF(OR(B26=0,B26=""),"",IF(AND('Marks Entry 1st'!AM25="",'Marks Entry 2nd'!AM25=""),"",IF(AND($E$3="1st"),'Marks Entry 1st'!AM25,IF(AND($E$3="2nd"),'Marks Entry 2nd'!AM25,"")))) ->  | BX26: 41 | BY26: 82 | BZ26: 0 | CA26: 100 | CC26: P | CD26: D | CE26: B | CF26: =IF(OR(B26=0,B26=""),"",IF(AND($E$3="1st"),'Marks Entry 1st'!AN25,IF(AND($E$3="2nd"),'Marks Entry 2nd'!AN25,""))) -> 0 | CG26: =IF(OR(B26=0,B26=""),"",IF(AND($E$3="1st"),'Marks Entry 1st'!AO25,IF(AND($E$3="2nd"),'Marks Entry 2nd'!AO25,""))) -> 0 | CH26: 0 | CI26: 0 | CM26: =IF(OR(B26=0,B26=""),"",IF(AND($E$3="1st"),'Marks Entry 1st'!AP25,IF(AND($E$3="2nd"),'Marks Entry 2nd'!AP25,""))) -> 0 | CN26: =IF(OR(B26=0,B26=""),"",IF(AND($E$3="1st"),'Marks Entry 1st'!AQ25,IF(AND($E$3="2nd"),'Marks Entry 2nd'!AQ25,""))) -> 0 | CO26: 0 | CP26: 0 | CT26: =IF(OR(B26=0,B26=""),"",IF(AND($E$3="1st"),'Marks Entry 1st'!AR25,IF(AND($E$3="2nd"),'Marks Entry 2nd'!AR25,""))) -> 36 | CU26: =IF(OR(B26=0,B26=""),"",IF(AND($E$3="1st"),'Marks Entry 1st'!AS25,IF(AND($E$3="2nd"),'Marks Entry 2nd'!AS25,""))) -> 0 | CV26: 36 | CW26: 0 | CX26: 100 | CY26: P | CZ26: D | DA26: =IF(OR(B26=0,B26=""),"",IF(AND('Marks Entry 1st'!AT25="",'Marks Entry 2nd'!AT25=""),"",IF(AND($E$3="1st"),'Marks Entry 1st'!AT25,IF(AND($E$3="2nd"),'Marks Entry 2nd'!AT25,"")))) ->  | DB26: =IF(OR(B26=0,B26=""),"",IF(AND('Marks Entry 1st'!AU25="",'Marks Entry 2nd'!AU25=""),"",IF(AND($E$3="1st"),'Marks Entry 1st'!AU25,IF(AND($E$3="2nd"),'Marks Entry 2nd'!AU25,"")))) ->  | DE26: =IF(OR(B26=0,B26=""),"",IF(AND('Marks Entry 1st'!AV25="",'Marks Entry 2nd'!AV25=""),"",IF(AND($E$3="1st"),'Marks Entry 1st'!AV25,IF(AND($E$3="2nd"),'Marks Entry 2nd'!AV25,"")))) ->  | DF26: =IF(OR(B26=0,B26=""),"",IF(AND('Marks Entry 1st'!AW25="",'Marks Entry 2nd'!AW25=""),"",IF(AND($E$3="1st"),'Marks Entry 1st'!AW25,IF(AND($E$3="2nd"),'Marks Entry 2nd'!AW25,"")))) ->  | DI26: 387 | DJ26: 77.40 % | DK26: I | DL26: 20 | DM26: =IF(B26="NSO","NSO",IF(OR(D26="",G26="",F26="",B26="",DI26=0),"",IF('Master sheet'!$D$11="Hindi","कक्षोंन्नति","Promoted"))) -> Promoted | DN26: =IF(OR(B26=0,B26=""),"",IF(AND($E$3="1st"),'Marks Entry 1st'!AX25,IF(AND($E$3="2nd"),'Marks Entry 2nd'!AX25,""))) -> 220 | DO26: =IF(OR(B26=0,B26=""),"",IF(AND($E$3="1st"),'Marks Entry 1st'!AY25,IF(AND($E$3="2nd"),'Marks Entry 2nd'!AY25,""))) -> 160 | DP26: B | DX26: =IF(AND($E$3="1st"),'Marks Entry 1st'!I25,IF(AND($E$3="2nd"),'Marks Entry 2nd'!I25,"")) -> 121
A27: 20 | B27: =IF(OR(DX27=0,DX27=""),"",IF(AND($E$3="1st"),'Marks Entry 1st'!I26,IF(AND($E$3="2nd"),'Marks Entry 2nd'!I26,""))) -> 122 | C27: =IF(OR(B27=0,B27=""),"",IF(AND($E$3="1st"),'Marks Entry 1st'!B26,IF(AND($E$3="2nd"),'Marks Entry 2nd'!B26,""))) -> 1 | D27: =IF(OR(B27=0,B27=""),"",IF(AND($E$3="1st"),'Marks Entry 1st'!C26,IF(AND($E$3="2nd"),'Marks Entry 2nd'!C26,""))) -> A | E27: =IF(OR(B27=0,B27=""),"",IF(AND($E$3="1st"),'Marks Entry 1st'!E26,IF(AND($E$3="2nd"),'Marks Entry 2nd'!E26,""))) -> 13-01-2015 | F27: =IF(OR(B27=0,B27=""),"",IF(AND($E$3="1st"),'Marks Entry 1st'!D26,IF(AND($E$3="2nd"),'Marks Entry 2nd'!D26,""))) -> 943 | G27: =IF(OR(B27=0,B27=""),"",IF(AND($E$3="1st"),'Marks Entry 1st'!F26,IF(AND($E$3="2nd"),'Marks Entry 2nd'!F26,""))) -> PALAK DAMER | H27: =IF(OR(B27=0,B27=""),"",IF(AND($E$3="1st"),'Marks Entry 1st'!G26,IF(AND($E$3="2nd"),'Marks Entry 2nd'!G26,""))) -> GOVIND LAL | I27: =IF(OR(B27=0,B27=""),"",IF(AND($E$3="1st"),'Marks Entry 1st'!H26,IF(AND($E$3="2nd"),'Marks Entry 2nd'!H26,""))) -> LEELA | J27: =IF(OR(B27=0,B27=""),"",IF(AND($E$3="1st"),'Marks Entry 1st'!J26,IF(AND($E$3="2nd"),'Marks Entry 2nd'!J26,""))) -> F | K27: =IF(OR(B27=0,B27=""),"",IF(AND($E$3="1st"),'Marks Entry 1st'!K26,IF(AND($E$3="2nd"),'Marks Entry 2nd'!K26,""))) -> SC | P27: =IF(OR(B27=0,B27=""),"",IF(AND($E$3="1st"),'Marks Entry 1st'!O26,IF(AND($E$3="2nd"),'Marks Entry 2nd'!O26,""))) -> 29 | Q27: =IF(OR(B27=0,B27=""),"",IF(AND($E$3="1st"),'Marks Entry 1st'!P26,IF(AND($E$3="2nd"),'Marks Entry 2nd'!P26,""))) -> 58 | R27: 87 | S27: 87 | T27: =IF(OR(B27=0,B27=""),"",IF(AND($E$3="1st"),'Marks Entry 1st'!Q26,IF(AND($E$3="2nd"),'Marks Entry 2nd'!Q26,""))) -> 24 | U27: =IF(OR(B27=0,B27=""),"",IF(AND($E$3="1st"),'Marks Entry 1st'!R26,IF(AND($E$3="2nd"),'Marks Entry 2nd'!R26,""))) -> 45 | V27: 69 | W27: 156 | X27: 0 | Y27: 200 | AA27: P | AB27: D | AC27: B | AH27: =IF(OR(B27=0,B27=""),"",IF(AND($E$3="1st"),'Marks Entry 1st'!V26,IF(AND($E$3="2nd"),'Marks Entry 2nd'!V26,""))) -> 14 | AI27: =IF(OR(B27=0,B27=""),"",IF(AND($E$3="1st"),'Marks Entry 1st'!W26,IF(AND($E$3="2nd"),'Marks Entry 2nd'!W26,""))) -> 32 | AJ27: 46 | AK27: 46 | AL27: =IF(OR(B27=0,B27=""),"",IF(AND($E$3="1st"),'Marks Entry 1st'!X26,IF(AND($E$3="2nd"),'Marks Entry 2nd'!X26,""))) -> 10 | AM27: =IF(OR(B27=0,B27=""),"",IF(AND($E$3="1st"),'Marks Entry 1st'!Y26,IF(AND($E$3="2nd"),'Marks Entry 2nd'!Y26,""))) -> 30 | AN27: 40 | AO27: 86 | AP27: 0 | AQ27: 100 | AS27: P | AT27: D | AU27: A | AZ27: =IF(OR(B27=0,B27=""),"",IF(AND($E$3="1st"),'Marks Entry 1st'!AC26,IF(AND($E$3="2nd"),'Marks Entry 2nd'!AC26,""))) -> 22 | BA27: =IF(OR(B27=0,B27=""),"",IF(AND($E$3="1st"),'Marks Entry 1st'!AD26,IF(AND($E$3="2nd"),'Marks Entry 2nd'!AD26,""))) -> 64 | BB27: 86 | BC27: 86 | BD27: =IF(OR(B27=0,B27=""),"",IF(AND($E$3="1st"),'Marks Entry 1st'!AE26,IF(AND($E$3="2nd"),'Marks Entry 2nd'!AE26,""))) -> 25 | BE27: =IF(OR(B27=0,B27=""),"",IF(AND($E$3="1st"),'Marks Entry 1st'!AF26,IF(AND($E$3="2nd"),'Marks Entry 2nd'!AF26,""))) -> 62 | BF27: 87 | BG27: 173 | BH27: 0 | BI27: 200 | BK27: P | BL27: D | BM27: A | BR27: =IF(OR(B27=0,B27=""),"",IF(AND('Marks Entry 1st'!AJ26="",'Marks Entry 2nd'!AJ26=""),"",IF(AND($E$3="1st"),'Marks Entry 1st'!AJ26,IF(AND($E$3="2nd"),'Marks Entry 2nd'!AJ26,"")))) -> 42 | BS27: =IF(OR(B27=0,B27=""),"",IF(AND('Marks Entry 1st'!AK26="",'Marks Entry 2nd'!AK26=""),"",IF(AND($E$3="1st"),'Marks Entry 1st'!AK26,IF(AND($E$3="2nd"),'Marks Entry 2nd'!AK26,"")))) ->  | BT27: 42 | BU27: 42 | BV27: =IF(OR(B27=0,B27=""),"",IF(AND('Marks Entry 1st'!AL26="",'Marks Entry 2nd'!AL26=""),"",IF(AND($E$3="1st"),'Marks Entry 1st'!AL26,IF(AND($E$3="2nd"),'Marks Entry 2nd'!AL26,"")))) -> 44 | BW27: =IF(OR(B27=0,B27=""),"",IF(AND('Marks Entry 1st'!AM26="",'Marks Entry 2nd'!AM26=""),"",IF(AND($E$3="1st"),'Marks Entry 1st'!AM26,IF(AND($E$3="2nd"),'Marks Entry 2nd'!AM26,"")))) ->  | BX27: 44 | BY27: 86 | BZ27: 0 | CA27: 100 | CC27: P | CD27: D | CE27: A | CF27: =IF(OR(B27=0,B27=""),"",IF(AND($E$3="1st"),'Marks Entry 1st'!AN26,IF(AND($E$3="2nd"),'Marks Entry 2nd'!AN26,""))) -> 0 | CG27: =IF(OR(B27=0,B27=""),"",IF(AND($E$3="1st"),'Marks Entry 1st'!AO26,IF(AND($E$3="2nd"),'Marks Entry 2nd'!AO26,""))) -> 0 | CH27: 0 | CI27: 0 | CM27: =IF(OR(B27=0,B27=""),"",IF(AND($E$3="1st"),'Marks Entry 1st'!AP26,IF(AND($E$3="2nd"),'Marks Entry 2nd'!AP26,""))) -> 0 | CN27: =IF(OR(B27=0,B27=""),"",IF(AND($E$3="1st"),'Marks Entry 1st'!AQ26,IF(AND($E$3="2nd"),'Marks Entry 2nd'!AQ26,""))) -> 0 | CO27: 0 | CP27: 0 | CT27: =IF(OR(B27=0,B27=""),"",IF(AND($E$3="1st"),'Marks Entry 1st'!AR26,IF(AND($E$3="2nd"),'Marks Entry 2nd'!AR26,""))) -> 0 | CU27: =IF(OR(B27=0,B27=""),"",IF(AND($E$3="1st"),'Marks Entry 1st'!AS26,IF(AND($E$3="2nd"),'Marks Entry 2nd'!AS26,""))) -> 0 | CV27: 0 | CW27: 0 | DA27: =IF(OR(B27=0,B27=""),"",IF(AND('Marks Entry 1st'!AT26="",'Marks Entry 2nd'!AT26=""),"",IF(AND($E$3="1st"),'Marks Entry 1st'!AT26,IF(AND($E$3="2nd"),'Marks Entry 2nd'!AT26,"")))) ->  | DB27: =IF(OR(B27=0,B27=""),"",IF(AND('Marks Entry 1st'!AU26="",'Marks Entry 2nd'!AU26=""),"",IF(AND($E$3="1st"),'Marks Entry 1st'!AU26,IF(AND($E$3="2nd"),'Marks Entry 2nd'!AU26,"")))) ->  | DE27: =IF(OR(B27=0,B27=""),"",IF(AND('Marks Entry 1st'!AV26="",'Marks Entry 2nd'!AV26=""),"",IF(AND($E$3="1st"),'Marks Entry 1st'!AV26,IF(AND($E$3="2nd"),'Marks Entry 2nd'!AV26,"")))) ->  | DF27: =IF(OR(B27=0,B27=""),"",IF(AND('Marks Entry 1st'!AW26="",'Marks Entry 2nd'!AW26=""),"",IF(AND($E$3="1st"),'Marks Entry 1st'!AW26,IF(AND($E$3="2nd"),'Marks Entry 2nd'!AW26,"")))) ->  | DI27: 415 | DJ27: 83.00 % | DK27: I | DL27: 4 | DM27: =IF(B27="NSO","NSO",IF(OR(D27="",G27="",F27="",B27="",DI27=0),"",IF('Master sheet'!$D$11="Hindi","कक्षोंन्नति","Promoted"))) -> Promoted | DN27: =IF(OR(B27=0,B27=""),"",IF(AND($E$3="1st"),'Marks Entry 1st'!AX26,IF(AND($E$3="2nd"),'Marks Entry 2nd'!AX26,""))) -> 220 | DO27: =IF(OR(B27=0,B27=""),"",IF(AND($E$3="1st"),'Marks Entry 1st'!AY26,IF(AND($E$3="2nd"),'Marks Entry 2nd'!AY26,""))) -> 164 | DP27: B | DX27: =IF(AND($E$3="1st"),'Marks Entry 1st'!I26,IF(AND($E$3="2nd"),'Marks Entry 2nd'!I26,"")) -> 122
